Workbook

Sheet DBH-Upgrade
B2: =IF(data!$CC$18=7,"Effektsimulering DBH-upgrade","Selectiontool DBH-upgrade") -> Selectiontool DBH-upgrade
F4: Taal/Language/Sprache/Langue/Språk/Lengua/Jazyk | J4: Español
F5: =IF(data!$CC$18=1,NL!F3,IF(data!$CC$18=2,EN!F3,IF(data!$CC$18=3,FR!F3,IF(data!$CC$18=4,DE!F3,IF(data!$CC$18=5,NR!F3,IF(data!$CC$18=6,SP!F3,IF(data!$CC$18=7,SW!F3,IF(data!$CC$18=8,TS!F3,IF(data!$CC$18=9,ExtraTaal1!F3,IF(data!$CC$18=10,ExtraTaal2!F3,IF(data!$CC$18=11,ExtraTaal3!F3,))))))))))) -> Dispositivo estático | J5: Linea
F6: =IF(data!$CC$18=1,NL!E4,IF(data!$CC$18=2,EN!E4,IF(data!$CC$18=3,FR!E4,IF(data!$CC$18=4,DE!E4,IF(data!$CC$18=5,NR!E4,IF(data!$CC$18=6,SP!E4,IF(data!$CC$18=7,SW!E4,IF(data!$CC$18=8,TS!E4,IF(data!$CC$18=9,ExtraTaal1!E4,IF(data!$CC$18=10,ExtraTaal2!E4,IF(data!$CC$18=11,ExtraTaal3!E4,)))))))))))&IF(data!$CC$18=8," [centimetr]"," [centimeter]") -> Versión [centimeter] | J6: 65 | K6: 70 | L6: 10 | M6: =data!H5 -> 11.5
J7: =IF(data!$CC$18=1,NL!B4,IF(data!$CC$18=2,EN!B4,IF(data!$CC$18=3,FR!B4,IF(data!$CC$18=4,DE!B4,IF(data!$CC$18=5,NR!B4,IF(data!$CC$18=6,SP!B4,IF(data!$CC$18=7,SW!B4,IF(data!$CC$18=8,TS!B4,IF(data!$CC$18=9,ExtraTaal1!B4,IF(data!$CC$18=10,ExtraTaal2!B4,IF(data!$CC$18=11,ExtraTaal3!B4,))))))))))) -> Altura | K7: =IF(data!$CC$18=1,NL!B3,IF(data!$CC$18=2,EN!B3,IF(data!$CC$18=3,FR!B3,IF(data!$CC$18=4,DE!B3,IF(data!$CC$18=5,NR!B3,IF(data!$CC$18=6,SP!B3,IF(data!$CC$18=7,SW!B3,IF(data!$CC$18=8,TS!B3,IF(data!$CC$18=9,ExtraTaal1!B3,IF(data!$CC$18=10,ExtraTaal2!B3,IF(data!$CC$18=11,ExtraTaal3!B3,))))))))))) -> Longitud | L7: =IF(data!$CC$18=1,NL!B5,IF(data!$CC$18=2,EN!B5,IF(data!$CC$18=3,FR!B5,IF(data!$CC$18=4,DE!B5,IF(data!$CC$18=5,NR!B5,IF(data!$CC$18=6,SP!B5,IF(data!$CC$18=7,SW!B5,IF(data!$CC$18=8,TS!B5,IF(data!$CC$18=9,ExtraTaal1!B5,IF(data!$CC$18=10,ExtraTaal2!B5,IF(data!$CC$18=11,ExtraTaal3!B5,))))))))))) -> Tipo | M7: =IF(data!$CC$18=1,NL!B6,IF(data!$CC$18=2,EN!B6,IF(data!$CC$18=3,FR!B6,IF(data!$CC$18=4,DE!B6,IF(data!$CC$18=5,NR!B6,IF(data!$CC$18=6,SP!B6,IF(data!$CC$18=7,SW!B6,IF(data!$CC$18=8,TS!B6,IF(data!$CC$18=9,ExtraTaal1!B6,IF(data!$CC$18=10,ExtraTaal2!B6,IF(data!$CC$18=11,ExtraTaal3!B6,))))))))))) -> Profund.
F8: =IF(data!$CC$18=1,NL!H4,IF(data!$CC$18=2,EN!H4,IF(data!$CC$18=3,FR!H4,IF(data!$CC$18=4,DE!H4,IF(data!$CC$18=5,NR!H4,IF(data!$CC$18=6,SP!H4,IF(data!$CC$18=7,SW!H4,IF(data!$CC$18=8,TS!H4,IF(data!$CC$18=9,ExtraTaal1!H4,IF(data!$CC$18=10,ExtraTaal2!H4,IF(data!$CC$18=11,ExtraTaal3!H4,))))))))))) -> DBH set | K8: 70 | M8: =data!$BU$2 -> 10
J9: =IF(data!$CC$18=1,NL!B3,IF(data!$CC$18=2,EN!B3,IF(data!$CC$18=3,FR!B3,IF(data!$CC$18=4,DE!B3,IF(data!$CC$18=5,NR!B3,IF(data!$CC$18=6,SP!B3,IF(data!$CC$18=7,SW!B3,))))))) -> Longitud | K9: =IF(data!$CC$18=1,NL!B3,IF(data!$CC$18=2,EN!B3,IF(data!$CC$18=3,FR!B3,IF(data!$CC$18=4,DE!B3,IF(data!$CC$18=5,NR!B3,IF(data!$CC$18=6,SP!B3,IF(data!$CC$18=7,SW!B3,IF(data!$CC$18=8,TS!B3,IF(data!$CC$18=9,ExtraTaal1!B3,IF(data!$CC$18=10,ExtraTaal2!B3,IF(data!$CC$18=11,ExtraTaal3!B3,)))))))))))&" [cm]" -> Longitud [cm] | M9: =IF(data!$CC$18=1,NL!H3,IF(data!$CC$18=2,EN!H3,IF(data!$CC$18=3,FR!H3,IF(data!$CC$18=4,DE!H3,IF(data!$CC$18=5,NR!H3,IF(data!$CC$18=6,SP!H3,IF(data!$CC$18=7,SW!H3,IF(data!$CC$18=8,TS!H3,IF(data!$CC$18=9,ExtraTaal1!H3,IF(data!$CC$18=10,ExtraTaal2!H3,IF(data!$CC$18=11,ExtraTaal3!H3,))))))))))) -> Unit
B10: =IF(data!$CC$18=1,NL!E5,IF(data!$CC$18=2,EN!E5,IF(data!$CC$18=3,FR!E5,IF(data!$CC$18=4,DE!E5,IF(data!$CC$18=5,NR!E5,IF(data!$CC$18=6,SP!E5,IF(data!$CC$18=7,SW!E5,IF(data!$CC$18=8,TS!E5,IF(data!$CC$18=9,ExtraTaal1!E5,IF(data!$CC$18=10,ExtraTaal2!E5,IF(data!$CC$18=11,ExtraTaal3!E5,))))))))))) -> Temperaturas
B11: =IF(data!$CC$18=1,NL!B8,IF(data!$CC$18=2,EN!B8,IF(data!$CC$18=3,FR!B8,IF(data!$CC$18=4,DE!B8,IF(data!$CC$18=5,NR!B8,IF(data!$CC$18=6,SP!B8,IF(data!$CC$18=7,SW!B8,IF(data!$CC$18=8,TS!B8,IF(data!$CC$18=9,ExtraTaal1!B8,IF(data!$CC$18=10,ExtraTaal2!B8,IF(data!$CC$18=11,ExtraTaal3!B8,))))))))))) -> Calefacción: | G11: =IF(data!$CC$18=1,NL!G8,IF(data!$CC$18=2,EN!G8,IF(data!$CC$18=3,FR!G8,IF(data!$CC$18=4,DE!G8,IF(data!$CC$18=5,NR!G8,IF(data!$CC$18=6,SP!G8,IF(data!$CC$18=7,SW!G8,IF(data!$CC$18=8,TS!G8,IF(data!$CC$18=9,ExtraTaal1!G8,IF(data!$CC$18=10,ExtraTaal2!G8,IF(data!$CC$18=11,ExtraTaal3!G8,))))))))))) -> Enfriamiento:
B12: =IF(data!$CC$18=1,NL!B9,IF(data!$CC$18=2,EN!B9,IF(data!$CC$18=3,FR!B9,IF(data!$CC$18=4,DE!B9,IF(data!$CC$18=5,NR!B9,IF(data!$CC$18=6,SP!B9,IF(data!$CC$18=7,SW!B9,IF(data!$CC$18=8,TS!B9,IF(data!$CC$18=9,ExtraTaal1!B9,IF(data!$CC$18=10,ExtraTaal2!B9,IF(data!$CC$18=11,ExtraTaal3!B9,))))))))))) -> Agua impulsión | C12: =IF(data!$CC$18=1,NL!C9,IF(data!$CC$18=2,EN!C9,IF(data!$CC$18=3,FR!C9,IF(data!$CC$18=4,DE!C9,IF(data!$CC$18=5,NR!C9,IF(data!$CC$18=6,SP!C9,IF(data!$CC$18=7,SW!C9,IF(data!$CC$18=8,TS!C9,IF(data!$CC$18=9,ExtraTaal1!C9,IF(data!$CC$18=10,ExtraTaal2!C9,IF(data!$CC$18=11,ExtraTaal3!C9,))))))))))) -> 0 | D12: =IF(data!$CC$18=1,NL!D9,IF(data!$CC$18=2,EN!D9,IF(data!$CC$18=3,FR!D9,IF(data!$CC$18=4,DE!D9,IF(data!$CC$18=5,NR!D9,IF(data!$CC$18=6,SP!D9,IF(data!$CC$18=7,SW!D9,IF(data!$CC$18=8,TS!D9,IF(data!$CC$18=9,ExtraTaal1!D9,IF(data!$CC$18=10,ExtraTaal2!D9,IF(data!$CC$18=11,ExtraTaal3!D9,))))))))))) -> 0 | E12: 75 | F12: =IF(data!$BZ$2=1,"°C",IF(data!$BZ$2=2,"°F",)) -> °C | G12: =B12 -> Agua impulsión | H12: 0 | I12: 0 | J12: 16 | K12: =F12 -> °C | L12: =IF(data!$CC$18=1,NL!G4,IF(data!$CC$18=2,EN!G4,IF(data!$CC$18=3,FR!G4,IF(data!$CC$18=4,DE!G4,IF(data!$CC$18=5,NR!G4,IF(data!$CC$18=6,SP!G4,IF(data!$CC$18=7,SW!G4,IF(data!$CC$18=8,TS!G4,IF(data!$CC$18=9,ExtraTaal1!G4,IF(data!$CC$18=10,ExtraTaal2!G4,IF(data!$CC$18=11,ExtraTaal3!G4,))))))))))) -> Convers. de unidades
B13: =IF(data!$CC$18=1,NL!B10,IF(data!$CC$18=2,EN!B10,IF(data!$CC$18=3,FR!B10,IF(data!$CC$18=4,DE!B10,IF(data!$CC$18=5,NR!B10,IF(data!$CC$18=6,SP!B10,IF(data!$CC$18=7,SW!B10,IF(data!$CC$18=8,TS!B10,IF(data!$CC$18=9,ExtraTaal1!B10,IF(data!$CC$18=10,ExtraTaal2!B10,IF(data!$CC$18=11,ExtraTaal3!B10,))))))))))) -> Agua retorno | C13: =IF(data!$CC$18=1,NL!C10,IF(data!$CC$18=2,EN!C10,IF(data!$CC$18=3,FR!C10,IF(data!$CC$18=4,DE!C10,IF(data!$CC$18=5,NR!C10,IF(data!$CC$18=6,SP!C10,IF(data!$CC$18=7,SW!C10,IF(data!$CC$18=8,TS!C10,IF(data!$CC$18=9,ExtraTaal1!C10,IF(data!$CC$18=10,ExtraTaal2!C10,IF(data!$CC$18=11,ExtraTaal3!C10,))))))))))) -> 0 | D13: =IF(data!$CC$18=1,NL!D10,IF(data!$CC$18=2,EN!D10,IF(data!$CC$18=3,FR!D10,IF(data!$CC$18=4,DE!D10,IF(data!$CC$18=5,NR!D10,IF(data!$CC$18=6,SP!D10,IF(data!$CC$18=7,SW!D10,IF(data!$CC$18=8,TS!D10,IF(data!$CC$18=9,ExtraTaal1!D10,IF(data!$CC$18=10,ExtraTaal2!D10,IF(data!$CC$18=11,ExtraTaal3!D10,))))))))))) -> 0 | E13: 65 | F13: =F12 -> °C | G13: =B13 -> Agua retorno | H13: 0 | I13: 0 | J13: 18 | K13: =F12 -> °C
B14: =IF(data!$CC$18=1,NL!B11,IF(data!$CC$18=2,EN!B11,IF(data!$CC$18=3,FR!B11,IF(data!$CC$18=4,DE!B11,IF(data!$CC$18=5,NR!B11,IF(data!$CC$18=6,SP!B11,IF(data!$CC$18=7,SW!B11,IF(data!$CC$18=8,TS!B11,IF(data!$CC$18=9,ExtraTaal1!B11,IF(data!$CC$18=10,ExtraTaal2!B11,IF(data!$CC$18=11,ExtraTaal3!B11,))))))))))) -> Ambiente (bulbo seco) | C14: =IF(data!$CC$18=1,NL!C11,IF(data!$CC$18=2,EN!C11,IF(data!$CC$18=3,FR!C11,IF(data!$CC$18=4,DE!C11,IF(data!$CC$18=5,NR!C11,IF(data!$CC$18=6,SP!C11,IF(data!$CC$18=7,SW!C11,IF(data!$CC$18=8,TS!C11,IF(data!$CC$18=9,ExtraTaal1!C11,IF(data!$CC$18=10,ExtraTaal2!C11,IF(data!$CC$18=11,ExtraTaal3!C11,))))))))))) -> 0 | D14: =IF(data!$CC$18=1,NL!D11,IF(data!$CC$18=2,EN!D11,IF(data!$CC$18=3,FR!D11,IF(data!$CC$18=4,DE!D11,IF(data!$CC$18=5,NR!D11,IF(data!$CC$18=6,SP!D11,IF(data!$CC$18=7,SW!D11,IF(data!$CC$18=8,TS!D11,IF(data!$CC$18=9,ExtraTaal1!D11,IF(data!$CC$18=10,ExtraTaal2!D11,IF(data!$CC$18=11,ExtraTaal3!D11,))))))))))) -> 0 | E14: 20 | F14: =F12 -> °C | G14: =B14 -> Ambiente (bulbo seco) | H14: 0 | I14: 0 | J14: 27 | K14: =F12 -> °C
G15: =IF(data!$CC$18=1,NL!$G$3,IF(data!$CC$18=2,EN!$G$3,IF(data!$CC$18=3,FR!$G$3,IF(data!$CC$18=4,DE!$G$3,IF(data!$CC$18=5,NR!$G$3,IF(data!$CC$18=6,SP!$G$3,IF(data!$CC$18=7,SW!$G$3,IF(data!$CC$18=8,TS!G3,IF(data!$CC$18=9,ExtraTaal1!G3,IF(data!$CC$18=10,ExtraTaal2!G3,IF(data!$CC$18=11,ExtraTaal3!G3,))))))))))) -> Hum. Relativa | J15: 0.5
B18: =IF(data!$CC$18=1,NL!B16,IF(data!$CC$18=2,EN!B16,IF(data!$CC$18=3,FR!B16,IF(data!$CC$18=4,DE!B16,IF(data!$CC$18=5,NR!B16,IF(data!$CC$18=6,SP!B16,IF(data!$CC$18=7,SW!B16,IF(data!$CC$18=8,TS!B16,IF(data!$CC$18=9,ExtraTaal1!B16,IF(data!$CC$18=10,ExtraTaal2!B16,IF(data!$CC$18=11,ExtraTaal3!B16,))))))))))) -> Velocidad del ventilador | C18: =IF(data!$CC$18=1,NL!B19,IF(data!$CC$18=2,EN!B19,IF(data!$CC$18=3,FR!B19,IF(data!$CC$18=4,DE!B19,IF(data!$CC$18=5,NR!B19,IF(data!$CC$18=6,SP!B19,IF(data!$CC$18=7,SW!B19,IF(data!$CC$18=8,TS!B19,IF(data!$CC$18=9,ExtraTaal1!B19,IF(data!$CC$18=10,ExtraTaal2!B19,IF(data!$CC$18=11,ExtraTaal3!B19,))))))))))) -> Voltaje control [V] | D18: =IF(data!$CC$18=1,NL!C14,IF(data!$CC$18=2,EN!C14,IF(data!$CC$18=3,FR!C14,IF(data!$CC$18=4,DE!C14,IF(data!$CC$18=5,NR!C14,IF(data!$CC$18=6,SP!C14,IF(data!$CC$18=7,SW!C14,IF(data!$CC$18=8,TS!C14,IF(data!$CC$18=9,ExtraTaal1!C14,IF(data!$CC$18=10,ExtraTaal2!C14,IF(data!$CC$18=11,ExtraTaal3!C14,)))))))))))&IF(data!BZ2=1," [W]",IF(data!BZ2=2," [Btu/h]",)) -> Emisión calefacción [W] | E18: =IF(data!$CC$18=1,NL!D14,IF(data!$CC$18=2,EN!D14,IF(data!$CC$18=3,FR!D14,IF(data!$CC$18=4,DE!D14,IF(data!$CC$18=5,NR!D14,IF(data!$CC$18=6,SP!D14,IF(data!$CC$18=7,SW!D14,IF(data!$CC$18=8,TS!D14,IF(data!$CC$18=9,ExtraTaal1!D14,IF(data!$CC$18=10,ExtraTaal2!D14,IF(data!$CC$18=11,ExtraTaal3!D14,)))))))))))&IF(data!BZ2=1," [kg/h]",IF(data!BZ2=2," [GPM]**",)) -> Caudal de agua, calefacción [kg/h] | F18: =IF(data!$CC$18=1,NL!F6,IF(data!$CC$18=2,EN!F6,IF(data!$CC$18=3,FR!F6,IF(data!$CC$18=4,DE!F6,IF(data!$CC$18=5,NR!F6,IF(data!$CC$18=6,SP!F6,IF(data!$CC$18=7,SW!F6,IF(data!$CC$18=8,TS!F6,IF(data!$CC$18=9,ExtraTaal1!F6,IF(data!$CC$18=10,ExtraTaal2!F6,IF(data!$CC$18=11,ExtraTaal3!F6,)))))))))))&" ["&IF(data!BZ2=1,"kPa",IF(data!BZ2=2,"ftH2O"))&"]" -> Pérdida de carga del agua [kPa] | G18: =IF(data!$CC$18=1,NL!E14,IF(data!$CC$18=2,EN!E14,IF(data!$CC$18=3,FR!E14,IF(data!$CC$18=4,DE!E14,IF(data!$CC$18=5,NR!E14,IF(data!$CC$18=6,SP!E14,IF(data!$CC$18=7,SW!E14,IF(data!$CC$18=8,TS!E14,IF(data!$CC$18=9,ExtraTaal1!E14,IF(data!$CC$18=10,ExtraTaal2!E14,IF(data!$CC$18=11,ExtraTaal3!E14,)))))))))))&IF(data!BZ2=1," [W]**",IF(data!BZ2=2," [Btu/h]*",)) -> Emisión sensible Frío [W]** | H18: =E18 -> Caudal de agua, calefacción [kg/h] | I18: =F18 -> Pérdida de carga del agua [kPa] | J18: =IF(data!$CC$18=1,NL!I13,IF(data!$CC$18=2,EN!I13,IF(data!$CC$18=3,FR!I13,IF(data!$CC$18=4,DE!I13,IF(data!$CC$18=5,NR!I13,IF(data!$CC$18=6,SP!I13,IF(data!$CC$18=7,SW!I13,IF(data!$CC$18=8,TS!I13,IF(data!$CC$18=9,ExtraTaal1!I13,IF(data!$CC$18=10,ExtraTaal2!I13,IF(data!$CC$18=11,ExtraTaal3!I13,))))))))))) -> Presión sonora [dB(A)]**** | K18: =IF(data!$CC$18=1,NL!J13,IF(data!$CC$18=2,EN!J13,IF(data!$CC$18=3,FR!J13,IF(data!$CC$18=4,DE!J13,IF(data!$CC$18=5,NR!J13,IF(data!$CC$18=6,SP!J13,IF(data!$CC$18=7,SW!J13,IF(data!$CC$18=8,TS!J13,IF(data!$CC$18=9,ExtraTaal1!J13,IF(data!$CC$18=10,ExtraTaal2!J13,IF(data!$CC$18=11,ExtraTaal3!J13,))))))))))) -> Potencia sonora [dB(A)]**** | L18: =IF(data!$CC$18=1,NL!H13,IF(data!$CC$18=2,EN!H13,IF(data!$CC$18=3,FR!H13,IF(data!$CC$18=4,DE!H13,IF(data!$CC$18=5,NR!H13,IF(data!$CC$18=6,SP!H13,IF(data!$CC$18=7,SW!H13,IF(data!$CC$18=8,TS!H13,IF(data!$CC$18=9,ExtraTaal1!H13,IF(data!$CC$18=10,ExtraTaal2!H13,IF(data!$CC$18=11,ExtraTaal3!H13,))))))))))) -> Potencia eléctrica absorbida [W] | M18: =IF(data!$CC$18=1,NL!G13,IF(data!$CC$18=2,EN!G13,IF(data!$CC$18=3,FR!G13,IF(data!$CC$18=4,DE!G13,IF(data!$CC$18=5,NR!G13,IF(data!$CC$18=6,SP!G13,IF(data!$CC$18=7,SW!G13,IF(data!$CC$18=8,TS!G13,IF(data!$CC$18=9,ExtraTaal1!G13,IF(data!$CC$18=10,ExtraTaal2!G13,IF(data!$CC$18=11,ExtraTaal3!G13,)))))))))))&IF(data!BZ2=1," [l]",IF(data!BZ2=2," [Gal]**",)) -> Volumen de agua [l]
B19: =IF(data!BV2=0,CONCATENATE(J5,", ",K7, " ",K6, "cm, ",J7, " ",J6,"cm, ",L7, " ",L6),CONCATENATE(J5," Hybrid, ",K7, " ",K6, "cm, ",J7, " ",J6,"cm, ",L7, " ",L6," + ",F8,", ",M9," ",M8," ",K7," ",K8,"cm.")) -> Linea Hybrid, Longitud 70cm, Altura 65cm, Tipo 10 + DBH set, Unit 10 Longitud 70cm. | C19: 0 | D19: 0 | E19: 0 | F19: 0 | G19: 0 | H19: 0 | I19: 0 | J19: 0 | K19: 0 | L19: 0 | M19: 0
B20: 0* | C20: =data!BJ5 -> 0 | D20: =ROUND(IF(data!$BZ$3=1,data!U5,IF(data!$BZ$3=2,data!U5*3.412141633,)),0) -> 707 | E20: =IF(data!$BZ$3=1,ROUND(data!Y5,0),IF(data!$BZ$3=2,ROUND(data!Y5/272.7654,1),)) -> 61 | F20: =IF(data!$BZ$3=1,data!AC5,IF(data!$BZ$3=2,data!AC5*0.3346,)) -> 0.01880121702 | J20: 0 | K20: 0 | L20: 0 | M20: =IF(data!$BZ$3=1,data!AZ$5,IF(data!$BZ$3=2,data!AZ$5/4.54609,)) -> 0.5
B21: 1 | C21: =IF($K$8="","",data!BK5) -> 13.2 | D21: =IF($K$8="","",ROUND(IF(data!$BZ$3=1,data!V5,IF(data!$BZ$3=2,data!V5*3.412141633,)),0)) -> 1030 | E21: =IF($K$8="","",IF(data!$BZ$3=1,ROUND(data!Z5,0),IF(data!$BZ$3=2,ROUND(data!Z5/272.7654,1),))) -> 89 | F21: =IF($K$8="","",IF(data!$BZ$3=1,data!AD5,IF(data!$BZ$3=2,data!AD5*0.3346,))) -> 0.03892496089 | G21: =IF($K$8="","",IF(data!BY5=1,ROUND(IF(data!$BZ$3=1,data!AQ5,IF(data!$BZ$3=2,data!AQ5*3.412141633,)),0),"")) -> 143 | H21: =IF($K$8="","",IF(data!BY5=1,IF(data!$BZ$3=1,ROUND(data!AT5,0),IF(data!$BZ$3=2,ROUND(data!AT5/272.7654,1),)),"")) -> 61 | I21: =IF($K$8="","",IF(data!BY5=1,IF(data!$BZ$3=1,data!AW5,IF(data!$BZ$3=2,data!AW5*0.3346,)),"")) -> 0.01880121702 | J21: =IF($K$8="","",data!J5) -> 26 | K21: =IF($K$8="","",J21+8) -> 34 | L21: =IF($K$8="","",data!BA5) -> 5.5 | M21: =IF($K$8="","",IF(data!$BZ$3=1,data!AZ$5,IF(data!$BZ$3=2,data!AZ$5/4.54609,))) -> 0.5
B22: 2 | C22: =IF($K$8="","",data!BL5) -> 15.1 | D22: =IF($K$8="","",ROUND(IF(data!$BZ$3=1,data!W5,IF(data!$BZ$3=2,data!W5*3.412141633,)),0)) -> 1104 | E22: =IF($K$8="","",IF(data!$BZ$3=1,ROUND(data!AA5,0),IF(data!$BZ$3=2,ROUND(data!AA5/272.7654,1),))) -> 95 | F22: =IF($K$8="","",IF(data!$BZ$3=1,data!AE5,IF(data!$BZ$3=2,data!AE5*0.3346,))) -> 0.04414659022 | G22: =IF($K$8="","",IF(data!BY5=1,ROUND(IF(data!$BZ$3=1,data!AR5,IF(data!$BZ$3=2,data!AR5*3.412141633,)),0),"")) -> 153 | H22: =IF($K$8="","",IF(data!BY5=1,IF(data!$BZ$3=1,ROUND(data!AU5,0),IF(data!$BZ$3=2,ROUND(data!AU5/272.7654,1),)),"")) -> 66 | I22: =IF($K$8="","",IF(data!BY5=1,IF(data!$BZ$3=1,data!AX5,IF(data!$BZ$3=2,data!AX5*0.3346,)),"")) -> 0.02187876495 | J22: =IF($K$8="","",data!K5) -> 30 | K22: =IF($K$8="","",J22+8) -> 38 | L22: =IF($K$8="","",data!BB5) -> 5.9 | M22: =IF($K$8="","",IF(data!$BZ$3=1,data!AZ$5,IF(data!$BZ$3=2,data!AZ$5/4.54609,))) -> 0.5
B23: 3 | C23: =IF($K$8="","",data!BM5) -> 21.85 | D23: =IF($K$8="","",ROUND(IF(data!$BZ$3=1,data!X5,IF(data!$BZ$3=2,data!X5*3.412141633,)),0)) -> 1320 | E23: =IF($K$8="","",IF(data!$BZ$3=1,ROUND(data!AB5,0),IF(data!$BZ$3=2,ROUND(data!AB5/272.7654,1),))) -> 114 | F23: =IF($K$8="","",IF(data!$BZ$3=1,data!AF5,IF(data!$BZ$3=2,data!AF5*0.3346,))) -> 0.06277820934 | G23: =IF($K$8="","",IF(data!BY5=1,ROUND(IF(data!$BZ$3=1,data!AS5,IF(data!$BZ$3=2,data!AS5*3.412141633,)),0),"")) -> 183 | H23: =IF($K$8="","",IF(data!BY5=1,IF(data!$BZ$3=1,ROUND(data!AV5,0),IF(data!$BZ$3=2,ROUND(data!AV5/272.7654,1),)),"")) -> 79 | I23: =IF($K$8="","",IF(data!BY5=1,IF(data!$BZ$3=1,data!AY5,IF(data!$BZ$3=2,data!AY5*0.3346,)),"")) -> 0.03093277823 | J23: =IF($K$8="","",data!L5) -> 41 | K23: =IF($K$8="","",J23+8) -> 49 | L23: =IF($K$8="","",data!BC5) -> 7.9 | M23: =IF($K$8="","",IF(data!$BZ$3=1,data!AZ$5,IF(data!$BZ$3=2,data!AZ$5/4.54609,))) -> 0.5
M24: v2021-04-07
B25: * | C25: =IF(data!$CC$18=1,NL!E6,IF(data!$CC$18=2,EN!E6,IF(data!$CC$18=3,FR!E6,IF(data!$CC$18=4,DE!E6,IF(data!$CC$18=5,NR!E6,IF(data!$CC$18=6,SP!E6,IF(data!$CC$18=7,SW!E6,IF(data!$CC$18=8,TS!E6,IF(data!$CC$18=9,ExtraTaal1!E6,IF(data!$CC$18=10,ExtraTaal2!E6,IF(data!$CC$18=11,ExtraTaal3!E6,))))))))))) -> La velocidad del ventilador en "0" tiene una emisión indicativa.
B26: ** | C26: =IF(data!$CC$18=1,NL!B20,IF(data!$CC$18=2,EN!B20,IF(data!$CC$18=3,FR!B20,IF(data!$CC$18=4,DE!B20,IF(data!$CC$18=5,NR!B20,IF(data!$CC$18=6,SP!B20,IF(data!$CC$18=7,SW!B20,IF(data!$CC$18=8,TS!B20,IF(data!$CC$18=9,ExtraTaal1!B20,IF(data!$CC$18=10,ExtraTaal2!B20,IF(data!$CC$18=11,ExtraTaal3!B20,))))))))))) -> La potencia de enfriamiento se calcula según la norma EN 16430 con ventiladores de todas las alturas.
B27: *** | C27: =IF(data!$CC$18=1,NL!B21,IF(data!$CC$18=2,EN!B21,IF(data!$CC$18=3,FR!B21,IF(data!$CC$18=4,DE!B21,IF(data!$CC$18=5,NR!B21,IF(data!$CC$18=6,SP!B21,IF(data!$CC$18=7,SW!B21,))))))) -> Cuando el volumen de agua se da en galones, las unidades son específicamente galones imperiales.
B28: **** | C28: =IF(data!$CC$18=1,NL!B22,IF(data!$CC$18=2,EN!B22,IF(data!$CC$18=3,FR!B22,IF(data!$CC$18=4,DE!B22,IF(data!$CC$18=5,NR!B22,IF(data!$CC$18=6,SP!B22,IF(data!$CC$18=7,SW!B22,IF(data!$CC$18=8,TS!B22,IF(data!$CC$18=9,ExtraTaal1!B22,IF(data!$CC$18=10,ExtraTaal2!B22,IF(data!$CC$18=11,ExtraTaal3!B22,))))))))))) -> Potencia sonora según ISO 3741: 2010, nivel de presión acústica con una amortiguación ambiental supuesta de 8 dB (A).

Sheet data (hidden)
M1: heating | N1: Ti | R1: ='DBH-Upgrade'!E12 -> 75 | S1: =IF($BZ$3=1,$R1,IF($BZ$3=2,(R1-32)/1.8,)) -> 75 | AK1: cooling | AL1: Ti | AP1: RH | AS1: ='DBH-Upgrade'!J12 -> 16 | AT1: =IF($BZ$3=1,$AS1,IF($BZ$3=2,($AS1-32)/1.8,)) -> 16 | AU1: RH | AV1: ='DBH-Upgrade'!J15 -> 0.5 | BM1: =IF($CC$18=1,"DBH-unit is te lang!",IF($CC$18=2,"DBH-unit is too long!",IF($CC$18=3,"DBH-unit est trop long!",IF($CC$18=4,"DBH-unit ist zu lang!",IF($CC$18=5,"DBH-unit er for lang!",IF($CC$18=6,"DBH-unit is too long!",IF($CC$18=7,"DBH-unit is too long!",IF($CC$18=8,"DBH-unit is too long!",IF($CC$18=9,"DBH-unit is too long!",IF($CC$18=10,"DBH-unit is too long!",IF($CC$18=11,"DBH-unit is too long!","JAGA"))))))))))) -> DBH-unit is too long! | BT1: DBH rail | BU1: =IF($CC$18=1,"GEEN",IF($CC$18=2,"NONE",IF($CC$18=3,"NONE",IF($CC$18=4,"NONE",IF($CC$18=5,"NONE",))))) -> 0 | BV1: 10 | BW1: 15 | BZ1: Imperial/SI | CB1: toestel | CC1: taal | CD1: lengte | CE1: hoogte | CF1: type | CH1: Built_in Hybrid | CK1: Strada Hybrid | CN1: Linea Hybrid | CQ1: Tempo Hybrid | CT1: DBH-upgrade
N2: Tr | R2: ='DBH-Upgrade'!E13 -> 65 | S2: =IF($BZ$3=1,$R2,IF($BZ$3=2,(R2-32)/1.8,)) -> 65 | AL2: Tr | AS2: ='DBH-Upgrade'!J13 -> 18 | AT2: =IF($BZ$3=1,$AS2,IF($BZ$3=2,($AS2-32)/1.8,)) -> 18 | BM2: =IF($CC$18=1,"Een DBH-unit kan niet geplaatst worden op een "&'DBH-Upgrade'!$J$5&" hoogte 20, type 11.",IF($CC$18=2,"A DBH-unit cannot be mounted on a "&'DBH-Upgrade'!$J$5&" height 20, type11.",IF($CC$18=3,"Aucun DBH-unit ne peut être placé sur un "&'DBH-Upgrade'!$J$5&" de hauteur 20, type 11.",IF($CC$18=4,"Auf einen "&'DBH-Upgrade'!$J$5&" der Höhe 20, Typ 11, kann keine DBH-unit gesetzt werden.",IF($CC$18=5,"Ingen DBH-unit kan plasseres på et "&'DBH-Upgrade'!$J$5&" med høyde 20, type 11.",IF($CC$18=6,"A DBH-unit cannot be mounted on a "&'DBH-Upgrade'!$J$5&" height 20, type11.",IF($CC$18=7,"A DBH-unit cannot be mounted on a "&'DBH-Upgrade'!$J$5&" height 20, type11.",IF($CC$18=8,"A DBH-unit cannot be mounted on a "&'DBH-Upgrade'!$J$5&" height 20, type11.",IF($CC$18=9,"A DBH-unit cannot be mounted on a "&'DBH-Upgrade'!$J$5&" height 20, type11.",IF($CC$18=10,"A DBH-unit cannot be mounted on a "&'DBH-Upgrade'!$J$5&" height 20, type11.",IF($CC$18=11,"A DBH-unit cannot be mounted on a "&'DBH-Upgrade'!$J$5&" height 20, type11.","JAGA"))))))))))) -> A DBH-unit cannot be mounted on a Linea height 20, type11. | BN2: =IF($CC$18=1,"Een DBH-unit kan niet geplaatst worden op een "&'DBH-Upgrade'!$J$5&" hoogte 20, type 16.",IF($CC$18=2,"A DBH-unit cannot be mounted on a "&'DBH-Upgrade'!$J$5&" height 20, type16.",IF($CC$18=3,"Aucun DBH-unit ne peut être placé sur un "&'DBH-Upgrade'!$J$5&" de hauteur 20, type 16.",IF($CC$18=4,"Auf einen "&'DBH-Upgrade'!$J$5&" der Höhe 20, Typ 16, kann keine DBH-unit gesetzt werden.",IF($CC$18=5,"Ingen DBH-unit kan plasseres på et "&'DBH-Upgrade'!$J$5&" med høyde 20, type 16.",IF($CC$18=6,"A DBH-unit cannot be mounted on a "&'DBH-Upgrade'!$J$5&" height 20, type16.",IF($CC$18=7,"A DBH-unit cannot be mounted on a "&'DBH-Upgrade'!$J$5&" height 20, type16.",IF($CC$18=8,"A DBH-unit cannot be mounted on a "&'DBH-Upgrade'!$J$5&" height 20, type16.",IF($CC$18=9,"A DBH-unit cannot be mounted on a "&'DBH-Upgrade'!$J$5&" height 20, type16.",IF($CC$18=10,"A DBH-unit cannot be mounted on a "&'DBH-Upgrade'!$J$5&" height 20, type16.",IF($CC$18=11,"A DBH-unit cannot be mounted on a "&'DBH-Upgrade'!$J$5&" height 20, type16.","JAGA"))))))))))) -> A DBH-unit cannot be mounted on a Linea height 20, type16. | BO2: =IF($CC$18=1,"Een DBH-unit kan niet geplaatst worden op een "&'DBH-Upgrade'!$J$5&" hoogte 20, type 21.",IF($CC$18=2,"A DBH-unit cannot be mounted on a "&'DBH-Upgrade'!$J$5&" height 20, type21.",IF($CC$18=3,"Aucun DBH-unit ne peut être placé sur un "&'DBH-Upgrade'!$J$5&" de hauteur 20, type 21.",IF($CC$18=4,"Auf einen "&'DBH-Upgrade'!$J$5&" der Höhe 20, Typ 21, kann keine DBH-unit gesetzt werden.",IF($CC$18=5,"Ingen DBH-unit kan plasseres på et "&'DBH-Upgrade'!$J$5&" med høyde 20, type 21.",IF($CC$18=6,"A DBH-unit cannot be mounted on a "&'DBH-Upgrade'!$J$5&" height 20, type21.",IF($CC$18=7,"A DBH-unit cannot be mounted on a "&'DBH-Upgrade'!$J$5&" height 20, type21.",IF($CC$18=8,"A DBH-unit cannot be mounted on a "&'DBH-Upgrade'!$J$5&" height 20, type21.",IF($CC$18=9,"A DBH-unit cannot be mounted on a "&'DBH-Upgrade'!$J$5&" height 20, type21.",IF($CC$18=10,"A DBH-unit cannot be mounted on a "&'DBH-Upgrade'!$J$5&" height 20, type21.",IF($CC$18=11,"A DBH-unit cannot be mounted on a "&'DBH-Upgrade'!$J$5&" height 20, type21.","JAGA"))))))))))) -> A DBH-unit cannot be mounted on a Linea height 20, type21. | BT2: 1 | BU2: =IF('DBH-Upgrade'!$L$6=10,10,IF('DBH-Upgrade'!$L$6=11,10,15)) -> 10 | BV2: =IF($BT$2=2,0,IF($BT$2=1,$BU$2)) -> 10 | BZ2: 1 | CB2: Geselecteerd | CH2: hoogte | CI2: lengte | CJ2: type | CK2: hoogte | CL2: lengte | CM2: type | CN2: hoogte | CO2: lengte | CP2: type | CQ2: hoogte | CR2: lengte | CS2: type | CT2: hoogte | CU2: lengte | CV2: type
A3: =CONCATENATE('DBH-Upgrade'!$J$5,"_L") -> Linea_L | N3: Ta | R3: ='DBH-Upgrade'!E14 -> 20 | S3: =IF($BZ$3=1,$R3,IF($BZ$3=2,(R3-32)/1.8,)) -> 20 | AL3: Ta | AS3: ='DBH-Upgrade'!J14 -> 27 | AT3: =IF($BZ$3=1,$AS3,IF($BZ$3=2,($AS3-32)/1.8,)) -> 27 | BZ3: 1 | CA3: Strada | CB3: =CK1 -> Strada Hybrid | CC3: Nederlands | CD3: 50 | CE3: =IF($CB$7=1,CK3,IF($CB$7=2,CN3,IF($CB$7=3,CQ3,IF($CB$7=4,CH3,)))) -> 0 | CF3: 10 | CH3: 20 | CI3: 60 | CJ3: 10 | CK3: 35 | CL3: 50 | CM3: 10 | CN3: 20 | CO3: 50 | CP3: 10 | CQ3: 20 | CR3: 50 | CS3: 10 | CU3: 50 | CV3: 10
A4: kolomindex | B4: 2 | C4: 3 | D4: 4 | E4: 5 | F4: 6 | G4: 7 | H4: 8 | I4: 9 | J4: 10 | K4: 11 | L4: 12 | M4: 13 | N4: 14 | O4: 15 | P4: 16 | Q4: 17 | R4: 18 | S4: 19 | T4: 20 | U4: 21 | V4: 22 | W4: 23 | X4: 24 | Y4: 25 | Z4: 26 | AA4: 27 | AB4: 28 | AC4: 29 | AD4: 30 | AE4: 31 | AF4: 32 | AG4: 33 | AH4: 34 | AI4: 35 | AJ4: 36 | AK4: 37 | AL4: 38 | AM4: 39 | AN4: 40 | AO4: 41 | AP4: 42 | AQ4: 43 | AR4: 44 | AS4: 45 | AT4: 46 | AU4: 47 | AV4: 48 | AW4: 49 | AX4: 50 | AY4: 51 | AZ4: 52 | BA4: 53 | BB4: 54 | BC4: 55 | BD4: 56 | BE4: 57 | BF4: 58 | BG4: 59 | BH4: 60 | BI4: 61 | BJ4: 62 | BK4: 63 | BL4: 64 | BM4: 65 | BN4: 66 | BO4: 67 | BP4: 68 | BQ4: 69 | BR4: 70 | BS4: 71 | BT4: 72 | BU4: 73 | BV4: 74 | BW4: 75 | BX4: 76 | BY4: 77 | CA4: Linea | CB4: =CN1 -> Linea Hybrid | CC4: English | CD4: 60 | CE4: =IF($CB$7=1,CK4,IF($CB$7=2,CN4,IF($CB$7=3,CQ4,IF($CB$7=4,CH4,)))) -> 0 | CF4: 11 | CH4: 30 | CI4: 70 | CJ4: 11 | CK4: 50 | CL4: 60 | CM4: 11 | CN4: 35 | CO4: 60 | CP4: 11 | CQ4: 30 | CR4: 60 | CS4: 11 | CU4: 60 | CV4: 11
A5: =CONCATENATE(CA7,'DBH-Upgrade'!J6,'DBH-Upgrade'!K6,'DBH-Upgrade'!L6,$BV$2) -> 265701010 | B5: =VLOOKUP($A$5,$A$10:$BY$3967,B$4,0) -> 70 | C5: 10 | D5: 2 | E5: 65 | F5: 70 | G5: 10 | H5: 11.5 | I5: 0 | J5: 26 | K5: 30 | L5: 41 | M5: 706.5 | N5: 1030 | O5: 1104 | P5: 1320 | Q5: 1.5 | R5: 1.08 | S5: 1.08 | T5: 1.08 | U5: 707 | V5: 1030 | W5: 1104 | X5: 1320 | Y5: 61 | Z5: 89 | AA5: 95 | AB5: 114 | AC5: 0.01880121702 | AD5: 0.03892496089 | AE5: 0.04414659022 | AF5: 0.06277820934 | AG5: 0.0003969 | AH5: =VLOOKUP($A$5,$A$10:$BY$3967,AH$4,0) -> 1.7346 | AI5: 2 | AJ5: 0.000367347 | AK5: 143 | AL5: 153 | AM5: 183 | AN5: 0.98 | AO5: 0.98 | AP5: 0.98 | AQ5: 143 | AR5: 153 | AS5: 183 | AT5: 61 | AU5: 66 | AV5: 79 | AW5: 0.01880121702 | AX5: 0.02187876495 | AY5: 0.03093277823 | AZ5: 0.5 | BA5: 5.5 | BB5: 5.9 | BC5: 7.9 | BD5: 0 | BE5: 785 | BF5: 0 | BG5: 0.9 | BH5: 0 | BI5: 0 | BJ5: 0 | BK5: 13.2 | BL5: 15.1 | BM5: 21.85 | BN5: =VLOOKUP($A$5,$A$10:$BY$3967,BN$4,0) -> 0 | BO5: 1 | BP5: 1 | BQ5: 1 | BR5: 143 | BS5: 153 | BT5: 183 | BU5: 0 | BV5: 0 | BW5: 0 | BX5: 0 | BY5: 1 | CA5: Tempo | CB5: =CQ1 -> Tempo Hybrid | CC5: Français | CD5: 70 | CE5: =IF($CB$7=1,CK5,IF($CB$7=2,CN5,IF($CB$7=3,CQ5,IF($CB$7=4,CH5,)))) -> 0 | CF5: 15 | CH5: 40 | CI5: 80 | CJ5: 15 | CK5: 65 | CL5: 70 | CM5: 15 | CN5: 50 | CO5: 70 | CP5: 15 | CQ5: 40 | CR5: 70 | CS5: 15 | CU5: 70 | CV5: 15
A6: =CONCATENATE('DBH-Upgrade'!$K$8,$BV$2) -> 7010 | CA6: Built_in | CB6: =CH1 -> Built_in Hybrid | CC6: Deutsch | CD6: 80 | CE6: =IF($CB$7=1,CK6,IF($CB$7=2,CN6,IF($CB$7=3,CQ6,IF($CB$7=4,CH6,)))) -> 0 | CF6: 16 | CH6: 50 | CI6: 90 | CJ6: 16 | CK6: 95 | CL6: 80 | CM6: 16 | CN6: 65 | CO6: 80 | CP6: 16 | CQ6: 50 | CR6: 80 | CS6: 16 | CU6: 80 | CV6: 16
CA7: =IF('DBH-Upgrade'!$J$5=data!CA3,1,IF('DBH-Upgrade'!$J$5=data!CA4,2,IF('DBH-Upgrade'!$J$5=data!CA5,3,IF('DBH-Upgrade'!$J$5=data!CA6,3)))) -> 2 | CC7: Norsk | CD7: 90 | CE7: =IF(CE20=0,"",CE20) ->  | CF7: 20 | CH7: 60 | CI7: 100 | CJ7: 20 | CL7: 90 | CM7: 20 | CN7: 95 | CO7: 90 | CP7: 20 | CQ7: 60 | CR7: 90 | CS7: 20 | CU7: 90 | CV7: 20
I8: soundpressure level | M8: power | N8: 75/65/20 | Q8: n | U8: result | V8: power | Y8: result | Z8: flow | AC8: static pressure loss | AK8: power | AL8: 16/18/27 | AN8: n | AQ8: result | AR8: power | AT8: result | AU8: flow | AW8: static pressure loss | BA8: electrical power nominal | BE8: oude cataloog | BG8: Statisch met rail / statisch cataloog | BL8: BMS-stuurspanning | BO8: Sensible heat factor | BR8: Total cooling capacity | BV8: Diff. Total and sensible | BY8: Show or not | CC8: Español | CD8: 100 | CE8: =IF(CE21=0,"",CE21) ->  | CF8: 21 | CH8: 70 | CI8: 110 | CJ8: 21 | CL8: 100 | CM8: 21 | CO8: 100 | CP8: 21 | CQ8: 70 | CR8: 100 | CS8: 21 | CU8: 100 | CV8: 21
A9: lookup code | B9: L,rail | C9: T,rail | D9: toestel | E9: height | F9: length | G9: type | H9: depth | I9: 0 | J9: 1 | K9: 2 | L9: 3 | M9: 0 | N9: 1 | O9: 2 | P9: 3 | Q9: 0 | R9: 1 | S9: 2 | T9: 3 | U9: 0 | V9: 1 | W9: 2 | X9: 3 | Y9: 0 | Z9: 1 | AA9: 2 | AB9: 3 | AC9: 0 | AD9: 1 | AE9: 2 | AF9: 3 | AG9: k1 | AH9: n | AI9: t | AJ9: k2 | AK9: 1 | AL9: 2 | AM9: 3 | AN9: 1 | AO9: 2 | AP9: 3 | AQ9: 1 | AR9: 2 | AS9: 3 | AT9: 1 | AU9: 2 | AV9: 3 | AW9: 1 | AX9: 2 | AY9: 3 | AZ9: watervolume | BA9: 1 | BB9: 2 | BC9: 3 | BE9: Static,H | BF9: Static,C | BJ9: 0 | BK9: 1 | BL9: 2 | BM9: 3 | BO9: SHF 1 | BP9: SHF 2 | BQ9: SHF 3 | BR9: Q,t 1 | BS9: Q,t 2 | BT9: Q,t 3 | BV9: ΔQ,t,s 1 | BW9: ΔQ,t,s 2 | BX9: ΔQ,t,s 3 | BY9: OK/NOTOK | CA9: W/m,beript dyn heat | CC9: Svenska | CD9: 110 | CH9: 90 | CI9: 120 | CL9: 110 | CO9: 110 | CQ9: 90 | CR9: 110 | CU9: 110
A10: =CONCATENATE(D10,E10,F10,G10,C10) -> 13550100 | C10: 0 | D10: 1 | E10: 35 | F10: 50 | G10: 10 | H10: =IF(G10=10,11.5,IF(G10=11,11.5,IF(G10=15,16.5,IF(G10=16,16.5,IF(G10=20,21.5,IF(G10=21,21.5,)))))) -> 11.5 | I10: 0 | J10: 0 | K10: 0 | L10: 0 | M10: =BE10*BG10 -> 449 | N10: 0 | O10: 0 | P10: 0 | Q10: =IF(E10=35,IF(G10=10,1.399,IF(G10=11,1.44,IF(G10=15,1.39,IF(G10=16,1.458,IF(G10=20,1.39,IF(G10=21,1.472,"ERROR")))))),IF(E10=50,IF(G10=10,1.385,IF(G10=11,1.438,IF(G10=15,1.373,IF(G10=16,1.464,IF(G10=20,1.373,IF(G10=21,1.485,"ERROR")))))),IF(E10=65,IF(G10=10,1.371,IF(G10=11,1.437,IF(G10=15,1.355,IF(G10=16,1.47,IF(G10=20,1.355,IF(G10=21,1.497,"ERROR")))))),IF(E10=95,IF(G10=10,1.343,IF(G10=11,1.434,IF(G10=15,1.32,IF(G10=16,1.482,IF(G10=20,1.32,IF(G10=21,1.522,1)))))),"ERROR")))) -> 1.399 | R10: =IF($G10=10,1.08,IF($G10=11,1.1,IF($G10=15,1.08,IF($G10=16,1.1,IF($G10=20,1.08,IF($G10=21,1.05)))))) -> 1.08 | S10: 1.08 | T10: 1.08 | U10: =ROUND(M10*POWER((($S$1-$S$2)/LN(($S$1-$S$3)/($S$2-$S$3)))/((75-65)/LN((75-20)/(65-20))),Q10),0) -> 449 | V10: =ROUND(N10*POWER((($S$1-$S$2)/LN(($S$1-$S$3)/($S$2-$S$3)))/((75-65)/LN((75-20)/(65-20))),R10),0) -> 0 | W10: 0 | X10: 0 | Y10: =ROUND(U10*3600/(4186*ABS($S$1-$S$2)),0) -> 39 | Z10: =ROUND(V10*3600/(4186*ABS($S$1-$S$2)),0) -> 0 | AA10: 0 | AB10: 0 | AC10: =(($AG10*(Y10^$AH10)*((($F10-14.4)*$AI10)/100))+($AJ10*(Y10^2)))*0.0098 -> 0.007068718513 | AD10: =(($AG10*(Z10^$AH10)*((($F10-14.4)*$AI10)/100))+($AJ10*(Z10^2)))*0.0098 -> 0 | AE10: =(($AG10*(AA10^$AH10)*((($F10-14.4)*$AI10)/100))+($AJ10*(AA10^2)))*0.0098 -> 0 | AF10: =(($AG10*(AB10^$AH10)*((($F10-14.4)*$AI10)/100))+($AJ10*(AB10^2)))*0.0098 -> 0 | AG10: =IF($G10=$CO$103,CP$103,IF($G10=$CO$104,CP$104,IF($G10=$CO$105,CP$105,IF($G10=$CO$107,CP$107,IF($G10=$CO$108,CP$108,IF($G10=$CO$109,CP$109,IF($G10=$CO$111,CP$111,IF($G10=$CO$112,CP$112,IF($G10=$CO$113,CP$113,IF($G10=$CO$115,CP$115,IF($G10=$CO$116,CP$116,IF($G10=$CO$117,CP$117,IF($G10=$CO$119,CP$119,IF($G10=$CO$120,CP$120,)))))))))))))) -> 0.0003969 | AH10: =IF($G10=$CO$103,CQ$103,IF($G10=$CO$104,CQ$104,IF($G10=$CO$105,CQ$105,IF($G10=$CO$107,CQ$107,IF($G10=$CO$108,CQ$108,IF($G10=$CO$109,CQ$109,IF($G10=$CO$111,CQ$111,IF($G10=$CO$112,CQ$112,IF($G10=$CO$113,CQ$113,IF($G10=$CO$115,CQ$115,IF($G10=$CO$116,CQ$116,IF($G10=$CO$117,CQ$117,IF($G10=$CO$119,CQ$119,IF($G10=$CO$120,CQ$120,)))))))))))))) -> 1.7346 | AI10: =IF($G10=$CO$103,CR$103,IF($G10=$CO$104,CR$104,IF($G10=$CO$105,CR$105,IF($G10=$CO$107,CR$107,IF($G10=$CO$108,CR$108,IF($G10=$CO$109,CR$109,IF($G10=$CO$111,CR$111,IF($G10=$CO$112,CR$112,IF($G10=$CO$113,CR$113,IF($G10=$CO$115,CR$115,IF($G10=$CO$116,CR$116,IF($G10=$CO$117,CR$117,IF($G10=$CO$119,CR$119,IF($G10=$CO$120,CR$120,)))))))))))))) -> 2 | AJ10: =IF($G10=$CO$103,CS$103,IF($G10=$CO$104,CS$104,IF($G10=$CO$105,CS$105,IF($G10=$CO$107,CS$107,IF($G10=$CO$108,CS$108,IF($G10=$CO$109,CS$109,IF($G10=$CO$111,CS$111,IF($G10=$CO$112,CS$112,IF($G10=$CO$113,CS$113,IF($G10=$CO$115,CS$115,IF($G10=$CO$116,CS$116,IF($G10=$CO$117,CS$117,IF($G10=$CO$119,CS$119,IF($G10=$CO$120,CS$120,)))))))))))))) -> 0.000367347 | AK10: 0 | AL10: 0 | AM10: 0 | AN10: =IF($G10=10,0.98,IF($G10=11,0.95,IF($G10=15,1.01,IF($G10=16,0.95,IF($G10=20,0.95,IF($G10=21,0.85)))))) -> 0.98 | AO10: =IF($G10=10,0.98,IF($G10=11,0.95,IF($G10=15,1.01,IF($G10=16,0.95,IF($G10=20,0.95,IF($G10=21,0.85)))))) -> 0.98 | AP10: 0.98 | AQ10: =ROUND(AK10*POWER((($AT$1-$AT$2)/LN(($AT$1-$AT$3)/($AT$2-$AT$3)))/((16-18)/LN((16-27)/(18-27))),AN10),0) -> 0 | AR10: =ROUND(AL10*POWER((($AT$1-$AT$2)/LN(($AT$1-$AT$3)/($AT$2-$AT$3)))/((16-18)/LN((16-27)/(18-27))),AO10),0) -> 0 | AS10: 0 | AT10: =ROUND(AQ10*3600/(4186*ABS($AT$1-$AT$2)),0) -> 0 | AU10: =ROUND(AR10*3600/(4186*ABS($AT$1-$AT$2)),0) -> 0 | AV10: 0 | AW10: =(($AG10*(AT10^$AH10)*((($F10-14.4)*$AI10)/100))+($AJ10*(AT10^2)))*0.0098 -> 0 | AX10: =(($AG10*(AU10^$AH10)*((($F10-14.4)*$AI10)/100))+($AJ10*(AU10^2)))*0.0098 -> 0 | AY10: =(($AG10*(AV10^$AH10)*((($F10-14.4)*$AI10)/100))+($AJ10*(AV10^2)))*0.0098 -> 0 | AZ10: =ROUND(IF(G10=10,$CO$92*F10,IF(G10=11,$CO$93*F10,IF(G10=15,$CO$94*F10,IF(G10=16,$CO$95*F10,IF(G10=20,$CO$96*F10,IF(G10=21,$CO$97*F10,)))))),1) -> 0.3 | BA10: 0 | BB10: 0 | BC10: 0 | BE10: 449 | BG10: =IF(C10=0,1,IF(G10=10,0.9,IF(G10=11,0.68,IF(G10=15,0.8,IF(G10=16,0.68,IF(G10=20,0.8,IF(G10=21,0.8))))))) -> 1 | BJ10: 0 | BK10: 0 | BL10: 0 | BM10: 0 | BO10: =IF(1/(1+((2258*((0.622/((101325/(1*611*EXP(17.27*((($AT$1+$AT$2)/2)/((($AT$1+$AT$2)/2)+237.3))))))-1)*1000-(0.622/((101325/($AV$1*611*EXP(17.27*($AT$3/($AT$3+237.3))))))-1)*1000))/(1005*((($AT$1+$AT$2)/2)-$AT$3))))>1,1,1/(1+((2258*((0.622/((101325/(1*611*EXP(17.27*((($AT$1+$AT$2)/2)/((($AT$1+$AT$2)/2)+237.3))))))-1)*1000-(0.622/((101325/($AV$1*611*EXP(17.27*($AT$3/($AT$3+237.3))))))-1)*1000))/(1005*((($AT$1+$AT$2)/2)-$AT$3))))) -> 1 | BP10: =IF(1/(1+((2258*((0.622/((101325/(1*611*EXP(17.27*((($AT$1+$AT$2)/2)/((($AT$1+$AT$2)/2)+237.3))))))-1)*1000-(0.622/((101325/($AV$1*611*EXP(17.27*($AT$3/($AT$3+237.3))))))-1)*1000))/(1005*((($AT$1+$AT$2)/2)-$AT$3))))>1,1,1/(1+((2258*((0.622/((101325/(1*611*EXP(17.27*((($AT$1+$AT$2)/2)/((($AT$1+$AT$2)/2)+237.3))))))-1)*1000-(0.622/((101325/($AV$1*611*EXP(17.27*($AT$3/($AT$3+237.3))))))-1)*1000))/(1005*((($AT$1+$AT$2)/2)-$AT$3))))) -> 1 | BQ10: =IF(1/(1+((2258*((0.622/((101325/(1*611*EXP(17.27*((($AT$1+$AT$2)/2)/((($AT$1+$AT$2)/2)+237.3))))))-1)*1000-(0.622/((101325/($AV$1*611*EXP(17.27*($AT$3/($AT$3+237.3))))))-1)*1000))/(1005*((($AT$1+$AT$2)/2)-$AT$3))))>1,1,1/(1+((2258*((0.622/((101325/(1*611*EXP(17.27*((($AT$1+$AT$2)/2)/((($AT$1+$AT$2)/2)+237.3))))))-1)*1000-(0.622/((101325/($AV$1*611*EXP(17.27*($AT$3/($AT$3+237.3))))))-1)*1000))/(1005*((($AT$1+$AT$2)/2)-$AT$3))))) -> 1 | BR10: =AQ10/BO10 -> 0 | BS10: =AR10/BP10 -> 0 | BT10: =AS10/BQ10 -> 0 | BV10: =BR10-AQ10 -> 0 | BW10: =BS10-AR10 -> 0 | BX10: =BT10-AS10 -> 0 | BY10: =IF(SUM(BV10:BX10)=0,1,0) -> 1 | CB10: W/m,beript dyn cool | CC10: Čeština | CD10: 120 | CI10: 140 | CL10: 120 | CO10: 120 | CR10: 120 | CU10: 120
A11: =CONCATENATE(D11,E11,F11,G11,C11) -> 13550110 | C11: 0 | D11: 1 | E11: 35 | F11: 50 | G11: 11 | H11: =IF(G11=10,11.5,IF(G11=11,11.5,IF(G11=15,16.5,IF(G11=16,16.5,IF(G11=20,21.5,IF(G11=21,21.5,)))))) -> 11.5 | I11: 0 | J11: 0 | K11: 0 | L11: 0 | M11: =BE11*BG11 -> 598 | N11: 0 | O11: 0 | P11: 0 | Q11: =IF(E11=35,IF(G11=10,1.399,IF(G11=11,1.44,IF(G11=15,1.39,IF(G11=16,1.458,IF(G11=20,1.39,IF(G11=21,1.472,1)))))),IF(E11=50,IF(G11=10,1.385,IF(G11=11,1.438,IF(G11=15,1.373,IF(G11=16,1.464,IF(G11=20,1.373,IF(G11=21,1.485,1)))))),IF(E11=65,IF(G11=10,1.371,IF(G11=11,1.437,IF(G11=15,1.355,IF(G11=16,1.47,IF(G11=20,1.355,IF(G11=21,1.497,1)))))),IF(E11=95,IF(G11=10,1.343,IF(G11=11,1.434,IF(G11=15,1.32,IF(G11=16,1.482,IF(G11=20,1.32,IF(G11=21,1.522,1)))))),"ERROR")))) -> 1.44 | R11: 1.1 | S11: 1.1 | T11: 1.1 | U11: =ROUND(M11*POWER((($S$1-$S$2)/LN(($S$1-$S$3)/($S$2-$S$3)))/((75-65)/LN((75-20)/(65-20))),Q11),0) -> 598 | V11: =ROUND(N11*POWER((($S$1-$S$2)/LN(($S$1-$S$3)/($S$2-$S$3)))/((75-65)/LN((75-20)/(65-20))),R11),0) -> 0 | W11: =ROUND(O11*POWER((($S$1-$S$2)/LN(($S$1-$S$3)/($S$2-$S$3)))/((75-65)/LN((75-20)/(65-20))),S11),0) -> 0 | X11: =ROUND(P11*POWER((($S$1-$S$2)/LN(($S$1-$S$3)/($S$2-$S$3)))/((75-65)/LN((75-20)/(65-20))),T11),0) -> 0 | Y11: =ROUND(U11*3600/(4186*ABS($S$1-$S$2)),0) -> 51 | Z11: =ROUND(V11*3600/(4186*ABS($S$1-$S$2)),0) -> 0 | AA11: =ROUND(W11*3600/(4186*ABS($S$1-$S$2)),0) -> 0 | AB11: =ROUND(X11*3600/(4186*ABS($S$1-$S$2)),0) -> 0 | AC11: =(($AG11*(Y11^$AH11)*((($F11-14.4)*$AI11)/100))+($AJ11*(Y11^2)))*0.0098 -> 0.01971269573 | AD11: =(($AG11*(Z11^$AH11)*((($F11-14.4)*$AI11)/100))+($AJ11*(Z11^2)))*0.0098 -> 0 | AE11: =(($AG11*(AA11^$AH11)*((($F11-14.4)*$AI11)/100))+($AJ11*(AA11^2)))*0.0098 -> 0 | AF11: =(($AG11*(AB11^$AH11)*((($F11-14.4)*$AI11)/100))+($AJ11*(AB11^2)))*0.0098 -> 0 | AG11: 0.0003969 | AH11: 1.7346 | AI11: 4 | AJ11: 0.000574288 | AK11: 0 | AL11: 0 | AM11: 0 | AN11: =IF($G11=10,0.98,IF($G11=11,0.95,IF($G11=15,1.01,IF($G11=16,0.95,IF($G11=20,0.95,IF($G11=21,0.85)))))) -> 0.95 | AO11: 0.95 | AP11: 0.95 | AQ11: =ROUND(AK11*POWER((($AT$1-$AT$2)/LN(($AT$1-$AT$3)/($AT$2-$AT$3)))/((16-18)/LN((16-27)/(18-27))),AN11),0) -> 0 | AR11: =ROUND(AL11*POWER((($AT$1-$AT$2)/LN(($AT$1-$AT$3)/($AT$2-$AT$3)))/((16-18)/LN((16-27)/(18-27))),AO11),0) -> 0 | AS11: =ROUND(AM11*POWER((($AT$1-$AT$2)/LN(($AT$1-$AT$3)/($AT$2-$AT$3)))/((16-18)/LN((16-27)/(18-27))),AP11),0) -> 0 | AT11: =ROUND(AQ11*3600/(4186*ABS($AT$1-$AT$2)),0) -> 0 | AU11: =ROUND(AR11*3600/(4186*ABS($AT$1-$AT$2)),0) -> 0 | AV11: =ROUND(AS11*3600/(4186*ABS($AT$1-$AT$2)),0) -> 0 | AW11: =(($AG11*(AT11^$AH11)*((($F11-14.4)*$AI11)/100))+($AJ11*(AT11^2)))*0.0098 -> 0 | AX11: =(($AG11*(AU11^$AH11)*((($F11-14.4)*$AI11)/100))+($AJ11*(AU11^2)))*0.0098 -> 0 | AY11: =(($AG11*(AV11^$AH11)*((($F11-14.4)*$AI11)/100))+($AJ11*(AV11^2)))*0.0098 -> 0 | AZ11: 0.7 | BA11: 0 | BB11: 0 | BC11: 0 | BE11: 598 | BG11: 1 | BJ11: 0 | BK11: 0 | BL11: 0 | BM11: 0 | BO11: =IF(1/(1+((2258*((0.622/((101325/(1*611*EXP(17.27*((($AT$1+$AT$2)/2)/((($AT$1+$AT$2)/2)+237.3))))))-1)*1000-(0.622/((101325/($AV$1*611*EXP(17.27*($AT$3/($AT$3+237.3))))))-1)*1000))/(1005*((($AT$1+$AT$2)/2)-$AT$3))))>1,1,1/(1+((2258*((0.622/((101325/(1*611*EXP(17.27*((($AT$1+$AT$2)/2)/((($AT$1+$AT$2)/2)+237.3))))))-1)*1000-(0.622/((101325/($AV$1*611*EXP(17.27*($AT$3/($AT$3+237.3))))))-1)*1000))/(1005*((($AT$1+$AT$2)/2)-$AT$3))))) -> 1 | BP11: 1 | BQ11: 1 | BR11: 0 | BS11: 0 | BT11: 0 | BV11: 0 | BW11: 0 | BX11: 0 | BY11: 1 | CC11: ExtraTaal1 | CD11: 140 | CI11: 160 | CL11: 140 | CO11: 140 | CR11: 140 | CU11: 140
A12: 13560100 | C12: 0 | D12: 1 | E12: 35 | F12: 60 | G12: 10 | H12: 11.5 | I12: 0 | J12: 0 | K12: 0 | L12: 0 | M12: =BE12*BG12 -> 539 | N12: 0 | O12: 0 | P12: 0 | Q12: 1.399 | R12: =IF($G12=10,1.08,IF($G12=11,1.1,IF($G12=15,1.08,IF($G12=16,1.1,IF($G12=20,1.08,IF($G12=21,1.05)))))) -> 1.08 | S12: 1.08 | T12: 1.08 | U12: 539 | V12: 0 | W12: 0 | X12: 0 | Y12: 46 | Z12: 0 | AA12: 0 | AB12: 0 | AC12: 0.01033480216 | AD12: 0 | AE12: 0 | AF12: 0 | AG12: 0.0003969 | AH12: 1.7346 | AI12: 2 | AJ12: 0.000367347 | AK12: 0 | AL12: 0 | AM12: 0 | AN12: 0.98 | AO12: 0.98 | AP12: 0.98 | AQ12: 0 | AR12: 0 | AS12: 0 | AT12: 0 | AU12: 0 | AV12: 0 | AW12: 0 | AX12: 0 | AY12: 0 | AZ12: 0.4 | BA12: 0 | BB12: 0 | BC12: 0 | BE12: 539 | BG12: 1 | BJ12: 0 | BK12: 0 | BL12: 0 | BM12: 0 | BO12: 1 | BP12: 1 | BQ12: 1 | BR12: 0 | BS12: 0 | BT12: 0 | BV12: 0 | BW12: 0 | BX12: 0 | BY12: =IF(SUM(BV12:BX12)=0,1,0) -> 1 | CA12: OFF | CC12: ExtraTaal2 | CD12: 160 | CI12: 180 | CL12: 160 | CO12: 160 | CR12: 160 | CU12: 160
A13: 13560110 | C13: 0 | D13: 1 | E13: 35 | F13: 60 | G13: 11 | H13: 11.5 | I13: 0 | J13: 0 | K13: 0 | L13: 0 | M13: =BE13*BG13 -> 718 | N13: 0 | O13: 0 | P13: 0 | Q13: 1.44 | R13: 1.1 | S13: 1.1 | T13: 1.1 | U13: 718 | V13: 0 | W13: 0 | X13: 0 | Y13: 62 | Z13: 0 | AA13: 0 | AB13: 0 | AC13: 0.0307545338 | AD13: 0 | AE13: 0 | AF13: 0 | AG13: 0.0003969 | AH13: 1.7346 | AI13: 4 | AJ13: 0.000574288 | AK13: 0 | AL13: 0 | AM13: 0 | AN13: 0.95 | AO13: 0.95 | AP13: 0.95 | AQ13: 0 | AR13: 0 | AS13: 0 | AT13: 0 | AU13: 0 | AV13: 0 | AW13: 0 | AX13: 0 | AY13: 0 | AZ13: 0.8 | BA13: 0 | BB13: 0 | BC13: 0 | BE13: 718 | BG13: 1 | BJ13: 0 | BK13: 0 | BL13: 0 | BM13: 0 | BO13: 1 | BP13: 1 | BQ13: 1 | BR13: 0 | BS13: 0 | BT13: 0 | BV13: 0 | BW13: 0 | BX13: 0 | BY13: 1 | CA13: 26dB(A) | CC13: ExtraTaal3 | CD13: 180 | CF13: =IF($CC$18=1,NL!$I3,IF($CC$18=2,EN!$I3,IF($CC$18=3,FR!$I3,IF($CC$18=4,DE!$I3,IF($CC$18=5,NR!$I3,IF($CC$18=6,SP!$I3,IF($CC$18=7,SW!$I3,IF($CC$18=8,TS!$I3,IF($CC$18=9,ExtraTaal1!$I3,IF($CC$18=10,ExtraTaal2!$I3,IF($CC$18=11,ExtraTaal3!$I3,))))))))))) -> Copiar todos los datos | CI13: 200 | CL13: 180 | CO13: 180 | CR13: 180 | CU13: 180
A14: 13560150 | C14: 0 | D14: 1 | E14: 35 | F14: 60 | G14: 15 | H14: 16.5 | I14: 0 | J14: 0 | K14: 0 | L14: 0 | M14: 882 | N14: 0 | O14: 0 | P14: 0 | Q14: 1.39 | R14: 1.08 | S14: 1.08 | T14: 1.08 | U14: 882 | V14: 0 | W14: 0 | X14: 0 | Y14: 76 | Z14: 0 | AA14: 0 | AB14: 0 | AC14: 0.02939585258 | AD14: 0 | AE14: 0 | AF14: 0 | AG14: 0.0002083 | AH14: 1.724 | AI14: 2 | AJ14: 0.000461829 | AK14: 0 | AL14: 0 | AM14: 0 | AN14: 1.01 | AO14: 1.01 | AP14: 1.01 | AQ14: 0 | AR14: 0 | AS14: 0 | AT14: 0 | AU14: 0 | AV14: 0 | AW14: 0 | AX14: 0 | AY14: 0 | AZ14: 0.6 | BA14: 0 | BB14: 0 | BC14: 0 | BE14: 882 | BG14: 1 | BJ14: 0 | BK14: 0 | BL14: 0 | BM14: 0 | BO14: 1 | BP14: 1 | BQ14: 1 | BR14: 0 | BS14: 0 | BT14: 0 | BV14: 0 | BW14: 0 | BX14: 0 | BY14: 1 | CA14: 30dB(A) | CD14: 200 | CF14: =IF($CC$18=1,NL!$I4,IF($CC$18=2,EN!$I4,IF($CC$18=3,FR!$I4,IF($CC$18=4,DE!$I4,IF($CC$18=5,NR!$I4,IF($CC$18=6,SP!$I4,IF($CC$18=7,SW!$I4,IF($CC$18=8,TS!$I4,IF($CC$18=9,ExtraTaal1!$I4,IF($CC$18=10,ExtraTaal2!$I4,IF($CC$18=11,ExtraTaal3!$I4,))))))))))) -> Unidades-SI | CI14: 220 | CL14: 200 | CO14: 200 | CR14: 200 | CU14: 200
A15: 13560160 | C15: 0 | D15: 1 | E15: 35 | F15: 60 | G15: 16 | H15: 16.5 | I15: 0 | J15: 0 | K15: 0 | L15: 0 | M15: 956 | N15: 0 | O15: 0 | P15: 0 | Q15: 1.458 | R15: 1.1 | S15: 1.1 | T15: 1.1 | U15: 956 | V15: 0 | W15: 0 | X15: 0 | Y15: 82 | Z15: 0 | AA15: 0 | AB15: 0 | AC15: 0.09919773993 | AD15: 0 | AE15: 0 | AF15: 0 | AG15: 0.0002083 | AH15: 1.724 | AI15: 4 | AJ15: 0.001392796 | AK15: 0 | AL15: 0 | AM15: 0 | AN15: 0.95 | AO15: 0.95 | AP15: 0.95 | AQ15: 0 | AR15: 0 | AS15: 0 | AT15: 0 | AU15: 0 | AV15: 0 | AW15: 0 | AX15: 0 | AY15: 0 | AZ15: 1.2 | BA15: 0 | BB15: 0 | BC15: 0 | BE15: 956 | BG15: 1 | BJ15: 0 | BK15: 0 | BL15: 0 | BM15: 0 | BO15: 1 | BP15: 1 | BQ15: 1 | BR15: 0 | BS15: 0 | BT15: 0 | BV15: 0 | BW15: 0 | BX15: 0 | BY15: 1 | CA15: MAX | CD15: 220 | CF15: =IF($CC$18=1,NL!$I5,IF($CC$18=2,EN!$I5,IF($CC$18=3,FR!$I5,IF($CC$18=4,DE!$I5,IF($CC$18=5,NR!$I5,IF($CC$18=6,SP!$I5,IF($CC$18=7,SW!$I5,IF($CC$18=8,TS!$I5,IF($CC$18=9,ExtraTaal1!$I5,IF($CC$18=10,ExtraTaal2!$I5,IF($CC$18=11,ExtraTaal3!$I5,))))))))))) -> Unidades-Imperial | CI15: 240 | CL15: 220 | CO15: 220 | CR15: 220 | CU15: 220
A16: 13560200 | C16: 0 | D16: 1 | E16: 35 | F16: 60 | G16: 20 | H16: 21.5 | I16: 0 | J16: 0 | K16: 0 | L16: 0 | M16: 1236 | N16: 0 | O16: 0 | P16: 0 | Q16: 1.39 | R16: 1.08 | S16: 1.08 | T16: 1.08 | U16: 1236 | V16: 0 | W16: 0 | X16: 0 | Y16: 106 | Z16: 0 | AA16: 0 | AB16: 0 | AC16: 0.04497273706 | AD16: 0 | AE16: 0 | AF16: 0 | AG16: 0.0001276 | AH16: 1.7219 | AI16: 2 | AJ16: 0.000376611 | AK16: 0 | AL16: 0 | AM16: 0 | AN16: 0.95 | AO16: 0.95 | AP16: 0.95 | AQ16: 0 | AR16: 0 | AS16: 0 | AT16: 0 | AU16: 0 | AV16: 0 | AW16: 0 | AX16: 0 | AY16: 0 | AZ16: 0.8 | BA16: 0 | BB16: 0 | BC16: 0 | BE16: 1236 | BG16: 1 | BJ16: 0 | BK16: 0 | BL16: 0 | BM16: 0 | BO16: 1 | BP16: 1 | BQ16: 1 | BR16: 0 | BS16: 0 | BT16: 0 | BV16: 0 | BW16: 0 | BX16: 0 | BY16: 1 | CD16: 240 | CI16: 260 | CL16: 240 | CO16: 240 | CR16: 240 | CU16: 240
A17: 13560210 | C17: 0 | D17: 1 | E17: 35 | F17: 60 | G17: 21 | H17: 21.5 | I17: 0 | J17: 0 | K17: 0 | L17: 0 | M17: 1268 | N17: 0 | O17: 0 | P17: 0 | Q17: 1.472 | R17: 1.05 | S17: 1.05 | T17: 1.05 | U17: 1268 | V17: 0 | W17: 0 | X17: 0 | Y17: 109 | Z17: 0 | AA17: 0 | AB17: 0 | AC17: 0.06722137382 | AD17: 0 | AE17: 0 | AF17: 0 | AG17: 0.0001276 | AH17: 1.7219 | AI17: 4 | AJ17: 0.000514201 | AK17: 0 | AL17: 0 | AM17: 0 | AN17: 0.85 | AO17: 0.85 | AP17: 0.85 | AQ17: 0 | AR17: 0 | AS17: 0 | AT17: 0 | AU17: 0 | AV17: 0 | AW17: 0 | AX17: 0 | AY17: 0 | AZ17: 1.6 | BA17: 0 | BB17: 0 | BC17: 0 | BE17: 1268 | BG17: 1 | BJ17: 0 | BK17: 0 | BL17: 0 | BM17: 0 | BO17: 1 | BP17: 1 | BQ17: 1 | BR17: 0 | BS17: 0 | BT17: 0 | BV17: 0 | BW17: 0 | BX17: 0 | BY17: 1 | CD17: 260 | CI17: 280 | CL17: 260 | CO17: 260 | CR17: 260 | CU17: 260
A18: =CONCATENATE(D18,E18,F18,G18,C18) -> 13570100 | C18: 0 | D18: 1 | E18: 35 | F18: 70 | G18: 10 | H18: 11.5 | I18: 0 | J18: 0 | K18: 0 | L18: 0 | M18: =BE18*BG18 -> 629 | N18: 0 | O18: 0 | P18: 0 | Q18: 1.399 | R18: 1.08 | S18: 1.08 | T18: 1.08 | U18: 629 | V18: 0 | W18: 0 | X18: 0 | Y18: 54 | Z18: 0 | AA18: 0 | AB18: 0 | AC18: 0.01487304623 | AD18: 0 | AE18: 0 | AF18: 0 | AG18: 0.0003969 | AH18: 1.7346 | AI18: 2 | AJ18: 0.000367347 | AK18: 0 | AL18: 0 | AM18: 0 | AN18: 0.98 | AO18: 0.98 | AP18: 0.98 | AQ18: 0 | AR18: 0 | AS18: 0 | AT18: 0 | AU18: 0 | AV18: 0 | AW18: 0 | AX18: 0 | AY18: 0 | AZ18: 0.5 | BA18: 0 | BB18: 0 | BC18: 0 | BE18: 629 | BG18: 1 | BJ18: 0 | BK18: 0 | BL18: 0 | BM18: 0 | BO18: 1 | BP18: 1 | BQ18: 1 | BR18: 0 | BS18: 0 | BT18: 0 | BV18: 0 | BW18: 0 | BX18: 0 | BY18: =IF(SUM(BV18:BX18)=0,1,0) -> 1 | CC18: =IF('DBH-Upgrade'!$J$4=data!CC3,1,IF('DBH-Upgrade'!$J$4=data!CC4,2,IF('DBH-Upgrade'!$J$4=data!CC5,3,IF('DBH-Upgrade'!$J$4=data!CC6,4,IF('DBH-Upgrade'!$J$4=data!CC7,5,IF('DBH-Upgrade'!$J$4=data!CC8,6,IF('DBH-Upgrade'!$J$4=data!CC9,7,IF('DBH-Upgrade'!$J$4=data!CC10,8,IF('DBH-Upgrade'!$J$4=data!CC11,9,IF('DBH-Upgrade'!$J$4=data!CC12,10,IF('DBH-Upgrade'!$J$4=data!CC13,11,))))))))))) -> 6 | CD18: 280 | CI18: 300 | CL18: 280 | CO18: 280 | CR18: 280 | CU18: 280
A19: 13570110 | C19: 0 | D19: 1 | E19: 35 | F19: 70 | G19: 11 | H19: 11.5 | I19: 0 | J19: 0 | K19: 0 | L19: 0 | M19: 837 | N19: 0 | O19: 0 | P19: 0 | Q19: 1.44 | R19: 1.1 | S19: 1.1 | T19: 1.1 | U19: 837 | V19: 0 | W19: 0 | X19: 0 | Y19: 72 | Z19: 0 | AA19: 0 | AB19: 0 | AC19: 0.04358921636 | AD19: 0 | AE19: 0 | AF19: 0 | AG19: 0.0003969 | AH19: 1.7346 | AI19: 4 | AJ19: 0.000574288 | AK19: 0 | AL19: 0 | AM19: 0 | AN19: 0.95 | AO19: 0.95 | AP19: 0.95 | AQ19: 0 | AR19: 0 | AS19: 0 | AT19: 0 | AU19: 0 | AV19: 0 | AW19: 0 | AX19: 0 | AY19: 0 | AZ19: 0.9 | BA19: 0 | BB19: 0 | BC19: 0 | BE19: 837 | BG19: 1 | BJ19: 0 | BK19: 0 | BL19: 0 | BM19: 0 | BO19: 1 | BP19: 1 | BQ19: 1 | BR19: 0 | BS19: 0 | BT19: 0 | BV19: 0 | BW19: 0 | BX19: 0 | BY19: 1 | CD19: 300 | CR19: 300 | CU19: 300
A20: 13570150 | C20: 0 | D20: 1 | E20: 35 | F20: 70 | G20: 15 | H20: 16.5 | I20: 0 | J20: 0 | K20: 0 | L20: 0 | M20: 1029 | N20: 0 | O20: 0 | P20: 0 | Q20: 1.39 | R20: 1.08 | S20: 1.08 | T20: 1.08 | U20: 1029 | V20: 0 | W20: 0 | X20: 0 | Y20: 88 | Z20: 0 | AA20: 0 | AB20: 0 | AC20: 0.04015743183 | AD20: 0 | AE20: 0 | AF20: 0 | AG20: 0.0002083 | AH20: 1.724 | AI20: 2 | AJ20: 0.000461829 | AK20: 0 | AL20: 0 | AM20: 0 | AN20: 1.01 | AO20: 1.01 | AP20: 1.01 | AQ20: 0 | AR20: 0 | AS20: 0 | AT20: 0 | AU20: 0 | AV20: 0 | AW20: 0 | AX20: 0 | AY20: 0 | AZ20: 0.7 | BA20: 0 | BB20: 0 | BC20: 0 | BE20: 1029 | BG20: 1 | BJ20: 0 | BK20: 0 | BL20: 0 | BM20: 0 | BO20: 1 | BP20: 1 | BQ20: 1 | BR20: 0 | BS20: 0 | BT20: 0 | BV20: 0 | BW20: 0 | BX20: 0 | BY20: 1 | CD20: =IF($CB$7=1,CL19,IF($CB$7=2,CO19,IF($CB$7=3,CR19,IF($CB$7=4,CI19,)))) -> 0 | CE20: =IF($CB$7=1,CK7,IF($CB$7=2,CN7,IF($CB$7=3,CQ7,IF($CB$7=4,CH7,)))) -> 0 | CN20: 1 | CO20: 2 | CP20: 3 | CQ20: 4 | CR20: 5 | CS20: 6 | CT20: 7 | CU20: 8 | CV20: 9
A21: 13570160 | C21: 0 | D21: 1 | E21: 35 | F21: 70 | G21: 16 | H21: 16.5 | I21: 0 | J21: 0 | K21: 0 | L21: 0 | M21: 1115 | N21: 0 | O21: 0 | P21: 0 | Q21: 1.458 | R21: 1.1 | S21: 1.1 | T21: 1.1 | U21: 1115 | V21: 0 | W21: 0 | X21: 0 | Y21: 96 | Z21: 0 | AA21: 0 | AB21: 0 | AC21: 0.1376638348 | AD21: 0 | AE21: 0 | AF21: 0 | AG21: 0.0002083 | AH21: 1.724 | AI21: 4 | AJ21: 0.001392796 | AK21: 0 | AL21: 0 | AM21: 0 | AN21: 0.95 | AO21: 0.95 | AP21: 0.95 | AQ21: 0 | AR21: 0 | AS21: 0 | AT21: 0 | AU21: 0 | AV21: 0 | AW21: 0 | AX21: 0 | AY21: 0 | AZ21: 1.4 | BA21: 0 | BB21: 0 | BC21: 0 | BE21: 1115 | BG21: 1 | BJ21: 0 | BK21: 0 | BL21: 0 | BM21: 0 | BO21: 1 | BP21: 1 | BQ21: 1 | BR21: 0 | BS21: 0 | BT21: 0 | BV21: 0 | BW21: 0 | BX21: 0 | BY21: 1 | CE21: =IF($CB$7=1,CK8,IF($CB$7=2,CN8,IF($CB$7=3,CQ8,IF($CB$7=4,CH8,)))) -> 0 | CQ21: =VLOOKUP($A$6,$CN$23:$CV$56,CQ$20,0) -> 13.2 | CR21: 15.1 | CS21: 21.85 | CT21: 5.5 | CU21: 5.9 | CV21: 7.9
A22: 13570200 | C22: 0 | D22: 1 | E22: 35 | F22: 70 | G22: 20 | H22: 21.5 | I22: 0 | J22: 0 | K22: 0 | L22: 0 | M22: 1442 | N22: 0 | O22: 0 | P22: 0 | Q22: 1.39 | R22: 1.08 | S22: 1.08 | T22: 1.08 | U22: 1442 | V22: 0 | W22: 0 | X22: 0 | Y22: 124 | Z22: 0 | AA22: 0 | AB22: 0 | AC22: 0.06234512326 | AD22: 0 | AE22: 0 | AF22: 0 | AG22: 0.0001276 | AH22: 1.7219 | AI22: 2 | AJ22: 0.000376611 | AK22: 0 | AL22: 0 | AM22: 0 | AN22: 0.95 | AO22: 0.95 | AP22: 0.95 | AQ22: 0 | AR22: 0 | AS22: 0 | AT22: 0 | AU22: 0 | AV22: 0 | AW22: 0 | AX22: 0 | AY22: 0 | AZ22: 0.9 | BA22: 0 | BB22: 0 | BC22: 0 | BE22: 1442 | BG22: 1 | BJ22: 0 | BK22: 0 | BL22: 0 | BM22: 0 | BO22: 1 | BP22: 1 | BQ22: 1 | BR22: 0 | BS22: 0 | BT22: 0 | BV22: 0 | BW22: 0 | BX22: 0 | BY22: 1 | CE22: =IF($CB$7=1,CK9,IF($CB$7=2,CN9,IF($CB$7=3,CQ9,IF($CB$7=4,CH9,)))) -> 0 | CO22: Raillengte | CP22: Railtype | CQ22: BMS-stuurspanningen | CT22: Opgenomen elektrisch vermogen
A23: 13570210 | C23: 0 | D23: 1 | E23: 35 | F23: 70 | G23: 21 | H23: 21.5 | I23: 0 | J23: 0 | K23: 0 | L23: 0 | M23: 1480 | N23: 0 | O23: 0 | P23: 0 | Q23: 1.472 | R23: 1.05 | S23: 1.05 | T23: 1.05 | U23: 1480 | V23: 0 | W23: 0 | X23: 0 | Y23: 127 | Z23: 0 | AA23: 0 | AB23: 0 | AC23: 0.09293818226 | AD23: 0 | AE23: 0 | AF23: 0 | AG23: 0.0001276 | AH23: 1.7219 | AI23: 4 | AJ23: 0.000514201 | AK23: 0 | AL23: 0 | AM23: 0 | AN23: 0.85 | AO23: 0.85 | AP23: 0.85 | AQ23: 0 | AR23: 0 | AS23: 0 | AT23: 0 | AU23: 0 | AV23: 0 | AW23: 0 | AX23: 0 | AY23: 0 | AZ23: 1.9 | BA23: 0 | BB23: 0 | BC23: 0 | BE23: 1480 | BG23: 1 | BJ23: 0 | BK23: 0 | BL23: 0 | BM23: 0 | BO23: 1 | BP23: 1 | BQ23: 1 | BR23: 0 | BS23: 0 | BT23: 0 | BV23: 0 | BW23: 0 | BX23: 0 | BY23: 1 | BZ23: H | CC23: C | CN23: =CONCATENATE(CO23,CP23) -> 5010 | CO23: 50 | CP23: 10 | CQ23: 14.2 | CR23: 16.2 | CS23: 21.85 | CT23: 3.6 | CU23: 4.1 | CV23: 5.1
A24: 13580100 | C24: 0 | D24: 1 | E24: 35 | F24: 80 | G24: 10 | H24: 11.5 | I24: 0 | J24: 0 | K24: 0 | L24: 0 | M24: 718 | N24: 0 | O24: 0 | P24: 0 | Q24: 1.399 | R24: 1.08 | S24: 1.08 | T24: 1.08 | U24: 718 | V24: 0 | W24: 0 | X24: 0 | Y24: 62 | Z24: 0 | AA24: 0 | AB24: 0 | AC24: 0.02039870131 | AD24: 0 | AE24: 0 | AF24: 0 | AG24: 0.0003969 | AH24: 1.7346 | AI24: 2 | AJ24: 0.000367347 | AK24: 0 | AL24: 0 | AM24: 0 | AN24: 0.98 | AO24: 0.98 | AP24: 0.98 | AQ24: 0 | AR24: 0 | AS24: 0 | AT24: 0 | AU24: 0 | AV24: 0 | AW24: 0 | AX24: 0 | AY24: 0 | AZ24: 0.5 | BA24: 0 | BB24: 0 | BC24: 0 | BE24: 718 | BG24: 1 | BJ24: 0 | BK24: 0 | BL24: 0 | BM24: 0 | BO24: 1 | BP24: 1 | BQ24: 1 | BR24: 0 | BS24: 0 | BT24: 0 | BV24: 0 | BW24: 0 | BX24: 0 | BY24: 1 | BZ24: =ROUND(IF($C10=0,0,IF($C10=10,IF($G10=10,1127,IF($G10=11,2263,"UNDEFINED")),IF($C10=15,IF($G10=10,"NOT POSSIBLE",IF($G10=11,"NOT POSSIBLE",IF($G10=15,1615,IF($G10=16,3238,IF($G10=20,2298,IF($G10=21,2489)))))),"ERROR"))),0) -> 0 | CA24: =ROUND(IF($C10=0,0,IF($C10=10,IF($G10=10,2539,IF($G10=11,3445,IF($G10=15,2539*1.3,IF($G10=16,3445*1.3,IF($G10=20,(2539*1.45),IF($G10=21,(3445*1.55))))))),IF($C10=15,IF($G10=10,0,IF($G10=11,0,IF($G10=15,3238,IF($G10=16,4735,IF($G10=20,4062,IF($G10=21,6098))))))))),0) -> 0 | CB24: =ROUND(IF($C10=0,0,IF($C10=10,IF($G10=10,352,IF($G10=11,577,IF($G10=15,442*1.15,IF($G10=16,725*1.15,IF($G10=20,(352*1.3),IF($G10=21,(577*1.3))))))),IF($C10=15,IF($G10=10,0,IF($G10=11,0,IF($G10=15,442,IF($G10=16,725,IF($G10=20,502,IF($G10=21,791))))))))),0) -> 0 | CC24: =ROUND(IF($C10=0,0,IF($C10=10,IF($G10=10,62,IF($G10=11,50,"UNDEFINED")),IF($C10=15,IF($G10=10,"NOT POSSIBLE",IF($G10=11,"NOT POSSIBLE",IF($G10=15,63,IF($G10=16,75,IF($G10=20,78,IF($G10=21,92)))))),"ERROR"))),0) -> 0 | CN24: =CONCATENATE(CO24,CP24) -> 5015 | CO24: 50 | CP24: 15 | CQ24: 0 | CR24: 0 | CS24: 0 | CT24: 0 | CU24: 0 | CV24: 0
A25: 13580110 | C25: 0 | D25: 1 | E25: 35 | F25: 80 | G25: 11 | H25: 11.5 | I25: 0 | J25: 0 | K25: 0 | L25: 0 | M25: 957 | N25: 0 | O25: 0 | P25: 0 | Q25: 1.44 | R25: 1.1 | S25: 1.1 | T25: 1.1 | U25: 957 | V25: 0 | W25: 0 | X25: 0 | Y25: 82 | Z25: 0 | AA25: 0 | AB25: 0 | AC25: 0.05915228601 | AD25: 0 | AE25: 0 | AF25: 0 | AG25: 0.0003969 | AH25: 1.7346 | AI25: 4 | AJ25: 0.000574288 | AK25: 0 | AL25: 0 | AM25: 0 | AN25: 0.95 | AO25: 0.95 | AP25: 0.95 | AQ25: 0 | AR25: 0 | AS25: 0 | AT25: 0 | AU25: 0 | AV25: 0 | AW25: 0 | AX25: 0 | AY25: 0 | AZ25: 1.1 | BA25: 0 | BB25: 0 | BC25: 0 | BE25: 957 | BG25: 1 | BJ25: 0 | BK25: 0 | BL25: 0 | BM25: 0 | BO25: 1 | BP25: 1 | BQ25: 1 | BR25: 0 | BS25: 0 | BT25: 0 | BV25: 0 | BW25: 0 | BX25: 0 | BY25: 1 | BZ25: =ROUND(IF($C11=0,0,IF($C11=10,IF($G11=10,1127,IF($G11=11,2263,"UNDEFINED")),IF($C11=15,IF($G11=10,"NOT POSSIBLE",IF($G11=11,"NOT POSSIBLE",IF($G11=15,1615,IF($G11=16,3238,IF($G11=20,2298,IF($G11=21,2489)))))),"ERROR"))),0) -> 0 | CA25: 0 | CB25: =ROUND(IF($C11=0,0,IF($C11=10,IF($G11=10,352,IF($G11=11,577,IF($G11=15,442*1.15,IF($G11=16,725*1.15,IF($G11=20,(352*1.3),IF($G11=21,(577*1.3))))))),IF($C11=15,IF($G11=10,0,IF($G11=11,0,IF($G11=15,442,IF($G11=16,725,IF($G11=20,502,IF($G11=21,791))))))))),0) -> 0 | CC25: =ROUND(IF($C11=0,0,IF($C11=10,IF($G11=10,62,IF($G11=11,50,"UNDEFINED")),IF($C11=15,IF($G11=10,"NOT POSSIBLE",IF($G11=11,"NOT POSSIBLE",IF($G11=15,63,IF($G11=16,75,IF($G11=20,78,IF($G11=21,92)))))),"ERROR"))),0) -> 0 | CN25: 6010 | CO25: 60 | CP25: 10 | CQ25: 13.6 | CR25: 15.6 | CS25: 21.85 | CT25: 4.8 | CU25: 5.4 | CV25: 6.8
A26: 13580150 | C26: 0 | D26: 1 | E26: 35 | F26: 80 | G26: 15 | H26: 16.5 | I26: 0 | J26: 0 | K26: 0 | L26: 0 | M26: 1176 | N26: 0 | O26: 0 | P26: 0 | Q26: 1.39 | R26: 1.08 | S26: 1.08 | T26: 1.08 | U26: 1176 | V26: 0 | W26: 0 | X26: 0 | Y26: 101 | Z26: 0 | AA26: 0 | AB26: 0 | AC26: 0.05381257525 | AD26: 0 | AE26: 0 | AF26: 0 | AG26: 0.0002083 | AH26: 1.724 | AI26: 2 | AJ26: 0.000461829 | AK26: 0 | AL26: 0 | AM26: 0 | AN26: 1.01 | AO26: 1.01 | AP26: 1.01 | AQ26: 0 | AR26: 0 | AS26: 0 | AT26: 0 | AU26: 0 | AV26: 0 | AW26: 0 | AX26: 0 | AY26: 0 | AZ26: 0.8 | BA26: 0 | BB26: 0 | BC26: 0 | BE26: 1176 | BG26: 1 | BJ26: 0 | BK26: 0 | BL26: 0 | BM26: 0 | BO26: 1 | BP26: 1 | BQ26: 1 | BR26: 0 | BS26: 0 | BT26: 0 | BV26: 0 | BW26: 0 | BX26: 0 | BY26: 1 | BZ26: 0 | CA26: 0 | CB26: 0 | CC26: 0 | CN26: 6015 | CO26: 60 | CP26: 15 | CQ26: 12.3 | CR26: 14.4 | CS26: 21.85 | CT26: 4.8 | CU26: 5.5 | CV26: 7.2
A27: 13580160 | C27: 0 | D27: 1 | E27: 35 | F27: 80 | G27: 16 | H27: 16.5 | I27: 0 | J27: 0 | K27: 0 | L27: 0 | M27: 1274 | N27: 0 | O27: 0 | P27: 0 | Q27: 1.458 | R27: 1.1 | S27: 1.1 | T27: 1.1 | U27: 1274 | V27: 0 | W27: 0 | X27: 0 | Y27: 110 | Z27: 0 | AA27: 0 | AB27: 0 | AC27: 0.1828686307 | AD27: 0 | AE27: 0 | AF27: 0 | AG27: 0.0002083 | AH27: 1.724 | AI27: 4 | AJ27: 0.001392796 | AK27: 0 | AL27: 0 | AM27: 0 | AN27: 0.95 | AO27: 0.95 | AP27: 0.95 | AQ27: 0 | AR27: 0 | AS27: 0 | AT27: 0 | AU27: 0 | AV27: 0 | AW27: 0 | AX27: 0 | AY27: 0 | AZ27: 1.6 | BA27: 0 | BB27: 0 | BC27: 0 | BE27: 1274 | BG27: 1 | BJ27: 0 | BK27: 0 | BL27: 0 | BM27: 0 | BO27: 1 | BP27: 1 | BQ27: 1 | BR27: 0 | BS27: 0 | BT27: 0 | BV27: 0 | BW27: 0 | BX27: 0 | BY27: 1 | BZ27: 0 | CA27: 0 | CB27: 0 | CC27: 0 | CN27: 7010 | CO27: 70 | CP27: 10 | CQ27: 13.2 | CR27: 15.1 | CS27: 21.85 | CT27: 5.5 | CU27: 5.9 | CV27: 7.9
A28: 13580200 | C28: 0 | D28: 1 | E28: 35 | F28: 80 | G28: 20 | H28: 21.5 | I28: 0 | J28: 0 | K28: 0 | L28: 0 | M28: 1648 | N28: 0 | O28: 0 | P28: 0 | Q28: 1.39 | R28: 1.08 | S28: 1.08 | T28: 1.08 | U28: 1648 | V28: 0 | W28: 0 | X28: 0 | Y28: 142 | Z28: 0 | AA28: 0 | AB28: 0 | AC28: 0.08275854594 | AD28: 0 | AE28: 0 | AF28: 0 | AG28: 0.0001276 | AH28: 1.7219 | AI28: 2 | AJ28: 0.000376611 | AK28: 0 | AL28: 0 | AM28: 0 | AN28: 0.95 | AO28: 0.95 | AP28: 0.95 | AQ28: 0 | AR28: 0 | AS28: 0 | AT28: 0 | AU28: 0 | AV28: 0 | AW28: 0 | AX28: 0 | AY28: 0 | AZ28: 1.1 | BA28: 0 | BB28: 0 | BC28: 0 | BE28: 1648 | BG28: 1 | BJ28: 0 | BK28: 0 | BL28: 0 | BM28: 0 | BO28: 1 | BP28: 1 | BQ28: 1 | BR28: 0 | BS28: 0 | BT28: 0 | BV28: 0 | BW28: 0 | BX28: 0 | BY28: 1 | BZ28: 0 | CA28: 0 | CB28: 0 | CC28: 0 | CN28: 7015 | CO28: 70 | CP28: 15 | CQ28: 12.3 | CR28: 14.4 | CS28: 21.85 | CT28: 5.1 | CU28: 5.6 | CV28: 7.2
A29: 13580210 | C29: 0 | D29: 1 | E29: 35 | F29: 80 | G29: 21 | H29: 21.5 | I29: 0 | J29: 0 | K29: 0 | L29: 0 | M29: 1691 | N29: 0 | O29: 0 | P29: 0 | Q29: 1.472 | R29: 1.05 | S29: 1.05 | T29: 1.05 | U29: 1691 | V29: 0 | W29: 0 | X29: 0 | Y29: 145 | Z29: 0 | AA29: 0 | AB29: 0 | AC29: 0.1232347693 | AD29: 0 | AE29: 0 | AF29: 0 | AG29: 0.0001276 | AH29: 1.7219 | AI29: 4 | AJ29: 0.000514201 | AK29: 0 | AL29: 0 | AM29: 0 | AN29: 0.85 | AO29: 0.85 | AP29: 0.85 | AQ29: 0 | AR29: 0 | AS29: 0 | AT29: 0 | AU29: 0 | AV29: 0 | AW29: 0 | AX29: 0 | AY29: 0 | AZ29: 2.1 | BA29: 0 | BB29: 0 | BC29: 0 | BE29: 1691 | BG29: 1 | BJ29: 0 | BK29: 0 | BL29: 0 | BM29: 0 | BO29: 1 | BP29: 1 | BQ29: 1 | BR29: 0 | BS29: 0 | BT29: 0 | BV29: 0 | BW29: 0 | BX29: 0 | BY29: 1 | BZ29: 0 | CA29: 0 | CB29: 0 | CC29: 0 | CN29: 8010 | CO29: 80 | CP29: 10 | CQ29: 12.8 | CR29: 14.7 | CS29: 21.85 | CT29: 6.3 | CU29: 6.8 | CV29: 9.1
A30: 13590100 | C30: 0 | D30: 1 | E30: 35 | F30: 90 | G30: 10 | H30: 11.5 | I30: 0 | J30: 0 | K30: 0 | L30: 0 | M30: 808 | N30: 0 | O30: 0 | P30: 0 | Q30: 1.399 | R30: 1.08 | S30: 1.08 | T30: 1.08 | U30: 808 | V30: 0 | W30: 0 | X30: 0 | Y30: 69 | Z30: 0 | AA30: 0 | AB30: 0 | AC30: 0.0262413884 | AD30: 0 | AE30: 0 | AF30: 0 | AG30: 0.0003969 | AH30: 1.7346 | AI30: 2 | AJ30: 0.000367347 | AK30: 0 | AL30: 0 | AM30: 0 | AN30: 0.98 | AO30: 0.98 | AP30: 0.98 | AQ30: 0 | AR30: 0 | AS30: 0 | AT30: 0 | AU30: 0 | AV30: 0 | AW30: 0 | AX30: 0 | AY30: 0 | AZ30: 0.6 | BA30: 0 | BB30: 0 | BC30: 0 | BE30: 808 | BG30: 1 | BJ30: 0 | BK30: 0 | BL30: 0 | BM30: 0 | BO30: 1 | BP30: 1 | BQ30: 1 | BR30: 0 | BS30: 0 | BT30: 0 | BV30: 0 | BW30: 0 | BX30: 0 | BY30: 1 | BZ30: 0 | CA30: 0 | CB30: 0 | CC30: 0 | CN30: 8015 | CO30: 80 | CP30: 15 | CQ30: 11.8 | CR30: 13.7 | CS30: 21.85 | CT30: 6 | CU30: 6.7 | CV30: 9
A31: 13590110 | C31: 0 | D31: 1 | E31: 35 | F31: 90 | G31: 11 | H31: 11.5 | I31: 0 | J31: 0 | K31: 0 | L31: 0 | M31: 1076 | N31: 0 | O31: 0 | P31: 0 | Q31: 1.44 | R31: 1.1 | S31: 1.1 | T31: 1.1 | U31: 1076 | V31: 0 | W31: 0 | X31: 0 | Y31: 93 | Z31: 0 | AA31: 0 | AB31: 0 | AC31: 0.07922734745 | AD31: 0 | AE31: 0 | AF31: 0 | AG31: 0.0003969 | AH31: 1.7346 | AI31: 4 | AJ31: 0.000574288 | AK31: 0 | AL31: 0 | AM31: 0 | AN31: 0.95 | AO31: 0.95 | AP31: 0.95 | AQ31: 0 | AR31: 0 | AS31: 0 | AT31: 0 | AU31: 0 | AV31: 0 | AW31: 0 | AX31: 0 | AY31: 0 | AZ31: 1.2 | BA31: 0 | BB31: 0 | BC31: 0 | BE31: 1076 | BG31: 1 | BJ31: 0 | BK31: 0 | BL31: 0 | BM31: 0 | BO31: 1 | BP31: 1 | BQ31: 1 | BR31: 0 | BS31: 0 | BT31: 0 | BV31: 0 | BW31: 0 | BX31: 0 | BY31: 1 | BZ31: 0 | CA31: 0 | CB31: 0 | CC31: 0 | CN31: 9010 | CO31: 90 | CP31: 10 | CQ31: 12.5 | CR31: 14.7 | CS31: 21.85 | CT31: 6.7 | CU31: 7.4 | CV31: 10.3
A32: 13590150 | C32: 0 | D32: 1 | E32: 35 | F32: 90 | G32: 15 | H32: 16.5 | I32: 0 | J32: 0 | K32: 0 | L32: 0 | M32: 1323 | N32: 0 | O32: 0 | P32: 0 | Q32: 1.39 | R32: 1.08 | S32: 1.08 | T32: 1.08 | U32: 1323 | V32: 0 | W32: 0 | X32: 0 | Y32: 114 | Z32: 0 | AA32: 0 | AB32: 0 | AC32: 0.06967244314 | AD32: 0 | AE32: 0 | AF32: 0 | AG32: 0.0002083 | AH32: 1.724 | AI32: 2 | AJ32: 0.000461829 | AK32: 0 | AL32: 0 | AM32: 0 | AN32: 1.01 | AO32: 1.01 | AP32: 1.01 | AQ32: 0 | AR32: 0 | AS32: 0 | AT32: 0 | AU32: 0 | AV32: 0 | AW32: 0 | AX32: 0 | AY32: 0 | AZ32: 0.9 | BA32: 0 | BB32: 0 | BC32: 0 | BE32: 1323 | BG32: 1 | BJ32: 0 | BK32: 0 | BL32: 0 | BM32: 0 | BO32: 1 | BP32: 1 | BQ32: 1 | BR32: 0 | BS32: 0 | BT32: 0 | BV32: 0 | BW32: 0 | BX32: 0 | BY32: 1 | BZ32: 0 | CA32: 0 | CB32: 0 | CC32: 0 | CN32: 9015 | CO32: 90 | CP32: 15 | CQ32: 11.3 | CR32: 13.2 | CS32: 21.85 | CT32: 7 | CU32: 7.7 | CV32: 10.7
A33: 13590160 | C33: 0 | D33: 1 | E33: 35 | F33: 90 | G33: 16 | H33: 16.5 | I33: 0 | J33: 0 | K33: 0 | L33: 0 | M33: 1434 | N33: 0 | O33: 0 | P33: 0 | Q33: 1.458 | R33: 1.1 | S33: 1.1 | T33: 1.1 | U33: 1434 | V33: 0 | W33: 0 | X33: 0 | Y33: 123 | Z33: 0 | AA33: 0 | AB33: 0 | AC33: 0.2312471315 | AD33: 0 | AE33: 0 | AF33: 0 | AG33: 0.0002083 | AH33: 1.724 | AI33: 4 | AJ33: 0.001392796 | AK33: 0 | AL33: 0 | AM33: 0 | AN33: 0.95 | AO33: 0.95 | AP33: 0.95 | AQ33: 0 | AR33: 0 | AS33: 0 | AT33: 0 | AU33: 0 | AV33: 0 | AW33: 0 | AX33: 0 | AY33: 0 | AZ33: 1.8 | BA33: 0 | BB33: 0 | BC33: 0 | BE33: 1434 | BG33: 1 | BJ33: 0 | BK33: 0 | BL33: 0 | BM33: 0 | BO33: 1 | BP33: 1 | BQ33: 1 | BR33: 0 | BS33: 0 | BT33: 0 | BV33: 0 | BW33: 0 | BX33: 0 | BY33: 1 | BZ33: 0 | CA33: 0 | CB33: 0 | CC33: 0 | CN33: 10010 | CO33: 100 | CP33: 10 | CQ33: 12.3 | CR33: 14.1 | CS33: 21.85 | CT33: 7.8 | CU33: 8.7 | CV33: 12.2
A34: 13590200 | C34: 0 | D34: 1 | E34: 35 | F34: 90 | G34: 20 | H34: 21.5 | I34: 0 | J34: 0 | K34: 0 | L34: 0 | M34: 1854 | N34: 0 | O34: 0 | P34: 0 | Q34: 1.39 | R34: 1.08 | S34: 1.08 | T34: 1.08 | U34: 1854 | V34: 0 | W34: 0 | X34: 0 | Y34: 159 | Z34: 0 | AA34: 0 | AB34: 0 | AC34: 0.1049806602 | AD34: 0 | AE34: 0 | AF34: 0 | AG34: 0.0001276 | AH34: 1.7219 | AI34: 2 | AJ34: 0.000376611 | AK34: 0 | AL34: 0 | AM34: 0 | AN34: 0.95 | AO34: 0.95 | AP34: 0.95 | AQ34: 0 | AR34: 0 | AS34: 0 | AT34: 0 | AU34: 0 | AV34: 0 | AW34: 0 | AX34: 0 | AY34: 0 | AZ34: 1.2 | BA34: 0 | BB34: 0 | BC34: 0 | BE34: 1854 | BG34: 1 | BJ34: 0 | BK34: 0 | BL34: 0 | BM34: 0 | BO34: 1 | BP34: 1 | BQ34: 1 | BR34: 0 | BS34: 0 | BT34: 0 | BV34: 0 | BW34: 0 | BX34: 0 | BY34: 1 | BZ34: 0 | CA34: 0 | CB34: 0 | CC34: 0 | CN34: 10015 | CO34: 100 | CP34: 15 | CQ34: 10.9 | CR34: 12.8 | CS34: 21.85 | CT34: 7 | CU34: 7.7 | CV34: 10.7
A35: 13590210 | C35: 0 | D35: 1 | E35: 35 | F35: 90 | G35: 21 | H35: 21.5 | I35: 0 | J35: 0 | K35: 0 | L35: 0 | M35: 1903 | N35: 0 | O35: 0 | P35: 0 | Q35: 1.472 | R35: 1.05 | S35: 1.05 | T35: 1.05 | U35: 1903 | V35: 0 | W35: 0 | X35: 0 | Y35: 164 | Z35: 0 | AA35: 0 | AB35: 0 | AC35: 0.1601597538 | AD35: 0 | AE35: 0 | AF35: 0 | AG35: 0.0001276 | AH35: 1.7219 | AI35: 4 | AJ35: 0.000514201 | AK35: 0 | AL35: 0 | AM35: 0 | AN35: 0.85 | AO35: 0.85 | AP35: 0.85 | AQ35: 0 | AR35: 0 | AS35: 0 | AT35: 0 | AU35: 0 | AV35: 0 | AW35: 0 | AX35: 0 | AY35: 0 | AZ35: 2.4 | BA35: 0 | BB35: 0 | BC35: 0 | BE35: 1903 | BG35: 1 | BJ35: 0 | BK35: 0 | BL35: 0 | BM35: 0 | BO35: 1 | BP35: 1 | BQ35: 1 | BR35: 0 | BS35: 0 | BT35: 0 | BV35: 0 | BW35: 0 | BX35: 0 | BY35: 1 | BZ35: 0 | CA35: 0 | CB35: 0 | CC35: 0 | CN35: 11010 | CO35: 110 | CP35: 10 | CQ35: 12 | CR35: 13.9 | CS35: 21.85 | CT35: 8.4 | CU35: 9.3 | CV35: 14
A36: 135100100 | C36: 0 | D36: 1 | E36: 35 | F36: 100 | G36: 10 | H36: 11.5 | I36: 0 | J36: 0 | K36: 0 | L36: 0 | M36: 898 | N36: 0 | O36: 0 | P36: 0 | Q36: 1.399 | R36: 1.08 | S36: 1.08 | T36: 1.08 | U36: 898 | V36: 0 | W36: 0 | X36: 0 | Y36: 77 | Z36: 0 | AA36: 0 | AB36: 0 | AC36: 0.03381013444 | AD36: 0 | AE36: 0 | AF36: 0 | AG36: 0.0003969 | AH36: 1.7346 | AI36: 2 | AJ36: 0.000367347 | AK36: 0 | AL36: 0 | AM36: 0 | AN36: 0.98 | AO36: 0.98 | AP36: 0.98 | AQ36: 0 | AR36: 0 | AS36: 0 | AT36: 0 | AU36: 0 | AV36: 0 | AW36: 0 | AX36: 0 | AY36: 0 | AZ36: 0.7 | BA36: 0 | BB36: 0 | BC36: 0 | BE36: 898 | BG36: 1 | BJ36: 0 | BK36: 0 | BL36: 0 | BM36: 0 | BO36: 1 | BP36: 1 | BQ36: 1 | BR36: 0 | BS36: 0 | BT36: 0 | BV36: 0 | BW36: 0 | BX36: 0 | BY36: 1 | BZ36: 0 | CA36: 0 | CB36: 0 | CC36: 0 | CN36: 11015 | CO36: 110 | CP36: 15 | CQ36: 10.9 | CR36: 12.8 | CS36: 21.85 | CT36: 7.9 | CU36: 8.8 | CV36: 12.5
A37: 135100110 | C37: 0 | D37: 1 | E37: 35 | F37: 100 | G37: 11 | H37: 11.5 | I37: 0 | J37: 0 | K37: 0 | L37: 0 | M37: 1196 | N37: 0 | O37: 0 | P37: 0 | Q37: 1.44 | R37: 1.1 | S37: 1.1 | T37: 1.1 | U37: 1196 | V37: 0 | W37: 0 | X37: 0 | Y37: 103 | Z37: 0 | AA37: 0 | AB37: 0 | AC37: 0.101003727 | AD37: 0 | AE37: 0 | AF37: 0 | AG37: 0.0003969 | AH37: 1.7346 | AI37: 4 | AJ37: 0.000574288 | AK37: 0 | AL37: 0 | AM37: 0 | AN37: 0.95 | AO37: 0.95 | AP37: 0.95 | AQ37: 0 | AR37: 0 | AS37: 0 | AT37: 0 | AU37: 0 | AV37: 0 | AW37: 0 | AX37: 0 | AY37: 0 | AZ37: 1.3 | BA37: 0 | BB37: 0 | BC37: 0 | BE37: 1196 | BG37: 1 | BJ37: 0 | BK37: 0 | BL37: 0 | BM37: 0 | BO37: 1 | BP37: 1 | BQ37: 1 | BR37: 0 | BS37: 0 | BT37: 0 | BV37: 0 | BW37: 0 | BX37: 0 | BY37: 1 | BZ37: 0 | CA37: 0 | CB37: 0 | CC37: 0 | CN37: 12010 | CO37: 120 | CP37: 10 | CQ37: 11.8 | CR37: 13.7 | CS37: 21.85 | CT37: 8.9 | CU37: 9.9 | CV37: 14.8
A38: 135100150 | C38: 0 | D38: 1 | E38: 35 | F38: 100 | G38: 15 | H38: 16.5 | I38: 0 | J38: 0 | K38: 0 | L38: 0 | M38: 1470 | N38: 0 | O38: 0 | P38: 0 | Q38: 1.39 | R38: 1.08 | S38: 1.08 | T38: 1.08 | U38: 1470 | V38: 0 | W38: 0 | X38: 0 | Y38: 126 | Z38: 0 | AA38: 0 | AB38: 0 | AC38: 0.08645710524 | AD38: 0 | AE38: 0 | AF38: 0 | AG38: 0.0002083 | AH38: 1.724 | AI38: 2 | AJ38: 0.000461829 | AK38: 0 | AL38: 0 | AM38: 0 | AN38: 1.01 | AO38: 1.01 | AP38: 1.01 | AQ38: 0 | AR38: 0 | AS38: 0 | AT38: 0 | AU38: 0 | AV38: 0 | AW38: 0 | AX38: 0 | AY38: 0 | AZ38: 1 | BA38: 0 | BB38: 0 | BC38: 0 | BE38: 1470 | BG38: 1 | BJ38: 0 | BK38: 0 | BL38: 0 | BM38: 0 | BO38: 1 | BP38: 1 | BQ38: 1 | BR38: 0 | BS38: 0 | BT38: 0 | BV38: 0 | BW38: 0 | BX38: 0 | BY38: 1 | BZ38: 0 | CA38: 0 | CB38: 0 | CC38: 0 | CN38: 12015 | CO38: 120 | CP38: 15 | CQ38: 10.6 | CR38: 12.5 | CS38: 21.85 | CT38: 8.7 | CU38: 9.8 | CV38: 14.3
A39: 135100160 | C39: 0 | D39: 1 | E39: 35 | F39: 100 | G39: 16 | H39: 16.5 | I39: 0 | J39: 0 | K39: 0 | L39: 0 | M39: 1593 | N39: 0 | O39: 0 | P39: 0 | Q39: 1.458 | R39: 1.1 | S39: 1.1 | T39: 1.1 | U39: 1593 | V39: 0 | W39: 0 | X39: 0 | Y39: 137 | Z39: 0 | AA39: 0 | AB39: 0 | AC39: 0.2899264024 | AD39: 0 | AE39: 0 | AF39: 0 | AG39: 0.0002083 | AH39: 1.724 | AI39: 4 | AJ39: 0.001392796 | AK39: 0 | AL39: 0 | AM39: 0 | AN39: 0.95 | AO39: 0.95 | AP39: 0.95 | AQ39: 0 | AR39: 0 | AS39: 0 | AT39: 0 | AU39: 0 | AV39: 0 | AW39: 0 | AX39: 0 | AY39: 0 | AZ39: 2 | BA39: 0 | BB39: 0 | BC39: 0 | BE39: 1593 | BG39: 1 | BJ39: 0 | BK39: 0 | BL39: 0 | BM39: 0 | BO39: 1 | BP39: 1 | BQ39: 1 | BR39: 0 | BS39: 0 | BT39: 0 | BV39: 0 | BW39: 0 | BX39: 0 | BY39: 1 | BZ39: 0 | CA39: 0 | CB39: 0 | CC39: 0 | CN39: 14010 | CO39: 140 | CP39: 10 | CQ39: 11.5 | CR39: 13.3 | CS39: 21.85 | CT39: 10.1 | CU39: 11.2 | CV39: 17.5
A40: 135100200 | C40: 0 | D40: 1 | E40: 35 | F40: 100 | G40: 20 | H40: 21.5 | I40: 0 | J40: 0 | K40: 0 | L40: 0 | M40: 2060 | N40: 0 | O40: 0 | P40: 0 | Q40: 1.39 | R40: 1.08 | S40: 1.08 | T40: 1.08 | U40: 2060 | V40: 0 | W40: 0 | X40: 0 | Y40: 177 | Z40: 0 | AA40: 0 | AB40: 0 | AC40: 0.1315275397 | AD40: 0 | AE40: 0 | AF40: 0 | AG40: 0.0001276 | AH40: 1.7219 | AI40: 2 | AJ40: 0.000376611 | AK40: 0 | AL40: 0 | AM40: 0 | AN40: 0.95 | AO40: 0.95 | AP40: 0.95 | AQ40: 0 | AR40: 0 | AS40: 0 | AT40: 0 | AU40: 0 | AV40: 0 | AW40: 0 | AX40: 0 | AY40: 0 | AZ40: 1.3 | BA40: 0 | BB40: 0 | BC40: 0 | BE40: 2060 | BG40: 1 | BJ40: 0 | BK40: 0 | BL40: 0 | BM40: 0 | BO40: 1 | BP40: 1 | BQ40: 1 | BR40: 0 | BS40: 0 | BT40: 0 | BV40: 0 | BW40: 0 | BX40: 0 | BY40: 1 | BZ40: 0 | CA40: 0 | CB40: 0 | CC40: 0 | CN40: 14015 | CO40: 140 | CP40: 15 | CQ40: 10.4 | CR40: 12.2 | CS40: 21.85 | CT40: 9.6 | CU40: 10.5 | CV40: 16.1
A41: 135100210 | C41: 0 | D41: 1 | E41: 35 | F41: 100 | G41: 21 | H41: 21.5 | I41: 0 | J41: 0 | K41: 0 | L41: 0 | M41: 2114 | N41: 0 | O41: 0 | P41: 0 | Q41: 1.472 | R41: 1.05 | S41: 1.05 | T41: 1.05 | U41: 2114 | V41: 0 | W41: 0 | X41: 0 | Y41: 182 | Z41: 0 | AA41: 0 | AB41: 0 | AC41: 0.200277567 | AD41: 0 | AE41: 0 | AF41: 0 | AG41: 0.0001276 | AH41: 1.7219 | AI41: 4 | AJ41: 0.000514201 | AK41: 0 | AL41: 0 | AM41: 0 | AN41: 0.85 | AO41: 0.85 | AP41: 0.85 | AQ41: 0 | AR41: 0 | AS41: 0 | AT41: 0 | AU41: 0 | AV41: 0 | AW41: 0 | AX41: 0 | AY41: 0 | AZ41: 2.7 | BA41: 0 | BB41: 0 | BC41: 0 | BE41: 2114 | BG41: 1 | BJ41: 0 | BK41: 0 | BL41: 0 | BM41: 0 | BO41: 1 | BP41: 1 | BQ41: 1 | BR41: 0 | BS41: 0 | BT41: 0 | BV41: 0 | BW41: 0 | BX41: 0 | BY41: 1 | BZ41: 0 | CA41: 0 | CB41: 0 | CC41: 0 | CN41: 16010 | CO41: 160 | CP41: 10 | CQ41: 11.2 | CR41: 13 | CS41: 21.85 | CT41: 11 | CU41: 12.4 | CV41: 19.2
A42: 135110100 | C42: 0 | D42: 1 | E42: 35 | F42: 110 | G42: 10 | H42: 11.5 | I42: 0 | J42: 0 | K42: 0 | L42: 0 | M42: 988 | N42: 0 | O42: 0 | P42: 0 | Q42: 1.399 | R42: 1.08 | S42: 1.08 | T42: 1.08 | U42: 988 | V42: 0 | W42: 0 | X42: 0 | Y42: 85 | Z42: 0 | AA42: 0 | AB42: 0 | AC42: 0.04253590474 | AD42: 0 | AE42: 0 | AF42: 0 | AG42: 0.0003969 | AH42: 1.7346 | AI42: 2 | AJ42: 0.000367347 | AK42: 0 | AL42: 0 | AM42: 0 | AN42: 0.98 | AO42: 0.98 | AP42: 0.98 | AQ42: 0 | AR42: 0 | AS42: 0 | AT42: 0 | AU42: 0 | AV42: 0 | AW42: 0 | AX42: 0 | AY42: 0 | AZ42: 0.7 | BA42: 0 | BB42: 0 | BC42: 0 | BE42: 988 | BG42: 1 | BJ42: 0 | BK42: 0 | BL42: 0 | BM42: 0 | BO42: 1 | BP42: 1 | BQ42: 1 | BR42: 0 | BS42: 0 | BT42: 0 | BV42: 0 | BW42: 0 | BX42: 0 | BY42: 1 | BZ42: 0 | CA42: 0 | CB42: 0 | CC42: 0 | CN42: 16015 | CO42: 160 | CP42: 15 | CQ42: 10 | CR42: 11.8 | CS42: 21.85 | CT42: 11.5 | CU42: 12.8 | CV42: 19.6
A43: 135110110 | C43: 0 | D43: 1 | E43: 35 | F43: 110 | G43: 11 | H43: 11.5 | I43: 0 | J43: 0 | K43: 0 | L43: 0 | M43: 1316 | N43: 0 | O43: 0 | P43: 0 | Q43: 1.44 | R43: 1.1 | S43: 1.1 | T43: 1.1 | U43: 1316 | V43: 0 | W43: 0 | X43: 0 | Y43: 113 | Z43: 0 | AA43: 0 | AB43: 0 | AC43: 0.1260262471 | AD43: 0 | AE43: 0 | AF43: 0 | AG43: 0.0003969 | AH43: 1.7346 | AI43: 4 | AJ43: 0.000574288 | AK43: 0 | AL43: 0 | AM43: 0 | AN43: 0.95 | AO43: 0.95 | AP43: 0.95 | AQ43: 0 | AR43: 0 | AS43: 0 | AT43: 0 | AU43: 0 | AV43: 0 | AW43: 0 | AX43: 0 | AY43: 0 | AZ43: 1.5 | BA43: 0 | BB43: 0 | BC43: 0 | BE43: 1316 | BG43: 1 | BJ43: 0 | BK43: 0 | BL43: 0 | BM43: 0 | BO43: 1 | BP43: 1 | BQ43: 1 | BR43: 0 | BS43: 0 | BT43: 0 | BV43: 0 | BW43: 0 | BX43: 0 | BY43: 1 | BZ43: 0 | CA43: 0 | CB43: 0 | CC43: 0 | CN43: 18010 | CO43: 180 | CP43: 10 | CQ43: 10.9 | CR43: 12.7 | CS43: 21.85 | CT43: 12.2 | CU43: 13.7 | CV43: 22
A44: 135110150 | C44: 0 | D44: 1 | E44: 35 | F44: 110 | G44: 15 | H44: 16.5 | I44: 0 | J44: 0 | K44: 0 | L44: 0 | M44: 1617 | N44: 0 | O44: 0 | P44: 0 | Q44: 1.39 | R44: 1.08 | S44: 1.08 | T44: 1.08 | U44: 1617 | V44: 0 | W44: 0 | X44: 0 | Y44: 139 | Z44: 0 | AA44: 0 | AB44: 0 | AC44: 0.1067633186 | AD44: 0 | AE44: 0 | AF44: 0 | AG44: 0.0002083 | AH44: 1.724 | AI44: 2 | AJ44: 0.000461829 | AK44: 0 | AL44: 0 | AM44: 0 | AN44: 1.01 | AO44: 1.01 | AP44: 1.01 | AQ44: 0 | AR44: 0 | AS44: 0 | AT44: 0 | AU44: 0 | AV44: 0 | AW44: 0 | AX44: 0 | AY44: 0 | AZ44: 1.1 | BA44: 0 | BB44: 0 | BC44: 0 | BE44: 1617 | BG44: 1 | BJ44: 0 | BK44: 0 | BL44: 0 | BM44: 0 | BO44: 1 | BP44: 1 | BQ44: 1 | BR44: 0 | BS44: 0 | BT44: 0 | BV44: 0 | BW44: 0 | BX44: 0 | BY44: 1 | BZ44: 0 | CA44: 0 | CB44: 0 | CC44: 0 | CN44: 18015 | CO44: 180 | CP44: 15 | CQ44: 10 | CR44: 11.8 | CS44: 21.85 | CT44: 11.5 | CU44: 12.8 | CV44: 19.6
A45: 135110160 | C45: 0 | D45: 1 | E45: 35 | F45: 110 | G45: 16 | H45: 16.5 | I45: 0 | J45: 0 | K45: 0 | L45: 0 | M45: 1752 | N45: 0 | O45: 0 | P45: 0 | Q45: 1.458 | R45: 1.1 | S45: 1.1 | T45: 1.1 | U45: 1752 | V45: 0 | W45: 0 | X45: 0 | Y45: 151 | Z45: 0 | AA45: 0 | AB45: 0 | AC45: 0.3557845336 | AD45: 0 | AE45: 0 | AF45: 0 | AG45: 0.0002083 | AH45: 1.724 | AI45: 4 | AJ45: 0.001392796 | AK45: 0 | AL45: 0 | AM45: 0 | AN45: 0.95 | AO45: 0.95 | AP45: 0.95 | AQ45: 0 | AR45: 0 | AS45: 0 | AT45: 0 | AU45: 0 | AV45: 0 | AW45: 0 | AX45: 0 | AY45: 0 | AZ45: 2.2 | BA45: 0 | BB45: 0 | BC45: 0 | BE45: 1752 | BG45: 1 | BJ45: 0 | BK45: 0 | BL45: 0 | BM45: 0 | BO45: 1 | BP45: 1 | BQ45: 1 | BR45: 0 | BS45: 0 | BT45: 0 | BV45: 0 | BW45: 0 | BX45: 0 | BY45: 1 | BZ45: 0 | CA45: 0 | CB45: 0 | CC45: 0 | CN45: 20010 | CO45: 200 | CP45: 10 | CQ45: 10.7 | CR45: 12.5 | CS45: 21.85 | CT45: 13.4 | CU45: 14.8 | CV45: 24
A46: 135110200 | C46: 0 | D46: 1 | E46: 35 | F46: 110 | G46: 20 | H46: 21.5 | I46: 0 | J46: 0 | K46: 0 | L46: 0 | M46: 2266 | N46: 0 | O46: 0 | P46: 0 | Q46: 1.39 | R46: 1.08 | S46: 1.08 | T46: 1.08 | U46: 2266 | V46: 0 | W46: 0 | X46: 0 | Y46: 195 | Z46: 0 | AA46: 0 | AB46: 0 | AC46: 0.1613207449 | AD46: 0 | AE46: 0 | AF46: 0 | AG46: 0.0001276 | AH46: 1.7219 | AI46: 2 | AJ46: 0.000376611 | AK46: 0 | AL46: 0 | AM46: 0 | AN46: 0.95 | AO46: 0.95 | AP46: 0.95 | AQ46: 0 | AR46: 0 | AS46: 0 | AT46: 0 | AU46: 0 | AV46: 0 | AW46: 0 | AX46: 0 | AY46: 0 | AZ46: 1.5 | BA46: 0 | BB46: 0 | BC46: 0 | BE46: 2266 | BG46: 1 | BJ46: 0 | BK46: 0 | BL46: 0 | BM46: 0 | BO46: 1 | BP46: 1 | BQ46: 1 | BR46: 0 | BS46: 0 | BT46: 0 | BV46: 0 | BW46: 0 | BX46: 0 | BY46: 1 | BZ46: 0 | CA46: 0 | CB46: 0 | CC46: 0 | CN46: 20015 | CO46: 200 | CP46: 15 | CQ46: 10 | CR46: 11.4 | CS46: 21.85 | CT46: 13.2 | CU46: 14.7 | CV46: 23.5
A47: 135110210 | C47: 0 | D47: 1 | E47: 35 | F47: 110 | G47: 21 | H47: 21.5 | I47: 0 | J47: 0 | K47: 0 | L47: 0 | M47: 2325 | N47: 0 | O47: 0 | P47: 0 | Q47: 1.472 | R47: 1.05 | S47: 1.05 | T47: 1.05 | U47: 2325 | V47: 0 | W47: 0 | X47: 0 | Y47: 200 | Z47: 0 | AA47: 0 | AB47: 0 | AC47: 0.2453934327 | AD47: 0 | AE47: 0 | AF47: 0 | AG47: 0.0001276 | AH47: 1.7219 | AI47: 4 | AJ47: 0.000514201 | AK47: 0 | AL47: 0 | AM47: 0 | AN47: 0.85 | AO47: 0.85 | AP47: 0.85 | AQ47: 0 | AR47: 0 | AS47: 0 | AT47: 0 | AU47: 0 | AV47: 0 | AW47: 0 | AX47: 0 | AY47: 0 | AZ47: 2.9 | BA47: 0 | BB47: 0 | BC47: 0 | BE47: 2325 | BG47: 1 | BJ47: 0 | BK47: 0 | BL47: 0 | BM47: 0 | BO47: 1 | BP47: 1 | BQ47: 1 | BR47: 0 | BS47: 0 | BT47: 0 | BV47: 0 | BW47: 0 | BX47: 0 | BY47: 1 | BZ47: 0 | CA47: 0 | CB47: 0 | CC47: 0 | CN47: 22010 | CO47: 220 | CP47: 10 | CQ47: 10.5 | CR47: 12.3 | CS47: 21.85 | CT47: 13.4 | CU47: 14.8 | CV47: 24
A48: 135120100 | C48: 0 | D48: 1 | E48: 35 | F48: 120 | G48: 10 | H48: 11.5 | I48: 0 | J48: 0 | K48: 0 | L48: 0 | M48: 1078 | N48: 0 | O48: 0 | P48: 0 | Q48: 1.399 | R48: 1.08 | S48: 1.08 | T48: 1.08 | U48: 1078 | V48: 0 | W48: 0 | X48: 0 | Y48: 93 | Z48: 0 | AA48: 0 | AB48: 0 | AC48: 0.0524733194 | AD48: 0 | AE48: 0 | AF48: 0 | AG48: 0.0003969 | AH48: 1.7346 | AI48: 2 | AJ48: 0.000367347 | AK48: 0 | AL48: 0 | AM48: 0 | AN48: 0.98 | AO48: 0.98 | AP48: 0.98 | AQ48: 0 | AR48: 0 | AS48: 0 | AT48: 0 | AU48: 0 | AV48: 0 | AW48: 0 | AX48: 0 | AY48: 0 | AZ48: 0.8 | BA48: 0 | BB48: 0 | BC48: 0 | BE48: 1078 | BG48: 1 | BJ48: 0 | BK48: 0 | BL48: 0 | BM48: 0 | BO48: 1 | BP48: 1 | BQ48: 1 | BR48: 0 | BS48: 0 | BT48: 0 | BV48: 0 | BW48: 0 | BX48: 0 | BY48: 1 | BZ48: 0 | CA48: 0 | CB48: 0 | CC48: 0 | CN48: 22015 | CO48: 220 | CP48: 15 | CQ48: 10 | CR48: 11.1 | CS48: 21.85 | CT48: 15.5 | CU48: 16.8 | CV48: 27.5
A49: 135120110 | C49: 0 | D49: 1 | E49: 35 | F49: 120 | G49: 11 | H49: 11.5 | I49: 0 | J49: 0 | K49: 0 | L49: 0 | M49: 1435 | N49: 0 | O49: 0 | P49: 0 | Q49: 1.44 | R49: 1.1 | S49: 1.1 | T49: 1.1 | U49: 1435 | V49: 0 | W49: 0 | X49: 0 | Y49: 123 | Z49: 0 | AA49: 0 | AB49: 0 | AC49: 0.1544538919 | AD49: 0 | AE49: 0 | AF49: 0 | AG49: 0.0003969 | AH49: 1.7346 | AI49: 4 | AJ49: 0.000574288 | AK49: 0 | AL49: 0 | AM49: 0 | AN49: 0.95 | AO49: 0.95 | AP49: 0.95 | AQ49: 0 | AR49: 0 | AS49: 0 | AT49: 0 | AU49: 0 | AV49: 0 | AW49: 0 | AX49: 0 | AY49: 0 | AZ49: 1.6 | BA49: 0 | BB49: 0 | BC49: 0 | BE49: 1435 | BG49: 1 | BJ49: 0 | BK49: 0 | BL49: 0 | BM49: 0 | BO49: 1 | BP49: 1 | BQ49: 1 | BR49: 0 | BS49: 0 | BT49: 0 | BV49: 0 | BW49: 0 | BX49: 0 | BY49: 1 | BZ49: 0 | CA49: 0 | CB49: 0 | CC49: 0 | CN49: 24010 | CO49: 240 | CP49: 10 | CQ49: 10.4 | CR49: 12.2 | CS49: 21.85 | CT49: 14.8 | CU49: 16.6 | CV49: 28
A50: 135120150 | C50: 0 | D50: 1 | E50: 35 | F50: 120 | G50: 15 | H50: 16.5 | I50: 0 | J50: 0 | K50: 0 | L50: 0 | M50: 1764 | N50: 0 | O50: 0 | P50: 0 | Q50: 1.39 | R50: 1.08 | S50: 1.08 | T50: 1.08 | U50: 1764 | V50: 0 | W50: 0 | X50: 0 | Y50: 152 | Z50: 0 | AA50: 0 | AB50: 0 | AC50: 0.1294616933 | AD50: 0 | AE50: 0 | AF50: 0 | AG50: 0.0002083 | AH50: 1.724 | AI50: 2 | AJ50: 0.000461829 | AK50: 0 | AL50: 0 | AM50: 0 | AN50: 1.01 | AO50: 1.01 | AP50: 1.01 | AQ50: 0 | AR50: 0 | AS50: 0 | AT50: 0 | AU50: 0 | AV50: 0 | AW50: 0 | AX50: 0 | AY50: 0 | AZ50: 1.2 | BA50: 0 | BB50: 0 | BC50: 0 | BE50: 1764 | BG50: 1 | BJ50: 0 | BK50: 0 | BL50: 0 | BM50: 0 | BO50: 1 | BP50: 1 | BQ50: 1 | BR50: 0 | BS50: 0 | BT50: 0 | BV50: 0 | BW50: 0 | BX50: 0 | BY50: 1 | BZ50: 0 | CA50: 0 | CB50: 0 | CC50: 0 | CN50: 24015 | CO50: 240 | CP50: 15 | CQ50: 10 | CR50: 10.9 | CS50: 21.85 | CT50: 16.4 | CU50: 17.7 | CV50: 29.7
A51: 135120160 | C51: 0 | D51: 1 | E51: 35 | F51: 120 | G51: 16 | H51: 16.5 | I51: 0 | J51: 0 | K51: 0 | L51: 0 | M51: 1912 | N51: 0 | O51: 0 | P51: 0 | Q51: 1.458 | R51: 1.1 | S51: 1.1 | T51: 1.1 | U51: 1912 | V51: 0 | W51: 0 | X51: 0 | Y51: 164 | Z51: 0 | AA51: 0 | AB51: 0 | AC51: 0.4238726715 | AD51: 0 | AE51: 0 | AF51: 0 | AG51: 0.0002083 | AH51: 1.724 | AI51: 4 | AJ51: 0.001392796 | AK51: 0 | AL51: 0 | AM51: 0 | AN51: 0.95 | AO51: 0.95 | AP51: 0.95 | AQ51: 0 | AR51: 0 | AS51: 0 | AT51: 0 | AU51: 0 | AV51: 0 | AW51: 0 | AX51: 0 | AY51: 0 | AZ51: 2.4 | BA51: 0 | BB51: 0 | BC51: 0 | BE51: 1912 | BG51: 1 | BJ51: 0 | BK51: 0 | BL51: 0 | BM51: 0 | BO51: 1 | BP51: 1 | BQ51: 1 | BR51: 0 | BS51: 0 | BT51: 0 | BV51: 0 | BW51: 0 | BX51: 0 | BY51: 1 | BZ51: 0 | CA51: 0 | CB51: 0 | CC51: 0 | CN51: 26010 | CO51: 260 | CP51: 10 | CQ51: 10.2 | CR51: 11.9 | CS51: 21.85 | CT51: 16.2 | CU51: 18.6 | CV51: 31.4
A52: 135120200 | C52: 0 | D52: 1 | E52: 35 | F52: 120 | G52: 20 | H52: 21.5 | I52: 0 | J52: 0 | K52: 0 | L52: 0 | M52: 2472 | N52: 0 | O52: 0 | P52: 0 | Q52: 1.39 | R52: 1.08 | S52: 1.08 | T52: 1.08 | U52: 2472 | V52: 0 | W52: 0 | X52: 0 | Y52: 213 | Z52: 0 | AA52: 0 | AB52: 0 | AC52: 0.1944252121 | AD52: 0 | AE52: 0 | AF52: 0 | AG52: 0.0001276 | AH52: 1.7219 | AI52: 2 | AJ52: 0.000376611 | AK52: 0 | AL52: 0 | AM52: 0 | AN52: 0.95 | AO52: 0.95 | AP52: 0.95 | AQ52: 0 | AR52: 0 | AS52: 0 | AT52: 0 | AU52: 0 | AV52: 0 | AW52: 0 | AX52: 0 | AY52: 0 | AZ52: 1.6 | BA52: 0 | BB52: 0 | BC52: 0 | BE52: 2472 | BG52: 1 | BJ52: 0 | BK52: 0 | BL52: 0 | BM52: 0 | BO52: 1 | BP52: 1 | BQ52: 1 | BR52: 0 | BS52: 0 | BT52: 0 | BV52: 0 | BW52: 0 | BX52: 0 | BY52: 1 | BZ52: 0 | CA52: 0 | CB52: 0 | CC52: 0 | CN52: 26015 | CO52: 260 | CP52: 15 | CQ52: 10 | CR52: 10.9 | CS52: 21.85 | CT52: 16.2 | CU52: 18.6 | CV52: 31.4
A53: 135120210 | C53: 0 | D53: 1 | E53: 35 | F53: 120 | G53: 21 | H53: 21.5 | I53: 0 | J53: 0 | K53: 0 | L53: 0 | M53: 2537 | N53: 0 | O53: 0 | P53: 0 | Q53: 1.472 | R53: 1.05 | S53: 1.05 | T53: 1.05 | U53: 2537 | V53: 0 | W53: 0 | X53: 0 | Y53: 218 | Z53: 0 | AA53: 0 | AB53: 0 | AC53: 0.2956365656 | AD53: 0 | AE53: 0 | AF53: 0 | AG53: 0.0001276 | AH53: 1.7219 | AI53: 4 | AJ53: 0.000514201 | AK53: 0 | AL53: 0 | AM53: 0 | AN53: 0.85 | AO53: 0.85 | AP53: 0.85 | AQ53: 0 | AR53: 0 | AS53: 0 | AT53: 0 | AU53: 0 | AV53: 0 | AW53: 0 | AX53: 0 | AY53: 0 | AZ53: 3.2 | BA53: 0 | BB53: 0 | BC53: 0 | BE53: 2537 | BG53: 1 | BJ53: 0 | BK53: 0 | BL53: 0 | BM53: 0 | BO53: 1 | BP53: 1 | BQ53: 1 | BR53: 0 | BS53: 0 | BT53: 0 | BV53: 0 | BW53: 0 | BX53: 0 | BY53: 1 | BZ53: 0 | CA53: 0 | CB53: 0 | CC53: 0 | CN53: 28010 | CO53: 280 | CP53: 10 | CQ53: 10.2 | CR53: 11.9 | CS53: 21.85 | CT53: 16.2 | CU53: 18.6 | CV53: 31.4
A54: 135140100 | C54: 0 | D54: 1 | E54: 35 | F54: 140 | G54: 10 | H54: 11.5 | I54: 0 | J54: 0 | K54: 0 | L54: 0 | M54: 1257 | N54: 0 | O54: 0 | P54: 0 | Q54: 1.399 | R54: 1.08 | S54: 1.08 | T54: 1.08 | U54: 1257 | V54: 0 | W54: 0 | X54: 0 | Y54: 108 | Z54: 0 | AA54: 0 | AB54: 0 | AC54: 0.07488341994 | AD54: 0 | AE54: 0 | AF54: 0 | AG54: 0.0003969 | AH54: 1.7346 | AI54: 2 | AJ54: 0.000367347 | AK54: 0 | AL54: 0 | AM54: 0 | AN54: 0.98 | AO54: 0.98 | AP54: 0.98 | AQ54: 0 | AR54: 0 | AS54: 0 | AT54: 0 | AU54: 0 | AV54: 0 | AW54: 0 | AX54: 0 | AY54: 0 | AZ54: 0.9 | BA54: 0 | BB54: 0 | BC54: 0 | BE54: 1257 | BG54: 1 | BJ54: 0 | BK54: 0 | BL54: 0 | BM54: 0 | BO54: 1 | BP54: 1 | BQ54: 1 | BR54: 0 | BS54: 0 | BT54: 0 | BV54: 0 | BW54: 0 | BX54: 0 | BY54: 1 | BZ54: 0 | CA54: 0 | CB54: 0 | CC54: 0 | CN54: 28015 | CO54: 280 | CP54: 15 | CQ54: 10 | CR54: 10.6 | CS54: 21.85 | CT54: 19.3 | CU54: 20.4 | CV54: 34.5
A55: 135140110 | C55: 0 | D55: 1 | E55: 35 | F55: 140 | G55: 11 | H55: 11.5 | I55: 0 | J55: 0 | K55: 0 | L55: 0 | M55: 1674 | N55: 0 | O55: 0 | P55: 0 | Q55: 1.44 | R55: 1.1 | S55: 1.1 | T55: 1.1 | U55: 1674 | V55: 0 | W55: 0 | X55: 0 | Y55: 144 | Z55: 0 | AA55: 0 | AB55: 0 | AC55: 0.2250585277 | AD55: 0 | AE55: 0 | AF55: 0 | AG55: 0.0003969 | AH55: 1.7346 | AI55: 4 | AJ55: 0.000574288 | AK55: 0 | AL55: 0 | AM55: 0 | AN55: 0.95 | AO55: 0.95 | AP55: 0.95 | AQ55: 0 | AR55: 0 | AS55: 0 | AT55: 0 | AU55: 0 | AV55: 0 | AW55: 0 | AX55: 0 | AY55: 0 | AZ55: 1.9 | BA55: 0 | BB55: 0 | BC55: 0 | BE55: 1674 | BG55: 1 | BJ55: 0 | BK55: 0 | BL55: 0 | BM55: 0 | BO55: 1 | BP55: 1 | BQ55: 1 | BR55: 0 | BS55: 0 | BT55: 0 | BV55: 0 | BW55: 0 | BX55: 0 | BY55: 1 | BZ55: 0 | CA55: 0 | CB55: 0 | CC55: 0 | CN55: 30010 | CO55: 300 | CP55: 10 | CQ55: =CQ53 -> 10.2 | CR55: =CR53 -> 11.9 | CS55: =CS53 -> 21.85 | CT55: 16.2 | CU55: 18.6 | CV55: 31.4
A56: 135140150 | C56: 0 | D56: 1 | E56: 35 | F56: 140 | G56: 15 | H56: 16.5 | I56: 0 | J56: 0 | K56: 0 | L56: 0 | M56: 2058 | N56: 0 | O56: 0 | P56: 0 | Q56: 1.39 | R56: 1.08 | S56: 1.08 | T56: 1.08 | U56: 2058 | V56: 0 | W56: 0 | X56: 0 | Y56: 177 | Z56: 0 | AA56: 0 | AB56: 0 | AC56: 0.1802909207 | AD56: 0 | AE56: 0 | AF56: 0 | AG56: 0.0002083 | AH56: 1.724 | AI56: 2 | AJ56: 0.000461829 | AK56: 0 | AL56: 0 | AM56: 0 | AN56: 1.01 | AO56: 1.01 | AP56: 1.01 | AQ56: 0 | AR56: 0 | AS56: 0 | AT56: 0 | AU56: 0 | AV56: 0 | AW56: 0 | AX56: 0 | AY56: 0 | AZ56: 1.4 | BA56: 0 | BB56: 0 | BC56: 0 | BE56: 2058 | BG56: 1 | BJ56: 0 | BK56: 0 | BL56: 0 | BM56: 0 | BO56: 1 | BP56: 1 | BQ56: 1 | BR56: 0 | BS56: 0 | BT56: 0 | BV56: 0 | BW56: 0 | BX56: 0 | BY56: 1 | BZ56: 0 | CA56: 0 | CB56: 0 | CC56: 0 | CN56: 30015 | CO56: 300 | CP56: 15 | CQ56: =CQ54 -> 10 | CR56: =CR54 -> 10.6 | CS56: 21.85 | CT56: 19.3 | CU56: 20.4 | CV56: 34.5
A57: 135140160 | C57: 0 | D57: 1 | E57: 35 | F57: 140 | G57: 16 | H57: 16.5 | I57: 0 | J57: 0 | K57: 0 | L57: 0 | M57: 2230 | N57: 0 | O57: 0 | P57: 0 | Q57: 1.458 | R57: 1.1 | S57: 1.1 | T57: 1.1 | U57: 2230 | V57: 0 | W57: 0 | X57: 0 | Y57: 192 | Z57: 0 | AA57: 0 | AB57: 0 | AC57: 0.5917597962 | AD57: 0 | AE57: 0 | AF57: 0 | AG57: 0.0002083 | AH57: 1.724 | AI57: 4 | AJ57: 0.001392796 | AK57: 0 | AL57: 0 | AM57: 0 | AN57: 0.95 | AO57: 0.95 | AP57: 0.95 | AQ57: 0 | AR57: 0 | AS57: 0 | AT57: 0 | AU57: 0 | AV57: 0 | AW57: 0 | AX57: 0 | AY57: 0 | AZ57: 2.8 | BA57: 0 | BB57: 0 | BC57: 0 | BE57: 2230 | BG57: 1 | BJ57: 0 | BK57: 0 | BL57: 0 | BM57: 0 | BO57: 1 | BP57: 1 | BQ57: 1 | BR57: 0 | BS57: 0 | BT57: 0 | BV57: 0 | BW57: 0 | BX57: 0 | BY57: 1 | BZ57: 0 | CA57: 0 | CB57: 0 | CC57: 0
A58: 135140200 | C58: 0 | D58: 1 | E58: 35 | F58: 140 | G58: 20 | H58: 21.5 | I58: 0 | J58: 0 | K58: 0 | L58: 0 | M58: 2884 | N58: 0 | O58: 0 | P58: 0 | Q58: 1.39 | R58: 1.08 | S58: 1.08 | T58: 1.08 | U58: 2884 | V58: 0 | W58: 0 | X58: 0 | Y58: 248 | Z58: 0 | AA58: 0 | AB58: 0 | AC58: 0.2686950136 | AD58: 0 | AE58: 0 | AF58: 0 | AG58: 0.0001276 | AH58: 1.7219 | AI58: 2 | AJ58: 0.000376611 | AK58: 0 | AL58: 0 | AM58: 0 | AN58: 0.95 | AO58: 0.95 | AP58: 0.95 | AQ58: 0 | AR58: 0 | AS58: 0 | AT58: 0 | AU58: 0 | AV58: 0 | AW58: 0 | AX58: 0 | AY58: 0 | AZ58: 1.9 | BA58: 0 | BB58: 0 | BC58: 0 | BE58: 2884 | BG58: 1 | BJ58: 0 | BK58: 0 | BL58: 0 | BM58: 0 | BO58: 1 | BP58: 1 | BQ58: 1 | BR58: 0 | BS58: 0 | BT58: 0 | BV58: 0 | BW58: 0 | BX58: 0 | BY58: 1 | BZ58: 0 | CA58: 0 | CB58: 0 | CC58: 0
A59: 135140210 | C59: 0 | D59: 1 | E59: 35 | F59: 140 | G59: 21 | H59: 21.5 | I59: 0 | J59: 0 | K59: 0 | L59: 0 | M59: 2960 | N59: 0 | O59: 0 | P59: 0 | Q59: 1.472 | R59: 1.05 | S59: 1.05 | T59: 1.05 | U59: 2960 | V59: 0 | W59: 0 | X59: 0 | Y59: 255 | Z59: 0 | AA59: 0 | AB59: 0 | AC59: 0.4151599012 | AD59: 0 | AE59: 0 | AF59: 0 | AG59: 0.0001276 | AH59: 1.7219 | AI59: 4 | AJ59: 0.000514201 | AK59: 0 | AL59: 0 | AM59: 0 | AN59: 0.85 | AO59: 0.85 | AP59: 0.85 | AQ59: 0 | AR59: 0 | AS59: 0 | AT59: 0 | AU59: 0 | AV59: 0 | AW59: 0 | AX59: 0 | AY59: 0 | AZ59: 3.7 | BA59: 0 | BB59: 0 | BC59: 0 | BE59: 2960 | BG59: 1 | BJ59: 0 | BK59: 0 | BL59: 0 | BM59: 0 | BO59: 1 | BP59: 1 | BQ59: 1 | BR59: 0 | BS59: 0 | BT59: 0 | BV59: 0 | BW59: 0 | BX59: 0 | BY59: 1 | BZ59: 0 | CA59: 0 | CB59: 0 | CC59: 0
A60: 135160100 | C60: 0 | D60: 1 | E60: 35 | F60: 160 | G60: 10 | H60: 11.5 | I60: 0 | J60: 0 | K60: 0 | L60: 0 | M60: 1437 | N60: 0 | O60: 0 | P60: 0 | Q60: 1.399 | R60: 1.08 | S60: 1.08 | T60: 1.08 | U60: 1437 | V60: 0 | W60: 0 | X60: 0 | Y60: 124 | Z60: 0 | AA60: 0 | AB60: 0 | AC60: 0.103809636 | AD60: 0 | AE60: 0 | AF60: 0 | AG60: 0.0003969 | AH60: 1.7346 | AI60: 2 | AJ60: 0.000367347 | AK60: 0 | AL60: 0 | AM60: 0 | AN60: 0.98 | AO60: 0.98 | AP60: 0.98 | AQ60: 0 | AR60: 0 | AS60: 0 | AT60: 0 | AU60: 0 | AV60: 0 | AW60: 0 | AX60: 0 | AY60: 0 | AZ60: 1.1 | BA60: 0 | BB60: 0 | BC60: 0 | BE60: 1437 | BG60: 1 | BJ60: 0 | BK60: 0 | BL60: 0 | BM60: 0 | BO60: 1 | BP60: 1 | BQ60: 1 | BR60: 0 | BS60: 0 | BT60: 0 | BV60: 0 | BW60: 0 | BX60: 0 | BY60: 1 | BZ60: 0 | CA60: 0 | CB60: 0 | CC60: 0 | CN60: L,rail/L,tot | CO60: T10 | CP60: T11 | CQ60: T15 | CR60: T16 | CS60: T20 | CT60: T21 | CU60: ALS
A61: 135160110 | C61: 0 | D61: 1 | E61: 35 | F61: 160 | G61: 11 | H61: 11.5 | I61: 0 | J61: 0 | K61: 0 | L61: 0 | M61: 1914 | N61: 0 | O61: 0 | P61: 0 | Q61: 1.44 | R61: 1.1 | S61: 1.1 | T61: 1.1 | U61: 1914 | V61: 0 | W61: 0 | X61: 0 | Y61: 165 | Z61: 0 | AA61: 0 | AB61: 0 | AC61: 0.3122884815 | AD61: 0 | AE61: 0 | AF61: 0 | AG61: 0.0003969 | AH61: 1.7346 | AI61: 4 | AJ61: 0.000574288 | AK61: 0 | AL61: 0 | AM61: 0 | AN61: 0.95 | AO61: 0.95 | AP61: 0.95 | AQ61: 0 | AR61: 0 | AS61: 0 | AT61: 0 | AU61: 0 | AV61: 0 | AW61: 0 | AX61: 0 | AY61: 0 | AZ61: 2.1 | BA61: 0 | BB61: 0 | BC61: 0 | BE61: 1914 | BG61: 1 | BJ61: 0 | BK61: 0 | BL61: 0 | BM61: 0 | BO61: 1 | BP61: 1 | BQ61: 1 | BR61: 0 | BS61: 0 | BT61: 0 | BV61: 0 | BW61: 0 | BX61: 0 | BY61: 1 | BZ61: 0 | CA61: 0 | CB61: 0 | CC61: 0 | CN61: 1 | CO61: 0.9 | CP61: 0.68 | CQ61: 0.8 | CR61: 0.68 | CS61: 0.8 | CT61: 0.8 | CU61: =IF('DBH-Upgrade'!$K$8/'DBH-Upgrade'!$K$6>data!CN$61,0,IF('DBH-Upgrade'!$K$8/'DBH-Upgrade'!$K$6=data!CN$61,data!CO$61,IF('DBH-Upgrade'!$K$8/'DBH-Upgrade'!$K$6>data!CN$62,data!CO$62,IF('DBH-Upgrade'!$K$8/'DBH-Upgrade'!$K$6>data!CN$63,data!CO$63,IF('DBH-Upgrade'!$K$8/'DBH-Upgrade'!$K$6>data!CN$64,data!CO$64,IF('DBH-Upgrade'!$K$8/'DBH-Upgrade'!$K$6>data!CN$65,data!CO$65,IF('DBH-Upgrade'!$K$8/'DBH-Upgrade'!$K$6>data!CN$66,data!CO$66,IF('DBH-Upgrade'!$K$8/'DBH-Upgrade'!$K$6=data!CN$66,1,)))))))) -> 0.9 | CV61: T10
A62: 135160150 | C62: 0 | D62: 1 | E62: 35 | F62: 160 | G62: 15 | H62: 16.5 | I62: 0 | J62: 0 | K62: 0 | L62: 0 | M62: 2352 | N62: 0 | O62: 0 | P62: 0 | Q62: 1.39 | R62: 1.08 | S62: 1.08 | T62: 1.08 | U62: 2352 | V62: 0 | W62: 0 | X62: 0 | Y62: 202 | Z62: 0 | AA62: 0 | AB62: 0 | AC62: 0.2407202437 | AD62: 0 | AE62: 0 | AF62: 0 | AG62: 0.0002083 | AH62: 1.724 | AI62: 2 | AJ62: 0.000461829 | AK62: 0 | AL62: 0 | AM62: 0 | AN62: 1.01 | AO62: 1.01 | AP62: 1.01 | AQ62: 0 | AR62: 0 | AS62: 0 | AT62: 0 | AU62: 0 | AV62: 0 | AW62: 0 | AX62: 0 | AY62: 0 | AZ62: 1.6 | BA62: 0 | BB62: 0 | BC62: 0 | BE62: 2352 | BG62: 1 | BJ62: 0 | BK62: 0 | BL62: 0 | BM62: 0 | BO62: 1 | BP62: 1 | BQ62: 1 | BR62: 0 | BS62: 0 | BT62: 0 | BV62: 0 | BW62: 0 | BX62: 0 | BY62: 1 | BZ62: 0 | CA62: 0 | CB62: 0 | CC62: 0 | CN62: 0.8 | CO62: =CO$66-((CO$66-CO$61)*$CN62) -> 0.92 | CP62: =CP$66-((CP$66-CP$61)*$CN62) -> 0.744 | CQ62: 0.84 | CR62: 0.744 | CS62: 0.84 | CT62: 0.84 | CU62: =IF('DBH-Upgrade'!$K$8/'DBH-Upgrade'!$K$6>data!CN$61,0,IF('DBH-Upgrade'!$K$8/'DBH-Upgrade'!$K$6=data!CN$61,data!CP$61,IF('DBH-Upgrade'!$K$8/'DBH-Upgrade'!$K$6>data!CN$62,data!CP$62,IF('DBH-Upgrade'!$K$8/'DBH-Upgrade'!$K$6>data!CN$63,data!CP$63,IF('DBH-Upgrade'!$K$8/'DBH-Upgrade'!$K$6>data!CN$64,data!CP$64,IF('DBH-Upgrade'!$K$8/'DBH-Upgrade'!$K$6>data!CN$65,data!CP$65,IF('DBH-Upgrade'!$K$8/'DBH-Upgrade'!$K$6>data!CN$66,data!CP$66,IF('DBH-Upgrade'!$K$8/'DBH-Upgrade'!$K$6=data!CN$66,1,)))))))) -> 0.68 | CV62: T11
A63: 135160160 | C63: 0 | D63: 1 | E63: 35 | F63: 160 | G63: 16 | H63: 16.5 | I63: 0 | J63: 0 | K63: 0 | L63: 0 | M63: 2549 | N63: 0 | O63: 0 | P63: 0 | Q63: 1.458 | R63: 1.1 | S63: 1.1 | T63: 1.1 | U63: 2549 | V63: 0 | W63: 0 | X63: 0 | Y63: 219 | Z63: 0 | AA63: 0 | AB63: 0 | AC63: 0.7834823679 | AD63: 0 | AE63: 0 | AF63: 0 | AG63: 0.0002083 | AH63: 1.724 | AI63: 4 | AJ63: 0.001392796 | AK63: 0 | AL63: 0 | AM63: 0 | AN63: 0.95 | AO63: 0.95 | AP63: 0.95 | AQ63: 0 | AR63: 0 | AS63: 0 | AT63: 0 | AU63: 0 | AV63: 0 | AW63: 0 | AX63: 0 | AY63: 0 | AZ63: 3.2 | BA63: 0 | BB63: 0 | BC63: 0 | BE63: 2549 | BG63: 1 | BJ63: 0 | BK63: 0 | BL63: 0 | BM63: 0 | BO63: 1 | BP63: 1 | BQ63: 1 | BR63: 0 | BS63: 0 | BT63: 0 | BV63: 0 | BW63: 0 | BX63: 0 | BY63: 1 | BZ63: 0 | CA63: 0 | CB63: 0 | CC63: 0 | CN63: 0.6 | CO63: =CO$66-((CO$66-CO$61)*$CN63) -> 0.94 | CP63: 0.808 | CQ63: 0.88 | CR63: 0.808 | CS63: 0.88 | CT63: 0.88 | CU63: =IF('DBH-Upgrade'!$K$8/'DBH-Upgrade'!$K$6>data!CN$61,0,IF('DBH-Upgrade'!$K$8/'DBH-Upgrade'!$K$6=data!CN$61,data!CQ$61,IF('DBH-Upgrade'!$K$8/'DBH-Upgrade'!$K$6>data!CN$62,data!CQ$62,IF('DBH-Upgrade'!$K$8/'DBH-Upgrade'!$K$6>data!CN$63,data!CQ$63,IF('DBH-Upgrade'!$K$8/'DBH-Upgrade'!$K$6>data!CN$64,data!CQ$64,IF('DBH-Upgrade'!$K$8/'DBH-Upgrade'!$K$6>data!CN$65,data!CQ$65,IF('DBH-Upgrade'!$K$8/'DBH-Upgrade'!$K$6>data!CN$66,data!CQ$66,IF('DBH-Upgrade'!$K$8/'DBH-Upgrade'!$K$6=data!CN$66,1,)))))))) -> 0.8 | CV63: T15
A64: 135160200 | C64: 0 | D64: 1 | E64: 35 | F64: 160 | G64: 20 | H64: 21.5 | I64: 0 | J64: 0 | K64: 0 | L64: 0 | M64: 3296 | N64: 0 | O64: 0 | P64: 0 | Q64: 1.39 | R64: 1.08 | S64: 1.08 | T64: 1.08 | U64: 3296 | V64: 0 | W64: 0 | X64: 0 | Y64: 283 | Z64: 0 | AA64: 0 | AB64: 0 | AC64: 0.3562650231 | AD64: 0 | AE64: 0 | AF64: 0 | AG64: 0.0001276 | AH64: 1.7219 | AI64: 2 | AJ64: 0.000376611 | AK64: 0 | AL64: 0 | AM64: 0 | AN64: 0.95 | AO64: 0.95 | AP64: 0.95 | AQ64: 0 | AR64: 0 | AS64: 0 | AT64: 0 | AU64: 0 | AV64: 0 | AW64: 0 | AX64: 0 | AY64: 0 | AZ64: 2.1 | BA64: 0 | BB64: 0 | BC64: 0 | BE64: 3296 | BG64: 1 | BJ64: 0 | BK64: 0 | BL64: 0 | BM64: 0 | BO64: 1 | BP64: 1 | BQ64: 1 | BR64: 0 | BS64: 0 | BT64: 0 | BV64: 0 | BW64: 0 | BX64: 0 | BY64: 1 | BZ64: 0 | CA64: 0 | CB64: 0 | CC64: 0 | CN64: 0.4 | CO64: 0.96 | CP64: 0.872 | CQ64: 0.92 | CR64: 0.872 | CS64: 0.92 | CT64: 0.92 | CU64: =IF('DBH-Upgrade'!$K$8/'DBH-Upgrade'!$K$6>data!CN$61,0,IF('DBH-Upgrade'!$K$8/'DBH-Upgrade'!$K$6=data!CN$61,data!CR$61,IF('DBH-Upgrade'!$K$8/'DBH-Upgrade'!$K$6>data!CN$62,data!CR$62,IF('DBH-Upgrade'!$K$8/'DBH-Upgrade'!$K$6>data!CN$63,data!CR$63,IF('DBH-Upgrade'!$K$8/'DBH-Upgrade'!$K$6>data!CN$64,data!CR$64,IF('DBH-Upgrade'!$K$8/'DBH-Upgrade'!$K$6>data!CN$65,data!CR$65,IF('DBH-Upgrade'!$K$8/'DBH-Upgrade'!$K$6>data!CN$66,data!CR$66,IF('DBH-Upgrade'!$K$8/'DBH-Upgrade'!$K$6=data!CN$66,1,)))))))) -> 0.68 | CV64: T16
A65: 135160210 | C65: 0 | D65: 1 | E65: 35 | F65: 160 | G65: 21 | H65: 21.5 | I65: 0 | J65: 0 | K65: 0 | L65: 0 | M65: 3382 | N65: 0 | O65: 0 | P65: 0 | Q65: 1.472 | R65: 1.05 | S65: 1.05 | T65: 1.05 | U65: 3382 | V65: 0 | W65: 0 | X65: 0 | Y65: 291 | Z65: 0 | AA65: 0 | AB65: 0 | AC65: 0.55403573 | AD65: 0 | AE65: 0 | AF65: 0 | AG65: 0.0001276 | AH65: 1.7219 | AI65: 4 | AJ65: 0.000514201 | AK65: 0 | AL65: 0 | AM65: 0 | AN65: 0.85 | AO65: 0.85 | AP65: 0.85 | AQ65: 0 | AR65: 0 | AS65: 0 | AT65: 0 | AU65: 0 | AV65: 0 | AW65: 0 | AX65: 0 | AY65: 0 | AZ65: 4.3 | BA65: 0 | BB65: 0 | BC65: 0 | BE65: 3382 | BG65: 1 | BJ65: 0 | BK65: 0 | BL65: 0 | BM65: 0 | BO65: 1 | BP65: 1 | BQ65: 1 | BR65: 0 | BS65: 0 | BT65: 0 | BV65: 0 | BW65: 0 | BX65: 0 | BY65: 1 | BZ65: 0 | CA65: 0 | CB65: 0 | CC65: 0 | CN65: 0.2 | CO65: 0.98 | CP65: 0.936 | CQ65: 0.96 | CR65: 0.936 | CS65: 0.96 | CT65: 0.96 | CU65: =IF('DBH-Upgrade'!$K$8/'DBH-Upgrade'!$K$6>data!CN$61,0,IF('DBH-Upgrade'!$K$8/'DBH-Upgrade'!$K$6=data!CN$61,data!CS$61,IF('DBH-Upgrade'!$K$8/'DBH-Upgrade'!$K$6>data!CN$62,data!CS$62,IF('DBH-Upgrade'!$K$8/'DBH-Upgrade'!$K$6>data!CN$63,data!CS$63,IF('DBH-Upgrade'!$K$8/'DBH-Upgrade'!$K$6>data!CN$64,data!CS$64,IF('DBH-Upgrade'!$K$8/'DBH-Upgrade'!$K$6>data!CN$65,data!CS$65,IF('DBH-Upgrade'!$K$8/'DBH-Upgrade'!$K$6>data!CN$66,data!CS$66,IF('DBH-Upgrade'!$K$8/'DBH-Upgrade'!$K$6=data!CN$66,1,)))))))) -> 0.8 | CV65: T20
A66: 135180100 | C66: 0 | D66: 1 | E66: 35 | F66: 180 | G66: 10 | H66: 11.5 | I66: 0 | J66: 0 | K66: 0 | L66: 0 | M66: 1616 | N66: 0 | O66: 0 | P66: 0 | Q66: 1.399 | R66: 1.08 | S66: 1.08 | T66: 1.08 | U66: 1616 | V66: 0 | W66: 0 | X66: 0 | Y66: 139 | Z66: 0 | AA66: 0 | AB66: 0 | AC66: 0.1367404033 | AD66: 0 | AE66: 0 | AF66: 0 | AG66: 0.0003969 | AH66: 1.7346 | AI66: 2 | AJ66: 0.000367347 | AK66: 0 | AL66: 0 | AM66: 0 | AN66: 0.98 | AO66: 0.98 | AP66: 0.98 | AQ66: 0 | AR66: 0 | AS66: 0 | AT66: 0 | AU66: 0 | AV66: 0 | AW66: 0 | AX66: 0 | AY66: 0 | AZ66: 1.2 | BA66: 0 | BB66: 0 | BC66: 0 | BE66: 1616 | BG66: 1 | BJ66: 0 | BK66: 0 | BL66: 0 | BM66: 0 | BO66: 1 | BP66: 1 | BQ66: 1 | BR66: 0 | BS66: 0 | BT66: 0 | BV66: 0 | BW66: 0 | BX66: 0 | BY66: 1 | BZ66: 0 | CA66: 0 | CB66: 0 | CC66: 0 | CN66: 0 | CO66: 1 | CP66: 1 | CQ66: 1 | CR66: 1 | CS66: 1 | CT66: 1 | CU66: =IF('DBH-Upgrade'!$K$8/'DBH-Upgrade'!$K$6>data!CN$61,0,IF('DBH-Upgrade'!$K$8/'DBH-Upgrade'!$K$6=data!CN$61,data!CT$61,IF('DBH-Upgrade'!$K$8/'DBH-Upgrade'!$K$6>data!CN$62,data!CT$62,IF('DBH-Upgrade'!$K$8/'DBH-Upgrade'!$K$6>data!CN$63,data!CT$63,IF('DBH-Upgrade'!$K$8/'DBH-Upgrade'!$K$6>data!CN$64,data!CT$64,IF('DBH-Upgrade'!$K$8/'DBH-Upgrade'!$K$6>data!CN$65,data!CT$65,IF('DBH-Upgrade'!$K$8/'DBH-Upgrade'!$K$6>data!CN$66,data!CT$66,IF('DBH-Upgrade'!$K$8/'DBH-Upgrade'!$K$6=data!CN$66,1,)))))))) -> 0.8 | CV66: T21
A67: 135180110 | C67: 0 | D67: 1 | E67: 35 | F67: 180 | G67: 11 | H67: 11.5 | I67: 0 | J67: 0 | K67: 0 | L67: 0 | M67: 2153 | N67: 0 | O67: 0 | P67: 0 | Q67: 1.44 | R67: 1.1 | S67: 1.1 | T67: 1.1 | U67: 2153 | V67: 0 | W67: 0 | X67: 0 | Y67: 185 | Z67: 0 | AA67: 0 | AB67: 0 | AC67: 0.4132485655 | AD67: 0 | AE67: 0 | AF67: 0 | AG67: 0.0003969 | AH67: 1.7346 | AI67: 4 | AJ67: 0.000574288 | AK67: 0 | AL67: 0 | AM67: 0 | AN67: 0.95 | AO67: 0.95 | AP67: 0.95 | AQ67: 0 | AR67: 0 | AS67: 0 | AT67: 0 | AU67: 0 | AV67: 0 | AW67: 0 | AX67: 0 | AY67: 0 | AZ67: 2.4 | BA67: 0 | BB67: 0 | BC67: 0 | BE67: 2153 | BG67: 1 | BJ67: 0 | BK67: 0 | BL67: 0 | BM67: 0 | BO67: 1 | BP67: 1 | BQ67: 1 | BR67: 0 | BS67: 0 | BT67: 0 | BV67: 0 | BW67: 0 | BX67: 0 | BY67: 1 | BZ67: 0 | CA67: 0 | CB67: 0 | CC67: 0
A68: 135180150 | C68: 0 | D68: 1 | E68: 35 | F68: 180 | G68: 15 | H68: 16.5 | I68: 0 | J68: 0 | K68: 0 | L68: 0 | M68: 2646 | N68: 0 | O68: 0 | P68: 0 | Q68: 1.39 | R68: 1.08 | S68: 1.08 | T68: 1.08 | U68: 2646 | V68: 0 | W68: 0 | X68: 0 | Y68: 228 | Z68: 0 | AA68: 0 | AB68: 0 | AC68: 0.3138146405 | AD68: 0 | AE68: 0 | AF68: 0 | AG68: 0.0002083 | AH68: 1.724 | AI68: 2 | AJ68: 0.000461829 | AK68: 0 | AL68: 0 | AM68: 0 | AN68: 1.01 | AO68: 1.01 | AP68: 1.01 | AQ68: 0 | AR68: 0 | AS68: 0 | AT68: 0 | AU68: 0 | AV68: 0 | AW68: 0 | AX68: 0 | AY68: 0 | AZ68: 1.8 | BA68: 0 | BB68: 0 | BC68: 0 | BE68: 2646 | BG68: 1 | BJ68: 0 | BK68: 0 | BL68: 0 | BM68: 0 | BO68: 1 | BP68: 1 | BQ68: 1 | BR68: 0 | BS68: 0 | BT68: 0 | BV68: 0 | BW68: 0 | BX68: 0 | BY68: 1 | BZ68: 0 | CA68: 0 | CB68: 0 | CC68: 0
A69: 135180160 | C69: 0 | D69: 1 | E69: 35 | F69: 180 | G69: 16 | H69: 16.5 | I69: 0 | J69: 0 | K69: 0 | L69: 0 | M69: 2867 | N69: 0 | O69: 0 | P69: 0 | Q69: 1.458 | R69: 1.1 | S69: 1.1 | T69: 1.1 | U69: 2867 | V69: 0 | W69: 0 | X69: 0 | Y69: 247 | Z69: 0 | AA69: 0 | AB69: 0 | AC69: 1.013056841 | AD69: 0 | AE69: 0 | AF69: 0 | AG69: 0.0002083 | AH69: 1.724 | AI69: 4 | AJ69: 0.001392796 | AK69: 0 | AL69: 0 | AM69: 0 | AN69: 0.95 | AO69: 0.95 | AP69: 0.95 | AQ69: 0 | AR69: 0 | AS69: 0 | AT69: 0 | AU69: 0 | AV69: 0 | AW69: 0 | AX69: 0 | AY69: 0 | AZ69: 3.6 | BA69: 0 | BB69: 0 | BC69: 0 | BE69: 2867 | BG69: 1 | BJ69: 0 | BK69: 0 | BL69: 0 | BM69: 0 | BO69: 1 | BP69: 1 | BQ69: 1 | BR69: 0 | BS69: 0 | BT69: 0 | BV69: 0 | BW69: 0 | BX69: 0 | BY69: 1 | BZ69: 0 | CA69: 0 | CB69: 0 | CC69: 0
A70: 135180200 | C70: 0 | D70: 1 | E70: 35 | F70: 180 | G70: 20 | H70: 21.5 | I70: 0 | J70: 0 | K70: 0 | L70: 0 | M70: 3708 | N70: 0 | O70: 0 | P70: 0 | Q70: 1.39 | R70: 1.08 | S70: 1.08 | T70: 1.08 | U70: 3708 | V70: 0 | W70: 0 | X70: 0 | Y70: 319 | Z70: 0 | AA70: 0 | AB70: 0 | AC70: 0.460387709 | AD70: 0 | AE70: 0 | AF70: 0 | AG70: 0.0001276 | AH70: 1.7219 | AI70: 2 | AJ70: 0.000376611 | AK70: 0 | AL70: 0 | AM70: 0 | AN70: 0.95 | AO70: 0.95 | AP70: 0.95 | AQ70: 0 | AR70: 0 | AS70: 0 | AT70: 0 | AU70: 0 | AV70: 0 | AW70: 0 | AX70: 0 | AY70: 0 | AZ70: 2.4 | BA70: 0 | BB70: 0 | BC70: 0 | BE70: 3708 | BG70: 1 | BJ70: 0 | BK70: 0 | BL70: 0 | BM70: 0 | BO70: 1 | BP70: 1 | BQ70: 1 | BR70: 0 | BS70: 0 | BT70: 0 | BV70: 0 | BW70: 0 | BX70: 0 | BY70: 1 | BZ70: 0 | CA70: 0 | CB70: 0 | CC70: 0 | CN70: Lengths | CO70: Calculation factors for lower fan settings
A71: 135180210 | C71: 0 | D71: 1 | E71: 35 | F71: 180 | G71: 21 | H71: 21.5 | I71: 0 | J71: 0 | K71: 0 | L71: 0 | M71: 3805 | N71: 0 | O71: 0 | P71: 0 | Q71: 1.472 | R71: 1.05 | S71: 1.05 | T71: 1.05 | U71: 3805 | V71: 0 | W71: 0 | X71: 0 | Y71: 327 | Z71: 0 | AA71: 0 | AB71: 0 | AC71: 0.7158429992 | AD71: 0 | AE71: 0 | AF71: 0 | AG71: 0.0001276 | AH71: 1.7219 | AI71: 4 | AJ71: 0.000514201 | AK71: 0 | AL71: 0 | AM71: 0 | AN71: 0.85 | AO71: 0.85 | AP71: 0.85 | AQ71: 0 | AR71: 0 | AS71: 0 | AT71: 0 | AU71: 0 | AV71: 0 | AW71: 0 | AX71: 0 | AY71: 0 | AZ71: 4.8 | BA71: 0 | BB71: 0 | BC71: 0 | BE71: 3805 | BG71: 1 | BJ71: 0 | BK71: 0 | BL71: 0 | BM71: 0 | BO71: 1 | BP71: 1 | BQ71: 1 | BR71: 0 | BS71: 0 | BT71: 0 | BV71: 0 | BW71: 0 | BX71: 0 | BY71: 1 | BZ71: 0 | CA71: 0 | CB71: 0 | CC71: 0 | CO71: T10 | CQ71: T11 | CS71: T15 | CU71: T16 | CW71: T20 | CY71: T21
A72: 135200100 | C72: 0 | D72: 1 | E72: 35 | F72: 200 | G72: 10 | H72: 11.5 | I72: 0 | J72: 0 | K72: 0 | L72: 0 | M72: 1796 | N72: 0 | O72: 0 | P72: 0 | Q72: 1.399 | R72: 1.08 | S72: 1.08 | T72: 1.08 | U72: 1796 | V72: 0 | W72: 0 | X72: 0 | Y72: 154 | Z72: 0 | AA72: 0 | AB72: 0 | AC72: 0.1753250081 | AD72: 0 | AE72: 0 | AF72: 0 | AG72: 0.0003969 | AH72: 1.7346 | AI72: 2 | AJ72: 0.000367347 | AK72: 0 | AL72: 0 | AM72: 0 | AN72: 0.98 | AO72: 0.98 | AP72: 0.98 | AQ72: 0 | AR72: 0 | AS72: 0 | AT72: 0 | AU72: 0 | AV72: 0 | AW72: 0 | AX72: 0 | AY72: 0 | AZ72: 1.3 | BA72: 0 | BB72: 0 | BC72: 0 | BE72: 1796 | BG72: 1 | BJ72: 0 | BK72: 0 | BL72: 0 | BM72: 0 | BO72: 1 | BP72: 1 | BQ72: 1 | BR72: 0 | BS72: 0 | BT72: 0 | BV72: 0 | BW72: 0 | BX72: 0 | BY72: 1 | BZ72: 0 | CA72: 0 | CB72: 0 | CC72: 0 | CO72: S2 | CP72: S1 | CQ72: S2 | CR72: S1 | CS72: S2 | CT72: S1 | CU72: S2 | CV72: S1 | CW72: S2 | CX72: S1 | CY72: S2 | CZ72: S1
A73: 135200110 | C73: 0 | D73: 1 | E73: 35 | F73: 200 | G73: 11 | H73: 11.5 | I73: 0 | J73: 0 | K73: 0 | L73: 0 | M73: 2392 | N73: 0 | O73: 0 | P73: 0 | Q73: 1.44 | R73: 1.1 | S73: 1.1 | T73: 1.1 | U73: 2392 | V73: 0 | W73: 0 | X73: 0 | Y73: 206 | Z73: 0 | AA73: 0 | AB73: 0 | AC73: 0.5368053399 | AD73: 0 | AE73: 0 | AF73: 0 | AG73: 0.0003969 | AH73: 1.7346 | AI73: 4 | AJ73: 0.000574288 | AK73: 0 | AL73: 0 | AM73: 0 | AN73: 0.95 | AO73: 0.95 | AP73: 0.95 | AQ73: 0 | AR73: 0 | AS73: 0 | AT73: 0 | AU73: 0 | AV73: 0 | AW73: 0 | AX73: 0 | AY73: 0 | AZ73: 2.7 | BA73: 0 | BB73: 0 | BC73: 0 | BE73: 2392 | BG73: 1 | BJ73: 0 | BK73: 0 | BL73: 0 | BM73: 0 | BO73: 1 | BP73: 1 | BQ73: 1 | BR73: 0 | BS73: 0 | BT73: 0 | BV73: 0 | BW73: 0 | BX73: 0 | BY73: 1 | BZ73: 0 | CA73: 0 | CB73: 0 | CC73: 0 | CN73: 50 | CO73: 0.8551869613 | CP73: 0.7991842972 | CQ73: 0.8551869613 | CR73: 0.7991842972
A74: 135200150 | C74: 0 | D74: 1 | E74: 35 | F74: 200 | G74: 15 | H74: 16.5 | I74: 0 | J74: 0 | K74: 0 | L74: 0 | M74: 2940 | N74: 0 | O74: 0 | P74: 0 | Q74: 1.39 | R74: 1.08 | S74: 1.08 | T74: 1.08 | U74: 2940 | V74: 0 | W74: 0 | X74: 0 | Y74: 253 | Z74: 0 | AA74: 0 | AB74: 0 | AC74: 0.3950180006 | AD74: 0 | AE74: 0 | AF74: 0 | AG74: =IF($G74=$CO$103,CP$103,IF($G74=$CO$104,CP$104,IF($G74=$CO$105,CP$105,IF($G74=$CO$107,CP$107,IF($G74=$CO$108,CP$108,IF($G74=$CO$109,CP$109,IF($G74=$CO$111,CP$111,IF($G74=$CO$112,CP$112,IF($G74=$CO$113,CP$113,IF($G74=$CO$115,CP$115,IF($G74=$CO$116,CP$116,IF($G74=$CO$117,CP$117,IF($G74=$CO$119,CP$119,IF($G74=$CO$120,CP$120,)))))))))))))) -> 0.0002083 | AH74: =IF($G74=$CO$103,CQ$103,IF($G74=$CO$104,CQ$104,IF($G74=$CO$105,CQ$105,IF($G74=$CO$107,CQ$107,IF($G74=$CO$108,CQ$108,IF($G74=$CO$109,CQ$109,IF($G74=$CO$111,CQ$111,IF($G74=$CO$112,CQ$112,IF($G74=$CO$113,CQ$113,IF($G74=$CO$115,CQ$115,IF($G74=$CO$116,CQ$116,IF($G74=$CO$117,CQ$117,IF($G74=$CO$119,CQ$119,IF($G74=$CO$120,CQ$120,)))))))))))))) -> 1.724 | AI74: =IF($G74=$CO$103,CR$103,IF($G74=$CO$104,CR$104,IF($G74=$CO$105,CR$105,IF($G74=$CO$107,CR$107,IF($G74=$CO$108,CR$108,IF($G74=$CO$109,CR$109,IF($G74=$CO$111,CR$111,IF($G74=$CO$112,CR$112,IF($G74=$CO$113,CR$113,IF($G74=$CO$115,CR$115,IF($G74=$CO$116,CR$116,IF($G74=$CO$117,CR$117,IF($G74=$CO$119,CR$119,IF($G74=$CO$120,CR$120,)))))))))))))) -> 2 | AJ74: =IF($G74=$CO$103,CS$103,IF($G74=$CO$104,CS$104,IF($G74=$CO$105,CS$105,IF($G74=$CO$107,CS$107,IF($G74=$CO$108,CS$108,IF($G74=$CO$109,CS$109,IF($G74=$CO$111,CS$111,IF($G74=$CO$112,CS$112,IF($G74=$CO$113,CS$113,IF($G74=$CO$115,CS$115,IF($G74=$CO$116,CS$116,IF($G74=$CO$117,CS$117,IF($G74=$CO$119,CS$119,IF($G74=$CO$120,CS$120,)))))))))))))) -> 0.000461829 | AK74: 0 | AL74: 0 | AM74: 0 | AN74: 1.01 | AO74: 1.01 | AP74: 1.01 | AQ74: 0 | AR74: 0 | AS74: 0 | AT74: 0 | AU74: 0 | AV74: 0 | AW74: 0 | AX74: 0 | AY74: 0 | AZ74: =ROUND(IF(G74=10,$CO$92*F74,IF(G74=11,$CO$93*F74,IF(G74=15,$CO$94*F74,IF(G74=16,$CO$95*F74,IF(G74=20,$CO$96*F74,IF(G74=21,$CO$97*F74,)))))),1) -> 2 | BA74: 0 | BB74: 0 | BC74: 0 | BE74: 2940 | BG74: =IF(C74=0,1,IF(G74=10,0.9,IF(G74=11,0.68,IF(G74=15,0.8,IF(G74=16,0.68,IF(G74=20,0.8,IF(G74=21,0.8))))))) -> 1 | BJ74: 0 | BK74: 0 | BL74: 0 | BM74: 0 | BO74: 1 | BP74: 1 | BQ74: 1 | BR74: =AQ74/BO74 -> 0 | BS74: =AR74/BP74 -> 0 | BT74: =AS74/BQ74 -> 0 | BV74: =BR74-AQ74 -> 0 | BW74: =BS74-AR74 -> 0 | BX74: =BT74-AS74 -> 0 | BY74: 1 | BZ74: 0 | CA74: 0 | CB74: 0 | CC74: 0 | CN74: 60 | CO74: 0.8452517015 | CP74: 0.7892986148 | CQ74: 0.8452517015 | CR74: 0.7892986148 | CS74: 0.7555553481 | CT74: 0.7038387773 | CU74: 0.7555553481 | CV74: 0.7038387773 | CW74: 0.8452517015 | CX74: 0.7892986148 | CY74: 0.7555553481 | CZ74: 0.7038387773
A75: 135200160 | C75: 0 | D75: 1 | E75: 35 | F75: 200 | G75: 16 | H75: =IF(G75=10,11.5,IF(G75=11,11.5,IF(G75=15,16.5,IF(G75=16,16.5,IF(G75=20,21.5,IF(G75=21,21.5,)))))) -> 16.5 | I75: 0 | J75: 0 | K75: 0 | L75: 0 | M75: 3186 | N75: 0 | O75: 0 | P75: 0 | Q75: =IF(E75=35,IF(G75=10,1.399,IF(G75=11,1.44,IF(G75=15,1.39,IF(G75=16,1.458,IF(G75=20,1.39,IF(G75=21,1.472,1)))))),IF(E75=50,IF(G75=10,1.385,IF(G75=11,1.438,IF(G75=15,1.373,IF(G75=16,1.464,IF(G75=20,1.373,IF(G75=21,1.485,1)))))),IF(E75=65,IF(G75=10,1.371,IF(G75=11,1.437,IF(G75=15,1.355,IF(G75=16,1.47,IF(G75=20,1.355,IF(G75=21,1.497,1)))))),IF(E75=95,IF(G75=10,1.343,IF(G75=11,1.434,IF(G75=15,1.32,IF(G75=16,1.482,IF(G75=20,1.32,IF(G75=21,1.522,1)))))),"ERROR")))) -> 1.458 | R75: 1.1 | S75: 1.1 | T75: 1.1 | U75: =ROUND(M75*POWER((($S$1-$S$2)/LN(($S$1-$S$3)/($S$2-$S$3)))/((75-65)/LN((75-20)/(65-20))),Q75),0) -> 3186 | V75: =ROUND(N75*POWER((($S$1-$S$2)/LN(($S$1-$S$3)/($S$2-$S$3)))/((75-65)/LN((75-20)/(65-20))),R75),0) -> 0 | W75: =ROUND(O75*POWER((($S$1-$S$2)/LN(($S$1-$S$3)/($S$2-$S$3)))/((75-65)/LN((75-20)/(65-20))),S75),0) -> 0 | X75: =ROUND(P75*POWER((($S$1-$S$2)/LN(($S$1-$S$3)/($S$2-$S$3)))/((75-65)/LN((75-20)/(65-20))),T75),0) -> 0 | Y75: =ROUND(U75*3600/(4186*ABS($S$1-$S$2)),0) -> 274 | Z75: =ROUND(V75*3600/(4186*ABS($S$1-$S$2)),0) -> 0 | AA75: =ROUND(W75*3600/(4186*ABS($S$1-$S$2)),0) -> 0 | AB75: =ROUND(X75*3600/(4186*ABS($S$1-$S$2)),0) -> 0 | AC75: =(($AG75*(Y75^$AH75)*((($F75-14.4)*$AI75)/100))+($AJ75*(Y75^2)))*0.0098 -> 1.266419391 | AD75: =(($AG75*(Z75^$AH75)*((($F75-14.4)*$AI75)/100))+($AJ75*(Z75^2)))*0.0098 -> 0 | AE75: =(($AG75*(AA75^$AH75)*((($F75-14.4)*$AI75)/100))+($AJ75*(AA75^2)))*0.0098 -> 0 | AF75: =(($AG75*(AB75^$AH75)*((($F75-14.4)*$AI75)/100))+($AJ75*(AB75^2)))*0.0098 -> 0 | AG75: 0.0002083 | AH75: 1.724 | AI75: 4 | AJ75: 0.001392796 | AK75: 0 | AL75: 0 | AM75: 0 | AN75: =IF($G75=10,0.98,IF($G75=11,0.95,IF($G75=15,1.01,IF($G75=16,0.95,IF($G75=20,0.95,IF($G75=21,0.85)))))) -> 0.95 | AO75: 0.95 | AP75: 0.95 | AQ75: =ROUND(AK75*POWER((($AT$1-$AT$2)/LN(($AT$1-$AT$3)/($AT$2-$AT$3)))/((16-18)/LN((16-27)/(18-27))),AN75),0) -> 0 | AR75: =ROUND(AL75*POWER((($AT$1-$AT$2)/LN(($AT$1-$AT$3)/($AT$2-$AT$3)))/((16-18)/LN((16-27)/(18-27))),AO75),0) -> 0 | AS75: =ROUND(AM75*POWER((($AT$1-$AT$2)/LN(($AT$1-$AT$3)/($AT$2-$AT$3)))/((16-18)/LN((16-27)/(18-27))),AP75),0) -> 0 | AT75: =ROUND(AQ75*3600/(4186*ABS($AT$1-$AT$2)),0) -> 0 | AU75: =ROUND(AR75*3600/(4186*ABS($AT$1-$AT$2)),0) -> 0 | AV75: =ROUND(AS75*3600/(4186*ABS($AT$1-$AT$2)),0) -> 0 | AW75: =(($AG75*(AT75^$AH75)*((($F75-14.4)*$AI75)/100))+($AJ75*(AT75^2)))*0.0098 -> 0 | AX75: =(($AG75*(AU75^$AH75)*((($F75-14.4)*$AI75)/100))+($AJ75*(AU75^2)))*0.0098 -> 0 | AY75: =(($AG75*(AV75^$AH75)*((($F75-14.4)*$AI75)/100))+($AJ75*(AV75^2)))*0.0098 -> 0 | AZ75: 4 | BA75: 0 | BB75: 0 | BC75: 0 | BE75: 3186 | BG75: 1 | BJ75: 0 | BK75: 0 | BL75: 0 | BM75: 0 | BO75: =IF(1/(1+((2258*((0.622/((101325/(1*611*EXP(17.27*((($AT$1+$AT$2)/2)/((($AT$1+$AT$2)/2)+237.3))))))-1)*1000-(0.622/((101325/($AV$1*611*EXP(17.27*($AT$3/($AT$3+237.3))))))-1)*1000))/(1005*((($AT$1+$AT$2)/2)-$AT$3))))>1,1,1/(1+((2258*((0.622/((101325/(1*611*EXP(17.27*((($AT$1+$AT$2)/2)/((($AT$1+$AT$2)/2)+237.3))))))-1)*1000-(0.622/((101325/($AV$1*611*EXP(17.27*($AT$3/($AT$3+237.3))))))-1)*1000))/(1005*((($AT$1+$AT$2)/2)-$AT$3))))) -> 1 | BP75: 1 | BQ75: 1 | BR75: 0 | BS75: 0 | BT75: 0 | BV75: 0 | BW75: 0 | BX75: 0 | BY75: 1 | BZ75: 0 | CA75: 0 | CB75: 0 | CC75: 0 | CN75: 70 | CO75: 0.8364028567 | CP75: 0.7799409144 | CQ75: 0.8364028567 | CR75: 0.7799409144 | CS75: 0.7555553481 | CT75: 0.7038387773 | CU75: 0.7555553481 | CV75: 0.7038387773 | CW75: 0.8364028567 | CX75: 0.7799409144 | CY75: 0.7555553481 | CZ75: 0.7038387773
A76: 135200200 | C76: 0 | D76: 1 | E76: 35 | F76: 200 | G76: 20 | H76: 21.5 | I76: 0 | J76: 0 | K76: 0 | L76: 0 | M76: 4120 | N76: 0 | O76: 0 | P76: 0 | Q76: 1.39 | R76: =IF($G76=10,1.08,IF($G76=11,1.1,IF($G76=15,1.08,IF($G76=16,1.1,IF($G76=20,1.08,IF($G76=21,1.05)))))) -> 1.08 | S76: 1.08 | T76: 1.08 | U76: 4120 | V76: 0 | W76: 0 | X76: 0 | Y76: 354 | Z76: 0 | AA76: 0 | AB76: 0 | AC76: 0.5762286325 | AD76: 0 | AE76: 0 | AF76: 0 | AG76: 0.0001276 | AH76: 1.7219 | AI76: 2 | AJ76: 0.000376611 | AK76: 0 | AL76: 0 | AM76: 0 | AN76: 0.95 | AO76: 0.95 | AP76: 0.95 | AQ76: 0 | AR76: 0 | AS76: 0 | AT76: 0 | AU76: 0 | AV76: 0 | AW76: 0 | AX76: 0 | AY76: 0 | AZ76: 2.7 | BA76: 0 | BB76: 0 | BC76: 0 | BE76: 4120 | BG76: 1 | BJ76: 0 | BK76: 0 | BL76: 0 | BM76: 0 | BO76: 1 | BP76: 1 | BQ76: 1 | BR76: 0 | BS76: 0 | BT76: 0 | BV76: 0 | BW76: 0 | BX76: 0 | BY76: 1 | BZ76: 0 | CA76: 0 | CB76: 0 | CC76: 0 | CN76: 80 | CO76: 0.8284588614 | CP76: 0.7713393602 | CQ76: 0.8284588614 | CR76: 0.7713393602 | CS76: 0.7453108993 | CT76: 0.6950414455 | CU76: 0.7453108993 | CV76: 0.6950414455 | CW76: 0.8284588614 | CX76: 0.7713393602 | CY76: 0.7453108993 | CZ76: 0.6950414455
A77: 135200210 | C77: 0 | D77: 1 | E77: 35 | F77: 200 | G77: 21 | H77: 21.5 | I77: 0 | J77: 0 | K77: 0 | L77: 0 | M77: 4228 | N77: 0 | O77: 0 | P77: 0 | Q77: 1.472 | R77: 1.05 | S77: 1.05 | T77: 1.05 | U77: 4228 | V77: 0 | W77: 0 | X77: 0 | Y77: 364 | Z77: 0 | AA77: 0 | AB77: 0 | AC77: 0.9062724495 | AD77: 0 | AE77: 0 | AF77: 0 | AG77: 0.0001276 | AH77: 1.7219 | AI77: 4 | AJ77: 0.000514201 | AK77: 0 | AL77: 0 | AM77: 0 | AN77: 0.85 | AO77: 0.85 | AP77: 0.85 | AQ77: 0 | AR77: 0 | AS77: 0 | AT77: 0 | AU77: 0 | AV77: 0 | AW77: 0 | AX77: 0 | AY77: 0 | AZ77: 5.3 | BA77: 0 | BB77: 0 | BC77: 0 | BE77: 4228 | BG77: 1 | BJ77: 0 | BK77: 0 | BL77: 0 | BM77: 0 | BO77: 1 | BP77: 1 | BQ77: 1 | BR77: 0 | BS77: 0 | BT77: 0 | BV77: 0 | BW77: 0 | BX77: 0 | BY77: 1 | BZ77: 0 | CA77: 0 | CB77: 0 | CC77: 0 | CN77: 90 | CO77: 0.8212441545 | CP77: 0.7634388097 | CQ77: 0.8212441545 | CR77: 0.7634388097 | CS77: 0.7342980294 | CT77: 0.6854011254 | CU77: 0.7342980294 | CV77: 0.6854011254 | CW77: 0.8212441545 | CX77: 0.7634388097 | CY77: 0.7342980294 | CZ77: 0.6854011254
A78: 135220100 | C78: 0 | D78: 1 | E78: 35 | F78: 220 | G78: 10 | H78: 11.5 | I78: 0 | J78: 0 | K78: 0 | L78: 0 | M78: 1842.681159 | N78: 0 | O78: 0 | P78: 0 | Q78: 1.399 | R78: 1.08 | S78: 1.08 | T78: 1.08 | U78: =ROUND(M78*POWER((($S$1-$S$2)/LN(($S$1-$S$3)/($S$2-$S$3)))/((75-65)/LN((75-20)/(65-20))),Q78),0) -> 1843 | V78: 0 | W78: 0 | X78: 0 | Y78: 158 | Z78: 0 | AA78: 0 | AB78: 0 | AC78: 0.1940423817 | AD78: 0 | AE78: 0 | AF78: 0 | AG78: 0.0003969 | AH78: 1.7346 | AI78: 2 | AJ78: 0.000367347 | AK78: 0 | AL78: 0 | AM78: 0 | AN78: 0.98 | AO78: 0.98 | AP78: 0.98 | AQ78: 0 | AR78: 0 | AS78: 0 | AT78: 0 | AU78: 0 | AV78: 0 | AW78: 0 | AX78: 0 | AY78: 0 | AZ78: 1.5 | BA78: 0 | BB78: 0 | BC78: 0 | BE78: 1842.681159 | BG78: 1 | BJ78: 0 | BK78: 0 | BL78: 0 | BM78: 0 | BO78: 1 | BP78: 1 | BQ78: 1 | BR78: 0 | BS78: 0 | BT78: 0 | BV78: 0 | BW78: 0 | BX78: 0 | BY78: 1 | BZ78: 0 | CA78: 0 | CB78: 0 | CC78: 0 | CN78: 100 | CO78: 0.8146699661 | CP78: 0.7561986895 | CQ78: 0.8146699661 | CR78: 0.7561986895 | CS78: 0.7254135991 | CT78: 0.6774634004 | CU78: 0.7254135991 | CV78: 0.6774634004 | CW78: 0.8146699661 | CX78: 0.7561986895 | CY78: 0.7254135991 | CZ78: 0.6774634004
A79: 135220110 | C79: 0 | D79: 1 | E79: 35 | F79: 220 | G79: 11 | H79: 11.5 | I79: 0 | J79: 0 | K79: 0 | L79: 0 | M79: 2454.057971 | N79: 0 | O79: 0 | P79: 0 | Q79: 1.44 | R79: 1.1 | S79: 1.1 | T79: 1.1 | U79: 2454 | V79: 0 | W79: 0 | X79: 0 | Y79: 211 | Z79: 0 | AA79: 0 | AB79: 0 | AC79: 0.5946699001 | AD79: 0 | AE79: 0 | AF79: 0 | AG79: 0.0003969 | AH79: 1.7346 | AI79: 4 | AJ79: 0.000574288 | AK79: 0 | AL79: 0 | AM79: 0 | AN79: 0.95 | AO79: 0.95 | AP79: 0.95 | AQ79: 0 | AR79: 0 | AS79: 0 | AT79: 0 | AU79: 0 | AV79: 0 | AW79: 0 | AX79: 0 | AY79: 0 | AZ79: 2.9 | BA79: 0 | BB79: 0 | BC79: 0 | BE79: 2454.057971 | BG79: 1 | BJ79: 0 | BK79: 0 | BL79: 0 | BM79: 0 | BO79: 1 | BP79: 1 | BQ79: 1 | BR79: 0 | BS79: 0 | BT79: 0 | BV79: 0 | BW79: 0 | BX79: 0 | BY79: 1 | BZ79: 0 | CA79: 0 | CB79: 0 | CC79: 0 | CN79: 110 | CO79: 0.8146699661 | CP79: 0.7561986895 | CQ79: 0.8146699661 | CR79: 0.7561986895 | CS79: 0.7254135991 | CT79: 0.6774634004 | CU79: 0.7254135991 | CV79: 0.6774634004 | CW79: 0.8146699661 | CX79: 0.7561986895 | CY79: 0.7254135991 | CZ79: 0.6774634004
A80: 135220150 | C80: 0 | D80: 1 | E80: 35 | F80: 220 | G80: 15 | H80: 16.5 | I80: 0 | J80: 0 | K80: 0 | L80: 0 | M80: 3016.695652 | N80: 0 | O80: 0 | P80: 0 | Q80: 1.39 | R80: 1.08 | S80: 1.08 | T80: 1.08 | U80: 3017 | V80: 0 | W80: 0 | X80: 0 | Y80: 259 | Z80: 0 | AA80: 0 | AB80: 0 | AC80: 0.4250814127 | AD80: 0 | AE80: 0 | AF80: 0 | AG80: 0.0002083 | AH80: 1.724 | AI80: 2 | AJ80: 0.000461829 | AK80: 0 | AL80: 0 | AM80: 0 | AN80: 1.01 | AO80: 1.01 | AP80: 1.01 | AQ80: 0 | AR80: 0 | AS80: 0 | AT80: 0 | AU80: 0 | AV80: 0 | AW80: 0 | AX80: 0 | AY80: 0 | AZ80: 2.2 | BA80: 0 | BB80: 0 | BC80: 0 | BE80: 3016.695652 | BG80: 1 | BJ80: 0 | BK80: 0 | BL80: 0 | BM80: 0 | BO80: 1 | BP80: 1 | BQ80: 1 | BR80: 0 | BS80: 0 | BT80: 0 | BV80: 0 | BW80: 0 | BX80: 0 | BY80: 1 | BZ80: 0 | CA80: 0 | CB80: 0 | CC80: 0 | CN80: 120 | CO80: 0.8030103879 | CP80: 0.7433030654 | CQ80: 0.8030103879 | CR80: 0.7433030654 | CS80: 0.7187912226 | CT80: 0.6712287258 | CU80: 0.7187912226 | CV80: 0.6712287258 | CW80: 0.8030103879 | CX80: 0.7433030654 | CY80: 0.7187912226 | CZ80: 0.6712287258
A81: 135220160 | C81: 0 | D81: 1 | E81: 35 | F81: 220 | G81: 16 | H81: 16.5 | I81: 0 | J81: 0 | K81: 0 | L81: 0 | M81: 3268.942029 | N81: 0 | O81: 0 | P81: 0 | Q81: 1.458 | R81: 1.1 | S81: 1.1 | T81: 1.1 | U81: 3269 | V81: 0 | W81: 0 | X81: 0 | Y81: 281 | Z81: 0 | AA81: 0 | AB81: 0 | AC81: 1.35739028 | AD81: 0 | AE81: 0 | AF81: 0 | AG81: 0.0002083 | AH81: 1.724 | AI81: 4 | AJ81: 0.001392796 | AK81: 0 | AL81: 0 | AM81: 0 | AN81: 0.95 | AO81: 0.95 | AP81: 0.95 | AQ81: 0 | AR81: 0 | AS81: 0 | AT81: 0 | AU81: 0 | AV81: 0 | AW81: 0 | AX81: 0 | AY81: 0 | AZ81: 4.4 | BA81: 0 | BB81: 0 | BC81: 0 | BE81: 3268.942029 | BG81: 1 | BJ81: 0 | BK81: 0 | BL81: 0 | BM81: 0 | BO81: 1 | BP81: 1 | BQ81: 1 | BR81: 0 | BS81: 0 | BT81: 0 | BV81: 0 | BW81: 0 | BX81: 0 | BY81: 1 | BZ81: 0 | CA81: 0 | CB81: 0 | CC81: 0 | CN81: 140 | CO81: 0.7929231279 | CP81: 0.7321171828 | CQ81: 0.7929231279 | CR81: 0.7321171828 | CS81: 0.7127093372 | CT81: 0.6655050705 | CU81: 0.7127093372 | CV81: 0.6655050705 | CW81: 0.7929231279 | CX81: 0.7321171828 | CY81: 0.7127093372 | CZ81: 0.6655050705
A82: =CONCATENATE(D82,E82,F82,G82,C82) -> 135220200 | C82: 0 | D82: 1 | E82: 35 | F82: 220 | G82: 20 | H82: 21.5 | I82: 0 | J82: 0 | K82: 0 | L82: 0 | M82: =BE82*BG82 -> 4227.478261 | N82: 0 | O82: 0 | P82: 0 | Q82: 1.39 | R82: 1.08 | S82: 1.08 | T82: 1.08 | U82: 4227 | V82: 0 | W82: 0 | X82: 0 | Y82: 364 | Z82: 0 | AA82: 0 | AB82: 0 | AC82: 0.6211716682 | AD82: 0 | AE82: 0 | AF82: 0 | AG82: 0.0001276 | AH82: 1.7219 | AI82: 2 | AJ82: 0.000376611 | AK82: 0 | AL82: 0 | AM82: 0 | AN82: 0.95 | AO82: 0.95 | AP82: 0.95 | AQ82: 0 | AR82: 0 | AS82: 0 | AT82: 0 | AU82: 0 | AV82: 0 | AW82: 0 | AX82: 0 | AY82: 0 | AZ82: 2.9 | BA82: 0 | BB82: 0 | BC82: 0 | BE82: 4227.478261 | BG82: 1 | BJ82: 0 | BK82: 0 | BL82: 0 | BM82: 0 | BO82: 1 | BP82: 1 | BQ82: 1 | BR82: 0 | BS82: 0 | BT82: 0 | BV82: 0 | BW82: 0 | BX82: 0 | BY82: =IF(SUM(BV82:BX82)=0,1,0) -> 1 | BZ82: 0 | CA82: 0 | CB82: 0 | CC82: 0 | CN82: 160 | CO82: 0.7840224333 | CP82: 0.7222362756 | CQ82: 0.7840224333 | CR82: 0.7222362756 | CS82: 0.7015311234 | CT82: 0.6570693053 | CU82: 0.7015311234 | CV82: 0.6570693053 | CW82: 0.7840224333 | CX82: 0.7222362756 | CY82: 0.7015311234 | CZ82: 0.6570693053
A83: 135220210 | C83: 0 | D83: 1 | E83: 35 | F83: 220 | G83: 21 | H83: 21.5 | I83: 0 | J83: 0 | K83: 0 | L83: 0 | M83: 4338.637681 | N83: 0 | O83: 0 | P83: 0 | Q83: 1.472 | R83: 1.05 | S83: 1.05 | T83: 1.05 | U83: 4339 | V83: 0 | W83: 0 | X83: 0 | Y83: 373 | Z83: 0 | AA83: 0 | AB83: 0 | AC83: 0.9767619783 | AD83: 0 | AE83: 0 | AF83: 0 | AG83: 0.0001276 | AH83: 1.7219 | AI83: 4 | AJ83: 0.000514201 | AK83: 0 | AL83: 0 | AM83: 0 | AN83: 0.85 | AO83: 0.85 | AP83: 0.85 | AQ83: 0 | AR83: 0 | AS83: 0 | AT83: 0 | AU83: 0 | AV83: 0 | AW83: 0 | AX83: 0 | AY83: 0 | AZ83: 5.9 | BA83: 0 | BB83: 0 | BC83: 0 | BE83: 4338.637681 | BG83: 1 | BJ83: 0 | BK83: 0 | BL83: 0 | BM83: 0 | BO83: 1 | BP83: 1 | BQ83: 1 | BR83: 0 | BS83: 0 | BT83: 0 | BV83: 0 | BW83: 0 | BX83: 0 | BY83: 1 | BZ83: 0 | CA83: 0 | CB83: 0 | CC83: 0 | CN83: 180 | CO83: 0.7840224333 | CP83: 0.7222362756 | CQ83: 0.7840224333 | CR83: 0.7222362756 | CS83: 0.7015311234 | CT83: 0.6570693053 | CU83: 0.7015311234 | CV83: 0.6570693053 | CW83: 0.7840224333 | CX83: 0.7222362756 | CY83: 0.7015311234 | CZ83: 0.6570693053
A84: 135240100 | C84: 0 | D84: 1 | E84: 35 | F84: 240 | G84: 10 | H84: 11.5 | I84: 0 | J84: 0 | K84: 0 | L84: 0 | M84: 2155 | N84: 0 | O84: 0 | P84: 0 | Q84: 1.399 | R84: 1.08 | S84: 1.08 | T84: 1.08 | U84: 2155 | V84: 0 | W84: 0 | X84: 0 | Y84: 185 | Z84: 0 | AA84: 0 | AB84: 0 | AC84: 0.2734938821 | AD84: 0 | AE84: 0 | AF84: 0 | AG84: 0.0003969 | AH84: 1.7346 | AI84: 2 | AJ84: 0.000367347 | AK84: 0 | AL84: 0 | AM84: 0 | AN84: 0.98 | AO84: 0.98 | AP84: 0.98 | AQ84: 0 | AR84: 0 | AS84: 0 | AT84: 0 | AU84: 0 | AV84: 0 | AW84: 0 | AX84: 0 | AY84: 0 | AZ84: 1.6 | BA84: 0 | BB84: 0 | BC84: 0 | BE84: 2155 | BG84: 1 | BJ84: 0 | BK84: 0 | BL84: 0 | BM84: 0 | BO84: 1 | BP84: 1 | BQ84: 1 | BR84: 0 | BS84: 0 | BT84: 0 | BV84: 0 | BW84: 0 | BX84: 0 | BY84: 1 | BZ84: 0 | CA84: 0 | CB84: 0 | CC84: 0 | CN84: 200 | CO84: 0.768855912 | CP84: 0.7053868584 | CQ84: 0.768855912 | CR84: 0.7053868584 | CS84: 0.6929174768 | CT84: 0.6576204296 | CU84: 0.6929174768 | CV84: 0.6576204296 | CW84: 0.768855912 | CX84: 0.7053868584 | CY84: 0.6929174768 | CZ84: 0.6576204296
A85: 135240110 | C85: 0 | D85: 1 | E85: 35 | F85: 240 | G85: 11 | H85: 11.5 | I85: 0 | J85: 0 | K85: 0 | L85: 0 | M85: 2870 | N85: 0 | O85: 0 | P85: 0 | Q85: 1.44 | R85: 1.1 | S85: 1.1 | T85: 1.1 | U85: 2870 | V85: 0 | W85: 0 | X85: 0 | Y85: 247 | Z85: 0 | AA85: 0 | AB85: 0 | AC85: 0.8395847398 | AD85: 0 | AE85: 0 | AF85: 0 | AG85: 0.0003969 | AH85: 1.7346 | AI85: 4 | AJ85: 0.000574288 | AK85: 0 | AL85: 0 | AM85: 0 | AN85: 0.95 | AO85: 0.95 | AP85: 0.95 | AQ85: 0 | AR85: 0 | AS85: 0 | AT85: 0 | AU85: 0 | AV85: 0 | AW85: 0 | AX85: 0 | AY85: 0 | AZ85: 3.2 | BA85: 0 | BB85: 0 | BC85: 0 | BE85: 2870 | BG85: 1 | BJ85: 0 | BK85: 0 | BL85: 0 | BM85: 0 | BO85: 1 | BP85: 1 | BQ85: 1 | BR85: 0 | BS85: 0 | BT85: 0 | BV85: 0 | BW85: 0 | BX85: 0 | BY85: 1 | BZ85: 0 | CA85: 0 | CB85: 0 | CC85: 0 | CN85: 220 | CO85: 0.7585639347 | CP85: 0.6942595524 | CQ85: 0.7585639347 | CR85: 0.6942595524 | CS85: 0.6852107187 | CT85: 0.6578068518 | CU85: 0.6852107187 | CV85: 0.6578068518 | CW85: 0.7585639347 | CX85: 0.6942595524 | CY85: 0.6852107187 | CZ85: 0.6578068518
A86: 135240150 | C86: 0 | D86: 1 | E86: 35 | F86: 240 | G86: 15 | H86: 16.5 | I86: 0 | J86: 0 | K86: 0 | L86: 0 | M86: 3528 | N86: 0 | O86: 0 | P86: 0 | Q86: 1.39 | R86: 1.08 | S86: 1.08 | T86: 1.08 | U86: 3528 | V86: 0 | W86: 0 | X86: 0 | Y86: 303 | Z86: 0 | AA86: 0 | AB86: 0 | AC86: 0.590220021 | AD86: 0 | AE86: 0 | AF86: 0 | AG86: 0.0002083 | AH86: 1.724 | AI86: 2 | AJ86: 0.000461829 | AK86: 0 | AL86: 0 | AM86: 0 | AN86: 1.01 | AO86: 1.01 | AP86: 1.01 | AQ86: 0 | AR86: 0 | AS86: 0 | AT86: 0 | AU86: 0 | AV86: 0 | AW86: 0 | AX86: 0 | AY86: 0 | AZ86: 2.4 | BA86: 0 | BB86: 0 | BC86: 0 | BE86: 3528 | BG86: 1 | BJ86: 0 | BK86: 0 | BL86: 0 | BM86: 0 | BO86: 1 | BP86: 1 | BQ86: 1 | BR86: 0 | BS86: 0 | BT86: 0 | BV86: 0 | BW86: 0 | BX86: 0 | BY86: 1 | BZ86: 0 | CA86: 0 | CB86: 0 | CC86: 0 | CN86: 240 | CO86: 0.7502750901 | CP86: 0.6848867351 | CQ86: 0.7502750901 | CR86: 0.6848867351 | CS86: 0.6819044016 | CT86: 0.6579686139 | CU86: 0.6819044016 | CV86: 0.6579686139 | CW86: 0.7502750901 | CX86: 0.6848867351 | CY86: 0.6819044016 | CZ86: 0.6579686139
A87: 135240160 | C87: 0 | D87: 1 | E87: 35 | F87: 240 | G87: 16 | H87: 16.5 | I87: 0 | J87: 0 | K87: 0 | L87: 0 | M87: 3823 | N87: 0 | O87: 0 | P87: 0 | Q87: 1.458 | R87: 1.1 | S87: 1.1 | T87: 1.1 | U87: 3823 | V87: 0 | W87: 0 | X87: 0 | Y87: 329 | Z87: 0 | AA87: 0 | AB87: 0 | AC87: 1.880104885 | AD87: 0 | AE87: 0 | AF87: 0 | AG87: 0.0002083 | AH87: 1.724 | AI87: 4 | AJ87: 0.001392796 | AK87: 0 | AL87: 0 | AM87: 0 | AN87: 0.95 | AO87: 0.95 | AP87: 0.95 | AQ87: 0 | AR87: 0 | AS87: 0 | AT87: 0 | AU87: 0 | AV87: 0 | AW87: 0 | AX87: 0 | AY87: 0 | AZ87: 4.8 | BA87: 0 | BB87: 0 | BC87: 0 | BE87: 3823 | BG87: 1 | BJ87: 0 | BK87: 0 | BL87: 0 | BM87: 0 | BO87: 1 | BP87: 1 | BQ87: 1 | BR87: 0 | BS87: 0 | BT87: 0 | BV87: 0 | BW87: 0 | BX87: 0 | BY87: 1 | BZ87: 0 | CA87: 0 | CB87: 0 | CC87: 0 | CN87: 260 | CO87: 0.75 | CP87: 0.68 | CQ87: 0.75 | CR87: 0.68 | CS87: 0.6819044938 | CT87: 0.6579686139 | CU87: 0.6819044938 | CV87: 0.6579686139 | CW87: 0.75 | CX87: 0.68 | CY87: 0.6819044938 | CZ87: 0.6579686139
A88: 135240200 | C88: 0 | D88: 1 | E88: 35 | F88: 240 | G88: 20 | H88: 21.5 | I88: 0 | J88: 0 | K88: 0 | L88: 0 | M88: 4944 | N88: 0 | O88: 0 | P88: 0 | Q88: 1.39 | R88: 1.08 | S88: 1.08 | T88: 1.08 | U88: 4944 | V88: 0 | W88: 0 | X88: 0 | Y88: 425 | Z88: 0 | AA88: 0 | AB88: 0 | AC88: 0.856000042 | AD88: 0 | AE88: 0 | AF88: 0 | AG88: 0.0001276 | AH88: 1.7219 | AI88: 2 | AJ88: 0.000376611 | AK88: 0 | AL88: 0 | AM88: 0 | AN88: 0.95 | AO88: 0.95 | AP88: 0.95 | AQ88: 0 | AR88: 0 | AS88: 0 | AT88: 0 | AU88: 0 | AV88: 0 | AW88: 0 | AX88: 0 | AY88: 0 | AZ88: 3.2 | BA88: 0 | BB88: 0 | BC88: 0 | BE88: 4944 | BG88: 1 | BJ88: 0 | BK88: 0 | BL88: 0 | BM88: 0 | BO88: 1 | BP88: 1 | BQ88: 1 | BR88: 0 | BS88: 0 | BT88: 0 | BV88: 0 | BW88: 0 | BX88: 0 | BY88: 1 | BZ88: 0 | CA88: =ROUND(IF($C74=0,0,IF($C74=10,IF($G74=10,2539,IF($G74=11,3445,IF($G74=15,2539*1.3,IF($G74=16,3445*1.3,IF($G74=20,(2539*1.45),IF($G74=21,(3445*1.55))))))),IF($C74=15,IF($G74=10,0,IF($G74=11,0,IF($G74=15,3238,IF($G74=16,4735,IF($G74=20,4062,IF($G74=21,6098))))))))),0) -> 0 | CB88: =ROUND(IF($C74=0,0,IF($C74=10,IF($G74=10,352,IF($G74=11,577,IF($G74=15,442*1.15,IF($G74=16,725*1.15,IF($G74=20,(352*1.3),IF($G74=21,(577*1.3))))))),IF($C74=15,IF($G74=10,0,IF($G74=11,0,IF($G74=15,442,IF($G74=16,725,IF($G74=20,502,IF($G74=21,791))))))))),0) -> 0 | CC88: 0 | CN88: 280 | CO88: 0.750779461 | CP88: 0.68 | CQ88: 0.750779461 | CR88: 0.68 | CS88: 0.6729424377 | CT88: 0.6582099453 | CU88: 0.6729424377 | CV88: 0.6582099453 | CW88: 0.750779461 | CX88: 0.68 | CY88: 0.6729424377 | CZ88: 0.6582099453
A89: 135240210 | C89: 0 | D89: 1 | E89: 35 | F89: 240 | G89: 21 | H89: 21.5 | I89: 0 | J89: 0 | K89: 0 | L89: 0 | M89: 5074 | N89: 0 | O89: 0 | P89: 0 | Q89: 1.472 | R89: 1.05 | S89: 1.05 | T89: 1.05 | U89: 5074 | V89: 0 | W89: 0 | X89: 0 | Y89: 436 | Z89: 0 | AA89: 0 | AB89: 0 | AC89: 1.353663902 | AD89: 0 | AE89: 0 | AF89: 0 | AG89: 0.0001276 | AH89: 1.7219 | AI89: 4 | AJ89: 0.000514201 | AK89: 0 | AL89: 0 | AM89: 0 | AN89: 0.85 | AO89: 0.85 | AP89: 0.85 | AQ89: 0 | AR89: 0 | AS89: 0 | AT89: 0 | AU89: 0 | AV89: 0 | AW89: 0 | AX89: 0 | AY89: 0 | AZ89: 6.4 | BA89: 0 | BB89: 0 | BC89: 0 | BE89: 5074 | BG89: 1 | BJ89: 0 | BK89: 0 | BL89: 0 | BM89: 0 | BO89: 1 | BP89: 1 | BQ89: 1 | BR89: 0 | BS89: 0 | BT89: 0 | BV89: 0 | BW89: 0 | BX89: 0 | BY89: 1 | BZ89: =ROUND(IF($C75=0,0,IF($C75=10,IF($G75=10,1127,IF($G75=11,2263,"UNDEFINED")),IF($C75=15,IF($G75=10,"NOT POSSIBLE",IF($G75=11,"NOT POSSIBLE",IF($G75=15,1615,IF($G75=16,3238,IF($G75=20,2298,IF($G75=21,2489)))))),"ERROR"))),0) -> 0 | CA89: 0 | CB89: 0 | CC89: =ROUND(IF($C75=0,0,IF($C75=10,IF($G75=10,62,IF($G75=11,50,"UNDEFINED")),IF($C75=15,IF($G75=10,"NOT POSSIBLE",IF($G75=11,"NOT POSSIBLE",IF($G75=15,63,IF($G75=16,75,IF($G75=20,78,IF($G75=21,92)))))),"ERROR"))),0) -> 0 | CN89: 300 | CO89: 0.750779461 | CP89: 0.68 | CQ89: 0.750779461 | CR89: 0.68 | CS89: 0.6729424377 | CT89: 0.6582099453 | CU89: 0.6729424377 | CV89: 0.6582099453 | CW89: 0.750779461 | CX89: 0.68 | CY89: 0.6729424377 | CZ89: 0.6582099453
A90: 135260100 | C90: 0 | D90: 1 | E90: 35 | F90: 260 | G90: 10 | H90: 11.5 | I90: 0 | J90: 0 | K90: 0 | L90: 0 | M90: 2231.52809 | N90: 0 | O90: 0 | P90: 0 | Q90: 1.399 | R90: 1.08 | S90: 1.08 | T90: 1.08 | U90: 2232 | V90: 0 | W90: 0 | X90: 0 | Y90: 192 | Z90: 0 | AA90: 0 | AB90: 0 | AC90: 0.3072041593 | AD90: 0 | AE90: 0 | AF90: 0 | AG90: 0.0003969 | AH90: 1.7346 | AI90: 2 | AJ90: 0.000367347 | AK90: 0 | AL90: 0 | AM90: 0 | AN90: 0.98 | AO90: 0.98 | AP90: 0.98 | AQ90: 0 | AR90: 0 | AS90: 0 | AT90: 0 | AU90: 0 | AV90: 0 | AW90: 0 | AX90: 0 | AY90: 0 | AZ90: 1.7 | BA90: 0 | BB90: 0 | BC90: 0 | BE90: 2231.52809 | BG90: 1 | BJ90: 0 | BK90: 0 | BL90: 0 | BM90: 0 | BO90: 1 | BP90: 1 | BQ90: 1 | BR90: 0 | BS90: 0 | BT90: 0 | BV90: 0 | BW90: 0 | BX90: 0 | BY90: 1 | BZ90: 0 | CA90: 0 | CB90: 0 | CC90: 0
A91: 135260110 | C91: 0 | D91: 1 | E91: 35 | F91: 260 | G91: 11 | H91: 11.5 | I91: 0 | J91: 0 | K91: 0 | L91: 0 | M91: 2972.707865 | N91: 0 | O91: 0 | P91: 0 | Q91: 1.44 | R91: 1.1 | S91: 1.1 | T91: 1.1 | U91: 2973 | V91: 0 | W91: 0 | X91: 0 | Y91: 256 | Z91: 0 | AA91: 0 | AB91: 0 | AC91: 0.9436537107 | AD91: 0 | AE91: 0 | AF91: 0 | AG91: 0.0003969 | AH91: 1.7346 | AI91: 4 | AJ91: 0.000574288 | AK91: 0 | AL91: 0 | AM91: 0 | AN91: 0.95 | AO91: 0.95 | AP91: 0.95 | AQ91: 0 | AR91: 0 | AS91: 0 | AT91: 0 | AU91: 0 | AV91: 0 | AW91: 0 | AX91: 0 | AY91: 0 | AZ91: 3.5 | BA91: 0 | BB91: 0 | BC91: 0 | BE91: 2972.707865 | BG91: 1 | BJ91: 0 | BK91: 0 | BL91: 0 | BM91: 0 | BO91: 1 | BP91: 1 | BQ91: 1 | BR91: 0 | BS91: 0 | BT91: 0 | BV91: 0 | BW91: 0 | BX91: 0 | BY91: 1 | BZ91: 0 | CA91: 0 | CB91: 0 | CC91: 0 | CN91: Type,ww | CO91: L/cm
A92: 135260150 | C92: 0 | D92: 1 | E92: 35 | F92: 260 | G92: 15 | H92: 16.5 | I92: 0 | J92: 0 | K92: 0 | L92: 0 | M92: 3653.52809 | N92: 0 | O92: 0 | P92: 0 | Q92: 1.39 | R92: 1.08 | S92: 1.08 | T92: 1.08 | U92: 3654 | V92: 0 | W92: 0 | X92: 0 | Y92: 314 | Z92: 0 | AA92: 0 | AB92: 0 | AC92: 0.6484842441 | AD92: 0 | AE92: 0 | AF92: 0 | AG92: 0.0002083 | AH92: 1.724 | AI92: 2 | AJ92: 0.000461829 | AK92: 0 | AL92: 0 | AM92: 0 | AN92: 1.01 | AO92: 1.01 | AP92: 1.01 | AQ92: 0 | AR92: 0 | AS92: 0 | AT92: 0 | AU92: 0 | AV92: 0 | AW92: 0 | AX92: 0 | AY92: 0 | AZ92: 2.6 | BA92: 0 | BB92: 0 | BC92: 0 | BE92: 3653.52809 | BG92: 1 | BJ92: 0 | BK92: 0 | BL92: 0 | BM92: 0 | BO92: 1 | BP92: 1 | BQ92: 1 | BR92: 0 | BS92: 0 | BT92: 0 | BV92: 0 | BW92: 0 | BX92: 0 | BY92: 1 | BZ92: 0 | CA92: 0 | CB92: 0 | CC92: 0 | CN92: 10 | CO92: =0.4/60 -> 0.006666666667
A93: 135260160 | C93: 0 | D93: 1 | E93: 35 | F93: 260 | G93: 16 | H93: 16.5 | I93: 0 | J93: 0 | K93: 0 | L93: 0 | M93: 3958.876404 | N93: 0 | O93: 0 | P93: 0 | Q93: 1.458 | R93: 1.1 | S93: 1.1 | T93: 1.1 | U93: 3959 | V93: 0 | W93: 0 | X93: 0 | Y93: 340 | Z93: 0 | AA93: 0 | AB93: 0 | AC93: 2.041823054 | AD93: 0 | AE93: 0 | AF93: 0 | AG93: 0.0002083 | AH93: 1.724 | AI93: 4 | AJ93: 0.001392796 | AK93: 0 | AL93: 0 | AM93: 0 | AN93: 0.95 | AO93: 0.95 | AP93: 0.95 | AQ93: 0 | AR93: 0 | AS93: 0 | AT93: 0 | AU93: 0 | AV93: 0 | AW93: 0 | AX93: 0 | AY93: 0 | AZ93: 5.2 | BA93: 0 | BB93: 0 | BC93: 0 | BE93: 3958.876404 | BG93: 1 | BJ93: 0 | BK93: 0 | BL93: 0 | BM93: 0 | BO93: 1 | BP93: 1 | BQ93: 1 | BR93: 0 | BS93: 0 | BT93: 0 | BV93: 0 | BW93: 0 | BX93: 0 | BY93: 1 | BZ93: 0 | CA93: 0 | CB93: 0 | CC93: 0 | CN93: 11 | CO93: =CO92*2 -> 0.01333333333
A94: 135260200 | C94: 0 | D94: 1 | E94: 35 | F94: 260 | G94: 20 | H94: 21.5 | I94: 0 | J94: 0 | K94: 0 | L94: 0 | M94: 5119.910112 | N94: 0 | O94: 0 | P94: 0 | Q94: 1.39 | R94: 1.08 | S94: 1.08 | T94: 1.08 | U94: 5120 | V94: 0 | W94: 0 | X94: 0 | Y94: 440 | Z94: 0 | AA94: 0 | AB94: 0 | AC94: 0.9333611829 | AD94: 0 | AE94: 0 | AF94: 0 | AG94: 0.0001276 | AH94: 1.7219 | AI94: 2 | AJ94: 0.000376611 | AK94: 0 | AL94: 0 | AM94: 0 | AN94: 0.95 | AO94: 0.95 | AP94: 0.95 | AQ94: 0 | AR94: 0 | AS94: 0 | AT94: 0 | AU94: 0 | AV94: 0 | AW94: 0 | AX94: 0 | AY94: 0 | AZ94: 3.5 | BA94: 0 | BB94: 0 | BC94: 0 | BE94: 5119.910112 | BG94: 1 | BJ94: 0 | BK94: 0 | BL94: 0 | BM94: 0 | BO94: 1 | BP94: 1 | BQ94: 1 | BR94: 0 | BS94: 0 | BT94: 0 | BV94: 0 | BW94: 0 | BX94: 0 | BY94: 1 | BZ94: 0 | CA94: 0 | CB94: 0 | CC94: 0 | CN94: 15 | CO94: =CO92*1.5 -> 0.01
A95: 135260210 | C95: 0 | D95: 1 | E95: 35 | F95: 260 | G95: 21 | H95: 21.5 | I95: 0 | J95: 0 | K95: 0 | L95: 0 | M95: 5253.94382 | N95: 0 | O95: 0 | P95: 0 | Q95: 1.472 | R95: 1.05 | S95: 1.05 | T95: 1.05 | U95: 5254 | V95: 0 | W95: 0 | X95: 0 | Y95: 452 | Z95: 0 | AA95: 0 | AB95: 0 | AC95: 1.487926099 | AD95: 0 | AE95: 0 | AF95: 0 | AG95: 0.0001276 | AH95: 1.7219 | AI95: 4 | AJ95: 0.000514201 | AK95: 0 | AL95: 0 | AM95: 0 | AN95: 0.85 | AO95: 0.85 | AP95: 0.85 | AQ95: 0 | AR95: 0 | AS95: 0 | AT95: 0 | AU95: 0 | AV95: 0 | AW95: 0 | AX95: 0 | AY95: 0 | AZ95: 6.9 | BA95: 0 | BB95: 0 | BC95: 0 | BE95: 5253.94382 | BG95: 1 | BJ95: 0 | BK95: 0 | BL95: 0 | BM95: 0 | BO95: 1 | BP95: 1 | BQ95: 1 | BR95: 0 | BS95: 0 | BT95: 0 | BV95: 0 | BW95: 0 | BX95: 0 | BY95: 1 | BZ95: 0 | CA95: 0 | CB95: 0 | CC95: 0 | CN95: 16 | CO95: =CO94*2 -> 0.02
A96: 135280100 | C96: 0 | D96: 1 | E96: 35 | F96: 280 | G96: 10 | H96: 11.5 | I96: 0 | J96: 0 | K96: 0 | L96: 0 | M96: 2514 | N96: 0 | O96: 0 | P96: 0 | Q96: 1.399 | R96: 1.08 | S96: 1.08 | T96: 1.08 | U96: 2514 | V96: 0 | W96: 0 | X96: 0 | Y96: 216 | Z96: 0 | AA96: 0 | AB96: 0 | AC96: 0.3994390931 | AD96: 0 | AE96: 0 | AF96: 0 | AG96: 0.0003969 | AH96: 1.7346 | AI96: 2 | AJ96: 0.000367347 | AK96: 0 | AL96: 0 | AM96: 0 | AN96: 0.98 | AO96: 0.98 | AP96: 0.98 | AQ96: 0 | AR96: 0 | AS96: 0 | AT96: 0 | AU96: 0 | AV96: 0 | AW96: 0 | AX96: 0 | AY96: 0 | AZ96: 1.9 | BA96: 0 | BB96: 0 | BC96: 0 | BE96: 2514 | BG96: 1 | BJ96: 0 | BK96: 0 | BL96: 0 | BM96: 0 | BO96: 1 | BP96: 1 | BQ96: 1 | BR96: 0 | BS96: 0 | BT96: 0 | BV96: 0 | BW96: 0 | BX96: 0 | BY96: 1 | BZ96: 0 | CA96: 0 | CB96: 0 | CC96: 0 | CN96: 20 | CO96: =CO92*2 -> 0.01333333333
A97: 135280110 | C97: 0 | D97: 1 | E97: 35 | F97: 280 | G97: 11 | H97: 11.5 | I97: 0 | J97: 0 | K97: 0 | L97: 0 | M97: 3349 | N97: 0 | O97: 0 | P97: 0 | Q97: 1.44 | R97: 1.1 | S97: 1.1 | T97: 1.1 | U97: 3349 | V97: 0 | W97: 0 | X97: 0 | Y97: 288 | Z97: 0 | AA97: 0 | AB97: 0 | AC97: 1.229341588 | AD97: 0 | AE97: 0 | AF97: 0 | AG97: 0.0003969 | AH97: 1.7346 | AI97: 4 | AJ97: 0.000574288 | AK97: 0 | AL97: 0 | AM97: 0 | AN97: 0.95 | AO97: 0.95 | AP97: 0.95 | AQ97: 0 | AR97: 0 | AS97: 0 | AT97: 0 | AU97: 0 | AV97: 0 | AW97: 0 | AX97: 0 | AY97: 0 | AZ97: 3.7 | BA97: 0 | BB97: 0 | BC97: 0 | BE97: 3349 | BG97: 1 | BJ97: 0 | BK97: 0 | BL97: 0 | BM97: 0 | BO97: 1 | BP97: 1 | BQ97: 1 | BR97: 0 | BS97: 0 | BT97: 0 | BV97: 0 | BW97: 0 | BX97: 0 | BY97: 1 | BZ97: 0 | CA97: 0 | CB97: 0 | CC97: 0 | CN97: 21 | CO97: =CO96*2 -> 0.02666666667
A98: 135280150 | C98: 0 | D98: 1 | E98: 35 | F98: 280 | G98: 15 | H98: 16.5 | I98: 0 | J98: 0 | K98: 0 | L98: 0 | M98: 4116 | N98: 0 | O98: 0 | P98: 0 | Q98: 1.39 | R98: 1.08 | S98: 1.08 | T98: 1.08 | U98: 4116 | V98: 0 | W98: 0 | X98: 0 | Y98: 354 | Z98: 0 | AA98: 0 | AB98: 0 | AC98: 0.8361104911 | AD98: 0 | AE98: 0 | AF98: 0 | AG98: 0.0002083 | AH98: 1.724 | AI98: 2 | AJ98: 0.000461829 | AK98: 0 | AL98: 0 | AM98: 0 | AN98: 1.01 | AO98: 1.01 | AP98: 1.01 | AQ98: 0 | AR98: 0 | AS98: 0 | AT98: 0 | AU98: 0 | AV98: 0 | AW98: 0 | AX98: 0 | AY98: 0 | AZ98: 2.8 | BA98: 0 | BB98: 0 | BC98: 0 | BE98: 4116 | BG98: 1 | BJ98: 0 | BK98: 0 | BL98: 0 | BM98: 0 | BO98: 1 | BP98: 1 | BQ98: 1 | BR98: 0 | BS98: 0 | BT98: 0 | BV98: 0 | BW98: 0 | BX98: 0 | BY98: 1 | BZ98: 0 | CA98: 0 | CB98: 0 | CC98: 0
A99: 135280160 | C99: 0 | D99: 1 | E99: 35 | F99: 280 | G99: 16 | H99: 16.5 | I99: 0 | J99: 0 | K99: 0 | L99: 0 | M99: 4460 | N99: 0 | O99: 0 | P99: 0 | Q99: 1.458 | R99: 1.1 | S99: 1.1 | T99: 1.1 | U99: 4460 | V99: 0 | W99: 0 | X99: 0 | Y99: 384 | Z99: 0 | AA99: 0 | AB99: 0 | AC99: 2.631543231 | AD99: 0 | AE99: 0 | AF99: 0 | AG99: 0.0002083 | AH99: 1.724 | AI99: 4 | AJ99: 0.001392796 | AK99: 0 | AL99: 0 | AM99: 0 | AN99: 0.95 | AO99: 0.95 | AP99: 0.95 | AQ99: 0 | AR99: 0 | AS99: 0 | AT99: 0 | AU99: 0 | AV99: 0 | AW99: 0 | AX99: 0 | AY99: 0 | AZ99: 5.6 | BA99: 0 | BB99: 0 | BC99: 0 | BE99: 4460 | BG99: 1 | BJ99: 0 | BK99: 0 | BL99: 0 | BM99: 0 | BO99: 1 | BP99: 1 | BQ99: 1 | BR99: 0 | BS99: 0 | BT99: 0 | BV99: 0 | BW99: 0 | BX99: 0 | BY99: 1 | BZ99: 0 | CA99: 0 | CB99: 0 | CC99: 0 | CN99: 1 | CO99: 2 | CP99: 3 | CQ99: 4 | CR99: 5 | CS99: 6
A100: 135280200 | C100: 0 | D100: 1 | E100: 35 | F100: 280 | G100: 20 | H100: 21.5 | I100: 0 | J100: 0 | K100: 0 | L100: 0 | M100: 5768 | N100: 0 | O100: 0 | P100: 0 | Q100: 1.39 | R100: 1.08 | S100: 1.08 | T100: 1.08 | U100: 5768 | V100: 0 | W100: 0 | X100: 0 | Y100: 496 | Z100: 0 | AA100: 0 | AB100: 0 | AC100: 1.198853331 | AD100: 0 | AE100: 0 | AF100: 0 | AG100: 0.0001276 | AH100: 1.7219 | AI100: 2 | AJ100: 0.000376611 | AK100: 0 | AL100: 0 | AM100: 0 | AN100: 0.95 | AO100: 0.95 | AP100: 0.95 | AQ100: 0 | AR100: 0 | AS100: 0 | AT100: 0 | AU100: 0 | AV100: 0 | AW100: 0 | AX100: 0 | AY100: 0 | AZ100: 3.7 | BA100: 0 | BB100: 0 | BC100: 0 | BE100: 5768 | BG100: 1 | BJ100: 0 | BK100: 0 | BL100: 0 | BM100: 0 | BO100: 1 | BP100: 1 | BQ100: 1 | BR100: 0 | BS100: 0 | BT100: 0 | BV100: 0 | BW100: 0 | BX100: 0 | BY100: 1 | BZ100: 0 | CA100: 0 | CB100: 0 | CC100: 0 | CN100: Niveaus | CO100: Type | CP100: k1 | CQ100: n | CR100: t | CS100: k2
A101: 135280210 | C101: 0 | D101: 1 | E101: 35 | F101: 280 | G101: 21 | H101: 21.5 | I101: 0 | J101: 0 | K101: 0 | L101: 0 | M101: 5919 | N101: 0 | O101: 0 | P101: 0 | Q101: 1.472 | R101: 1.05 | S101: 1.05 | T101: 1.05 | U101: 5919 | V101: 0 | W101: 0 | X101: 0 | Y101: 509 | Z101: 0 | AA101: 0 | AB101: 0 | AC101: 1.913775202 | AD101: 0 | AE101: 0 | AF101: 0 | AG101: 0.0001276 | AH101: 1.7219 | AI101: 4 | AJ101: 0.000514201 | AK101: 0 | AL101: 0 | AM101: 0 | AN101: 0.85 | AO101: 0.85 | AP101: 0.85 | AQ101: 0 | AR101: 0 | AS101: 0 | AT101: 0 | AU101: 0 | AV101: 0 | AW101: 0 | AX101: 0 | AY101: 0 | AZ101: 7.5 | BA101: 0 | BB101: 0 | BC101: 0 | BE101: 5919 | BG101: 1 | BJ101: 0 | BK101: 0 | BL101: 0 | BM101: 0 | BO101: 1 | BP101: 1 | BQ101: 1 | BR101: 0 | BS101: 0 | BT101: 0 | BV101: 0 | BW101: 0 | BX101: 0 | BY101: 1 | BZ101: 0 | CA101: 0 | CB101: 0 | CC101: 0
A102: 15050100 | C102: 0 | D102: 1 | E102: 50 | F102: 50 | G102: 10 | H102: =IF(G102=10,11.5,IF(G102=11,11.5,IF(G102=15,16.5,IF(G102=16,16.5,IF(G102=20,21.5,IF(G102=21,21.5,)))))) -> 11.5 | I102: 0 | J102: 0 | K102: 0 | L102: 0 | M102: 538 | N102: 0 | O102: 0 | P102: 0 | Q102: 1.385 | R102: 1.08 | S102: 1.08 | T102: 1.08 | U102: 538 | V102: 0 | W102: 0 | X102: 0 | Y102: 46 | Z102: 0 | AA102: 0 | AB102: 0 | AC102: 0.009738924769 | AD102: 0 | AE102: 0 | AF102: 0 | AG102: 0.0003969 | AH102: 1.7346 | AI102: 2 | AJ102: 0.000367347 | AK102: 0 | AL102: 0 | AM102: 0 | AN102: 0.98 | AO102: 0.98 | AP102: 0.98 | AQ102: 0 | AR102: 0 | AS102: 0 | AT102: 0 | AU102: 0 | AV102: 0 | AW102: 0 | AX102: 0 | AY102: 0 | AZ102: 0.3 | BA102: 0 | BB102: 0 | BC102: 0 | BE102: 538 | BG102: 1 | BJ102: 0 | BK102: 0 | BL102: 0 | BM102: 0 | BO102: 1 | BP102: 1 | BQ102: 1 | BR102: 0 | BS102: 0 | BT102: 0 | BV102: 0 | BW102: 0 | BX102: 0 | BY102: =IF(SUM(BV102:BX102)=0,1,0) -> 1 | BZ102: 0 | CA102: 0 | CB102: 0 | CC102: 0 | CN102: 1 row | CT102: 1 | CU102: 2 | CV102: 3 | CW102: 4 | CX102: 5 | CZ102: 50
A103: 15050110 | C103: 0 | D103: 1 | E103: 50 | F103: 50 | G103: 11 | H103: =IF(G103=10,11.5,IF(G103=11,11.5,IF(G103=15,16.5,IF(G103=16,16.5,IF(G103=20,21.5,IF(G103=21,21.5,)))))) -> 11.5 | I103: 0 | J103: 0 | K103: 0 | L103: 0 | M103: 693 | N103: 0 | O103: 0 | P103: 0 | Q103: 1.438 | R103: 1.1 | S103: 1.1 | T103: 1.1 | U103: 693 | V103: 0 | W103: 0 | X103: 0 | Y103: 60 | Z103: 0 | AA103: 0 | AB103: 0 | AC103: 0.02698752277 | AD103: 0 | AE103: 0 | AF103: 0 | AG103: 0.0003969 | AH103: 1.7346 | AI103: 4 | AJ103: 0.000574288 | AK103: 0 | AL103: 0 | AM103: 0 | AN103: 0.95 | AO103: 0.95 | AP103: 0.95 | AQ103: 0 | AR103: 0 | AS103: 0 | AT103: 0 | AU103: 0 | AV103: 0 | AW103: 0 | AX103: 0 | AY103: 0 | AZ103: 0.7 | BA103: 0 | BB103: 0 | BC103: 0 | BE103: 693 | BG103: 1 | BJ103: 0 | BK103: 0 | BL103: 0 | BM103: 0 | BO103: 1 | BP103: 1 | BQ103: 1 | BR103: 0 | BS103: 0 | BT103: 0 | BV103: 0 | BW103: 0 | BX103: 0 | BY103: 1 | BZ103: 0 | CA103: 0 | CB103: 0 | CC103: 0 | CN103: 1 | CO103: 4 | CP103: 0.001382333883 | CQ103: 1.723172228 | CR103: 1 | CS103: 0.0003329081633 | CT103: =CO103 -> 4 | CU103: =CP103 -> 0.001382333883 | CV103: 1.723172228 | CW103: 1 | CX103: 0.0003329081633 | CZ103: 60
A104: 15060100 | C104: 0 | D104: 1 | E104: 50 | F104: 60 | G104: 10 | H104: 11.5 | I104: 0 | J104: 0 | K104: 0 | L104: 0 | M104: 646 | N104: 0 | O104: 0 | P104: 0 | Q104: 1.385 | R104: 1.08 | S104: 1.08 | T104: 1.08 | U104: 646 | V104: 0 | W104: 0 | X104: 0 | Y104: 56 | Z104: 0 | AA104: 0 | AB104: 0 | AC104: 0.01511176277 | AD104: 0 | AE104: 0 | AF104: 0 | AG104: 0.0003969 | AH104: 1.7346 | AI104: 2 | AJ104: 0.000367347 | AK104: 0 | AL104: 0 | AM104: 0 | AN104: 0.98 | AO104: 0.98 | AP104: 0.98 | AQ104: 0 | AR104: 0 | AS104: 0 | AT104: 0 | AU104: 0 | AV104: 0 | AW104: 0 | AX104: 0 | AY104: 0 | AZ104: 0.4 | BA104: 0 | BB104: 0 | BC104: 0 | BE104: 646 | BG104: 1 | BJ104: 0 | BK104: 0 | BL104: 0 | BM104: 0 | BO104: 1 | BP104: 1 | BQ104: 1 | BR104: 0 | BS104: 0 | BT104: 0 | BV104: 0 | BW104: 0 | BX104: 0 | BY104: 1 | BZ104: 0 | CA104: 0 | CB104: 0 | CC104: 0 | CN104: 2 | CO104: 5 | CP104: 0.000937 | CQ104: 1.789 | CR104: 2 | CS104: 0.000446 | CT104: =CO104 -> 5 | CU104: 0.000937 | CV104: 1.789 | CW104: 2 | CX104: 0.000446 | CZ104: 70
A105: 15060110 | C105: 0 | D105: 1 | E105: 50 | F105: 60 | G105: 11 | H105: 11.5 | I105: 0 | J105: 0 | K105: 0 | L105: 0 | M105: 832 | N105: 0 | O105: 0 | P105: 0 | Q105: 1.438 | R105: 1.1 | S105: 1.1 | T105: 1.1 | U105: 832 | V105: 0 | W105: 0 | X105: 0 | Y105: 72 | Z105: 0 | AA105: 0 | AB105: 0 | AC105: 0.04099685157 | AD105: 0 | AE105: 0 | AF105: 0 | AG105: 0.0003969 | AH105: 1.7346 | AI105: 4 | AJ105: 0.000574288 | AK105: 0 | AL105: 0 | AM105: 0 | AN105: 0.95 | AO105: 0.95 | AP105: 0.95 | AQ105: 0 | AR105: 0 | AS105: 0 | AT105: 0 | AU105: 0 | AV105: 0 | AW105: 0 | AX105: 0 | AY105: 0 | AZ105: 0.8 | BA105: 0 | BB105: 0 | BC105: 0 | BE105: 832 | BG105: 1 | BJ105: 0 | BK105: 0 | BL105: 0 | BM105: 0 | BO105: 1 | BP105: 1 | BQ105: 1 | BR105: 0 | BS105: 0 | BT105: 0 | BV105: 0 | BW105: 0 | BX105: 0 | BY105: 1 | BZ105: 0 | CA105: 0 | CB105: 0 | CC105: 0 | CN105: 4 | CO105: 6 | CP105: 0.000937 | CQ105: 1.789 | CR105: 4 | CS105: 0.00139 | CT105: 6 | CU105: 0.000937 | CV105: 1.789 | CW105: 4 | CX105: 0.00139 | CZ105: 80
A106: 15060150 | C106: 0 | D106: 1 | E106: 50 | F106: 60 | G106: 15 | H106: 16.5 | I106: 0 | J106: 0 | K106: 0 | L106: 0 | M106: 1040 | N106: 0 | O106: 0 | P106: 0 | Q106: 1.373 | R106: 1.08 | S106: 1.08 | T106: 1.08 | U106: 1040 | V106: 0 | W106: 0 | X106: 0 | Y106: 89 | Z106: 0 | AA106: 0 | AB106: 0 | AC106: 0.04012211425 | AD106: 0 | AE106: 0 | AF106: 0 | AG106: 0.0002083 | AH106: 1.724 | AI106: 2 | AJ106: 0.000461829 | AK106: 0 | AL106: 0 | AM106: 0 | AN106: 1.01 | AO106: 1.01 | AP106: 1.01 | AQ106: 0 | AR106: 0 | AS106: 0 | AT106: 0 | AU106: 0 | AV106: 0 | AW106: 0 | AX106: 0 | AY106: 0 | AZ106: 0.6 | BA106: 0 | BB106: 0 | BC106: 0 | BE106: 1040 | BG106: 1 | BJ106: 0 | BK106: 0 | BL106: 0 | BM106: 0 | BO106: 1 | BP106: 1 | BQ106: 1 | BR106: 0 | BS106: 0 | BT106: 0 | BV106: 0 | BW106: 0 | BX106: 0 | BY106: 1 | BZ106: 0 | CA106: 0 | CB106: 0 | CC106: 0 | CN106: 2 rows | CT106: =CO119 -> 7 | CU106: =CP119 -> 0.002558239829 | CV106: 1.494274772 | CW106: 3 | CX106: 0.0005616169468 | CZ106: 90
A107: 15060160 | C107: 0 | D107: 1 | E107: 50 | F107: 60 | G107: 16 | H107: 16.5 | I107: 0 | J107: 0 | K107: 0 | L107: 0 | M107: 1139 | N107: 0 | O107: 0 | P107: 0 | Q107: 1.464 | R107: 1.1 | S107: 1.1 | T107: 1.1 | U107: 1139 | V107: 0 | W107: 0 | X107: 0 | Y107: 98 | Z107: 0 | AA107: 0 | AB107: 0 | AC107: 0.1411770511 | AD107: 0 | AE107: 0 | AF107: 0 | AG107: 0.0002083 | AH107: 1.724 | AI107: 4 | AJ107: 0.001392796 | AK107: 0 | AL107: 0 | AM107: 0 | AN107: 0.95 | AO107: 0.95 | AP107: 0.95 | AQ107: 0 | AR107: 0 | AS107: 0 | AT107: 0 | AU107: 0 | AV107: 0 | AW107: 0 | AX107: 0 | AY107: 0 | AZ107: 1.2 | BA107: 0 | BB107: 0 | BC107: 0 | BE107: 1139 | BG107: 1 | BJ107: 0 | BK107: 0 | BL107: 0 | BM107: 0 | BO107: 1 | BP107: 1 | BQ107: 1 | BR107: 0 | BS107: 0 | BT107: 0 | BV107: 0 | BW107: 0 | BX107: 0 | BY107: 1 | BZ107: 0 | CA107: 0 | CB107: 0 | CC107: 0 | CN107: 1 | CO107: 9 | CP107: 0.000805344706 | CQ107: 1.813864716 | CR107: 2 | CS107: 0.0003979505047 | CT107: =CO120 -> 8 | CU107: =CP120 -> 0.000937 | CV107: 1.789 | CW107: 4 | CX107: 0.00139 | CZ107: 100
A108: 15060200 | C108: 0 | D108: 1 | E108: 50 | F108: 60 | G108: 20 | H108: 21.5 | I108: 0 | J108: 0 | K108: 0 | L108: 0 | M108: 1455 | N108: 0 | O108: 0 | P108: 0 | Q108: 1.373 | R108: 1.08 | S108: 1.08 | T108: 1.08 | U108: 1455 | V108: 0 | W108: 0 | X108: 0 | Y108: 125 | Z108: 0 | AA108: 0 | AB108: 0 | AC108: 0.06232164388 | AD108: 0 | AE108: 0 | AF108: 0 | AG108: 0.0001276 | AH108: 1.7219 | AI108: 2 | AJ108: 0.000376611 | AK108: 0 | AL108: 0 | AM108: 0 | AN108: 0.95 | AO108: 0.95 | AP108: 0.95 | AQ108: 0 | AR108: 0 | AS108: 0 | AT108: 0 | AU108: 0 | AV108: 0 | AW108: 0 | AX108: 0 | AY108: 0 | AZ108: 0.8 | BA108: 0 | BB108: 0 | BC108: 0 | BE108: 1455 | BG108: 1 | BJ108: 0 | BK108: 0 | BL108: 0 | BM108: 0 | BO108: 1 | BP108: 1 | BQ108: 1 | BR108: 0 | BS108: 0 | BT108: 0 | BV108: 0 | BW108: 0 | BX108: 0 | BY108: 1 | BZ108: 0 | CA108: 0 | CB108: 0 | CC108: 0 | CN108: 2 | CO108: 10 | CP108: 0.0003969 | CQ108: 1.7346 | CR108: 2 | CS108: 0.000367347 | CT108: =CO107 -> 9 | CU108: =CP107 -> 0.000805344706 | CV108: 1.813864716 | CW108: 2 | CX108: 0.0003979505047 | CZ108: 110
A109: 15060210 | C109: 0 | D109: 1 | E109: 50 | F109: 60 | G109: 21 | H109: 21.5 | I109: 0 | J109: 0 | K109: 0 | L109: 0 | M109: 1549 | N109: 0 | O109: 0 | P109: 0 | Q109: 1.485 | R109: 1.05 | S109: 1.05 | T109: 1.05 | U109: 1549 | V109: 0 | W109: 0 | X109: 0 | Y109: 133 | Z109: 0 | AA109: 0 | AB109: 0 | AC109: 0.09949315169 | AD109: 0 | AE109: 0 | AF109: 0 | AG109: 0.0001276 | AH109: 1.7219 | AI109: 4 | AJ109: 0.000514201 | AK109: 0 | AL109: 0 | AM109: 0 | AN109: 0.85 | AO109: 0.85 | AP109: 0.85 | AQ109: 0 | AR109: 0 | AS109: 0 | AT109: 0 | AU109: 0 | AV109: 0 | AW109: 0 | AX109: 0 | AY109: 0 | AZ109: 1.6 | BA109: 0 | BB109: 0 | BC109: 0 | BE109: 1549 | BG109: 1 | BJ109: 0 | BK109: 0 | BL109: 0 | BM109: 0 | BO109: 1 | BP109: 1 | BQ109: 1 | BR109: 0 | BS109: 0 | BT109: 0 | BV109: 0 | BW109: 0 | BX109: 0 | BY109: 1 | BZ109: 0 | CA109: 0 | CB109: 0 | CC109: 0 | CN109: 4 | CO109: 11 | CP109: 0.0003969 | CQ109: 1.7346 | CR109: 4 | CS109: 0.000574288 | CT109: =CO108 -> 10 | CU109: 0.0003969 | CV109: 1.7346 | CW109: 2 | CX109: 0.000367347 | CZ109: 120
A110: 15070100 | C110: 0 | D110: 1 | E110: 50 | F110: 70 | G110: 10 | H110: 11.5 | I110: 0 | J110: 0 | K110: 0 | L110: 0 | M110: 753 | N110: 0 | O110: 0 | P110: 0 | Q110: 1.385 | R110: 1.08 | S110: 1.08 | T110: 1.08 | U110: 753 | V110: 0 | W110: 0 | X110: 0 | Y110: 65 | Z110: 0 | AA110: 0 | AB110: 0 | AC110: 0.02124519981 | AD110: 0 | AE110: 0 | AF110: 0 | AG110: 0.0003969 | AH110: 1.7346 | AI110: 2 | AJ110: 0.000367347 | AK110: 0 | AL110: 0 | AM110: 0 | AN110: 0.98 | AO110: 0.98 | AP110: 0.98 | AQ110: 0 | AR110: 0 | AS110: 0 | AT110: 0 | AU110: 0 | AV110: 0 | AW110: 0 | AX110: 0 | AY110: 0 | AZ110: 0.5 | BA110: 0 | BB110: 0 | BC110: 0 | BE110: 753 | BG110: 1 | BJ110: 0 | BK110: 0 | BL110: 0 | BM110: 0 | BO110: 1 | BP110: 1 | BQ110: 1 | BR110: 0 | BS110: 0 | BT110: 0 | BV110: 0 | BW110: 0 | BX110: 0 | BY110: 1 | BZ110: 0 | CA110: 0 | CB110: 0 | CC110: 0 | CN110: 3 rows | CT110: 11 | CU110: 0.0003969 | CV110: 1.7346 | CW110: 4 | CX110: 0.000574288 | CZ110: 140
A111: 15070110 | C111: 0 | D111: 1 | E111: 50 | F111: 70 | G111: 11 | H111: 11.5 | I111: 0 | J111: 0 | K111: 0 | L111: 0 | M111: 970 | N111: 0 | O111: 0 | P111: 0 | Q111: 1.438 | R111: 1.1 | S111: 1.1 | T111: 1.1 | U111: 970 | V111: 0 | W111: 0 | X111: 0 | Y111: 83 | Z111: 0 | AA111: 0 | AB111: 0 | AC111: 0.0572162831 | AD111: 0 | AE111: 0 | AF111: 0 | AG111: 0.0003969 | AH111: 1.7346 | AI111: 4 | AJ111: 0.000574288 | AK111: 0 | AL111: 0 | AM111: 0 | AN111: 0.95 | AO111: 0.95 | AP111: 0.95 | AQ111: 0 | AR111: 0 | AS111: 0 | AT111: 0 | AU111: 0 | AV111: 0 | AW111: 0 | AX111: 0 | AY111: 0 | AZ111: 0.9 | BA111: 0 | BB111: 0 | BC111: 0 | BE111: 970 | BG111: 1 | BJ111: 0 | BK111: 0 | BL111: 0 | BM111: 0 | BO111: 1 | BP111: 1 | BQ111: 1 | BR111: 0 | BS111: 0 | BT111: 0 | BV111: 0 | BW111: 0 | BX111: 0 | BY111: 1 | BZ111: 0 | CA111: 0 | CB111: 0 | CC111: 0 | CN111: 1 | CO111: 14 | CP111: 0.002558239829 | CQ111: 1.494274772 | CR111: 3 | CS111: 0.0005616169468 | CT111: =CO111 -> 14 | CU111: =CP111 -> 0.002558239829 | CV111: 1.494274772 | CW111: 3 | CX111: 0.0005616169468 | CZ111: 150
A112: 15070150 | C112: 0 | D112: 1 | E112: 50 | F112: 70 | G112: 15 | H112: 16.5 | I112: 0 | J112: 0 | K112: 0 | L112: 0 | M112: 1214 | N112: 0 | O112: 0 | P112: 0 | Q112: 1.373 | R112: 1.08 | S112: 1.08 | T112: 1.08 | U112: 1214 | V112: 0 | W112: 0 | X112: 0 | Y112: 104 | Z112: 0 | AA112: 0 | AB112: 0 | AC112: 0.05576613697 | AD112: 0 | AE112: 0 | AF112: 0 | AG112: 0.0002083 | AH112: 1.724 | AI112: 2 | AJ112: 0.000461829 | AK112: 0 | AL112: 0 | AM112: 0 | AN112: 1.01 | AO112: 1.01 | AP112: 1.01 | AQ112: 0 | AR112: 0 | AS112: 0 | AT112: 0 | AU112: 0 | AV112: 0 | AW112: 0 | AX112: 0 | AY112: 0 | AZ112: 0.7 | BA112: 0 | BB112: 0 | BC112: 0 | BE112: 1214 | BG112: 1 | BJ112: 0 | BK112: 0 | BL112: 0 | BM112: 0 | BO112: 1 | BP112: 1 | BQ112: 1 | BR112: 0 | BS112: 0 | BT112: 0 | BV112: 0 | BW112: 0 | BX112: 0 | BY112: 1 | BZ112: 0 | CA112: 0 | CB112: 0 | CC112: 0 | CN112: 2 | CO112: 15 | CP112: 0.0002083 | CQ112: 1.724 | CR112: 2 | CS112: 0.000461829 | CT112: =CO112 -> 15 | CU112: 0.0002083 | CV112: 1.724 | CW112: 2 | CX112: 0.000461829 | CZ112: 160
A113: 15070160 | C113: 0 | D113: 1 | E113: 50 | F113: 70 | G113: 16 | H113: 16.5 | I113: 0 | J113: 0 | K113: 0 | L113: 0 | M113: 1329 | N113: 0 | O113: 0 | P113: 0 | Q113: 1.464 | R113: 1.1 | S113: 1.1 | T113: 1.1 | U113: 1329 | V113: 0 | W113: 0 | X113: 0 | Y113: 114 | Z113: 0 | AA113: 0 | AB113: 0 | AC113: 0.1933520676 | AD113: 0 | AE113: 0 | AF113: 0 | AG113: 0.0002083 | AH113: 1.724 | AI113: 4 | AJ113: 0.001392796 | AK113: 0 | AL113: 0 | AM113: 0 | AN113: 0.95 | AO113: 0.95 | AP113: 0.95 | AQ113: 0 | AR113: 0 | AS113: 0 | AT113: 0 | AU113: 0 | AV113: 0 | AW113: 0 | AX113: 0 | AY113: 0 | AZ113: 1.4 | BA113: 0 | BB113: 0 | BC113: 0 | BE113: 1329 | BG113: 1 | BJ113: 0 | BK113: 0 | BL113: 0 | BM113: 0 | BO113: 1 | BP113: 1 | BQ113: 1 | BR113: 0 | BS113: 0 | BT113: 0 | BV113: 0 | BW113: 0 | BX113: 0 | BY113: 1 | BZ113: 0 | CA113: 0 | CB113: 0 | CC113: 0 | CN113: 4 | CO113: 16 | CP113: 0.0002083 | CQ113: 1.724 | CR113: 4 | CS113: 0.001392796 | CT113: 16 | CU113: 0.0002083 | CV113: 1.724 | CW113: 4 | CX113: 0.001392796 | CZ113: 180
A114: 15070200 | C114: 0 | D114: 1 | E114: 50 | F114: 70 | G114: 20 | H114: 21.5 | I114: 0 | J114: 0 | K114: 0 | L114: 0 | M114: 1698 | N114: 0 | O114: 0 | P114: 0 | Q114: 1.373 | R114: 1.08 | S114: 1.08 | T114: 1.08 | U114: 1698 | V114: 0 | W114: 0 | X114: 0 | Y114: 146 | Z114: 0 | AA114: 0 | AB114: 0 | AC114: 0.08608560606 | AD114: 0 | AE114: 0 | AF114: 0 | AG114: 0.0001276 | AH114: 1.7219 | AI114: 2 | AJ114: 0.000376611 | AK114: 0 | AL114: 0 | AM114: 0 | AN114: 0.95 | AO114: 0.95 | AP114: 0.95 | AQ114: 0 | AR114: 0 | AS114: 0 | AT114: 0 | AU114: 0 | AV114: 0 | AW114: 0 | AX114: 0 | AY114: 0 | AZ114: 0.9 | BA114: 0 | BB114: 0 | BC114: 0 | BE114: 1698 | BG114: 1 | BJ114: 0 | BK114: 0 | BL114: 0 | BM114: 0 | BO114: 1 | BP114: 1 | BQ114: 1 | BR114: 0 | BS114: 0 | BT114: 0 | BV114: 0 | BW114: 0 | BX114: 0 | BY114: 1 | BZ114: 0 | CA114: 0 | CB114: 0 | CC114: 0 | CN114: 4 rows | CT114: =CO115 -> 19 | CU114: =CP115 -> 0.01161629289 | CV114: 1.586934682 | CW114: 1 | CX114: 0.001655322747 | CZ114: 200
A115: 15070210 | C115: 0 | D115: 1 | E115: 50 | F115: 70 | G115: 21 | H115: 21.5 | I115: 0 | J115: 0 | K115: 0 | L115: 0 | M115: 1807 | N115: 0 | O115: 0 | P115: 0 | Q115: 1.485 | R115: 1.05 | S115: 1.05 | T115: 1.05 | U115: 1807 | V115: 0 | W115: 0 | X115: 0 | Y115: 155 | Z115: 0 | AA115: 0 | AB115: 0 | AC115: 0.1375000696 | AD115: 0 | AE115: 0 | AF115: 0 | AG115: 0.0001276 | AH115: 1.7219 | AI115: 4 | AJ115: 0.000514201 | AK115: 0 | AL115: 0 | AM115: 0 | AN115: 0.85 | AO115: 0.85 | AP115: 0.85 | AQ115: 0 | AR115: 0 | AS115: 0 | AT115: 0 | AU115: 0 | AV115: 0 | AW115: 0 | AX115: 0 | AY115: 0 | AZ115: 1.9 | BA115: 0 | BB115: 0 | BC115: 0 | BE115: 1807 | BG115: 1 | BJ115: 0 | BK115: 0 | BL115: 0 | BM115: 0 | BO115: 1 | BP115: 1 | BQ115: 1 | BR115: 0 | BS115: 0 | BT115: 0 | BV115: 0 | BW115: 0 | BX115: 0 | BY115: 1 | BZ115: 0 | CA115: 0 | CB115: 0 | CC115: 0 | CN115: 1 | CO115: 19 | CP115: 0.01161629289 | CQ115: 1.586934682 | CR115: 1 | CS115: 0.001655322747 | CT115: =CO116 -> 20 | CU115: 0.0001276 | CV115: 1.7219 | CW115: 2 | CX115: 0.000376611 | CZ115: 220
A116: 15080100 | C116: 0 | D116: 1 | E116: 50 | F116: 80 | G116: 10 | H116: 11.5 | I116: 0 | J116: 0 | K116: 0 | L116: 0 | M116: 861 | N116: 0 | O116: 0 | P116: 0 | Q116: 1.385 | R116: 1.08 | S116: 1.08 | T116: 1.08 | U116: 861 | V116: 0 | W116: 0 | X116: 0 | Y116: 74 | Z116: 0 | AA116: 0 | AB116: 0 | AC116: 0.02863043049 | AD116: 0 | AE116: 0 | AF116: 0 | AG116: 0.0003969 | AH116: 1.7346 | AI116: 2 | AJ116: 0.000367347 | AK116: 0 | AL116: 0 | AM116: 0 | AN116: 0.98 | AO116: 0.98 | AP116: 0.98 | AQ116: 0 | AR116: 0 | AS116: 0 | AT116: 0 | AU116: 0 | AV116: 0 | AW116: 0 | AX116: 0 | AY116: 0 | AZ116: 0.5 | BA116: 0 | BB116: 0 | BC116: 0 | BE116: 861 | BG116: 1 | BJ116: 0 | BK116: 0 | BL116: 0 | BM116: 0 | BO116: 1 | BP116: 1 | BQ116: 1 | BR116: 0 | BS116: 0 | BT116: 0 | BV116: 0 | BW116: 0 | BX116: 0 | BY116: 1 | BZ116: 0 | CA116: 0 | CB116: 0 | CC116: 0 | CN116: 2 | CO116: 20 | CP116: 0.0001276 | CQ116: 1.7219 | CR116: 2 | CS116: 0.000376611 | CT116: 21 | CU116: 0.0001276 | CV116: 1.7219 | CW116: 4 | CX116: 0.000514201 | CZ116: 240
A117: 15080110 | C117: 0 | D117: 1 | E117: 50 | F117: 80 | G117: 11 | H117: 11.5 | I117: 0 | J117: 0 | K117: 0 | L117: 0 | M117: 1109 | N117: 0 | O117: 0 | P117: 0 | Q117: 1.438 | R117: 1.1 | S117: 1.1 | T117: 1.1 | U117: 1109 | V117: 0 | W117: 0 | X117: 0 | Y117: 95 | Z117: 0 | AA117: 0 | AB117: 0 | AC117: 0.07829908788 | AD117: 0 | AE117: 0 | AF117: 0 | AG117: 0.0003969 | AH117: 1.7346 | AI117: 4 | AJ117: 0.000574288 | AK117: 0 | AL117: 0 | AM117: 0 | AN117: 0.95 | AO117: 0.95 | AP117: 0.95 | AQ117: 0 | AR117: 0 | AS117: 0 | AT117: 0 | AU117: 0 | AV117: 0 | AW117: 0 | AX117: 0 | AY117: 0 | AZ117: 1.1 | BA117: 0 | BB117: 0 | BC117: 0 | BE117: 1109 | BG117: 1 | BJ117: 0 | BK117: 0 | BL117: 0 | BM117: 0 | BO117: 1 | BP117: 1 | BQ117: 1 | BR117: 0 | BS117: 0 | BT117: 0 | BV117: 0 | BW117: 0 | BX117: 0 | BY117: 1 | BZ117: 0 | CA117: 0 | CB117: 0 | CC117: 0 | CN117: 4 | CO117: 21 | CP117: 0.0001276 | CQ117: 1.7219 | CR117: 4 | CS117: 0.000514201 | CZ117: 260
A118: 15080150 | C118: 0 | D118: 1 | E118: 50 | F118: 80 | G118: 15 | H118: 16.5 | I118: 0 | J118: 0 | K118: 0 | L118: 0 | M118: 1387 | N118: 0 | O118: 0 | P118: 0 | Q118: 1.373 | R118: 1.08 | S118: 1.08 | T118: 1.08 | U118: 1387 | V118: 0 | W118: 0 | X118: 0 | Y118: 119 | Z118: 0 | AA118: 0 | AB118: 0 | AC118: 0.07423287785 | AD118: 0 | AE118: 0 | AF118: 0 | AG118: 0.0002083 | AH118: 1.724 | AI118: 2 | AJ118: 0.000461829 | AK118: 0 | AL118: 0 | AM118: 0 | AN118: 1.01 | AO118: 1.01 | AP118: 1.01 | AQ118: 0 | AR118: 0 | AS118: 0 | AT118: 0 | AU118: 0 | AV118: 0 | AW118: 0 | AX118: 0 | AY118: 0 | AZ118: 0.8 | BA118: 0 | BB118: 0 | BC118: 0 | BE118: 1387 | BG118: 1 | BJ118: 0 | BK118: 0 | BL118: 0 | BM118: 0 | BO118: 1 | BP118: 1 | BQ118: 1 | BR118: 0 | BS118: 0 | BT118: 0 | BV118: 0 | BW118: 0 | BX118: 0 | BY118: 1 | BZ118: 0 | CA118: 0 | CB118: 0 | CC118: 0 | CZ118: 280
A119: 15080160 | C119: 0 | D119: 1 | E119: 50 | F119: 80 | G119: 16 | H119: 16.5 | I119: 0 | J119: 0 | K119: 0 | L119: 0 | M119: 1518 | N119: 0 | O119: 0 | P119: 0 | Q119: 1.464 | R119: 1.1 | S119: 1.1 | T119: 1.1 | U119: 1518 | V119: 0 | W119: 0 | X119: 0 | Y119: 131 | Z119: 0 | AA119: 0 | AB119: 0 | AC119: 0.2581735498 | AD119: 0 | AE119: 0 | AF119: 0 | AG119: 0.0002083 | AH119: 1.724 | AI119: 4 | AJ119: 0.001392796 | AK119: 0 | AL119: 0 | AM119: 0 | AN119: 0.95 | AO119: 0.95 | AP119: 0.95 | AQ119: 0 | AR119: 0 | AS119: 0 | AT119: 0 | AU119: 0 | AV119: 0 | AW119: 0 | AX119: 0 | AY119: 0 | AZ119: 1.6 | BA119: 0 | BB119: 0 | BC119: 0 | BE119: 1518 | BG119: 1 | BJ119: 0 | BK119: 0 | BL119: 0 | BM119: 0 | BO119: 1 | BP119: 1 | BQ119: 1 | BR119: 0 | BS119: 0 | BT119: 0 | BV119: 0 | BW119: 0 | BX119: 0 | BY119: 1 | BZ119: 0 | CA119: 0 | CB119: 0 | CC119: 0 | CN119: =CN111 -> 1 | CO119: 7 | CP119: =CP111 -> 0.002558239829 | CQ119: =CQ111 -> 1.494274772 | CR119: =CR111 -> 3 | CS119: =CS111 -> 0.0005616169468 | CZ119: 300
A120: 15080200 | C120: 0 | D120: 1 | E120: 50 | F120: 80 | G120: 20 | H120: 21.5 | I120: 0 | J120: 0 | K120: 0 | L120: 0 | M120: 1940 | N120: 0 | O120: 0 | P120: 0 | Q120: 1.373 | R120: 1.08 | S120: 1.08 | T120: 1.08 | U120: 1940 | V120: 0 | W120: 0 | X120: 0 | Y120: 167 | Z120: 0 | AA120: 0 | AB120: 0 | AC120: 0.1139555401 | AD120: 0 | AE120: 0 | AF120: 0 | AG120: 0.0001276 | AH120: 1.7219 | AI120: 2 | AJ120: 0.000376611 | AK120: 0 | AL120: 0 | AM120: 0 | AN120: 0.95 | AO120: 0.95 | AP120: 0.95 | AQ120: 0 | AR120: 0 | AS120: 0 | AT120: 0 | AU120: 0 | AV120: 0 | AW120: 0 | AX120: 0 | AY120: 0 | AZ120: 1.1 | BA120: 0 | BB120: 0 | BC120: 0 | BE120: 1940 | BG120: 1 | BJ120: 0 | BK120: 0 | BL120: 0 | BM120: 0 | BO120: 1 | BP120: 1 | BQ120: 1 | BR120: 0 | BS120: 0 | BT120: 0 | BV120: 0 | BW120: 0 | BX120: 0 | BY120: 1 | BZ120: 0 | CA120: 0 | CB120: 0 | CC120: 0 | CN120: =CN105 -> 4 | CO120: 8 | CP120: =CP105 -> 0.000937 | CQ120: =CQ105 -> 1.789 | CR120: =CR105 -> 4 | CS120: =CS105 -> 0.00139 | CZ120: 350
A121: 15080210 | C121: 0 | D121: 1 | E121: 50 | F121: 80 | G121: 21 | H121: 21.5 | I121: 0 | J121: 0 | K121: 0 | L121: 0 | M121: 2066 | N121: 0 | O121: 0 | P121: 0 | Q121: 1.485 | R121: 1.05 | S121: 1.05 | T121: 1.05 | U121: 2066 | V121: 0 | W121: 0 | X121: 0 | Y121: 178 | Z121: 0 | AA121: 0 | AB121: 0 | AC121: 0.1842669292 | AD121: 0 | AE121: 0 | AF121: 0 | AG121: 0.0001276 | AH121: 1.7219 | AI121: 4 | AJ121: 0.000514201 | AK121: 0 | AL121: 0 | AM121: 0 | AN121: 0.85 | AO121: 0.85 | AP121: 0.85 | AQ121: 0 | AR121: 0 | AS121: 0 | AT121: 0 | AU121: 0 | AV121: 0 | AW121: 0 | AX121: 0 | AY121: 0 | AZ121: 2.1 | BA121: 0 | BB121: 0 | BC121: 0 | BE121: 2066 | BG121: 1 | BJ121: 0 | BK121: 0 | BL121: 0 | BM121: 0 | BO121: 1 | BP121: 1 | BQ121: 1 | BR121: 0 | BS121: 0 | BT121: 0 | BV121: 0 | BW121: 0 | BX121: 0 | BY121: 1 | BZ121: 0 | CA121: 0 | CB121: 0 | CC121: 0 | CZ121: 490
A122: 15090100 | C122: 0 | D122: 1 | E122: 50 | F122: 90 | G122: 10 | H122: 11.5 | I122: 0 | J122: 0 | K122: 0 | L122: 0 | M122: 968 | N122: 0 | O122: 0 | P122: 0 | Q122: 1.385 | R122: 1.08 | S122: 1.08 | T122: 1.08 | U122: 968 | V122: 0 | W122: 0 | X122: 0 | Y122: 83 | Z122: 0 | AA122: 0 | AB122: 0 | AC122: 0.03734023921 | AD122: 0 | AE122: 0 | AF122: 0 | AG122: 0.0003969 | AH122: 1.7346 | AI122: 2 | AJ122: 0.000367347 | AK122: 0 | AL122: 0 | AM122: 0 | AN122: 0.98 | AO122: 0.98 | AP122: 0.98 | AQ122: 0 | AR122: 0 | AS122: 0 | AT122: 0 | AU122: 0 | AV122: 0 | AW122: 0 | AX122: 0 | AY122: 0 | AZ122: 0.6 | BA122: 0 | BB122: 0 | BC122: 0 | BE122: 968 | BG122: 1 | BJ122: 0 | BK122: 0 | BL122: 0 | BM122: 0 | BO122: 1 | BP122: 1 | BQ122: 1 | BR122: 0 | BS122: 0 | BT122: 0 | BV122: 0 | BW122: 0 | BX122: 0 | BY122: 1 | BZ122: 0 | CA122: 0 | CB122: 0 | CC122: 0
A123: 15090110 | C123: 0 | D123: 1 | E123: 50 | F123: 90 | G123: 11 | H123: 11.5 | I123: 0 | J123: 0 | K123: 0 | L123: 0 | M123: 1247 | N123: 0 | O123: 0 | P123: 0 | Q123: 1.438 | R123: 1.1 | S123: 1.1 | T123: 1.1 | U123: 1247 | V123: 0 | W123: 0 | X123: 0 | Y123: 107 | Z123: 0 | AA123: 0 | AB123: 0 | AC123: 0.1033987375 | AD123: 0 | AE123: 0 | AF123: 0 | AG123: 0.0003969 | AH123: 1.7346 | AI123: 4 | AJ123: 0.000574288 | AK123: 0 | AL123: 0 | AM123: 0 | AN123: 0.95 | AO123: 0.95 | AP123: 0.95 | AQ123: 0 | AR123: 0 | AS123: 0 | AT123: 0 | AU123: 0 | AV123: 0 | AW123: 0 | AX123: 0 | AY123: 0 | AZ123: 1.2 | BA123: 0 | BB123: 0 | BC123: 0 | BE123: 1247 | BG123: 1 | BJ123: 0 | BK123: 0 | BL123: 0 | BM123: 0 | BO123: 1 | BP123: 1 | BQ123: 1 | BR123: 0 | BS123: 0 | BT123: 0 | BV123: 0 | BW123: 0 | BX123: 0 | BY123: 1 | BZ123: 0 | CA123: 0 | CB123: 0 | CC123: 0
A124: 15090150 | C124: 0 | D124: 1 | E124: 50 | F124: 90 | G124: 15 | H124: 16.5 | I124: 0 | J124: 0 | K124: 0 | L124: 0 | M124: 1561 | N124: 0 | O124: 0 | P124: 0 | Q124: 1.373 | R124: 1.08 | S124: 1.08 | T124: 1.08 | U124: 1561 | V124: 0 | W124: 0 | X124: 0 | Y124: 134 | Z124: 0 | AA124: 0 | AB124: 0 | AC124: 0.09560903562 | AD124: 0 | AE124: 0 | AF124: 0 | AG124: 0.0002083 | AH124: 1.724 | AI124: 2 | AJ124: 0.000461829 | AK124: 0 | AL124: 0 | AM124: 0 | AN124: 1.01 | AO124: 1.01 | AP124: 1.01 | AQ124: 0 | AR124: 0 | AS124: 0 | AT124: 0 | AU124: 0 | AV124: 0 | AW124: 0 | AX124: 0 | AY124: 0 | AZ124: 0.9 | BA124: 0 | BB124: 0 | BC124: 0 | BE124: 1561 | BG124: 1 | BJ124: 0 | BK124: 0 | BL124: 0 | BM124: 0 | BO124: 1 | BP124: 1 | BQ124: 1 | BR124: 0 | BS124: 0 | BT124: 0 | BV124: 0 | BW124: 0 | BX124: 0 | BY124: 1 | BZ124: 0 | CA124: 0 | CB124: 0 | CC124: 0
A125: 15090160 | C125: 0 | D125: 1 | E125: 50 | F125: 90 | G125: 16 | H125: 16.5 | I125: 0 | J125: 0 | K125: 0 | L125: 0 | M125: 1708 | N125: 0 | O125: 0 | P125: 0 | Q125: 1.464 | R125: 1.1 | S125: 1.1 | T125: 1.1 | U125: 1708 | V125: 0 | W125: 0 | X125: 0 | Y125: 147 | Z125: 0 | AA125: 0 | AB125: 0 | AC125: 0.3285973566 | AD125: 0 | AE125: 0 | AF125: 0 | AG125: 0.0002083 | AH125: 1.724 | AI125: 4 | AJ125: 0.001392796 | AK125: 0 | AL125: 0 | AM125: 0 | AN125: 0.95 | AO125: 0.95 | AP125: 0.95 | AQ125: 0 | AR125: 0 | AS125: 0 | AT125: 0 | AU125: 0 | AV125: 0 | AW125: 0 | AX125: 0 | AY125: 0 | AZ125: 1.8 | BA125: 0 | BB125: 0 | BC125: 0 | BE125: 1708 | BG125: 1 | BJ125: 0 | BK125: 0 | BL125: 0 | BM125: 0 | BO125: 1 | BP125: 1 | BQ125: 1 | BR125: 0 | BS125: 0 | BT125: 0 | BV125: 0 | BW125: 0 | BX125: 0 | BY125: 1 | BZ125: 0 | CA125: 0 | CB125: 0 | CC125: 0
A126: 15090200 | C126: 0 | D126: 1 | E126: 50 | F126: 90 | G126: 20 | H126: 21.5 | I126: 0 | J126: 0 | K126: 0 | L126: 0 | M126: 2183 | N126: 0 | O126: 0 | P126: 0 | Q126: 1.373 | R126: 1.08 | S126: 1.08 | T126: 1.08 | U126: 2183 | V126: 0 | W126: 0 | X126: 0 | Y126: 188 | Z126: 0 | AA126: 0 | AB126: 0 | AC126: 0.1460248181 | AD126: 0 | AE126: 0 | AF126: 0 | AG126: 0.0001276 | AH126: 1.7219 | AI126: 2 | AJ126: 0.000376611 | AK126: 0 | AL126: 0 | AM126: 0 | AN126: 0.95 | AO126: 0.95 | AP126: 0.95 | AQ126: 0 | AR126: 0 | AS126: 0 | AT126: 0 | AU126: 0 | AV126: 0 | AW126: 0 | AX126: 0 | AY126: 0 | AZ126: 1.2 | BA126: 0 | BB126: 0 | BC126: 0 | BE126: 2183 | BG126: 1 | BJ126: 0 | BK126: 0 | BL126: 0 | BM126: 0 | BO126: 1 | BP126: 1 | BQ126: 1 | BR126: 0 | BS126: 0 | BT126: 0 | BV126: 0 | BW126: 0 | BX126: 0 | BY126: 1 | BZ126: 0 | CA126: 0 | CB126: 0 | CC126: 0
A127: 15090210 | C127: 0 | D127: 1 | E127: 50 | F127: 90 | G127: 21 | H127: 21.5 | I127: 0 | J127: 0 | K127: 0 | L127: 0 | M127: 2324 | N127: 0 | O127: 0 | P127: 0 | Q127: 1.485 | R127: 1.05 | S127: 1.05 | T127: 1.05 | U127: 2324 | V127: 0 | W127: 0 | X127: 0 | Y127: 200 | Z127: 0 | AA127: 0 | AB127: 0 | AC127: 0.2362246794 | AD127: 0 | AE127: 0 | AF127: 0 | AG127: 0.0001276 | AH127: 1.7219 | AI127: 4 | AJ127: 0.000514201 | AK127: 0 | AL127: 0 | AM127: 0 | AN127: 0.85 | AO127: 0.85 | AP127: 0.85 | AQ127: 0 | AR127: 0 | AS127: 0 | AT127: 0 | AU127: 0 | AV127: 0 | AW127: 0 | AX127: 0 | AY127: 0 | AZ127: 2.4 | BA127: 0 | BB127: 0 | BC127: 0 | BE127: 2324 | BG127: 1 | BJ127: 0 | BK127: 0 | BL127: 0 | BM127: 0 | BO127: 1 | BP127: 1 | BQ127: 1 | BR127: 0 | BS127: 0 | BT127: 0 | BV127: 0 | BW127: 0 | BX127: 0 | BY127: 1 | BZ127: 0 | CA127: 0 | CB127: 0 | CC127: 0
A128: 150100100 | C128: 0 | D128: 1 | E128: 50 | F128: 100 | G128: 10 | H128: 11.5 | I128: 0 | J128: 0 | K128: 0 | L128: 0 | M128: 1076 | N128: 0 | O128: 0 | P128: 0 | Q128: 1.385 | R128: 1.08 | S128: 1.08 | T128: 1.08 | U128: 1076 | V128: 0 | W128: 0 | X128: 0 | Y128: 93 | Z128: 0 | AA128: 0 | AB128: 0 | AC128: 0.04843223716 | AD128: 0 | AE128: 0 | AF128: 0 | AG128: 0.0003969 | AH128: 1.7346 | AI128: 2 | AJ128: 0.000367347 | AK128: 0 | AL128: 0 | AM128: 0 | AN128: 0.98 | AO128: 0.98 | AP128: 0.98 | AQ128: 0 | AR128: 0 | AS128: 0 | AT128: 0 | AU128: 0 | AV128: 0 | AW128: 0 | AX128: 0 | AY128: 0 | AZ128: 0.7 | BA128: 0 | BB128: 0 | BC128: 0 | BE128: 1076 | BG128: 1 | BJ128: 0 | BK128: 0 | BL128: 0 | BM128: 0 | BO128: 1 | BP128: 1 | BQ128: 1 | BR128: 0 | BS128: 0 | BT128: 0 | BV128: 0 | BW128: 0 | BX128: 0 | BY128: 1 | BZ128: 0 | CA128: 0 | CB128: 0 | CC128: 0
A129: 150100110 | C129: 0 | D129: 1 | E129: 50 | F129: 100 | G129: 11 | H129: 11.5 | I129: 0 | J129: 0 | K129: 0 | L129: 0 | M129: 1386 | N129: 0 | O129: 0 | P129: 0 | Q129: 1.438 | R129: 1.1 | S129: 1.1 | T129: 1.1 | U129: 1386 | V129: 0 | W129: 0 | X129: 0 | Y129: 119 | Z129: 0 | AA129: 0 | AB129: 0 | AC129: 0.1327483399 | AD129: 0 | AE129: 0 | AF129: 0 | AG129: 0.0003969 | AH129: 1.7346 | AI129: 4 | AJ129: 0.000574288 | AK129: 0 | AL129: 0 | AM129: 0 | AN129: 0.95 | AO129: 0.95 | AP129: 0.95 | AQ129: 0 | AR129: 0 | AS129: 0 | AT129: 0 | AU129: 0 | AV129: 0 | AW129: 0 | AX129: 0 | AY129: 0 | AZ129: 1.3 | BA129: 0 | BB129: 0 | BC129: 0 | BE129: 1386 | BG129: 1 | BJ129: 0 | BK129: 0 | BL129: 0 | BM129: 0 | BO129: 1 | BP129: 1 | BQ129: 1 | BR129: 0 | BS129: 0 | BT129: 0 | BV129: 0 | BW129: 0 | BX129: 0 | BY129: 1 | BZ129: 0 | CA129: 0 | CB129: 0 | CC129: 0
A130: 150100150 | C130: 0 | D130: 1 | E130: 50 | F130: 100 | G130: 15 | H130: 16.5 | I130: 0 | J130: 0 | K130: 0 | L130: 0 | M130: 1734 | N130: 0 | O130: 0 | P130: 0 | Q130: 1.373 | R130: 1.08 | S130: 1.08 | T130: 1.08 | U130: 1734 | V130: 0 | W130: 0 | X130: 0 | Y130: 149 | Z130: 0 | AA130: 0 | AB130: 0 | AC130: 0.1199781404 | AD130: 0 | AE130: 0 | AF130: 0 | AG130: 0.0002083 | AH130: 1.724 | AI130: 2 | AJ130: 0.000461829 | AK130: 0 | AL130: 0 | AM130: 0 | AN130: 1.01 | AO130: 1.01 | AP130: 1.01 | AQ130: 0 | AR130: 0 | AS130: 0 | AT130: 0 | AU130: 0 | AV130: 0 | AW130: 0 | AX130: 0 | AY130: 0 | AZ130: 1 | BA130: 0 | BB130: 0 | BC130: 0 | BE130: 1734 | BG130: 1 | BJ130: 0 | BK130: 0 | BL130: 0 | BM130: 0 | BO130: 1 | BP130: 1 | BQ130: 1 | BR130: 0 | BS130: 0 | BT130: 0 | BV130: 0 | BW130: 0 | BX130: 0 | BY130: 1 | BZ130: 0 | CA130: 0 | CB130: 0 | CC130: 0 | CM130: Δp [kPa] | CN130: =((CP130*(CN131^CQ130)*((((CN132-14.4)*10)*CR130)/1000))+(CS130*CN131*CN131))*0.0098 -> 0.08730346299 | CO130: =VLOOKUP($CN$133,$CT$103:$CX$116,CT$102) -> 21 | CP130: =VLOOKUP($CN$133,$CT$103:$CX$116,CU$102) -> 0.0001276 | CQ130: 1.7219 | CR130: 4 | CS130: 0.000514201
A131: 150100160 | C131: 0 | D131: 1 | E131: 50 | F131: 100 | G131: 16 | H131: 16.5 | I131: 0 | J131: 0 | K131: 0 | L131: 0 | M131: 1898 | N131: 0 | O131: 0 | P131: 0 | Q131: 1.464 | R131: 1.1 | S131: 1.1 | T131: 1.1 | U131: 1898 | V131: 0 | W131: 0 | X131: 0 | Y131: 163 | Z131: 0 | AA131: 0 | AB131: 0 | AC131: 0.4081770386 | AD131: 0 | AE131: 0 | AF131: 0 | AG131: 0.0002083 | AH131: 1.724 | AI131: 4 | AJ131: 0.001392796 | AK131: 0 | AL131: 0 | AM131: 0 | AN131: 0.95 | AO131: 0.95 | AP131: 0.95 | AQ131: 0 | AR131: 0 | AS131: 0 | AT131: 0 | AU131: 0 | AV131: 0 | AW131: 0 | AX131: 0 | AY131: 0 | AZ131: 2 | BA131: 0 | BB131: 0 | BC131: 0 | BE131: 1898 | BG131: 1 | BJ131: 0 | BK131: 0 | BL131: 0 | BM131: 0 | BO131: 1 | BP131: 1 | BQ131: 1 | BR131: 0 | BS131: 0 | BT131: 0 | BV131: 0 | BW131: 0 | BX131: 0 | BY131: 1 | BZ131: 0 | CA131: 0 | CB131: 0 | CC131: 0 | CM131: mass flow | CN131: 100
A132: 150100200 | C132: 0 | D132: 1 | E132: 50 | F132: 100 | G132: 20 | H132: 21.5 | I132: 0 | J132: 0 | K132: 0 | L132: 0 | M132: 2425 | N132: 0 | O132: 0 | P132: 0 | Q132: 1.373 | R132: 1.08 | S132: 1.08 | T132: 1.08 | U132: 2425 | V132: 0 | W132: 0 | X132: 0 | Y132: 209 | Z132: 0 | AA132: 0 | AB132: 0 | AC132: 0.1823833803 | AD132: 0 | AE132: 0 | AF132: 0 | AG132: 0.0001276 | AH132: 1.7219 | AI132: 2 | AJ132: 0.000376611 | AK132: 0 | AL132: 0 | AM132: 0 | AN132: 0.95 | AO132: 0.95 | AP132: 0.95 | AQ132: 0 | AR132: 0 | AS132: 0 | AT132: 0 | AU132: 0 | AV132: 0 | AW132: 0 | AX132: 0 | AY132: 0 | AZ132: 1.3 | BA132: 0 | BB132: 0 | BC132: 0 | BE132: 2425 | BG132: 1 | BJ132: 0 | BK132: 0 | BL132: 0 | BM132: 0 | BO132: 1 | BP132: 1 | BQ132: 1 | BR132: 0 | BS132: 0 | BT132: 0 | BV132: 0 | BW132: 0 | BX132: 0 | BY132: 1 | BZ132: 0 | CA132: 0 | CB132: 0 | CC132: 0 | CM132: Length | CN132: 280
A133: 150100210 | C133: 0 | D133: 1 | E133: 50 | F133: 100 | G133: 21 | H133: 21.5 | I133: 0 | J133: 0 | K133: 0 | L133: 0 | M133: 2582 | N133: 0 | O133: 0 | P133: 0 | Q133: 1.485 | R133: 1.05 | S133: 1.05 | T133: 1.05 | U133: 2582 | V133: 0 | W133: 0 | X133: 0 | Y133: 222 | Z133: 0 | AA133: 0 | AB133: 0 | AC133: 0.295317755 | AD133: 0 | AE133: 0 | AF133: 0 | AG133: 0.0001276 | AH133: 1.7219 | AI133: 4 | AJ133: 0.000514201 | AK133: 0 | AL133: 0 | AM133: 0 | AN133: 0.85 | AO133: 0.85 | AP133: 0.85 | AQ133: 0 | AR133: 0 | AS133: 0 | AT133: 0 | AU133: 0 | AV133: 0 | AW133: 0 | AX133: 0 | AY133: 0 | AZ133: 2.7 | BA133: 0 | BB133: 0 | BC133: 0 | BE133: 2582 | BG133: 1 | BJ133: 0 | BK133: 0 | BL133: 0 | BM133: 0 | BO133: 1 | BP133: 1 | BQ133: 1 | BR133: 0 | BS133: 0 | BT133: 0 | BV133: 0 | BW133: 0 | BX133: 0 | BY133: 1 | BZ133: 0 | CA133: 0 | CB133: 0 | CC133: 0 | CM133: Type | CN133: 21
A134: 150110100 | C134: 0 | D134: 1 | E134: 50 | F134: 110 | G134: 10 | H134: 11.5 | I134: 0 | J134: 0 | K134: 0 | L134: 0 | M134: 1184 | N134: 0 | O134: 0 | P134: 0 | Q134: 1.385 | R134: 1.08 | S134: 1.08 | T134: 1.08 | U134: 1184 | V134: 0 | W134: 0 | X134: 0 | Y134: 102 | Z134: 0 | AA134: 0 | AB134: 0 | AC134: 0.06012761154 | AD134: 0 | AE134: 0 | AF134: 0 | AG134: 0.0003969 | AH134: 1.7346 | AI134: 2 | AJ134: 0.000367347 | AK134: 0 | AL134: 0 | AM134: 0 | AN134: 0.98 | AO134: 0.98 | AP134: 0.98 | AQ134: 0 | AR134: 0 | AS134: 0 | AT134: 0 | AU134: 0 | AV134: 0 | AW134: 0 | AX134: 0 | AY134: 0 | AZ134: 0.7 | BA134: 0 | BB134: 0 | BC134: 0 | BE134: 1184 | BG134: 1 | BJ134: 0 | BK134: 0 | BL134: 0 | BM134: 0 | BO134: 1 | BP134: 1 | BQ134: 1 | BR134: 0 | BS134: 0 | BT134: 0 | BV134: 0 | BW134: 0 | BX134: 0 | BY134: 1 | BZ134: 0 | CA134: 0 | CB134: 0 | CC134: 0
A135: 150110110 | C135: 0 | D135: 1 | E135: 50 | F135: 110 | G135: 11 | H135: 11.5 | I135: 0 | J135: 0 | K135: 0 | L135: 0 | M135: 1525 | N135: 0 | O135: 0 | P135: 0 | Q135: 1.438 | R135: 1.1 | S135: 1.1 | T135: 1.1 | U135: 1525 | V135: 0 | W135: 0 | X135: 0 | Y135: 131 | Z135: 0 | AA135: 0 | AB135: 0 | AC135: 0.1665737582 | AD135: 0 | AE135: 0 | AF135: 0 | AG135: 0.0003969 | AH135: 1.7346 | AI135: 4 | AJ135: 0.000574288 | AK135: 0 | AL135: 0 | AM135: 0 | AN135: 0.95 | AO135: 0.95 | AP135: 0.95 | AQ135: 0 | AR135: 0 | AS135: 0 | AT135: 0 | AU135: 0 | AV135: 0 | AW135: 0 | AX135: 0 | AY135: 0 | AZ135: 1.5 | BA135: 0 | BB135: 0 | BC135: 0 | BE135: 1525 | BG135: 1 | BJ135: 0 | BK135: 0 | BL135: 0 | BM135: 0 | BO135: 1 | BP135: 1 | BQ135: 1 | BR135: 0 | BS135: 0 | BT135: 0 | BV135: 0 | BW135: 0 | BX135: 0 | BY135: 1 | BZ135: 0 | CA135: 0 | CB135: 0 | CC135: 0
A136: 150110150 | C136: 0 | D136: 1 | E136: 50 | F136: 110 | G136: 15 | H136: 16.5 | I136: 0 | J136: 0 | K136: 0 | L136: 0 | M136: 1907 | N136: 0 | O136: 0 | P136: 0 | Q136: 1.373 | R136: 1.08 | S136: 1.08 | T136: 1.08 | U136: 1907 | V136: 0 | W136: 0 | X136: 0 | Y136: 164 | Z136: 0 | AA136: 0 | AB136: 0 | AC136: 0.1474210274 | AD136: 0 | AE136: 0 | AF136: 0 | AG136: 0.0002083 | AH136: 1.724 | AI136: 2 | AJ136: 0.000461829 | AK136: 0 | AL136: 0 | AM136: 0 | AN136: 1.01 | AO136: 1.01 | AP136: 1.01 | AQ136: 0 | AR136: 0 | AS136: 0 | AT136: 0 | AU136: 0 | AV136: 0 | AW136: 0 | AX136: 0 | AY136: 0 | AZ136: 1.1 | BA136: 0 | BB136: 0 | BC136: 0 | BE136: 1907 | BG136: 1 | BJ136: 0 | BK136: 0 | BL136: 0 | BM136: 0 | BO136: 1 | BP136: 1 | BQ136: 1 | BR136: 0 | BS136: 0 | BT136: 0 | BV136: 0 | BW136: 0 | BX136: 0 | BY136: 1 | BZ136: 0 | CA136: 0 | CB136: 0 | CC136: 0
A137: 150110160 | C137: 0 | D137: 1 | E137: 50 | F137: 110 | G137: 16 | H137: 16.5 | I137: 0 | J137: 0 | K137: 0 | L137: 0 | M137: 2088 | N137: 0 | O137: 0 | P137: 0 | Q137: 1.464 | R137: 1.1 | S137: 1.1 | T137: 1.1 | U137: 2088 | V137: 0 | W137: 0 | X137: 0 | Y137: 180 | Z137: 0 | AA137: 0 | AB137: 0 | AC137: 0.5025691555 | AD137: 0 | AE137: 0 | AF137: 0 | AG137: 0.0002083 | AH137: 1.724 | AI137: 4 | AJ137: 0.001392796 | AK137: 0 | AL137: 0 | AM137: 0 | AN137: 0.95 | AO137: 0.95 | AP137: 0.95 | AQ137: 0 | AR137: 0 | AS137: 0 | AT137: 0 | AU137: 0 | AV137: 0 | AW137: 0 | AX137: 0 | AY137: 0 | AZ137: 2.2 | BA137: 0 | BB137: 0 | BC137: 0 | BE137: 2088 | BG137: 1 | BJ137: 0 | BK137: 0 | BL137: 0 | BM137: 0 | BO137: 1 | BP137: 1 | BQ137: 1 | BR137: 0 | BS137: 0 | BT137: 0 | BV137: 0 | BW137: 0 | BX137: 0 | BY137: 1 | BZ137: 0 | CA137: 0 | CB137: 0 | CC137: 0
A138: 150110200 | C138: 0 | D138: 1 | E138: 50 | F138: 110 | G138: 20 | H138: 21.5 | I138: 0 | J138: 0 | K138: 0 | L138: 0 | M138: 2668 | N138: 0 | O138: 0 | P138: 0 | Q138: 1.373 | R138: 1.08 | S138: 1.08 | T138: 1.08 | U138: 2668 | V138: 0 | W138: 0 | X138: 0 | Y138: 229 | Z138: 0 | AA138: 0 | AB138: 0 | AC138: 0.2212158123 | AD138: 0 | AE138: 0 | AF138: 0 | AG138: =IF($G138=$CO$103,CP$103,IF($G138=$CO$104,CP$104,IF($G138=$CO$105,CP$105,IF($G138=$CO$107,CP$107,IF($G138=$CO$108,CP$108,IF($G138=$CO$109,CP$109,IF($G138=$CO$111,CP$111,IF($G138=$CO$112,CP$112,IF($G138=$CO$113,CP$113,IF($G138=$CO$115,CP$115,IF($G138=$CO$116,CP$116,IF($G138=$CO$117,CP$117,IF($G138=$CO$119,CP$119,IF($G138=$CO$120,CP$120,)))))))))))))) -> 0.0001276 | AH138: =IF($G138=$CO$103,CQ$103,IF($G138=$CO$104,CQ$104,IF($G138=$CO$105,CQ$105,IF($G138=$CO$107,CQ$107,IF($G138=$CO$108,CQ$108,IF($G138=$CO$109,CQ$109,IF($G138=$CO$111,CQ$111,IF($G138=$CO$112,CQ$112,IF($G138=$CO$113,CQ$113,IF($G138=$CO$115,CQ$115,IF($G138=$CO$116,CQ$116,IF($G138=$CO$117,CQ$117,IF($G138=$CO$119,CQ$119,IF($G138=$CO$120,CQ$120,)))))))))))))) -> 1.7219 | AI138: =IF($G138=$CO$103,CR$103,IF($G138=$CO$104,CR$104,IF($G138=$CO$105,CR$105,IF($G138=$CO$107,CR$107,IF($G138=$CO$108,CR$108,IF($G138=$CO$109,CR$109,IF($G138=$CO$111,CR$111,IF($G138=$CO$112,CR$112,IF($G138=$CO$113,CR$113,IF($G138=$CO$115,CR$115,IF($G138=$CO$116,CR$116,IF($G138=$CO$117,CR$117,IF($G138=$CO$119,CR$119,IF($G138=$CO$120,CR$120,)))))))))))))) -> 2 | AJ138: =IF($G138=$CO$103,CS$103,IF($G138=$CO$104,CS$104,IF($G138=$CO$105,CS$105,IF($G138=$CO$107,CS$107,IF($G138=$CO$108,CS$108,IF($G138=$CO$109,CS$109,IF($G138=$CO$111,CS$111,IF($G138=$CO$112,CS$112,IF($G138=$CO$113,CS$113,IF($G138=$CO$115,CS$115,IF($G138=$CO$116,CS$116,IF($G138=$CO$117,CS$117,IF($G138=$CO$119,CS$119,IF($G138=$CO$120,CS$120,)))))))))))))) -> 0.000376611 | AK138: 0 | AL138: 0 | AM138: 0 | AN138: 0.95 | AO138: 0.95 | AP138: 0.95 | AQ138: 0 | AR138: 0 | AS138: 0 | AT138: 0 | AU138: 0 | AV138: 0 | AW138: 0 | AX138: 0 | AY138: 0 | AZ138: =ROUND(IF(G138=10,$CO$92*F138,IF(G138=11,$CO$93*F138,IF(G138=15,$CO$94*F138,IF(G138=16,$CO$95*F138,IF(G138=20,$CO$96*F138,IF(G138=21,$CO$97*F138,)))))),1) -> 1.5 | BA138: 0 | BB138: 0 | BC138: 0 | BE138: 2668 | BG138: =IF(C138=0,1,IF(G138=10,0.9,IF(G138=11,0.68,IF(G138=15,0.8,IF(G138=16,0.68,IF(G138=20,0.8,IF(G138=21,0.8))))))) -> 1 | BJ138: 0 | BK138: 0 | BL138: 0 | BM138: 0 | BO138: 1 | BP138: 1 | BQ138: 1 | BR138: =AQ138/BO138 -> 0 | BS138: =AR138/BP138 -> 0 | BT138: =AS138/BQ138 -> 0 | BV138: =BR138-AQ138 -> 0 | BW138: =BS138-AR138 -> 0 | BX138: =BT138-AS138 -> 0 | BY138: 1 | BZ138: 0 | CA138: 0 | CB138: 0 | CC138: 0
A139: 150110210 | C139: 0 | D139: 1 | E139: 50 | F139: 110 | G139: 21 | H139: 21.5 | I139: 0 | J139: 0 | K139: 0 | L139: 0 | M139: 2840 | N139: 0 | O139: 0 | P139: 0 | Q139: =IF(E139=35,IF(G139=10,1.399,IF(G139=11,1.44,IF(G139=15,1.39,IF(G139=16,1.458,IF(G139=20,1.39,IF(G139=21,1.472,1)))))),IF(E139=50,IF(G139=10,1.385,IF(G139=11,1.438,IF(G139=15,1.373,IF(G139=16,1.464,IF(G139=20,1.373,IF(G139=21,1.485,1)))))),IF(E139=65,IF(G139=10,1.371,IF(G139=11,1.437,IF(G139=15,1.355,IF(G139=16,1.47,IF(G139=20,1.355,IF(G139=21,1.497,1)))))),IF(E139=95,IF(G139=10,1.343,IF(G139=11,1.434,IF(G139=15,1.32,IF(G139=16,1.482,IF(G139=20,1.32,IF(G139=21,1.522,1)))))),"ERROR")))) -> 1.485 | R139: 1.05 | S139: 1.05 | T139: 1.05 | U139: =ROUND(M139*POWER((($S$1-$S$2)/LN(($S$1-$S$3)/($S$2-$S$3)))/((75-65)/LN((75-20)/(65-20))),Q139),0) -> 2840 | V139: =ROUND(N139*POWER((($S$1-$S$2)/LN(($S$1-$S$3)/($S$2-$S$3)))/((75-65)/LN((75-20)/(65-20))),R139),0) -> 0 | W139: =ROUND(O139*POWER((($S$1-$S$2)/LN(($S$1-$S$3)/($S$2-$S$3)))/((75-65)/LN((75-20)/(65-20))),S139),0) -> 0 | X139: =ROUND(P139*POWER((($S$1-$S$2)/LN(($S$1-$S$3)/($S$2-$S$3)))/((75-65)/LN((75-20)/(65-20))),T139),0) -> 0 | Y139: =ROUND(U139*3600/(4186*ABS($S$1-$S$2)),0) -> 244 | Z139: =ROUND(V139*3600/(4186*ABS($S$1-$S$2)),0) -> 0 | AA139: =ROUND(W139*3600/(4186*ABS($S$1-$S$2)),0) -> 0 | AB139: =ROUND(X139*3600/(4186*ABS($S$1-$S$2)),0) -> 0 | AC139: =(($AG139*(Y139^$AH139)*((($F139-14.4)*$AI139)/100))+($AJ139*(Y139^2)))*0.0098 -> 0.3617341817 | AD139: =(($AG139*(Z139^$AH139)*((($F139-14.4)*$AI139)/100))+($AJ139*(Z139^2)))*0.0098 -> 0 | AE139: =(($AG139*(AA139^$AH139)*((($F139-14.4)*$AI139)/100))+($AJ139*(AA139^2)))*0.0098 -> 0 | AF139: =(($AG139*(AB139^$AH139)*((($F139-14.4)*$AI139)/100))+($AJ139*(AB139^2)))*0.0098 -> 0 | AG139: 0.0001276 | AH139: 1.7219 | AI139: 4 | AJ139: 0.000514201 | AK139: 0 | AL139: 0 | AM139: 0 | AN139: =IF($G139=10,0.98,IF($G139=11,0.95,IF($G139=15,1.01,IF($G139=16,0.95,IF($G139=20,0.95,IF($G139=21,0.85)))))) -> 0.85 | AO139: 0.85 | AP139: 0.85 | AQ139: =ROUND(AK139*POWER((($AT$1-$AT$2)/LN(($AT$1-$AT$3)/($AT$2-$AT$3)))/((16-18)/LN((16-27)/(18-27))),AN139),0) -> 0 | AR139: =ROUND(AL139*POWER((($AT$1-$AT$2)/LN(($AT$1-$AT$3)/($AT$2-$AT$3)))/((16-18)/LN((16-27)/(18-27))),AO139),0) -> 0 | AS139: =ROUND(AM139*POWER((($AT$1-$AT$2)/LN(($AT$1-$AT$3)/($AT$2-$AT$3)))/((16-18)/LN((16-27)/(18-27))),AP139),0) -> 0 | AT139: =ROUND(AQ139*3600/(4186*ABS($AT$1-$AT$2)),0) -> 0 | AU139: =ROUND(AR139*3600/(4186*ABS($AT$1-$AT$2)),0) -> 0 | AV139: =ROUND(AS139*3600/(4186*ABS($AT$1-$AT$2)),0) -> 0 | AW139: =(($AG139*(AT139^$AH139)*((($F139-14.4)*$AI139)/100))+($AJ139*(AT139^2)))*0.0098 -> 0 | AX139: =(($AG139*(AU139^$AH139)*((($F139-14.4)*$AI139)/100))+($AJ139*(AU139^2)))*0.0098 -> 0 | AY139: =(($AG139*(AV139^$AH139)*((($F139-14.4)*$AI139)/100))+($AJ139*(AV139^2)))*0.0098 -> 0 | AZ139: 2.9 | BA139: 0 | BB139: 0 | BC139: 0 | BE139: 2840 | BG139: 1 | BJ139: 0 | BK139: 0 | BL139: 0 | BM139: 0 | BO139: =IF(1/(1+((2258*((0.622/((101325/(1*611*EXP(17.27*((($AT$1+$AT$2)/2)/((($AT$1+$AT$2)/2)+237.3))))))-1)*1000-(0.622/((101325/($AV$1*611*EXP(17.27*($AT$3/($AT$3+237.3))))))-1)*1000))/(1005*((($AT$1+$AT$2)/2)-$AT$3))))>1,1,1/(1+((2258*((0.622/((101325/(1*611*EXP(17.27*((($AT$1+$AT$2)/2)/((($AT$1+$AT$2)/2)+237.3))))))-1)*1000-(0.622/((101325/($AV$1*611*EXP(17.27*($AT$3/($AT$3+237.3))))))-1)*1000))/(1005*((($AT$1+$AT$2)/2)-$AT$3))))) -> 1 | BP139: 1 | BQ139: 1 | BR139: 0 | BS139: 0 | BT139: 0 | BV139: 0 | BW139: 0 | BX139: 0 | BY139: 1 | BZ139: 0 | CA139: 0 | CB139: 0 | CC139: 0
A140: 150120100 | C140: 0 | D140: 1 | E140: 50 | F140: 120 | G140: 10 | H140: 11.5 | I140: 0 | J140: 0 | K140: 0 | L140: 0 | M140: 1291 | N140: 0 | O140: 0 | P140: 0 | Q140: 1.385 | R140: =IF($G140=10,1.08,IF($G140=11,1.1,IF($G140=15,1.08,IF($G140=16,1.1,IF($G140=20,1.08,IF($G140=21,1.05)))))) -> 1.08 | S140: 1.08 | T140: 1.08 | U140: 1291 | V140: 0 | W140: 0 | X140: 0 | Y140: 111 | Z140: 0 | AA140: 0 | AB140: 0 | AC140: 0.07335696493 | AD140: 0 | AE140: 0 | AF140: 0 | AG140: 0.0003969 | AH140: 1.7346 | AI140: 2 | AJ140: 0.000367347 | AK140: 0 | AL140: 0 | AM140: 0 | AN140: 0.98 | AO140: 0.98 | AP140: 0.98 | AQ140: 0 | AR140: 0 | AS140: 0 | AT140: 0 | AU140: 0 | AV140: 0 | AW140: 0 | AX140: 0 | AY140: 0 | AZ140: 0.8 | BA140: 0 | BB140: 0 | BC140: 0 | BE140: 1291 | BG140: 1 | BJ140: 0 | BK140: 0 | BL140: 0 | BM140: 0 | BO140: 1 | BP140: 1 | BQ140: 1 | BR140: 0 | BS140: 0 | BT140: 0 | BV140: 0 | BW140: 0 | BX140: 0 | BY140: 1 | BZ140: 0 | CA140: 0 | CB140: 0 | CC140: 0
A141: 150120110 | C141: 0 | D141: 1 | E141: 50 | F141: 120 | G141: 11 | H141: 11.5 | I141: 0 | J141: 0 | K141: 0 | L141: 0 | M141: 1663 | N141: 0 | O141: 0 | P141: 0 | Q141: 1.438 | R141: 1.1 | S141: 1.1 | T141: 1.1 | U141: 1663 | V141: 0 | W141: 0 | X141: 0 | Y141: 143 | Z141: 0 | AA141: 0 | AB141: 0 | AC141: 0.2050945727 | AD141: 0 | AE141: 0 | AF141: 0 | AG141: 0.0003969 | AH141: 1.7346 | AI141: 4 | AJ141: 0.000574288 | AK141: 0 | AL141: 0 | AM141: 0 | AN141: 0.95 | AO141: 0.95 | AP141: 0.95 | AQ141: 0 | AR141: 0 | AS141: 0 | AT141: 0 | AU141: 0 | AV141: 0 | AW141: 0 | AX141: 0 | AY141: 0 | AZ141: 1.6 | BA141: 0 | BB141: 0 | BC141: 0 | BE141: 1663 | BG141: 1 | BJ141: 0 | BK141: 0 | BL141: 0 | BM141: 0 | BO141: 1 | BP141: 1 | BQ141: 1 | BR141: 0 | BS141: 0 | BT141: 0 | BV141: 0 | BW141: 0 | BX141: 0 | BY141: 1 | BZ141: 0 | CA141: 0 | CB141: 0 | CC141: 0
A142: 150120150 | C142: 0 | D142: 1 | E142: 50 | F142: 120 | G142: 15 | H142: 16.5 | I142: 0 | J142: 0 | K142: 0 | L142: 0 | M142: 2081 | N142: 0 | O142: 0 | P142: 0 | Q142: 1.373 | R142: 1.08 | S142: 1.08 | T142: 1.08 | U142: 2081 | V142: 0 | W142: 0 | X142: 0 | Y142: 179 | Z142: 0 | AA142: 0 | AB142: 0 | AC142: 0.1780161969 | AD142: 0 | AE142: 0 | AF142: 0 | AG142: 0.0002083 | AH142: 1.724 | AI142: 2 | AJ142: 0.000461829 | AK142: 0 | AL142: 0 | AM142: 0 | AN142: 1.01 | AO142: 1.01 | AP142: 1.01 | AQ142: 0 | AR142: 0 | AS142: 0 | AT142: 0 | AU142: 0 | AV142: 0 | AW142: 0 | AX142: 0 | AY142: 0 | AZ142: 1.2 | BA142: 0 | BB142: 0 | BC142: 0 | BE142: 2081 | BG142: 1 | BJ142: 0 | BK142: 0 | BL142: 0 | BM142: 0 | BO142: 1 | BP142: 1 | BQ142: 1 | BR142: 0 | BS142: 0 | BT142: 0 | BV142: 0 | BW142: 0 | BX142: 0 | BY142: 1 | BZ142: 0 | CA142: 0 | CB142: 0 | CC142: 0
A143: 150120160 | C143: 0 | D143: 1 | E143: 50 | F143: 120 | G143: 16 | H143: 16.5 | I143: 0 | J143: 0 | K143: 0 | L143: 0 | M143: 2278 | N143: 0 | O143: 0 | P143: 0 | Q143: 1.464 | R143: 1.1 | S143: 1.1 | T143: 1.1 | U143: 2278 | V143: 0 | W143: 0 | X143: 0 | Y143: 196 | Z143: 0 | AA143: 0 | AB143: 0 | AC143: 0.6015325285 | AD143: 0 | AE143: 0 | AF143: 0 | AG143: 0.0002083 | AH143: 1.724 | AI143: 4 | AJ143: 0.001392796 | AK143: 0 | AL143: 0 | AM143: 0 | AN143: 0.95 | AO143: 0.95 | AP143: 0.95 | AQ143: 0 | AR143: 0 | AS143: 0 | AT143: 0 | AU143: 0 | AV143: 0 | AW143: 0 | AX143: 0 | AY143: 0 | AZ143: 2.4 | BA143: 0 | BB143: 0 | BC143: 0 | BE143: 2278 | BG143: 1 | BJ143: 0 | BK143: 0 | BL143: 0 | BM143: 0 | BO143: 1 | BP143: 1 | BQ143: 1 | BR143: 0 | BS143: 0 | BT143: 0 | BV143: 0 | BW143: 0 | BX143: 0 | BY143: 1 | BZ143: 0 | CA143: 0 | CB143: 0 | CC143: 0
A144: 150120200 | C144: 0 | D144: 1 | E144: 50 | F144: 120 | G144: 20 | H144: 21.5 | I144: 0 | J144: 0 | K144: 0 | L144: 0 | M144: 2910 | N144: 0 | O144: 0 | P144: 0 | Q144: 1.373 | R144: 1.08 | S144: 1.08 | T144: 1.08 | U144: 2910 | V144: 0 | W144: 0 | X144: 0 | Y144: 250 | Z144: 0 | AA144: 0 | AB144: 0 | AC144: 0.2662196505 | AD144: 0 | AE144: 0 | AF144: 0 | AG144: 0.0001276 | AH144: 1.7219 | AI144: 2 | AJ144: 0.000376611 | AK144: 0 | AL144: 0 | AM144: 0 | AN144: 0.95 | AO144: 0.95 | AP144: 0.95 | AQ144: 0 | AR144: 0 | AS144: 0 | AT144: 0 | AU144: 0 | AV144: 0 | AW144: 0 | AX144: 0 | AY144: 0 | AZ144: 1.6 | BA144: 0 | BB144: 0 | BC144: 0 | BE144: 2910 | BG144: 1 | BJ144: 0 | BK144: 0 | BL144: 0 | BM144: 0 | BO144: 1 | BP144: 1 | BQ144: 1 | BR144: 0 | BS144: 0 | BT144: 0 | BV144: 0 | BW144: 0 | BX144: 0 | BY144: 1 | BZ144: 0 | CA144: 0 | CB144: 0 | CC144: 0
A145: 150120210 | C145: 0 | D145: 1 | E145: 50 | F145: 120 | G145: 21 | H145: 21.5 | I145: 0 | J145: 0 | K145: 0 | L145: 0 | M145: 3098 | N145: 0 | O145: 0 | P145: 0 | Q145: 1.485 | R145: 1.05 | S145: 1.05 | T145: 1.05 | U145: 3098 | V145: 0 | W145: 0 | X145: 0 | Y145: 266 | Z145: 0 | AA145: 0 | AB145: 0 | AC145: 0.4356565739 | AD145: 0 | AE145: 0 | AF145: 0 | AG145: 0.0001276 | AH145: 1.7219 | AI145: 4 | AJ145: 0.000514201 | AK145: 0 | AL145: 0 | AM145: 0 | AN145: 0.85 | AO145: 0.85 | AP145: 0.85 | AQ145: 0 | AR145: 0 | AS145: 0 | AT145: 0 | AU145: 0 | AV145: 0 | AW145: 0 | AX145: 0 | AY145: 0 | AZ145: 3.2 | BA145: 0 | BB145: 0 | BC145: 0 | BE145: 3098 | BG145: 1 | BJ145: 0 | BK145: 0 | BL145: 0 | BM145: 0 | BO145: 1 | BP145: 1 | BQ145: 1 | BR145: 0 | BS145: 0 | BT145: 0 | BV145: 0 | BW145: 0 | BX145: 0 | BY145: 1 | BZ145: 0 | CA145: 0 | CB145: 0 | CC145: 0
A146: =CONCATENATE(D146,E146,F146,G146,C146) -> 150140100 | C146: 0 | D146: 1 | E146: 50 | F146: 140 | G146: 10 | H146: 11.5 | I146: 0 | J146: 0 | K146: 0 | L146: 0 | M146: =BE146*BG146 -> 1506 | N146: 0 | O146: 0 | P146: 0 | Q146: 1.385 | R146: 1.08 | S146: 1.08 | T146: 1.08 | U146: 1506 | V146: 0 | W146: 0 | X146: 0 | Y146: 130 | Z146: 0 | AA146: 0 | AB146: 0 | AC146: 0.1062104457 | AD146: 0 | AE146: 0 | AF146: 0 | AG146: 0.0003969 | AH146: 1.7346 | AI146: 2 | AJ146: 0.000367347 | AK146: 0 | AL146: 0 | AM146: 0 | AN146: 0.98 | AO146: 0.98 | AP146: 0.98 | AQ146: 0 | AR146: 0 | AS146: 0 | AT146: 0 | AU146: 0 | AV146: 0 | AW146: 0 | AX146: 0 | AY146: 0 | AZ146: 0.9 | BA146: 0 | BB146: 0 | BC146: 0 | BE146: 1506 | BG146: 1 | BJ146: 0 | BK146: 0 | BL146: 0 | BM146: 0 | BO146: 1 | BP146: 1 | BQ146: 1 | BR146: 0 | BS146: 0 | BT146: 0 | BV146: 0 | BW146: 0 | BX146: 0 | BY146: 1 | BZ146: 0 | CA146: 0 | CB146: 0 | CC146: 0
A147: 150140110 | C147: 0 | D147: 1 | E147: 50 | F147: 140 | G147: 11 | H147: 11.5 | I147: 0 | J147: 0 | K147: 0 | L147: 0 | M147: 1940 | N147: 0 | O147: 0 | P147: 0 | Q147: 1.438 | R147: 1.1 | S147: 1.1 | T147: 1.1 | U147: 1940 | V147: 0 | W147: 0 | X147: 0 | Y147: 167 | Z147: 0 | AA147: 0 | AB147: 0 | AC147: 0.2970736795 | AD147: 0 | AE147: 0 | AF147: 0 | AG147: 0.0003969 | AH147: 1.7346 | AI147: 4 | AJ147: 0.000574288 | AK147: 0 | AL147: 0 | AM147: 0 | AN147: 0.95 | AO147: 0.95 | AP147: 0.95 | AQ147: 0 | AR147: 0 | AS147: 0 | AT147: 0 | AU147: 0 | AV147: 0 | AW147: 0 | AX147: 0 | AY147: 0 | AZ147: 1.9 | BA147: 0 | BB147: 0 | BC147: 0 | BE147: 1940 | BG147: 1 | BJ147: 0 | BK147: 0 | BL147: 0 | BM147: 0 | BO147: 1 | BP147: 1 | BQ147: 1 | BR147: 0 | BS147: 0 | BT147: 0 | BV147: 0 | BW147: 0 | BX147: 0 | BY147: 1 | BZ147: 0 | CA147: 0 | CB147: 0 | CC147: 0
A148: 150140150 | C148: 0 | D148: 1 | E148: 50 | F148: 140 | G148: 15 | H148: 16.5 | I148: 0 | J148: 0 | K148: 0 | L148: 0 | M148: 2428 | N148: 0 | O148: 0 | P148: 0 | Q148: 1.373 | R148: 1.08 | S148: 1.08 | T148: 1.08 | U148: 2428 | V148: 0 | W148: 0 | X148: 0 | Y148: 209 | Z148: 0 | AA148: 0 | AB148: 0 | AC148: 0.2489673507 | AD148: 0 | AE148: 0 | AF148: 0 | AG148: 0.0002083 | AH148: 1.724 | AI148: 2 | AJ148: 0.000461829 | AK148: 0 | AL148: 0 | AM148: 0 | AN148: 1.01 | AO148: 1.01 | AP148: 1.01 | AQ148: 0 | AR148: 0 | AS148: 0 | AT148: 0 | AU148: 0 | AV148: 0 | AW148: 0 | AX148: 0 | AY148: 0 | AZ148: 1.4 | BA148: 0 | BB148: 0 | BC148: 0 | BE148: 2428 | BG148: 1 | BJ148: 0 | BK148: 0 | BL148: 0 | BM148: 0 | BO148: 1 | BP148: 1 | BQ148: 1 | BR148: 0 | BS148: 0 | BT148: 0 | BV148: 0 | BW148: 0 | BX148: 0 | BY148: 1 | BZ148: 0 | CA148: 0 | CB148: 0 | CC148: 0
A149: 150140160 | C149: 0 | D149: 1 | E149: 50 | F149: 140 | G149: 16 | H149: 16.5 | I149: 0 | J149: 0 | K149: 0 | L149: 0 | M149: 2657 | N149: 0 | O149: 0 | P149: 0 | Q149: 1.464 | R149: 1.1 | S149: 1.1 | T149: 1.1 | U149: 2657 | V149: 0 | W149: 0 | X149: 0 | Y149: 229 | Z149: 0 | AA149: 0 | AB149: 0 | AC149: 0.8358269452 | AD149: 0 | AE149: 0 | AF149: 0 | AG149: 0.0002083 | AH149: 1.724 | AI149: 4 | AJ149: 0.001392796 | AK149: 0 | AL149: 0 | AM149: 0 | AN149: 0.95 | AO149: 0.95 | AP149: 0.95 | AQ149: 0 | AR149: 0 | AS149: 0 | AT149: 0 | AU149: 0 | AV149: 0 | AW149: 0 | AX149: 0 | AY149: 0 | AZ149: 2.8 | BA149: 0 | BB149: 0 | BC149: 0 | BE149: 2657 | BG149: 1 | BJ149: 0 | BK149: 0 | BL149: 0 | BM149: 0 | BO149: 1 | BP149: 1 | BQ149: 1 | BR149: 0 | BS149: 0 | BT149: 0 | BV149: 0 | BW149: 0 | BX149: 0 | BY149: 1 | BZ149: 0 | CA149: 0 | CB149: 0 | CC149: 0
A150: 150140200 | C150: 0 | D150: 1 | E150: 50 | F150: 140 | G150: 20 | H150: 21.5 | I150: 0 | J150: 0 | K150: 0 | L150: 0 | M150: 3395 | N150: 0 | O150: 0 | P150: 0 | Q150: 1.373 | R150: 1.08 | S150: 1.08 | T150: 1.08 | U150: 3395 | V150: 0 | W150: 0 | X150: 0 | Y150: 292 | Z150: 0 | AA150: 0 | AB150: 0 | AC150: 0.36992948 | AD150: 0 | AE150: 0 | AF150: 0 | AG150: 0.0001276 | AH150: 1.7219 | AI150: 2 | AJ150: 0.000376611 | AK150: 0 | AL150: 0 | AM150: 0 | AN150: 0.95 | AO150: 0.95 | AP150: 0.95 | AQ150: 0 | AR150: 0 | AS150: 0 | AT150: 0 | AU150: 0 | AV150: 0 | AW150: 0 | AX150: 0 | AY150: 0 | AZ150: 1.9 | BA150: 0 | BB150: 0 | BC150: 0 | BE150: 3395 | BG150: 1 | BJ150: 0 | BK150: 0 | BL150: 0 | BM150: 0 | BO150: 1 | BP150: 1 | BQ150: 1 | BR150: 0 | BS150: 0 | BT150: 0 | BV150: 0 | BW150: 0 | BX150: 0 | BY150: 1 | BZ150: 0 | CA150: 0 | CB150: 0 | CC150: 0
A151: 150140210 | C151: 0 | D151: 1 | E151: 50 | F151: 140 | G151: 21 | H151: 21.5 | I151: 0 | J151: 0 | K151: 0 | L151: 0 | M151: 3615 | N151: 0 | O151: 0 | P151: 0 | Q151: 1.485 | R151: 1.05 | S151: 1.05 | T151: 1.05 | U151: 3615 | V151: 0 | W151: 0 | X151: 0 | Y151: 311 | Z151: 0 | AA151: 0 | AB151: 0 | AC151: 0.6105367592 | AD151: 0 | AE151: 0 | AF151: 0 | AG151: 0.0001276 | AH151: 1.7219 | AI151: 4 | AJ151: 0.000514201 | AK151: 0 | AL151: 0 | AM151: 0 | AN151: 0.85 | AO151: 0.85 | AP151: 0.85 | AQ151: 0 | AR151: 0 | AS151: 0 | AT151: 0 | AU151: 0 | AV151: 0 | AW151: 0 | AX151: 0 | AY151: 0 | AZ151: 3.7 | BA151: 0 | BB151: 0 | BC151: 0 | BE151: 3615 | BG151: 1 | BJ151: 0 | BK151: 0 | BL151: 0 | BM151: 0 | BO151: 1 | BP151: 1 | BQ151: 1 | BR151: 0 | BS151: 0 | BT151: 0 | BV151: 0 | BW151: 0 | BX151: 0 | BY151: 1 | BZ151: 0 | CA151: 0 | CB151: 0 | CC151: 0
A152: 150160100 | C152: 0 | D152: 1 | E152: 50 | F152: 160 | G152: 10 | H152: 11.5 | I152: 0 | J152: 0 | K152: 0 | L152: 0 | M152: 1722 | N152: 0 | O152: 0 | P152: 0 | Q152: 1.385 | R152: 1.08 | S152: 1.08 | T152: 1.08 | U152: 1722 | V152: 0 | W152: 0 | X152: 0 | Y152: 148 | Z152: 0 | AA152: 0 | AB152: 0 | AC152: 0.1447163528 | AD152: 0 | AE152: 0 | AF152: 0 | AG152: 0.0003969 | AH152: 1.7346 | AI152: 2 | AJ152: 0.000367347 | AK152: 0 | AL152: 0 | AM152: 0 | AN152: 0.98 | AO152: 0.98 | AP152: 0.98 | AQ152: 0 | AR152: 0 | AS152: 0 | AT152: 0 | AU152: 0 | AV152: 0 | AW152: 0 | AX152: 0 | AY152: 0 | AZ152: 1.1 | BA152: 0 | BB152: 0 | BC152: 0 | BE152: 1722 | BG152: 1 | BJ152: 0 | BK152: 0 | BL152: 0 | BM152: 0 | BO152: 1 | BP152: 1 | BQ152: 1 | BR152: 0 | BS152: 0 | BT152: 0 | BV152: 0 | BW152: 0 | BX152: 0 | BY152: 1 | BZ152: 0 | CA152: =ROUND(IF($C138=0,0,IF($C138=10,IF($G138=10,2539,IF($G138=11,3445,IF($G138=15,2539*1.3,IF($G138=16,3445*1.3,IF($G138=20,(2539*1.45),IF($G138=21,(3445*1.55))))))),IF($C138=15,IF($G138=10,0,IF($G138=11,0,IF($G138=15,3238,IF($G138=16,4735,IF($G138=20,4062,IF($G138=21,6098))))))))),0) -> 0 | CB152: =ROUND(IF($C138=0,0,IF($C138=10,IF($G138=10,352,IF($G138=11,577,IF($G138=15,442*1.15,IF($G138=16,725*1.15,IF($G138=20,(352*1.3),IF($G138=21,(577*1.3))))))),IF($C138=15,IF($G138=10,0,IF($G138=11,0,IF($G138=15,442,IF($G138=16,725,IF($G138=20,502,IF($G138=21,791))))))))),0) -> 0 | CC152: 0
A153: 150160110 | C153: 0 | D153: 1 | E153: 50 | F153: 160 | G153: 11 | H153: 11.5 | I153: 0 | J153: 0 | K153: 0 | L153: 0 | M153: 2218 | N153: 0 | O153: 0 | P153: 0 | Q153: 1.438 | R153: 1.1 | S153: 1.1 | T153: 1.1 | U153: 2218 | V153: 0 | W153: 0 | X153: 0 | Y153: 191 | Z153: 0 | AA153: 0 | AB153: 0 | AC153: 0.4103419234 | AD153: 0 | AE153: 0 | AF153: 0 | AG153: 0.0003969 | AH153: 1.7346 | AI153: 4 | AJ153: 0.000574288 | AK153: 0 | AL153: 0 | AM153: 0 | AN153: 0.95 | AO153: 0.95 | AP153: 0.95 | AQ153: 0 | AR153: 0 | AS153: 0 | AT153: 0 | AU153: 0 | AV153: 0 | AW153: 0 | AX153: 0 | AY153: 0 | AZ153: 2.1 | BA153: 0 | BB153: 0 | BC153: 0 | BE153: 2218 | BG153: 1 | BJ153: 0 | BK153: 0 | BL153: 0 | BM153: 0 | BO153: 1 | BP153: 1 | BQ153: 1 | BR153: 0 | BS153: 0 | BT153: 0 | BV153: 0 | BW153: 0 | BX153: 0 | BY153: 1 | BZ153: =ROUND(IF($C139=0,0,IF($C139=10,IF($G139=10,1127,IF($G139=11,2263,"UNDEFINED")),IF($C139=15,IF($G139=10,"NOT POSSIBLE",IF($G139=11,"NOT POSSIBLE",IF($G139=15,1615,IF($G139=16,3238,IF($G139=20,2298,IF($G139=21,2489)))))),"ERROR"))),0) -> 0 | CA153: 0 | CB153: 0 | CC153: =ROUND(IF($C139=0,0,IF($C139=10,IF($G139=10,62,IF($G139=11,50,"UNDEFINED")),IF($C139=15,IF($G139=10,"NOT POSSIBLE",IF($G139=11,"NOT POSSIBLE",IF($G139=15,63,IF($G139=16,75,IF($G139=20,78,IF($G139=21,92)))))),"ERROR"))),0) -> 0
A154: 150160150 | C154: 0 | D154: 1 | E154: 50 | F154: 160 | G154: 15 | H154: 16.5 | I154: 0 | J154: 0 | K154: 0 | L154: 0 | M154: 2774 | N154: 0 | O154: 0 | P154: 0 | Q154: 1.373 | R154: 1.08 | S154: 1.08 | T154: 1.08 | U154: 2774 | V154: 0 | W154: 0 | X154: 0 | Y154: 239 | Z154: 0 | AA154: 0 | AB154: 0 | AC154: 0.3334223637 | AD154: 0 | AE154: 0 | AF154: 0 | AG154: 0.0002083 | AH154: 1.724 | AI154: 2 | AJ154: 0.000461829 | AK154: 0 | AL154: 0 | AM154: 0 | AN154: 1.01 | AO154: 1.01 | AP154: 1.01 | AQ154: 0 | AR154: 0 | AS154: 0 | AT154: 0 | AU154: 0 | AV154: 0 | AW154: 0 | AX154: 0 | AY154: 0 | AZ154: 1.6 | BA154: 0 | BB154: 0 | BC154: 0 | BE154: 2774 | BG154: 1 | BJ154: 0 | BK154: 0 | BL154: 0 | BM154: 0 | BO154: 1 | BP154: 1 | BQ154: 1 | BR154: 0 | BS154: 0 | BT154: 0 | BV154: 0 | BW154: 0 | BX154: 0 | BY154: 1 | BZ154: 0 | CA154: 0 | CB154: 0 | CC154: 0
A155: 150160160 | C155: 0 | D155: 1 | E155: 50 | F155: 160 | G155: 16 | H155: 16.5 | I155: 0 | J155: 0 | K155: 0 | L155: 0 | M155: 3037 | N155: 0 | O155: 0 | P155: 0 | Q155: 1.464 | R155: 1.1 | S155: 1.1 | T155: 1.1 | U155: 3037 | V155: 0 | W155: 0 | X155: 0 | Y155: 261 | Z155: 0 | AA155: 0 | AB155: 0 | AC155: 1.104162034 | AD155: 0 | AE155: 0 | AF155: 0 | AG155: 0.0002083 | AH155: 1.724 | AI155: 4 | AJ155: 0.001392796 | AK155: 0 | AL155: 0 | AM155: 0 | AN155: 0.95 | AO155: 0.95 | AP155: 0.95 | AQ155: 0 | AR155: 0 | AS155: 0 | AT155: 0 | AU155: 0 | AV155: 0 | AW155: 0 | AX155: 0 | AY155: 0 | AZ155: 3.2 | BA155: 0 | BB155: 0 | BC155: 0 | BE155: 3037 | BG155: 1 | BJ155: 0 | BK155: 0 | BL155: 0 | BM155: 0 | BO155: 1 | BP155: 1 | BQ155: 1 | BR155: 0 | BS155: 0 | BT155: 0 | BV155: 0 | BW155: 0 | BX155: 0 | BY155: 1 | BZ155: 0 | CA155: 0 | CB155: 0 | CC155: 0
A156: 150160200 | C156: 0 | D156: 1 | E156: 50 | F156: 160 | G156: 20 | H156: 21.5 | I156: 0 | J156: 0 | K156: 0 | L156: 0 | M156: 3880 | N156: 0 | O156: 0 | P156: 0 | Q156: 1.373 | R156: 1.08 | S156: 1.08 | T156: 1.08 | U156: 3880 | V156: 0 | W156: 0 | X156: 0 | Y156: 334 | Z156: 0 | AA156: 0 | AB156: 0 | AC156: 0.4924357726 | AD156: 0 | AE156: 0 | AF156: 0 | AG156: 0.0001276 | AH156: 1.7219 | AI156: 2 | AJ156: 0.000376611 | AK156: 0 | AL156: 0 | AM156: 0 | AN156: 0.95 | AO156: 0.95 | AP156: 0.95 | AQ156: 0 | AR156: 0 | AS156: 0 | AT156: 0 | AU156: 0 | AV156: 0 | AW156: 0 | AX156: 0 | AY156: 0 | AZ156: 2.1 | BA156: 0 | BB156: 0 | BC156: 0 | BE156: 3880 | BG156: 1 | BJ156: 0 | BK156: 0 | BL156: 0 | BM156: 0 | BO156: 1 | BP156: 1 | BQ156: 1 | BR156: 0 | BS156: 0 | BT156: 0 | BV156: 0 | BW156: 0 | BX156: 0 | BY156: 1 | BZ156: 0 | CA156: 0 | CB156: 0 | CC156: 0
A157: 150160210 | C157: 0 | D157: 1 | E157: 50 | F157: 160 | G157: 21 | H157: 21.5 | I157: 0 | J157: 0 | K157: 0 | L157: 0 | M157: 4131 | N157: 0 | O157: 0 | P157: 0 | Q157: 1.485 | R157: 1.05 | S157: 1.05 | T157: 1.05 | U157: 4131 | V157: 0 | W157: 0 | X157: 0 | Y157: 355 | Z157: 0 | AA157: 0 | AB157: 0 | AC157: 0.8143432209 | AD157: 0 | AE157: 0 | AF157: 0 | AG157: 0.0001276 | AH157: 1.7219 | AI157: 4 | AJ157: 0.000514201 | AK157: 0 | AL157: 0 | AM157: 0 | AN157: 0.85 | AO157: 0.85 | AP157: 0.85 | AQ157: 0 | AR157: 0 | AS157: 0 | AT157: 0 | AU157: 0 | AV157: 0 | AW157: 0 | AX157: 0 | AY157: 0 | AZ157: 4.3 | BA157: 0 | BB157: 0 | BC157: 0 | BE157: 4131 | BG157: 1 | BJ157: 0 | BK157: 0 | BL157: 0 | BM157: 0 | BO157: 1 | BP157: 1 | BQ157: 1 | BR157: 0 | BS157: 0 | BT157: 0 | BV157: 0 | BW157: 0 | BX157: 0 | BY157: 1 | BZ157: 0 | CA157: 0 | CB157: 0 | CC157: 0
A158: 150180100 | C158: 0 | D158: 1 | E158: 50 | F158: 180 | G158: 10 | H158: 11.5 | I158: 0 | J158: 0 | K158: 0 | L158: 0 | M158: 1937 | N158: 0 | O158: 0 | P158: 0 | Q158: 1.385 | R158: 1.08 | S158: 1.08 | T158: 1.08 | U158: 1937 | V158: 0 | W158: 0 | X158: 0 | Y158: 167 | Z158: 0 | AA158: 0 | AB158: 0 | AC158: 0.1927684068 | AD158: 0 | AE158: 0 | AF158: 0 | AG158: 0.0003969 | AH158: 1.7346 | AI158: 2 | AJ158: 0.000367347 | AK158: 0 | AL158: 0 | AM158: 0 | AN158: 0.98 | AO158: 0.98 | AP158: 0.98 | AQ158: 0 | AR158: 0 | AS158: 0 | AT158: 0 | AU158: 0 | AV158: 0 | AW158: 0 | AX158: 0 | AY158: 0 | AZ158: 1.2 | BA158: 0 | BB158: 0 | BC158: 0 | BE158: 1937 | BG158: 1 | BJ158: 0 | BK158: 0 | BL158: 0 | BM158: 0 | BO158: 1 | BP158: 1 | BQ158: 1 | BR158: 0 | BS158: 0 | BT158: 0 | BV158: 0 | BW158: 0 | BX158: 0 | BY158: 1 | BZ158: 0 | CA158: 0 | CB158: 0 | CC158: 0
A159: 150180110 | C159: 0 | D159: 1 | E159: 50 | F159: 180 | G159: 11 | H159: 11.5 | I159: 0 | J159: 0 | K159: 0 | L159: 0 | M159: 2495 | N159: 0 | O159: 0 | P159: 0 | Q159: 1.438 | R159: 1.1 | S159: 1.1 | T159: 1.1 | U159: 2495 | V159: 0 | W159: 0 | X159: 0 | Y159: 215 | Z159: 0 | AA159: 0 | AB159: 0 | AC159: 0.5464908721 | AD159: 0 | AE159: 0 | AF159: 0 | AG159: 0.0003969 | AH159: 1.7346 | AI159: 4 | AJ159: 0.000574288 | AK159: 0 | AL159: 0 | AM159: 0 | AN159: 0.95 | AO159: 0.95 | AP159: 0.95 | AQ159: 0 | AR159: 0 | AS159: 0 | AT159: 0 | AU159: 0 | AV159: 0 | AW159: 0 | AX159: 0 | AY159: 0 | AZ159: 2.4 | BA159: 0 | BB159: 0 | BC159: 0 | BE159: 2495 | BG159: 1 | BJ159: 0 | BK159: 0 | BL159: 0 | BM159: 0 | BO159: 1 | BP159: 1 | BQ159: 1 | BR159: 0 | BS159: 0 | BT159: 0 | BV159: 0 | BW159: 0 | BX159: 0 | BY159: 1 | BZ159: 0 | CA159: 0 | CB159: 0 | CC159: 0
A160: 150180150 | C160: 0 | D160: 1 | E160: 50 | F160: 180 | G160: 15 | H160: 16.5 | I160: 0 | J160: 0 | K160: 0 | L160: 0 | M160: 3121 | N160: 0 | O160: 0 | P160: 0 | Q160: 1.373 | R160: 1.08 | S160: 1.08 | T160: 1.08 | U160: 3121 | V160: 0 | W160: 0 | X160: 0 | Y160: 268 | Z160: 0 | AA160: 0 | AB160: 0 | AC160: 0.4288491176 | AD160: 0 | AE160: 0 | AF160: 0 | AG160: 0.0002083 | AH160: 1.724 | AI160: 2 | AJ160: 0.000461829 | AK160: 0 | AL160: 0 | AM160: 0 | AN160: 1.01 | AO160: 1.01 | AP160: 1.01 | AQ160: 0 | AR160: 0 | AS160: 0 | AT160: 0 | AU160: 0 | AV160: 0 | AW160: 0 | AX160: 0 | AY160: 0 | AZ160: 1.8 | BA160: 0 | BB160: 0 | BC160: 0 | BE160: 3121 | BG160: 1 | BJ160: 0 | BK160: 0 | BL160: 0 | BM160: 0 | BO160: 1 | BP160: 1 | BQ160: 1 | BR160: 0 | BS160: 0 | BT160: 0 | BV160: 0 | BW160: 0 | BX160: 0 | BY160: 1 | BZ160: 0 | CA160: 0 | CB160: 0 | CC160: 0
A161: 150180160 | C161: 0 | D161: 1 | E161: 50 | F161: 180 | G161: 16 | H161: 16.5 | I161: 0 | J161: 0 | K161: 0 | L161: 0 | M161: 3416 | N161: 0 | O161: 0 | P161: 0 | Q161: 1.464 | R161: 1.1 | S161: 1.1 | T161: 1.1 | U161: 3416 | V161: 0 | W161: 0 | X161: 0 | Y161: 294 | Z161: 0 | AA161: 0 | AB161: 0 | AC161: 1.423281387 | AD161: 0 | AE161: 0 | AF161: 0 | AG161: 0.0002083 | AH161: 1.724 | AI161: 4 | AJ161: 0.001392796 | AK161: 0 | AL161: 0 | AM161: 0 | AN161: 0.95 | AO161: 0.95 | AP161: 0.95 | AQ161: 0 | AR161: 0 | AS161: 0 | AT161: 0 | AU161: 0 | AV161: 0 | AW161: 0 | AX161: 0 | AY161: 0 | AZ161: 3.6 | BA161: 0 | BB161: 0 | BC161: 0 | BE161: 3416 | BG161: 1 | BJ161: 0 | BK161: 0 | BL161: 0 | BM161: 0 | BO161: 1 | BP161: 1 | BQ161: 1 | BR161: 0 | BS161: 0 | BT161: 0 | BV161: 0 | BW161: 0 | BX161: 0 | BY161: 1 | BZ161: 0 | CA161: 0 | CB161: 0 | CC161: 0
A162: 150180200 | C162: 0 | D162: 1 | E162: 50 | F162: 180 | G162: 20 | H162: 21.5 | I162: 0 | J162: 0 | K162: 0 | L162: 0 | M162: 4365 | N162: 0 | O162: 0 | P162: 0 | Q162: 1.373 | R162: 1.08 | S162: 1.08 | T162: 1.08 | U162: 4365 | V162: 0 | W162: 0 | X162: 0 | Y162: 375 | Z162: 0 | AA162: 0 | AB162: 0 | AC162: 0.631061786 | AD162: 0 | AE162: 0 | AF162: 0 | AG162: 0.0001276 | AH162: 1.7219 | AI162: 2 | AJ162: 0.000376611 | AK162: 0 | AL162: 0 | AM162: 0 | AN162: 0.95 | AO162: 0.95 | AP162: 0.95 | AQ162: 0 | AR162: 0 | AS162: 0 | AT162: 0 | AU162: 0 | AV162: 0 | AW162: 0 | AX162: 0 | AY162: 0 | AZ162: 2.4 | BA162: 0 | BB162: 0 | BC162: 0 | BE162: 4365 | BG162: 1 | BJ162: 0 | BK162: 0 | BL162: 0 | BM162: 0 | BO162: 1 | BP162: 1 | BQ162: 1 | BR162: 0 | BS162: 0 | BT162: 0 | BV162: 0 | BW162: 0 | BX162: 0 | BY162: 1 | BZ162: 0 | CA162: 0 | CB162: 0 | CC162: 0
A163: 150180210 | C163: 0 | D163: 1 | E163: 50 | F163: 180 | G163: 21 | H163: 21.5 | I163: 0 | J163: 0 | K163: 0 | L163: 0 | M163: 4648 | N163: 0 | O163: 0 | P163: 0 | Q163: 1.485 | R163: 1.05 | S163: 1.05 | T163: 1.05 | U163: 4648 | V163: 0 | W163: 0 | X163: 0 | Y163: 400 | Z163: 0 | AA163: 0 | AB163: 0 | AC163: 1.056695911 | AD163: 0 | AE163: 0 | AF163: 0 | AG163: 0.0001276 | AH163: 1.7219 | AI163: 4 | AJ163: 0.000514201 | AK163: 0 | AL163: 0 | AM163: 0 | AN163: 0.85 | AO163: 0.85 | AP163: 0.85 | AQ163: 0 | AR163: 0 | AS163: 0 | AT163: 0 | AU163: 0 | AV163: 0 | AW163: 0 | AX163: 0 | AY163: 0 | AZ163: 4.8 | BA163: 0 | BB163: 0 | BC163: 0 | BE163: 4648 | BG163: 1 | BJ163: 0 | BK163: 0 | BL163: 0 | BM163: 0 | BO163: 1 | BP163: 1 | BQ163: 1 | BR163: 0 | BS163: 0 | BT163: 0 | BV163: 0 | BW163: 0 | BX163: 0 | BY163: 1 | BZ163: 0 | CA163: 0 | CB163: 0 | CC163: 0
A164: 150200100 | C164: 0 | D164: 1 | E164: 50 | F164: 200 | G164: 10 | H164: 11.5 | I164: 0 | J164: 0 | K164: 0 | L164: 0 | M164: 2152 | N164: 0 | O164: 0 | P164: 0 | Q164: 1.385 | R164: 1.08 | S164: 1.08 | T164: 1.08 | U164: 2152 | V164: 0 | W164: 0 | X164: 0 | Y164: 185 | Z164: 0 | AA164: 0 | AB164: 0 | AC164: 0.2468478073 | AD164: 0 | AE164: 0 | AF164: 0 | AG164: 0.0003969 | AH164: 1.7346 | AI164: 2 | AJ164: 0.000367347 | AK164: 0 | AL164: 0 | AM164: 0 | AN164: 0.98 | AO164: 0.98 | AP164: 0.98 | AQ164: 0 | AR164: 0 | AS164: 0 | AT164: 0 | AU164: 0 | AV164: 0 | AW164: 0 | AX164: 0 | AY164: 0 | AZ164: 1.3 | BA164: 0 | BB164: 0 | BC164: 0 | BE164: 2152 | BG164: 1 | BJ164: 0 | BK164: 0 | BL164: 0 | BM164: 0 | BO164: 1 | BP164: 1 | BQ164: 1 | BR164: 0 | BS164: 0 | BT164: 0 | BV164: 0 | BW164: 0 | BX164: 0 | BY164: 1 | BZ164: 0 | CA164: 0 | CB164: 0 | CC164: 0
A165: 150200110 | C165: 0 | D165: 1 | E165: 50 | F165: 200 | G165: 11 | H165: 11.5 | I165: 0 | J165: 0 | K165: 0 | L165: 0 | M165: 2772 | N165: 0 | O165: 0 | P165: 0 | Q165: 1.438 | R165: 1.1 | S165: 1.1 | T165: 1.1 | U165: 2772 | V165: 0 | W165: 0 | X165: 0 | Y165: 238 | Z165: 0 | AA165: 0 | AB165: 0 | AC165: 0.7015792443 | AD165: 0 | AE165: 0 | AF165: 0 | AG165: 0.0003969 | AH165: 1.7346 | AI165: 4 | AJ165: 0.000574288 | AK165: 0 | AL165: 0 | AM165: 0 | AN165: 0.95 | AO165: 0.95 | AP165: 0.95 | AQ165: 0 | AR165: 0 | AS165: 0 | AT165: 0 | AU165: 0 | AV165: 0 | AW165: 0 | AX165: 0 | AY165: 0 | AZ165: 2.7 | BA165: 0 | BB165: 0 | BC165: 0 | BE165: 2772 | BG165: 1 | BJ165: 0 | BK165: 0 | BL165: 0 | BM165: 0 | BO165: 1 | BP165: 1 | BQ165: 1 | BR165: 0 | BS165: 0 | BT165: 0 | BV165: 0 | BW165: 0 | BX165: 0 | BY165: 1 | BZ165: 0 | CA165: 0 | CB165: 0 | CC165: 0
A166: 150200150 | C166: 0 | D166: 1 | E166: 50 | F166: 200 | G166: 15 | H166: 16.5 | I166: 0 | J166: 0 | K166: 0 | L166: 0 | M166: 3468 | N166: 0 | O166: 0 | P166: 0 | Q166: 1.373 | R166: 1.08 | S166: 1.08 | T166: 1.08 | U166: 3468 | V166: 0 | W166: 0 | X166: 0 | Y166: 298 | Z166: 0 | AA166: 0 | AB166: 0 | AC166: 0.5415802096 | AD166: 0 | AE166: 0 | AF166: 0 | AG166: 0.0002083 | AH166: 1.724 | AI166: 2 | AJ166: 0.000461829 | AK166: 0 | AL166: 0 | AM166: 0 | AN166: 1.01 | AO166: 1.01 | AP166: 1.01 | AQ166: 0 | AR166: 0 | AS166: 0 | AT166: 0 | AU166: 0 | AV166: 0 | AW166: 0 | AX166: 0 | AY166: 0 | AZ166: 2 | BA166: 0 | BB166: 0 | BC166: 0 | BE166: 3468 | BG166: 1 | BJ166: 0 | BK166: 0 | BL166: 0 | BM166: 0 | BO166: 1 | BP166: 1 | BQ166: 1 | BR166: 0 | BS166: 0 | BT166: 0 | BV166: 0 | BW166: 0 | BX166: 0 | BY166: =IF(SUM(BV166:BX166)=0,1,0) -> 1 | BZ166: 0 | CA166: 0 | CB166: 0 | CC166: 0
A167: 150200160 | C167: 0 | D167: 1 | E167: 50 | F167: 200 | G167: 16 | H167: =IF(G167=10,11.5,IF(G167=11,11.5,IF(G167=15,16.5,IF(G167=16,16.5,IF(G167=20,21.5,IF(G167=21,21.5,)))))) -> 16.5 | I167: 0 | J167: 0 | K167: 0 | L167: 0 | M167: 3796 | N167: 0 | O167: 0 | P167: 0 | Q167: 1.464 | R167: 1.1 | S167: 1.1 | T167: 1.1 | U167: 3796 | V167: 0 | W167: 0 | X167: 0 | Y167: 326 | Z167: 0 | AA167: 0 | AB167: 0 | AC167: 1.77669595 | AD167: 0 | AE167: 0 | AF167: 0 | AG167: 0.0002083 | AH167: 1.724 | AI167: 4 | AJ167: 0.001392796 | AK167: 0 | AL167: 0 | AM167: 0 | AN167: 0.95 | AO167: 0.95 | AP167: 0.95 | AQ167: 0 | AR167: 0 | AS167: 0 | AT167: 0 | AU167: 0 | AV167: 0 | AW167: 0 | AX167: 0 | AY167: 0 | AZ167: 4 | BA167: 0 | BB167: 0 | BC167: 0 | BE167: 3796 | BG167: 1 | BJ167: 0 | BK167: 0 | BL167: 0 | BM167: 0 | BO167: 1 | BP167: 1 | BQ167: 1 | BR167: 0 | BS167: 0 | BT167: 0 | BV167: 0 | BW167: 0 | BX167: 0 | BY167: 1 | BZ167: 0 | CA167: 0 | CB167: 0 | CC167: 0
A168: 150200200 | C168: 0 | D168: 1 | E168: 50 | F168: 200 | G168: 20 | H168: 21.5 | I168: 0 | J168: 0 | K168: 0 | L168: 0 | M168: 4850 | N168: 0 | O168: 0 | P168: 0 | Q168: 1.373 | R168: 1.08 | S168: 1.08 | T168: 1.08 | U168: 4850 | V168: 0 | W168: 0 | X168: 0 | Y168: 417 | Z168: 0 | AA168: 0 | AB168: 0 | AC168: 0.7925511704 | AD168: 0 | AE168: 0 | AF168: 0 | AG168: 0.0001276 | AH168: 1.7219 | AI168: 2 | AJ168: 0.000376611 | AK168: 0 | AL168: 0 | AM168: 0 | AN168: 0.95 | AO168: 0.95 | AP168: 0.95 | AQ168: 0 | AR168: 0 | AS168: 0 | AT168: 0 | AU168: 0 | AV168: 0 | AW168: 0 | AX168: 0 | AY168: 0 | AZ168: 2.7 | BA168: 0 | BB168: 0 | BC168: 0 | BE168: 4850 | BG168: 1 | BJ168: 0 | BK168: 0 | BL168: 0 | BM168: 0 | BO168: 1 | BP168: 1 | BQ168: 1 | BR168: 0 | BS168: 0 | BT168: 0 | BV168: 0 | BW168: 0 | BX168: 0 | BY168: 1 | BZ168: 0 | CA168: 0 | CB168: 0 | CC168: 0
A169: 150200210 | C169: 0 | D169: 1 | E169: 50 | F169: 200 | G169: 21 | H169: 21.5 | I169: 0 | J169: 0 | K169: 0 | L169: 0 | M169: 5164 | N169: 0 | O169: 0 | P169: 0 | Q169: 1.485 | R169: 1.05 | S169: 1.05 | T169: 1.05 | U169: 5164 | V169: 0 | W169: 0 | X169: 0 | Y169: 444 | Z169: 0 | AA169: 0 | AB169: 0 | AC169: 1.329327647 | AD169: 0 | AE169: 0 | AF169: 0 | AG169: 0.0001276 | AH169: 1.7219 | AI169: 4 | AJ169: 0.000514201 | AK169: 0 | AL169: 0 | AM169: 0 | AN169: 0.85 | AO169: 0.85 | AP169: 0.85 | AQ169: 0 | AR169: 0 | AS169: 0 | AT169: 0 | AU169: 0 | AV169: 0 | AW169: 0 | AX169: 0 | AY169: 0 | AZ169: 5.3 | BA169: 0 | BB169: 0 | BC169: 0 | BE169: 5164 | BG169: 1 | BJ169: 0 | BK169: 0 | BL169: 0 | BM169: 0 | BO169: 1 | BP169: 1 | BQ169: 1 | BR169: 0 | BS169: 0 | BT169: 0 | BV169: 0 | BW169: 0 | BX169: 0 | BY169: 1 | BZ169: 0 | CA169: 0 | CB169: 0 | CC169: 0
A170: 150220100 | C170: 0 | D170: 1 | E170: 50 | F170: 220 | G170: 10 | H170: 11.5 | I170: 0 | J170: 0 | K170: 0 | L170: 0 | M170: 2207.797101 | N170: 0 | O170: 0 | P170: 0 | Q170: 1.385 | R170: 1.08 | S170: 1.08 | T170: 1.08 | U170: 2208 | V170: 0 | W170: 0 | X170: 0 | Y170: 190 | Z170: 0 | AA170: 0 | AB170: 0 | AC170: 0.2734053064 | AD170: 0 | AE170: 0 | AF170: 0 | AG170: 0.0003969 | AH170: 1.7346 | AI170: 2 | AJ170: 0.000367347 | AK170: 0 | AL170: 0 | AM170: 0 | AN170: 0.98 | AO170: 0.98 | AP170: 0.98 | AQ170: 0 | AR170: 0 | AS170: 0 | AT170: 0 | AU170: 0 | AV170: 0 | AW170: 0 | AX170: 0 | AY170: 0 | AZ170: 1.5 | BA170: 0 | BB170: 0 | BC170: 0 | BE170: 2207.797101 | BG170: 1 | BJ170: 0 | BK170: 0 | BL170: 0 | BM170: 0 | BO170: 1 | BP170: 1 | BQ170: 1 | BR170: 0 | BS170: 0 | BT170: 0 | BV170: 0 | BW170: 0 | BX170: 0 | BY170: 1 | BZ170: 0 | CA170: 0 | CB170: 0 | CC170: 0
A171: 150220110 | C171: 0 | D171: 1 | E171: 50 | F171: 220 | G171: 11 | H171: 11.5 | I171: 0 | J171: 0 | K171: 0 | L171: 0 | M171: 2843.971014 | N171: 0 | O171: 0 | P171: 0 | Q171: 1.438 | R171: 1.1 | S171: 1.1 | T171: 1.1 | U171: 2844 | V171: 0 | W171: 0 | X171: 0 | Y171: 245 | Z171: 0 | AA171: 0 | AB171: 0 | AC171: 0.7837223463 | AD171: 0 | AE171: 0 | AF171: 0 | AG171: 0.0003969 | AH171: 1.7346 | AI171: 4 | AJ171: 0.000574288 | AK171: 0 | AL171: 0 | AM171: 0 | AN171: 0.95 | AO171: 0.95 | AP171: 0.95 | AQ171: 0 | AR171: 0 | AS171: 0 | AT171: 0 | AU171: 0 | AV171: 0 | AW171: 0 | AX171: 0 | AY171: 0 | AZ171: 2.9 | BA171: 0 | BB171: 0 | BC171: 0 | BE171: 2843.971014 | BG171: 1 | BJ171: 0 | BK171: 0 | BL171: 0 | BM171: 0 | BO171: 1 | BP171: 1 | BQ171: 1 | BR171: 0 | BS171: 0 | BT171: 0 | BV171: 0 | BW171: 0 | BX171: 0 | BY171: 1 | BZ171: 0 | CA171: 0 | CB171: 0 | CC171: 0
A172: 150220150 | C172: 0 | D172: 1 | E172: 50 | F172: 220 | G172: 15 | H172: 16.5 | I172: 0 | J172: 0 | K172: 0 | L172: 0 | M172: 3558.811594 | N172: 0 | O172: 0 | P172: 0 | Q172: 1.373 | R172: 1.08 | S172: 1.08 | T172: 1.08 | U172: 3559 | V172: 0 | W172: 0 | X172: 0 | Y172: 306 | Z172: 0 | AA172: 0 | AB172: 0 | AC172: 0.5857287135 | AD172: 0 | AE172: 0 | AF172: 0 | AG172: 0.0002083 | AH172: 1.724 | AI172: 2 | AJ172: 0.000461829 | AK172: 0 | AL172: 0 | AM172: 0 | AN172: 1.01 | AO172: 1.01 | AP172: 1.01 | AQ172: 0 | AR172: 0 | AS172: 0 | AT172: 0 | AU172: 0 | AV172: 0 | AW172: 0 | AX172: 0 | AY172: 0 | AZ172: 2.2 | BA172: 0 | BB172: 0 | BC172: 0 | BE172: 3558.811594 | BG172: 1 | BJ172: 0 | BK172: 0 | BL172: 0 | BM172: 0 | BO172: 1 | BP172: 1 | BQ172: 1 | BR172: 0 | BS172: 0 | BT172: 0 | BV172: 0 | BW172: 0 | BX172: 0 | BY172: 1 | BZ172: 0 | CA172: 0 | CB172: 0 | CC172: 0
A173: 150220160 | C173: 0 | D173: 1 | E173: 50 | F173: 220 | G173: 16 | H173: 16.5 | I173: 0 | J173: 0 | K173: 0 | L173: 0 | M173: 3894.855072 | N173: 0 | O173: 0 | P173: 0 | Q173: 1.464 | R173: 1.1 | S173: 1.1 | T173: 1.1 | U173: 3895 | V173: 0 | W173: 0 | X173: 0 | Y173: 335 | Z173: 0 | AA173: 0 | AB173: 0 | AC173: 1.91039972 | AD173: 0 | AE173: 0 | AF173: 0 | AG173: 0.0002083 | AH173: 1.724 | AI173: 4 | AJ173: 0.001392796 | AK173: 0 | AL173: 0 | AM173: 0 | AN173: 0.95 | AO173: 0.95 | AP173: 0.95 | AQ173: 0 | AR173: 0 | AS173: 0 | AT173: 0 | AU173: 0 | AV173: 0 | AW173: 0 | AX173: 0 | AY173: 0 | AZ173: 4.4 | BA173: 0 | BB173: 0 | BC173: 0 | BE173: 3894.855072 | BG173: 1 | BJ173: 0 | BK173: 0 | BL173: 0 | BM173: 0 | BO173: 1 | BP173: 1 | BQ173: 1 | BR173: 0 | BS173: 0 | BT173: 0 | BV173: 0 | BW173: 0 | BX173: 0 | BY173: 1 | BZ173: 0 | CA173: 0 | CB173: 0 | CC173: 0
A174: 150220200 | C174: 0 | D174: 1 | E174: 50 | F174: 220 | G174: 20 | H174: 21.5 | I174: 0 | J174: 0 | K174: 0 | L174: 0 | M174: 4976.521739 | N174: 0 | O174: 0 | P174: 0 | Q174: 1.373 | R174: 1.08 | S174: 1.08 | T174: 1.08 | U174: 4977 | V174: 0 | W174: 0 | X174: 0 | Y174: 428 | Z174: 0 | AA174: 0 | AB174: 0 | AC174: 0.8507610851 | AD174: 0 | AE174: 0 | AF174: 0 | AG174: 0.0001276 | AH174: 1.7219 | AI174: 2 | AJ174: 0.000376611 | AK174: 0 | AL174: 0 | AM174: 0 | AN174: 0.95 | AO174: 0.95 | AP174: 0.95 | AQ174: 0 | AR174: 0 | AS174: 0 | AT174: 0 | AU174: 0 | AV174: 0 | AW174: 0 | AX174: 0 | AY174: 0 | AZ174: 2.9 | BA174: 0 | BB174: 0 | BC174: 0 | BE174: 4976.521739 | BG174: 1 | BJ174: 0 | BK174: 0 | BL174: 0 | BM174: 0 | BO174: 1 | BP174: 1 | BQ174: 1 | BR174: 0 | BS174: 0 | BT174: 0 | BV174: 0 | BW174: 0 | BX174: 0 | BY174: 1 | BZ174: 0 | CA174: 0 | CB174: 0 | CC174: 0
A175: 150220210 | C175: 0 | D175: 1 | E175: 50 | F175: 220 | G175: 21 | H175: 21.5 | I175: 0 | J175: 0 | K175: 0 | L175: 0 | M175: 5298.884058 | N175: 0 | O175: 0 | P175: 0 | Q175: 1.485 | R175: 1.05 | S175: 1.05 | T175: 1.05 | U175: 5299 | V175: 0 | W175: 0 | X175: 0 | Y175: 456 | Z175: 0 | AA175: 0 | AB175: 0 | AC175: 1.437435995 | AD175: 0 | AE175: 0 | AF175: 0 | AG175: 0.0001276 | AH175: 1.7219 | AI175: 4 | AJ175: 0.000514201 | AK175: 0 | AL175: 0 | AM175: 0 | AN175: 0.85 | AO175: 0.85 | AP175: 0.85 | AQ175: 0 | AR175: 0 | AS175: 0 | AT175: 0 | AU175: 0 | AV175: 0 | AW175: 0 | AX175: 0 | AY175: 0 | AZ175: 5.9 | BA175: 0 | BB175: 0 | BC175: 0 | BE175: 5298.884058 | BG175: 1 | BJ175: 0 | BK175: 0 | BL175: 0 | BM175: 0 | BO175: 1 | BP175: 1 | BQ175: 1 | BR175: 0 | BS175: 0 | BT175: 0 | BV175: 0 | BW175: 0 | BX175: 0 | BY175: 1 | BZ175: 0 | CA175: 0 | CB175: 0 | CC175: 0
A176: 150240100 | C176: 0 | D176: 1 | E176: 50 | F176: 240 | G176: 10 | H176: 11.5 | I176: 0 | J176: 0 | K176: 0 | L176: 0 | M176: 2582 | N176: 0 | O176: 0 | P176: 0 | Q176: 1.385 | R176: 1.08 | S176: 1.08 | T176: 1.08 | U176: 2582 | V176: 0 | W176: 0 | X176: 0 | Y176: 222 | Z176: 0 | AA176: 0 | AB176: 0 | AC176: 0.3836088861 | AD176: 0 | AE176: 0 | AF176: 0 | AG176: 0.0003969 | AH176: 1.7346 | AI176: 2 | AJ176: 0.000367347 | AK176: 0 | AL176: 0 | AM176: 0 | AN176: 0.98 | AO176: 0.98 | AP176: 0.98 | AQ176: 0 | AR176: 0 | AS176: 0 | AT176: 0 | AU176: 0 | AV176: 0 | AW176: 0 | AX176: 0 | AY176: 0 | AZ176: 1.6 | BA176: 0 | BB176: 0 | BC176: 0 | BE176: 2582 | BG176: 1 | BJ176: 0 | BK176: 0 | BL176: 0 | BM176: 0 | BO176: 1 | BP176: 1 | BQ176: 1 | BR176: 0 | BS176: 0 | BT176: 0 | BV176: 0 | BW176: 0 | BX176: 0 | BY176: 1 | BZ176: 0 | CA176: 0 | CB176: 0 | CC176: 0
A177: 150240110 | C177: 0 | D177: 1 | E177: 50 | F177: 240 | G177: 11 | H177: 11.5 | I177: 0 | J177: 0 | K177: 0 | L177: 0 | M177: 3326 | N177: 0 | O177: 0 | P177: 0 | Q177: 1.438 | R177: 1.1 | S177: 1.1 | T177: 1.1 | U177: 3326 | V177: 0 | W177: 0 | X177: 0 | Y177: 286 | Z177: 0 | AA177: 0 | AB177: 0 | AC177: 1.100259551 | AD177: 0 | AE177: 0 | AF177: 0 | AG177: 0.0003969 | AH177: 1.7346 | AI177: 4 | AJ177: 0.000574288 | AK177: 0 | AL177: 0 | AM177: 0 | AN177: 0.95 | AO177: 0.95 | AP177: 0.95 | AQ177: 0 | AR177: 0 | AS177: 0 | AT177: 0 | AU177: 0 | AV177: 0 | AW177: 0 | AX177: 0 | AY177: 0 | AZ177: 3.2 | BA177: 0 | BB177: 0 | BC177: 0 | BE177: 3326 | BG177: 1 | BJ177: 0 | BK177: 0 | BL177: 0 | BM177: 0 | BO177: 1 | BP177: 1 | BQ177: 1 | BR177: 0 | BS177: 0 | BT177: 0 | BV177: 0 | BW177: 0 | BX177: 0 | BY177: 1 | BZ177: 0 | CA177: 0 | CB177: 0 | CC177: 0
A178: 150240150 | C178: 0 | D178: 1 | E178: 50 | F178: 240 | G178: 15 | H178: 16.5 | I178: 0 | J178: 0 | K178: 0 | L178: 0 | M178: 4162 | N178: 0 | O178: 0 | P178: 0 | Q178: 1.373 | R178: 1.08 | S178: 1.08 | T178: 1.08 | U178: 4162 | V178: 0 | W178: 0 | X178: 0 | Y178: 358 | Z178: 0 | AA178: 0 | AB178: 0 | AC178: 0.8129655291 | AD178: 0 | AE178: 0 | AF178: 0 | AG178: 0.0002083 | AH178: 1.724 | AI178: 2 | AJ178: 0.000461829 | AK178: 0 | AL178: 0 | AM178: 0 | AN178: 1.01 | AO178: 1.01 | AP178: 1.01 | AQ178: 0 | AR178: 0 | AS178: 0 | AT178: 0 | AU178: 0 | AV178: 0 | AW178: 0 | AX178: 0 | AY178: 0 | AZ178: 2.4 | BA178: 0 | BB178: 0 | BC178: 0 | BE178: 4162 | BG178: 1 | BJ178: 0 | BK178: 0 | BL178: 0 | BM178: 0 | BO178: 1 | BP178: 1 | BQ178: 1 | BR178: 0 | BS178: 0 | BT178: 0 | BV178: 0 | BW178: 0 | BX178: 0 | BY178: 1 | BZ178: 0 | CA178: 0 | CB178: 0 | CC178: 0
A179: 150240160 | C179: 0 | D179: 1 | E179: 50 | F179: 240 | G179: 16 | H179: 16.5 | I179: 0 | J179: 0 | K179: 0 | L179: 0 | M179: 4555 | N179: 0 | O179: 0 | P179: 0 | Q179: 1.464 | R179: 1.1 | S179: 1.1 | T179: 1.1 | U179: 4555 | V179: 0 | W179: 0 | X179: 0 | Y179: 392 | Z179: 0 | AA179: 0 | AB179: 0 | AC179: 2.642099246 | AD179: 0 | AE179: 0 | AF179: 0 | AG179: 0.0002083 | AH179: 1.724 | AI179: 4 | AJ179: 0.001392796 | AK179: 0 | AL179: 0 | AM179: 0 | AN179: 0.95 | AO179: 0.95 | AP179: 0.95 | AQ179: 0 | AR179: 0 | AS179: 0 | AT179: 0 | AU179: 0 | AV179: 0 | AW179: 0 | AX179: 0 | AY179: 0 | AZ179: 4.8 | BA179: 0 | BB179: 0 | BC179: 0 | BE179: 4555 | BG179: 1 | BJ179: 0 | BK179: 0 | BL179: 0 | BM179: 0 | BO179: 1 | BP179: 1 | BQ179: 1 | BR179: 0 | BS179: 0 | BT179: 0 | BV179: 0 | BW179: 0 | BX179: 0 | BY179: 1 | BZ179: 0 | CA179: 0 | CB179: 0 | CC179: 0
A180: 150240200 | C180: 0 | D180: 1 | E180: 50 | F180: 240 | G180: 20 | H180: 21.5 | I180: 0 | J180: 0 | K180: 0 | L180: 0 | M180: 5820 | N180: 0 | O180: 0 | P180: 0 | Q180: 1.373 | R180: 1.08 | S180: 1.08 | T180: 1.08 | U180: 5820 | V180: 0 | W180: 0 | X180: 0 | Y180: 501 | Z180: 0 | AA180: 0 | AB180: 0 | AC180: 1.177751575 | AD180: 0 | AE180: 0 | AF180: 0 | AG180: 0.0001276 | AH180: 1.7219 | AI180: 2 | AJ180: 0.000376611 | AK180: 0 | AL180: 0 | AM180: 0 | AN180: 0.95 | AO180: 0.95 | AP180: 0.95 | AQ180: 0 | AR180: 0 | AS180: 0 | AT180: 0 | AU180: 0 | AV180: 0 | AW180: 0 | AX180: 0 | AY180: 0 | AZ180: 3.2 | BA180: 0 | BB180: 0 | BC180: 0 | BE180: 5820 | BG180: 1 | BJ180: 0 | BK180: 0 | BL180: 0 | BM180: 0 | BO180: 1 | BP180: 1 | BQ180: 1 | BR180: 0 | BS180: 0 | BT180: 0 | BV180: 0 | BW180: 0 | BX180: 0 | BY180: 1 | BZ180: 0 | CA180: 0 | CB180: 0 | CC180: 0
A181: 150240210 | C181: 0 | D181: 1 | E181: 50 | F181: 240 | G181: 21 | H181: 21.5 | I181: 0 | J181: 0 | K181: 0 | L181: 0 | M181: 6197 | N181: 0 | O181: 0 | P181: 0 | Q181: 1.485 | R181: 1.05 | S181: 1.05 | T181: 1.05 | U181: 6197 | V181: 0 | W181: 0 | X181: 0 | Y181: 533 | Z181: 0 | AA181: 0 | AB181: 0 | AC181: 1.9908503 | AD181: 0 | AE181: 0 | AF181: 0 | AG181: 0.0001276 | AH181: 1.7219 | AI181: 4 | AJ181: 0.000514201 | AK181: 0 | AL181: 0 | AM181: 0 | AN181: 0.85 | AO181: 0.85 | AP181: 0.85 | AQ181: 0 | AR181: 0 | AS181: 0 | AT181: 0 | AU181: 0 | AV181: 0 | AW181: 0 | AX181: 0 | AY181: 0 | AZ181: 6.4 | BA181: 0 | BB181: 0 | BC181: 0 | BE181: 6197 | BG181: 1 | BJ181: 0 | BK181: 0 | BL181: 0 | BM181: 0 | BO181: 1 | BP181: 1 | BQ181: 1 | BR181: 0 | BS181: 0 | BT181: 0 | BV181: 0 | BW181: 0 | BX181: 0 | BY181: 1 | BZ181: 0 | CA181: 0 | CB181: 0 | CC181: 0
A182: 150260100 | C182: 0 | D182: 1 | E182: 50 | F182: 260 | G182: 10 | H182: 11.5 | I182: 0 | J182: 0 | K182: 0 | L182: 0 | M182: 2674.460674 | N182: 0 | O182: 0 | P182: 0 | Q182: 1.385 | R182: 1.08 | S182: 1.08 | T182: 1.08 | U182: 2674 | V182: 0 | W182: 0 | X182: 0 | Y182: 230 | Z182: 0 | AA182: 0 | AB182: 0 | AC182: 0.429121465 | AD182: 0 | AE182: 0 | AF182: 0 | AG182: 0.0003969 | AH182: 1.7346 | AI182: 2 | AJ182: 0.000367347 | AK182: 0 | AL182: 0 | AM182: 0 | AN182: 0.98 | AO182: 0.98 | AP182: 0.98 | AQ182: 0 | AR182: 0 | AS182: 0 | AT182: 0 | AU182: 0 | AV182: 0 | AW182: 0 | AX182: 0 | AY182: 0 | AZ182: 1.7 | BA182: 0 | BB182: 0 | BC182: 0 | BE182: 2674.460674 | BG182: 1 | BJ182: 0 | BK182: 0 | BL182: 0 | BM182: 0 | BO182: 1 | BP182: 1 | BQ182: 1 | BR182: 0 | BS182: 0 | BT182: 0 | BV182: 0 | BW182: 0 | BX182: 0 | BY182: 1 | BZ182: 0 | CA182: 0 | CB182: 0 | CC182: 0
A183: 150260110 | C183: 0 | D183: 1 | E183: 50 | F183: 260 | G183: 11 | H183: 11.5 | I183: 0 | J183: 0 | K183: 0 | L183: 0 | M183: 3444.932584 | N183: 0 | O183: 0 | P183: 0 | Q183: 1.438 | R183: 1.1 | S183: 1.1 | T183: 1.1 | U183: 3445 | V183: 0 | W183: 0 | X183: 0 | Y183: 296 | Z183: 0 | AA183: 0 | AB183: 0 | AC183: 1.232536622 | AD183: 0 | AE183: 0 | AF183: 0 | AG183: 0.0003969 | AH183: 1.7346 | AI183: 4 | AJ183: 0.000574288 | AK183: 0 | AL183: 0 | AM183: 0 | AN183: 0.95 | AO183: 0.95 | AP183: 0.95 | AQ183: 0 | AR183: 0 | AS183: 0 | AT183: 0 | AU183: 0 | AV183: 0 | AW183: 0 | AX183: 0 | AY183: 0 | AZ183: 3.5 | BA183: 0 | BB183: 0 | BC183: 0 | BE183: 3444.932584 | BG183: 1 | BJ183: 0 | BK183: 0 | BL183: 0 | BM183: 0 | BO183: 1 | BP183: 1 | BQ183: 1 | BR183: 0 | BS183: 0 | BT183: 0 | BV183: 0 | BW183: 0 | BX183: 0 | BY183: 1 | BZ183: 0 | CA183: 0 | CB183: 0 | CC183: 0
A184: 150260150 | C184: 0 | D184: 1 | E184: 50 | F184: 260 | G184: 15 | H184: 16.5 | I184: 0 | J184: 0 | K184: 0 | L184: 0 | M184: 4309.494382 | N184: 0 | O184: 0 | P184: 0 | Q184: 1.373 | R184: 1.08 | S184: 1.08 | T184: 1.08 | U184: 4309 | V184: 0 | W184: 0 | X184: 0 | Y184: 371 | Z184: 0 | AA184: 0 | AB184: 0 | AC184: 0.8925865276 | AD184: 0 | AE184: 0 | AF184: 0 | AG184: 0.0002083 | AH184: 1.724 | AI184: 2 | AJ184: 0.000461829 | AK184: 0 | AL184: 0 | AM184: 0 | AN184: 1.01 | AO184: 1.01 | AP184: 1.01 | AQ184: 0 | AR184: 0 | AS184: 0 | AT184: 0 | AU184: 0 | AV184: 0 | AW184: 0 | AX184: 0 | AY184: 0 | AZ184: 2.6 | BA184: 0 | BB184: 0 | BC184: 0 | BE184: 4309.494382 | BG184: 1 | BJ184: 0 | BK184: 0 | BL184: 0 | BM184: 0 | BO184: 1 | BP184: 1 | BQ184: 1 | BR184: 0 | BS184: 0 | BT184: 0 | BV184: 0 | BW184: 0 | BX184: 0 | BY184: 1 | BZ184: 0 | CA184: 0 | CB184: 0 | CC184: 0
A185: 150260160 | C185: 0 | D185: 1 | E185: 50 | F185: 260 | G185: 16 | H185: 16.5 | I185: 0 | J185: 0 | K185: 0 | L185: 0 | M185: 4716.921348 | N185: 0 | O185: 0 | P185: 0 | Q185: 1.464 | R185: 1.1 | S185: 1.1 | T185: 1.1 | U185: 4717 | V185: 0 | W185: 0 | X185: 0 | Y185: 406 | Z185: 0 | AA185: 0 | AB185: 0 | AC185: 2.879857555 | AD185: 0 | AE185: 0 | AF185: 0 | AG185: 0.0002083 | AH185: 1.724 | AI185: 4 | AJ185: 0.001392796 | AK185: 0 | AL185: 0 | AM185: 0 | AN185: 0.95 | AO185: 0.95 | AP185: 0.95 | AQ185: 0 | AR185: 0 | AS185: 0 | AT185: 0 | AU185: 0 | AV185: 0 | AW185: 0 | AX185: 0 | AY185: 0 | AZ185: 5.2 | BA185: 0 | BB185: 0 | BC185: 0 | BE185: 4716.921348 | BG185: 1 | BJ185: 0 | BK185: 0 | BL185: 0 | BM185: 0 | BO185: 1 | BP185: 1 | BQ185: 1 | BR185: 0 | BS185: 0 | BT185: 0 | BV185: 0 | BW185: 0 | BX185: 0 | BY185: 1 | BZ185: 0 | CA185: 0 | CB185: 0 | CC185: 0
A186: 150260200 | C186: 0 | D186: 1 | E186: 50 | F186: 260 | G186: 20 | H186: 21.5 | I186: 0 | J186: 0 | K186: 0 | L186: 0 | M186: 6027.078652 | N186: 0 | O186: 0 | P186: 0 | Q186: 1.373 | R186: 1.08 | S186: 1.08 | T186: 1.08 | U186: 6027 | V186: 0 | W186: 0 | X186: 0 | Y186: 518 | Z186: 0 | AA186: 0 | AB186: 0 | AC186: 1.280154399 | AD186: 0 | AE186: 0 | AF186: 0 | AG186: 0.0001276 | AH186: 1.7219 | AI186: 2 | AJ186: 0.000376611 | AK186: 0 | AL186: 0 | AM186: 0 | AN186: 0.95 | AO186: 0.95 | AP186: 0.95 | AQ186: 0 | AR186: 0 | AS186: 0 | AT186: 0 | AU186: 0 | AV186: 0 | AW186: 0 | AX186: 0 | AY186: 0 | AZ186: 3.5 | BA186: 0 | BB186: 0 | BC186: 0 | BE186: 6027.078652 | BG186: 1 | BJ186: 0 | BK186: 0 | BL186: 0 | BM186: 0 | BO186: 1 | BP186: 1 | BQ186: 1 | BR186: 0 | BS186: 0 | BT186: 0 | BV186: 0 | BW186: 0 | BX186: 0 | BY186: 1 | BZ186: 0 | CA186: 0 | CB186: 0 | CC186: 0
A187: 150260210 | C187: 0 | D187: 1 | E187: 50 | F187: 260 | G187: 21 | H187: 21.5 | I187: 0 | J187: 0 | K187: 0 | L187: 0 | M187: 6417.640449 | N187: 0 | O187: 0 | P187: 0 | Q187: 1.485 | R187: 1.05 | S187: 1.05 | T187: 1.05 | U187: 6418 | V187: 0 | W187: 0 | X187: 0 | Y187: 552 | Z187: 0 | AA187: 0 | AB187: 0 | AC187: 2.182165828 | AD187: 0 | AE187: 0 | AF187: 0 | AG187: 0.0001276 | AH187: 1.7219 | AI187: 4 | AJ187: 0.000514201 | AK187: 0 | AL187: 0 | AM187: 0 | AN187: 0.85 | AO187: 0.85 | AP187: 0.85 | AQ187: 0 | AR187: 0 | AS187: 0 | AT187: 0 | AU187: 0 | AV187: 0 | AW187: 0 | AX187: 0 | AY187: 0 | AZ187: 6.9 | BA187: 0 | BB187: 0 | BC187: 0 | BE187: 6417.640449 | BG187: 1 | BJ187: 0 | BK187: 0 | BL187: 0 | BM187: 0 | BO187: 1 | BP187: 1 | BQ187: 1 | BR187: 0 | BS187: 0 | BT187: 0 | BV187: 0 | BW187: 0 | BX187: 0 | BY187: 1 | BZ187: 0 | CA187: 0 | CB187: 0 | CC187: 0
A188: 150280100 | C188: 0 | D188: 1 | E188: 50 | F188: 280 | G188: 10 | H188: 11.5 | I188: 0 | J188: 0 | K188: 0 | L188: 0 | M188: 3013 | N188: 0 | O188: 0 | P188: 0 | Q188: 1.385 | R188: 1.08 | S188: 1.08 | T188: 1.08 | U188: 3013 | V188: 0 | W188: 0 | X188: 0 | Y188: 259 | Z188: 0 | AA188: 0 | AB188: 0 | AC188: 0.5586491591 | AD188: 0 | AE188: 0 | AF188: 0 | AG188: 0.0003969 | AH188: 1.7346 | AI188: 2 | AJ188: 0.000367347 | AK188: 0 | AL188: 0 | AM188: 0 | AN188: 0.98 | AO188: 0.98 | AP188: 0.98 | AQ188: 0 | AR188: 0 | AS188: 0 | AT188: 0 | AU188: 0 | AV188: 0 | AW188: 0 | AX188: 0 | AY188: 0 | AZ188: 1.9 | BA188: 0 | BB188: 0 | BC188: 0 | BE188: 3013 | BG188: 1 | BJ188: 0 | BK188: 0 | BL188: 0 | BM188: 0 | BO188: 1 | BP188: 1 | BQ188: 1 | BR188: 0 | BS188: 0 | BT188: 0 | BV188: 0 | BW188: 0 | BX188: 0 | BY188: 1 | BZ188: 0 | CA188: 0 | CB188: 0 | CC188: 0
A189: 150280110 | C189: 0 | D189: 1 | E189: 50 | F189: 280 | G189: 11 | H189: 11.5 | I189: 0 | J189: 0 | K189: 0 | L189: 0 | M189: 3881 | N189: 0 | O189: 0 | P189: 0 | Q189: 1.438 | R189: 1.1 | S189: 1.1 | T189: 1.1 | U189: 3881 | V189: 0 | W189: 0 | X189: 0 | Y189: 334 | Z189: 0 | AA189: 0 | AB189: 0 | AC189: 1.613859971 | AD189: 0 | AE189: 0 | AF189: 0 | AG189: 0.0003969 | AH189: 1.7346 | AI189: 4 | AJ189: 0.000574288 | AK189: 0 | AL189: 0 | AM189: 0 | AN189: 0.95 | AO189: 0.95 | AP189: 0.95 | AQ189: 0 | AR189: 0 | AS189: 0 | AT189: 0 | AU189: 0 | AV189: 0 | AW189: 0 | AX189: 0 | AY189: 0 | AZ189: 3.7 | BA189: 0 | BB189: 0 | BC189: 0 | BE189: 3881 | BG189: 1 | BJ189: 0 | BK189: 0 | BL189: 0 | BM189: 0 | BO189: 1 | BP189: 1 | BQ189: 1 | BR189: 0 | BS189: 0 | BT189: 0 | BV189: 0 | BW189: 0 | BX189: 0 | BY189: 1 | BZ189: 0 | CA189: 0 | CB189: 0 | CC189: 0
A190: 150280150 | C190: 0 | D190: 1 | E190: 50 | F190: 280 | G190: 15 | H190: 16.5 | I190: 0 | J190: 0 | K190: 0 | L190: 0 | M190: 4855 | N190: 0 | O190: 0 | P190: 0 | Q190: 1.373 | R190: 1.08 | S190: 1.08 | T190: 1.08 | U190: 4855 | V190: 0 | W190: 0 | X190: 0 | Y190: 418 | Z190: 0 | AA190: 0 | AB190: 0 | AC190: 1.148951077 | AD190: 0 | AE190: 0 | AF190: 0 | AG190: 0.0002083 | AH190: 1.724 | AI190: 2 | AJ190: 0.000461829 | AK190: 0 | AL190: 0 | AM190: 0 | AN190: 1.01 | AO190: 1.01 | AP190: 1.01 | AQ190: 0 | AR190: 0 | AS190: 0 | AT190: 0 | AU190: 0 | AV190: 0 | AW190: 0 | AX190: 0 | AY190: 0 | AZ190: 2.8 | BA190: 0 | BB190: 0 | BC190: 0 | BE190: 4855 | BG190: 1 | BJ190: 0 | BK190: 0 | BL190: 0 | BM190: 0 | BO190: 1 | BP190: 1 | BQ190: 1 | BR190: 0 | BS190: 0 | BT190: 0 | BV190: 0 | BW190: 0 | BX190: 0 | BY190: 1 | BZ190: 0 | CA190: 0 | CB190: 0 | CC190: 0
A191: 150280160 | C191: 0 | D191: 1 | E191: 50 | F191: 280 | G191: 16 | H191: 16.5 | I191: 0 | J191: 0 | K191: 0 | L191: 0 | M191: 5314 | N191: 0 | O191: 0 | P191: 0 | Q191: 1.464 | R191: 1.1 | S191: 1.1 | T191: 1.1 | U191: 5314 | V191: 0 | W191: 0 | X191: 0 | Y191: 457 | Z191: 0 | AA191: 0 | AB191: 0 | AC191: 3.686072298 | AD191: 0 | AE191: 0 | AF191: 0 | AG191: 0.0002083 | AH191: 1.724 | AI191: 4 | AJ191: 0.001392796 | AK191: 0 | AL191: 0 | AM191: 0 | AN191: 0.95 | AO191: 0.95 | AP191: 0.95 | AQ191: 0 | AR191: 0 | AS191: 0 | AT191: 0 | AU191: 0 | AV191: 0 | AW191: 0 | AX191: 0 | AY191: 0 | AZ191: 5.6 | BA191: 0 | BB191: 0 | BC191: 0 | BE191: 5314 | BG191: 1 | BJ191: 0 | BK191: 0 | BL191: 0 | BM191: 0 | BO191: 1 | BP191: 1 | BQ191: 1 | BR191: 0 | BS191: 0 | BT191: 0 | BV191: 0 | BW191: 0 | BX191: 0 | BY191: 1 | BZ191: 0 | CA191: 0 | CB191: 0 | CC191: 0
A192: 150280200 | C192: 0 | D192: 1 | E192: 50 | F192: 280 | G192: 20 | H192: 21.5 | I192: 0 | J192: 0 | K192: 0 | L192: 0 | M192: 6790 | N192: 0 | O192: 0 | P192: 0 | Q192: 1.373 | R192: 1.08 | S192: 1.08 | T192: 1.08 | U192: 6790 | V192: 0 | W192: 0 | X192: 0 | Y192: 584 | Z192: 0 | AA192: 0 | AB192: 0 | AC192: 1.644084921 | AD192: 0 | AE192: 0 | AF192: 0 | AG192: 0.0001276 | AH192: 1.7219 | AI192: 2 | AJ192: 0.000376611 | AK192: 0 | AL192: 0 | AM192: 0 | AN192: 0.95 | AO192: 0.95 | AP192: 0.95 | AQ192: 0 | AR192: 0 | AS192: 0 | AT192: 0 | AU192: 0 | AV192: 0 | AW192: 0 | AX192: 0 | AY192: 0 | AZ192: 3.7 | BA192: 0 | BB192: 0 | BC192: 0 | BE192: 6790 | BG192: 1 | BJ192: 0 | BK192: 0 | BL192: 0 | BM192: 0 | BO192: 1 | BP192: 1 | BQ192: 1 | BR192: 0 | BS192: 0 | BT192: 0 | BV192: 0 | BW192: 0 | BX192: 0 | BY192: 1 | BZ192: 0 | CA192: 0 | CB192: 0 | CC192: 0
A193: 150280210 | C193: 0 | D193: 1 | E193: 50 | F193: 280 | G193: 21 | H193: 21.5 | I193: 0 | J193: 0 | K193: 0 | L193: 0 | M193: 7230 | N193: 0 | O193: 0 | P193: 0 | Q193: 1.485 | R193: 1.05 | S193: 1.05 | T193: 1.05 | U193: 7230 | V193: 0 | W193: 0 | X193: 0 | Y193: 622 | Z193: 0 | AA193: 0 | AB193: 0 | AC193: 2.808572807 | AD193: 0 | AE193: 0 | AF193: 0 | AG193: 0.0001276 | AH193: 1.7219 | AI193: 4 | AJ193: 0.000514201 | AK193: 0 | AL193: 0 | AM193: 0 | AN193: 0.85 | AO193: 0.85 | AP193: 0.85 | AQ193: 0 | AR193: 0 | AS193: 0 | AT193: 0 | AU193: 0 | AV193: 0 | AW193: 0 | AX193: 0 | AY193: 0 | AZ193: 7.5 | BA193: 0 | BB193: 0 | BC193: 0 | BE193: 7230 | BG193: 1 | BJ193: 0 | BK193: 0 | BL193: 0 | BM193: 0 | BO193: 1 | BP193: 1 | BQ193: 1 | BR193: 0 | BS193: 0 | BT193: 0 | BV193: 0 | BW193: 0 | BX193: 0 | BY193: 1 | BZ193: 0 | CA193: 0 | CB193: 0 | CC193: 0
A194: 16550100 | C194: 0 | D194: 1 | E194: 65 | F194: 50 | G194: 10 | H194: =IF(G194=10,11.5,IF(G194=11,11.5,IF(G194=15,16.5,IF(G194=16,16.5,IF(G194=20,21.5,IF(G194=21,21.5,)))))) -> 11.5 | I194: 0 | J194: 0 | K194: 0 | L194: 0 | M194: 606 | N194: 0 | O194: 0 | P194: 0 | Q194: 1.371 | R194: 1.08 | S194: 1.08 | T194: 1.08 | U194: 606 | V194: 0 | W194: 0 | X194: 0 | Y194: 52 | Z194: 0 | AA194: 0 | AB194: 0 | AC194: 0.01235841816 | AD194: 0 | AE194: 0 | AF194: 0 | AG194: 0.0003969 | AH194: 1.7346 | AI194: 2 | AJ194: 0.000367347 | AK194: 0 | AL194: 0 | AM194: 0 | AN194: 0.98 | AO194: 0.98 | AP194: 0.98 | AQ194: 0 | AR194: 0 | AS194: 0 | AT194: 0 | AU194: 0 | AV194: 0 | AW194: 0 | AX194: 0 | AY194: 0 | AZ194: 0.3 | BA194: 0 | BB194: 0 | BC194: 0 | BE194: 606 | BG194: 1 | BJ194: 0 | BK194: 0 | BL194: 0 | BM194: 0 | BO194: 1 | BP194: 1 | BQ194: 1 | BR194: 0 | BS194: 0 | BT194: 0 | BV194: 0 | BW194: 0 | BX194: 0 | BY194: =IF(SUM(BV194:BX194)=0,1,0) -> 1 | BZ194: 0 | CA194: 0 | CB194: 0 | CC194: 0
A195: =CONCATENATE(D195,E195,F195,G195,C195) -> 16550110 | C195: 0 | D195: 1 | E195: 65 | F195: 50 | G195: 11 | H195: =IF(G195=10,11.5,IF(G195=11,11.5,IF(G195=15,16.5,IF(G195=16,16.5,IF(G195=20,21.5,IF(G195=21,21.5,)))))) -> 11.5 | I195: 0 | J195: 0 | K195: 0 | L195: 0 | M195: 772 | N195: 0 | O195: 0 | P195: 0 | Q195: 1.437 | R195: 1.1 | S195: 1.1 | T195: 1.1 | U195: 772 | V195: 0 | W195: 0 | X195: 0 | Y195: 66 | Z195: 0 | AA195: 0 | AB195: 0 | AC195: 0.03245160007 | AD195: 0 | AE195: 0 | AF195: 0 | AG195: 0.0003969 | AH195: 1.7346 | AI195: 4 | AJ195: 0.000574288 | AK195: 0 | AL195: 0 | AM195: 0 | AN195: 0.95 | AO195: 0.95 | AP195: 0.95 | AQ195: 0 | AR195: 0 | AS195: 0 | AT195: 0 | AU195: 0 | AV195: 0 | AW195: 0 | AX195: 0 | AY195: 0 | AZ195: 0.7 | BA195: 0 | BB195: 0 | BC195: 0 | BE195: 772 | BG195: 1 | BJ195: 0 | BK195: 0 | BL195: 0 | BM195: 0 | BO195: 1 | BP195: 1 | BQ195: 1 | BR195: 0 | BS195: 0 | BT195: 0 | BV195: 0 | BW195: 0 | BX195: 0 | BY195: 1 | BZ195: 0 | CA195: 0 | CB195: 0 | CC195: 0
A196: 16560100 | C196: 0 | D196: 1 | E196: 65 | F196: 60 | G196: 10 | H196: 11.5 | I196: 0 | J196: 0 | K196: 0 | L196: 0 | M196: 727 | N196: 0 | O196: 0 | P196: 0 | Q196: 1.371 | R196: 1.08 | S196: 1.08 | T196: 1.08 | U196: 727 | V196: 0 | W196: 0 | X196: 0 | Y196: 63 | Z196: 0 | AA196: 0 | AB196: 0 | AC196: 0.01897694783 | AD196: 0 | AE196: 0 | AF196: 0 | AG196: 0.0003969 | AH196: 1.7346 | AI196: 2 | AJ196: 0.000367347 | AK196: 0 | AL196: 0 | AM196: 0 | AN196: 0.98 | AO196: 0.98 | AP196: 0.98 | AQ196: 0 | AR196: 0 | AS196: 0 | AT196: 0 | AU196: 0 | AV196: 0 | AW196: 0 | AX196: 0 | AY196: 0 | AZ196: 0.4 | BA196: 0 | BB196: 0 | BC196: 0 | BE196: 727 | BG196: 1 | BJ196: 0 | BK196: 0 | BL196: 0 | BM196: 0 | BO196: 1 | BP196: 1 | BQ196: 1 | BR196: 0 | BS196: 0 | BT196: 0 | BV196: 0 | BW196: 0 | BX196: 0 | BY196: 1 | BZ196: 0 | CA196: 0 | CB196: 0 | CC196: 0
A197: 16560110 | C197: 0 | D197: 1 | E197: 65 | F197: 60 | G197: 11 | H197: 11.5 | I197: 0 | J197: 0 | K197: 0 | L197: 0 | M197: 926 | N197: 0 | O197: 0 | P197: 0 | Q197: 1.437 | R197: 1.1 | S197: 1.1 | T197: 1.1 | U197: 926 | V197: 0 | W197: 0 | X197: 0 | Y197: 80 | Z197: 0 | AA197: 0 | AB197: 0 | AC197: 0.05021096095 | AD197: 0 | AE197: 0 | AF197: 0 | AG197: 0.0003969 | AH197: 1.7346 | AI197: 4 | AJ197: 0.000574288 | AK197: 0 | AL197: 0 | AM197: 0 | AN197: 0.95 | AO197: 0.95 | AP197: 0.95 | AQ197: 0 | AR197: 0 | AS197: 0 | AT197: 0 | AU197: 0 | AV197: 0 | AW197: 0 | AX197: 0 | AY197: 0 | AZ197: 0.8 | BA197: 0 | BB197: 0 | BC197: 0 | BE197: 926 | BG197: 1 | BJ197: 0 | BK197: 0 | BL197: 0 | BM197: 0 | BO197: 1 | BP197: 1 | BQ197: 1 | BR197: 0 | BS197: 0 | BT197: 0 | BV197: 0 | BW197: 0 | BX197: 0 | BY197: 1 | BZ197: 0 | CA197: 0 | CB197: 0 | CC197: 0
A198: 16560150 | C198: 0 | D198: 1 | E198: 65 | F198: 60 | G198: 15 | H198: 16.5 | I198: 0 | J198: 0 | K198: 0 | L198: 0 | M198: 1153 | N198: 0 | O198: 0 | P198: 0 | Q198: 1.355 | R198: 1.08 | S198: 1.08 | T198: 1.08 | U198: 1153 | V198: 0 | W198: 0 | X198: 0 | Y198: 99 | Z198: 0 | AA198: 0 | AB198: 0 | AC198: 0.0494917485 | AD198: 0 | AE198: 0 | AF198: 0 | AG198: 0.0002083 | AH198: 1.724 | AI198: 2 | AJ198: 0.000461829 | AK198: 0 | AL198: 0 | AM198: 0 | AN198: 1.01 | AO198: 1.01 | AP198: 1.01 | AQ198: 0 | AR198: 0 | AS198: 0 | AT198: 0 | AU198: 0 | AV198: 0 | AW198: 0 | AX198: 0 | AY198: 0 | AZ198: 0.6 | BA198: 0 | BB198: 0 | BC198: 0 | BE198: 1153 | BG198: 1 | BJ198: 0 | BK198: 0 | BL198: 0 | BM198: 0 | BO198: 1 | BP198: 1 | BQ198: 1 | BR198: 0 | BS198: 0 | BT198: 0 | BV198: 0 | BW198: 0 | BX198: 0 | BY198: 1 | BZ198: 0 | CA198: 0 | CB198: 0 | CC198: 0
A199: 16560160 | C199: 0 | D199: 1 | E199: 65 | F199: 60 | G199: 16 | H199: 16.5 | I199: 0 | J199: 0 | K199: 0 | L199: 0 | M199: 1304 | N199: 0 | O199: 0 | P199: 0 | Q199: 1.47 | R199: 1.1 | S199: 1.1 | T199: 1.1 | U199: 1304 | V199: 0 | W199: 0 | X199: 0 | Y199: 112 | Z199: 0 | AA199: 0 | AB199: 0 | AC199: 0.1839177424 | AD199: 0 | AE199: 0 | AF199: 0 | AG199: 0.0002083 | AH199: 1.724 | AI199: 4 | AJ199: 0.001392796 | AK199: 0 | AL199: 0 | AM199: 0 | AN199: 0.95 | AO199: 0.95 | AP199: 0.95 | AQ199: 0 | AR199: 0 | AS199: 0 | AT199: 0 | AU199: 0 | AV199: 0 | AW199: 0 | AX199: 0 | AY199: 0 | AZ199: 1.2 | BA199: 0 | BB199: 0 | BC199: 0 | BE199: 1304 | BG199: 1 | BJ199: 0 | BK199: 0 | BL199: 0 | BM199: 0 | BO199: 1 | BP199: 1 | BQ199: 1 | BR199: 0 | BS199: 0 | BT199: 0 | BV199: 0 | BW199: 0 | BX199: 0 | BY199: 1 | BZ199: 0 | CA199: 0 | CB199: 0 | CC199: 0
A200: 16560200 | C200: 0 | D200: 1 | E200: 65 | F200: 60 | G200: 20 | H200: 21.5 | I200: 0 | J200: 0 | K200: 0 | L200: 0 | M200: 1611 | N200: 0 | O200: 0 | P200: 0 | Q200: 1.355 | R200: 1.08 | S200: 1.08 | T200: 1.08 | U200: 1611 | V200: 0 | W200: 0 | X200: 0 | Y200: 139 | Z200: 0 | AA200: 0 | AB200: 0 | AC200: 0.0768960692 | AD200: 0 | AE200: 0 | AF200: 0 | AG200: 0.0001276 | AH200: 1.7219 | AI200: 2 | AJ200: 0.000376611 | AK200: 0 | AL200: 0 | AM200: 0 | AN200: 0.95 | AO200: 0.95 | AP200: 0.95 | AQ200: 0 | AR200: 0 | AS200: 0 | AT200: 0 | AU200: 0 | AV200: 0 | AW200: 0 | AX200: 0 | AY200: 0 | AZ200: 0.8 | BA200: 0 | BB200: 0 | BC200: 0 | BE200: 1611 | BG200: 1 | BJ200: 0 | BK200: 0 | BL200: 0 | BM200: 0 | BO200: 1 | BP200: 1 | BQ200: 1 | BR200: 0 | BS200: 0 | BT200: 0 | BV200: 0 | BW200: 0 | BX200: 0 | BY200: 1 | BZ200: 0 | CA200: 0 | CB200: 0 | CC200: 0
... 925 more rows

Sheet NL (hidden)
B1: Selectiontool Strada Hybrid
B3: Lengte | D3: mm | E3: Invulformulier | F3: Statisch toestel | G3: rel. vocht. | H3: Unit | I3: Kopieer alle data
B4: Hoogte | D4: =D3 -> mm | E4: Uitvoering | F4: Hybrid toestel | G4: Eenheidsstelsel | H4: DBH set | I4: SI-eenheden
B5: Type | E5: Temperaturen | F5: DBH rail type | G5: Toestel | I5: Imperiale-eenheden
B6: Diepte | D6: =D3 -> mm | E6: Indien de ventilatoren uitgeschakeld zijn, is de afgifte een indicatieve waarde. | F6: Waterzijdig drukverlies
B8: Verwarmen: | G8: Koelen:
B9: Water aanvoer | E9: =B9 -> Water aanvoer | I9: =D9 -> 0
B10: Water retour | D10: =D9 -> 0 | E10: =B10 -> Water retour | I10: =D9 -> 0
B11: Ruimte (droge bol) | D11: =D9 -> 0 | E11: =B11 -> Ruimte (droge bol) | I11: =D9 -> 0
C13: =CONCATENATE(B8," ",C9,"/",C10,"/",C11) -> Verwarmen: // | E13: =CONCATENATE(G8," ",H9,"/",H10,"/",H11) -> Koelen: // | G13: Watervolume | H13: Elektrisch verbruik [W] | I13: Geluidsdrukniveau [dB(A)]**** | J13: Geluidsvermogen [dB(A)]****
C14: Verwarmvermogen | D14: Waterdebiet | E14: Koelvermogen | F14: =D14 -> Waterdebiet
A15: Statisch (indicatieve waarde)
A16: EN16430 | B16: Ventilatorsnelheid
B17: Ventilatorsnelheid 2
B18: Ventilatorsnelheid 3
B19: Stuurspanning [v] | I19: =#REF! -> 
A20: * | B20: Koelvermogen is berekend volgens EN16430 met de ventilatoren naar boven blazend voor alle types.
A21: ** | B21: Wanneer het watervolume in gallons wordt gegeven, zijn dit imperial gallons.
A22: *** | B22: Geluidsvermogen volgens ISO 3741:2010, Voor het geluidsdrukniveau is er een aangenomen kamerdemping van 8 dB(A).

Sheet EN (hidden)
B1: Selectiontool Strada Hybrid
B3: Length | D3: mm | E3: Formulary | F3: Static device | G3: rel. humid. | H3: Unit | I3: Copy all data
B4: Heigth | D4: =D3 -> mm | E4: Version | F4: Hybrid device | G4: Unit conversion | H4: DBH set | I4: SI-units
B5: Type | E5: Temperatures | F5: DBH rail type | G5: Device | I5: Imperial-units
B6: Depth | D6: =D3 -> mm | E6: If the fans are switched off, the output is an indicative value. | F6: Water side pressure loss
B8: Heating: | G8: Cooling:
B9: Supply water | E9: =B9 -> Supply water | I9: =D9 -> 0
B10: Return water | D10: =D9 -> 0 | E10: =B10 -> Return water | I10: =D9 -> 0
B11: Entering air (dry bulb) | D11: =D9 -> 0 | E11: =B11 -> Entering air (dry bulb) | I11: =D9 -> 0
C13: =CONCATENATE(B8," ",C9,"/",C10,"/",C11) -> Heating: // | E13: =CONCATENATE(G8," ",H9,"/",H10,"/",H11) -> Cooling: // | G13: Water volume | H13: Electrical consumption [W] | I13: Sound pressure level [dB(A)]**** | J13: Sound power [dB(A)]****
C14: Heating capacity | D14: Water flow | E14: Cooling capacity | F14: =D14 -> Water flow
A15: Fans off (indicative value)
A16: EN16430 | B16: Fan speed
B17: Fan speed selection 2
B18: Fan speed selection 3
B19: Fan voltage [V]
A20: * | B20: Cooling power is calcullated according EN16430 with fans blowing up for all heights.
A21: ** | B21: When the water volume is given in gallons, the units are specifically imperial gallons.
A22: *** | B22: Soundpower according to ISO 3741:2010, sound pressure level with assumed room damping of 8 dB(A).

Sheet FR (hidden)
B1: Selectiontool Strada Hybrid
B3: Longeur | D3: mm | E3: Formulaire | F3: Appareil statique | G3: hum. rel. | H3: Unité | I3: Copier toutes des données
B4: Hauteur | D4: =D3 -> mm | E4: Version | F4: Appareil Hybrid | G4: Système unitaire | H4: DBH set | I4: Unités-SI
B5: Type | E5: Températures | F5: DBH rail type | G5: Appareil | I5: Unités-Impériales
B6: Profondeur | D6: =D3 -> mm | E6: Si les ventilateurs sont éteints, la sortie est une valeur indicative. | F6: Perte de charge
B8: Chauffer: | G8: Refroidir:
B9: Entrée de l'eau | E9: =B9 -> Entrée de l'eau | I9: =D9 -> 0
B10: Retour de l'eau | D10: =D9 -> 0 | E10: =B10 -> Retour de l'eau | I10: =D9 -> 0
B11: Ambiante (bulbe sec) | D11: =D9 -> 0 | E11: =B11 -> Ambiante (bulbe sec) | I11: =D9 -> 0
C13: =CONCATENATE(B8," ",C9,"/",C10,"/",C11) -> Chauffer: // | E13: =CONCATENATE(G8," ",H9,"/",H10,"/",H11) -> Refroidir: // | G13: Volume d'eau | H13: Puissance absorbée elec. [W] | I13: Pression sonore [dB(A)]**** | J13: Puissance sonore [dB(A)]****
C14: Puissance de chauffer | D14: Débit d'eau | E14: Puissance de refroidir | F14: =D14 -> Débit d'eau
A15: Ventilateur éteint (indicative)
A16: EN16430 | B16: Vitesse ventilateur
B17: Vitesse du ventilateur 2
B18: Vitesse du ventilateur 3
B19: Tension ventilateur [V]
A20: * | B20: La puissance de refroidissement est calculée selon EN 16430 avec des ventilateurs qui soufflent pour toutes les hauteurs.
A21: ** | B21: Lorsque le volume d'eau est donné en gallons, ce sont des gallons impérial.
A22: *** | B22: Puissance acoustique selon ISO 3741: 2010, niveau de pression acoustique avec un amortissement de la pièce supposé de 8 dB(A).

Sheet DE (hidden)
B1: Selectiontool Strada Hybrid
B3: Länge | D3: mm | E3: Eingabefelder | F3: Statisches Gerät | G3: rel. Luftf. | H3: Unit | I3: Kopieren Sie alle daten
B4: Höhe | D4: =D3 -> mm | E4: Ausführung | F4: Hybrid Gerät | G4: Einheiten | H4: DBH set | I4: SI-einheiten
B5: Typ | E5: Temperaturen | F5: DBH rail typ | G5: Gerät | I5: Imperiale-einheiten
B6: Tiefe | D6: =D3 -> mm | E6: Wenn die Lüfter ausgeschaltet sind, ist der Ausgang ein Richtwert. | F6: zug. wassers. Druckverlust
B8: Heizen: | G8: Kühlen:
B9: Vorlauf wasser | E9: =B9 -> Vorlauf wasser | I9: =D9 -> 0
B10: Rücklauf wasser | D10: =D9 -> 0 | E10: =B10 -> Rücklauf wasser | I10: =D9 -> 0
B11: Raum (trocken) | D11: =D9 -> 0 | E11: =B11 -> Raum (trocken) | I11: =D9 -> 0
C13: =CONCATENATE(B8," ",C9,"/",C10,"/",C11) -> Heizen: // | E13: =CONCATENATE(G8," ",H9,"/",H10,"/",H11) -> Kühlen: // | G13: Wasservolumen | H13: Elektr. Leistung [W] | I13: Schalldruckpegel [dB(A)]**** | J13: Schallleistungspegel [dB(A)]****
C14: Heizleistung | D14: Heizmittelstrom | E14: Kühlleistung | F14: Kühlmittelstrom
A15: Lüfter aus (richtwert)
A16: EN16430 | B16: Auslegungsstufe
B17: Auslegungsstufe 2
B18: Auslegungsstufe 3
B19: Lufterspannung [V]
A20: * | B20: Die Kühlleistung wird nach EN 16430 berechnet, wobei die Lüfter für alle Höhen hochgehen.
A21: ** | B21: Wenn das Wasservolumen in Gallonen angegeben ist, sind dies imperiale Gallonen.
A22: *** | B22: Schallleistung nach ISO 3741: 2010, Schalldruckpegel bei angenommener Raumdämpfung von 8 dB(A).

Sheet NR (hidden)
B1: Selectiontool Strada Hybrid
B3: Lengde | D3: mm | E3: Inngangsskjema | F3: Statisk modell | G3: rel. fuktighet | H3: Unit | I3: Kopier alle data
B4: Høyde | D4: =D3 -> mm | E4: Versjon | F4: Hybrid modell | G4: Enhetssystem | H4: DBH set | I4: SI-enheter
B5: Type | E5: Temperaturer | F5: DBH rail type | G5: Modell | I5: Imperiale-enheter
B6: Bredde | D6: =D3 -> mm | E6: Hvis viftene er slått av, er utgangen en indikativ verdi. | F6: Trykktap
B8: Varme: | G8: Kjøling:
B9: Tur vann | E9: =B9 -> Tur vann | I9: =D9 -> 0
B10: Retur vann | D10: 0 | E10: =B10 -> Retur vann | I10: =D9 -> 0
B11: Rom (tørr pære) | D11: 0 | E11: =B11 -> Rom (tørr pære) | I11: =D9 -> 0
C13: =CONCATENATE(B8," ",C9,"/",C10,"/",C11) -> Varme: // | E13: =CONCATENATE(G8," ",H9,"/",H10,"/",H11) -> Kjøling: // | G13: Vannvolum | H13: Elektrisk effekt [W] | I13: Lydtrykk [dB(A)]**** | J13: Lydeffekt [dB(A)]****
C14: Varme effekt | D14: Vannmengde | E14: Kjøle effekt | F14: =D14 -> Vannmengde
A15: Lüfter aus (richtwert)
A16: EN16430 | B16: Styresignal
B17: Auslegungsstufe 2
B18: Auslegungsstufe 3
B19: Viftespenning [V]
A20: * | B20: Kjølekapasitet beregnes i henhold til EN16430 med viftene som blåser oppover for alle typer.
A21: ** | B21: Når vannvolumet er gitt i gallon, er dette imperial gallons.
A22: *** | B22: Lydeffekt i henhold til ISO 3741: 2010. For lydtrykknivået er det en antatt romdemping på 8 dB (A).

Sheet SP (hidden)
B1: Selectiontool Strada Hybrid
B3: Longitud | D3: mm | E3: Formulary | F3: Dispositivo estático | G3: Hum. Relativa | H3: Unit | I3: Copiar todos los datos
B4: Altura | D4: =D3 -> mm | E4: Versión | F4: Dispositivo Hybrid | G4: Convers. de unidades | H4: DBH set | I4: Unidades-SI
B5: Tipo | E5: Temperaturas | F5: tipo de riel DBH | G5: Despositivo | I5: Unidades-Imperial
B6: Profund. | D6: =D3 -> mm | E6: La velocidad del ventilador en "0" tiene una emisión indicativa. | F6: Pérdida de carga del agua
B8: Calefacción: | G8: Enfriamiento:
B9: Agua impulsión | E9: =B9 -> Agua impulsión | I9: =D9 -> 0
B10: Agua retorno | D10: =D9 -> 0 | E10: =B10 -> Agua retorno | I10: =D9 -> 0
B11: Ambiente (bulbo seco) | D11: =D9 -> 0 | E11: =B11 -> Ambiente (bulbo seco) | I11: =D9 -> 0
C13: =CONCATENATE(B8," ",C9,"/",C10,"/",C11) -> Calefacción: // | E13: =CONCATENATE(G8," ",H9,"/",H10,"/",H11) -> Enfriamiento: // | G13: Volumen de agua | H13: Potencia eléctrica absorbida [W] | I13: Presión sonora [dB(A)]**** | J13: Potencia sonora [dB(A)]****
C14: Emisión calefacción | D14: Caudal de agua, calefacción | E14: Emisión sensible Frío | F14: =D14 -> Caudal de agua, calefacción
A15: Fans off (indicative value)
A16: EN16430 | B16: Velocidad del ventilador
B17: Fan speed selection 2
B18: Fan speed selection 3
B19: Voltaje control [V]
A20: * | B20: La potencia de enfriamiento se calcula según la norma EN 16430 con ventiladores de todas las alturas.
A21: ** | B21: Cuando el volumen de agua se da en galones, las unidades son específicamente galones imperiales.
A22: *** | B22: Potencia sonora según ISO 3741: 2010, nivel de presión acústica con una amortiguación ambiental supuesta de 8 dB (A).

Sheet SW (hidden)
B1: Selectiontool Strada Hybrid
B3: Längd | D3: mm | E3: Inngangsskjema | F3: Statisk modell | G3: rel. Fuktighet | H3: Unit | I3: Kopiera all data
B4: Höjd | D4: =D3 -> mm | E4: Storlek | F4: Hybrid modell | G4: Enhetssystem | H4: DBH set | I4: SI-enheter
B5: Typ | E5: Temperaturer | F5: DBH rail typ | G5: Modell | I5: Imperiella-enheter
B6: Djup | D6: =D3 -> mm | E6: Om fläktarna är avstängda är utgången ett indikationsvärde. | F6: Tryckfall, vatten
B8: Värme: | G8: Kyla:
B9: Tillopp | E9: =B9 -> Tillopp | I9: =D9 -> 0
B10: Retur | D10: 0 | E10: =B10 -> Retur | I10: =D9 -> 0
B11: Rum (torr) | D11: 0 | E11: =B11 -> Rum (torr) | I11: =D9 -> 0
C13: =CONCATENATE(B8," ",C9,"/",C10,"/",C11) -> Värme: // | E13: =CONCATENATE(G8," ",H9,"/",H10,"/",H11) -> Kyla: // | G13: Vattenvolym | H13: Effektförbrukning [W] | I13: Ljudtryck [dB(A)]**** | J13: Ljudeffekt [dB(A)]****
C14: Effekt | D14: Vattenflöde | E14: Kyleffekt | F14: =D14 -> Vattenflöde
A15: Fans off (indicative value)
A16: EN16430 | B16: Fläkthastighet
B17: Fan speed selection 2
B18: Fan speed selection 3
B19: Spänning, Fläkt [V]
A20: * | B20: Kyleffekt är beräknad enligt EN16430 med fläktar blåsandes i riktning uppåt för alla höjder
A21: ** | B21: När vattenvolymen är given i gallon avser det Imperiella gallon.
A22: *** | B22: Ljudeffekt enligt ISO 3741:2010 ljudtryck med antagen ljudreduktion från rummet på 8 dB(A)

Sheet TS (hidden)
B1: Selectiontool Strada Hybrid
B3: Délka | D3: mm | E3: Formulary | F3: Statická jednotka | G3: Relativní vlhkost | H3: Jednotka | I3: Kopírovat všechna data
B4: Výška | D4: =D3 -> mm | E4: Verze | F4: Hybridní jednotka | G4: Převod jednotek | H4: DBH sada | I4: Mezinárodní (Sl)
B5: Typ | E5: Teploty | F5: DBH rail type | G5: Device | I5: Imperiální
B6: Hloubka | D6: =D3 -> mm | E6: Pokud jsou ventilátory vypnuté, je výkon pouze orientační. | F6: Tlaková ztráta
B8: Topení: | G8: Chlazení:
B9: Voda na přívodu | E9: =B9 -> Voda na přívodu | I9: =D9 -> 0
B10: Voda na zpátečce | D10: =D9 -> 0 | E10: =B10 -> Voda na zpátečce | I10: =D9 -> 0
B11: "Suchá" teplota vzduchu | D11: =D9 -> 0 | E11: =B11 -> "Suchá" teplota vzduchu | I11: =D9 -> 0
C13: =CONCATENATE(B8," ",C9,"/",C10,"/",C11) -> Topení: // | E13: =CONCATENATE(G8," ",H9,"/",H10,"/",H11) -> Chlazení: // | G13: Objem vody | H13: Elektrický výkon [W] | I13: Akustický tlak [dB(A)]**** | J13: Akustický výkon [dB(A)]****
C14: Výkon Topení | D14: Průtok vody | E14: Výkon Chlazení | F14: Průtok vody
A15: Fans off (indicative value)
A16: EN16430 | B16: Rychlost otáček ventilátoru
B17: Fan speed selection 2
B18: Fan speed selection 3
B19: Napětí ventilárotu [V]
A20: * | B20: Chladicí výkon vypočítán podle EN 16430 s ventilátory, které u všech typů - výšek foukají nahoru.
A21: **
A22: *** | B22: Akustický výkon podle ISO 3741: 2010, hladina akustického tlaku s předpokládaným útlumem místnosti o 8 dB (A).

Sheet ExtraTaal1 (hidden)
B1: Selectiontool Strada Hybrid
B3: Length | D3: mm | E3: Formulary | F3: Static device | G3: rel. humid. | H3: Unit | I3: Copy all data
B4: Heigth | D4: =D3 -> mm | E4: Version | F4: Hybrid device | G4: Unit conversion | H4: DBH set | I4: SI-units
B5: Type | E5: Temperatures | F5: DBH rail type | G5: Device | I5: Imperial-units
B6: Depth | D6: =D3 -> mm | E6: If the fans are switched off, the output is an indicative value. | F6: Water side pressure loss
B8: Heating: | G8: Cooling:
B9: Supply water | E9: =B9 -> Supply water | I9: =D9 -> 0
B10: Return water | D10: =D9 -> 0 | E10: =B10 -> Return water | I10: =D9 -> 0
B11: Entering air (dry bulb) | D11: =D9 -> 0 | E11: =B11 -> Entering air (dry bulb) | I11: =D9 -> 0
C13: =CONCATENATE(B8," ",C9,"/",C10,"/",C11) -> Heating: // | E13: =CONCATENATE(G8," ",H9,"/",H10,"/",H11) -> Cooling: // | G13: Water volume | H13: Electrical consumption [W] | I13: Sound pressure level [dB(A)]**** | J13: Sound power [dB(A)]****
C14: Heating capacity | D14: Water flow | E14: Cooling capacity | F14: =D14 -> Water flow
A15: Fans off (indicative value)
A16: EN16430 | B16: Fan speed
B17: Fan speed selection 2
B18: Fan speed selection 3
B19: Fan voltage [V]
A20: * | B20: Cooling power is calcullated according EN16430 with fans blowing up for all heights.
A21: ** | B21: When the water volume is given in gallons, the units are specifically imperial gallons.
A22: *** | B22: Soundpower according to ISO 3741:2010, sound pressure level with assumed room damping of 8 dB(A).

Sheet ExtraTaal2 (hidden)
B1: Selectiontool Strada Hybrid
B3: Length | D3: mm | E3: Formulary | F3: Static device | G3: rel. humid. | H3: Unit | I3: Copy all data
B4: Heigth | D4: =D3 -> mm | E4: Version | F4: Hybrid device | G4: Unit conversion | H4: DBH set | I4: SI-units
B5: Type | E5: Temperatures | F5: DBH rail type | G5: Device | I5: Imperial-units
B6: Depth | D6: =D3 -> mm | E6: If the fans are switched off, the output is an indicative value. | F6: Water side pressure loss
B8: Heating: | G8: Cooling:
B9: Supply water | E9: =B9 -> Supply water | I9: =D9 -> 0
B10: Return water | D10: =D9 -> 0 | E10: =B10 -> Return water | I10: =D9 -> 0
B11: Entering air (dry bulb) | D11: =D9 -> 0 | E11: =B11 -> Entering air (dry bulb) | I11: =D9 -> 0
C13: =CONCATENATE(B8," ",C9,"/",C10,"/",C11) -> Heating: // | E13: =CONCATENATE(G8," ",H9,"/",H10,"/",H11) -> Cooling: // | G13: Water volume | H13: Electrical consumption [W] | I13: Sound pressure level [dB(A)]**** | J13: Sound power [dB(A)]****
C14: Heating capacity | D14: Water flow | E14: Cooling capacity | F14: =D14 -> Water flow
A15: Fans off (indicative value)
A16: EN16430 | B16: Fan speed
B17: Fan speed selection 2
B18: Fan speed selection 3
B19: Fan voltage [V]
A20: * | B20: Cooling power is calcullated according EN16430 with fans blowing up for all heights.
A21: ** | B21: When the water volume is given in gallons, the units are specifically imperial gallons.
A22: *** | B22: Soundpower according to ISO 3741:2010, sound pressure level with assumed room damping of 8 dB(A).

Sheet ExtraTaal3 (hidden)
B1: Selectiontool Strada Hybrid
B3: Length | D3: mm | E3: Formulary | F3: Static device | G3: rel. humid. | H3: Unit | I3: Copy all data
B4: Heigth | D4: =D3 -> mm | E4: Version | F4: Hybrid device | G4: Unit conversion | H4: DBH set | I4: SI-units
B5: Type | E5: Temperatures | F5: DBH rail type | G5: Device | I5: Imperial-units
B6: Depth | D6: =D3 -> mm | E6: If the fans are switched off, the output is an indicative value. | F6: Water side pressure loss
B8: Heating: | G8: Cooling:
B9: Supply water | E9: =B9 -> Supply water | I9: =D9 -> 0
B10: Return water | D10: =D9 -> 0 | E10: =B10 -> Return water | I10: =D9 -> 0
B11: Entering air (dry bulb) | D11: =D9 -> 0 | E11: =B11 -> Entering air (dry bulb) | I11: =D9 -> 0
C13: =CONCATENATE(B8," ",C9,"/",C10,"/",C11) -> Heating: // | E13: =CONCATENATE(G8," ",H9,"/",H10,"/",H11) -> Cooling: // | G13: Water volume | H13: Electrical consumption [W] | I13: Sound pressure level [dB(A)]**** | J13: Sound power [dB(A)]****
C14: Heating capacity | D14: Water flow | E14: Cooling capacity | F14: =D14 -> Water flow
A15: Fans off (indicative value)
A16: EN16430 | B16: Fan speed
B17: Fan speed selection 2
B18: Fan speed selection 3
B19: Fan voltage [V]
A20: * | B20: Cooling power is calcullated according EN16430 with fans blowing up for all heights.
A21: ** | B21: When the water volume is given in gallons, the units are specifically imperial gallons.
A22: *** | B22: Soundpower according to ISO 3741:2010, sound pressure level with assumed room damping of 8 dB(A).
